Workbook

Sheet Team Ratings
B2: Team | C2: Index | D2: Rating | F2: Prob of beating | G2: 1 | H2: 2 | I2: 3 | J2: 4 | K2: 5 | L2: 6 | M2: 7 | N2: 8 | O2: 9 | P2: 10 | Q2: 11 | R2: 12 | S2: 13 | T2: 14 | U2: 15 | V2: 16 | W2: 17 | X2: 18 | Y2: 19 | Z2: 20 | AA2: 21 | AB2: 22 | AC2: 23 | AD2: 24 | AE2: 25 | AF2: 26 | AG2: 27 | AH2: 28 | AI2: 29 | AJ2: 30 | AK2: 31 | AL2: 32 | AM2: 33 | AN2: 34 | AO2: 35 | AP2: 36 | AQ2: 37 | AR2: 38 | AS2: 39 | AT2: 40 | AU2: 41 | AV2: 42 | AW2: 43 | AX2: 44 | AY2: 45 | AZ2: 46 | BA2: 47 | BB2: 48 | BC2: 49 | BD2: 50 | BE2: 51 | BF2: 52 | BG2: 53 | BH2: 54 | BI2: 55 | BJ2: 56 | BK2: 57 | BL2: 58 | BM2: 59 | BN2: 60 | BO2: 61 | BP2: 62 | BQ2: 63 | BR2: 64 | BS2: 65 | BT2: 66 | BU2: 67 | BV2: 68
B3: Alabama | C3: 1 | D3: 92.93 | F3: 1 | G3: =IF($F3<>G$2,1-_xlfn.NORM.DIST(0,INDEX(Rating,$F3)-INDEX(Rating,G$2),10,1),"") ->  | H3: =IF($F3<>H$2,1-_xlfn.NORM.DIST(0,INDEX(Rating,$F3)-INDEX(Rating,H$2),10,1),"") -> 0.9883658371 | I3: =IF($F3<>I$2,1-_xlfn.NORM.DIST(0,INDEX(Rating,$F3)-INDEX(Rating,I$2),10,1),"") -> 0.9955906026 | J3: =IF($F3<>J$2,1-_xlfn.NORM.DIST(0,INDEX(Rating,$F3)-INDEX(Rating,J$2),10,1),"") -> 0.7721662925 | K3: =IF($F3<>K$2,1-_xlfn.NORM.DIST(0,INDEX(Rating,$F3)-INDEX(Rating,K$2),10,1),"") -> 0.7602167611 | L3: =IF($F3<>L$2,1-_xlfn.NORM.DIST(0,INDEX(Rating,$F3)-INDEX(Rating,L$2),10,1),"") -> 0.7805346044 | M3: =IF($F3<>M$2,1-_xlfn.NORM.DIST(0,INDEX(Rating,$F3)-INDEX(Rating,M$2),10,1),"") -> 0.8895238862 | N3: =IF($F3<>N$2,1-_xlfn.NORM.DIST(0,INDEX(Rating,$F3)-INDEX(Rating,N$2),10,1),"") -> 0.7837732157 | O3: =IF($F3<>O$2,1-_xlfn.NORM.DIST(0,INDEX(Rating,$F3)-INDEX(Rating,O$2),10,1),"") -> 0.9106873827 | P3: =IF($F3<>P$2,1-_xlfn.NORM.DIST(0,INDEX(Rating,$F3)-INDEX(Rating,P$2),10,1),"") -> 0.7019440346 | Q3: =IF($F3<>Q$2,1-_xlfn.NORM.DIST(0,INDEX(Rating,$F3)-INDEX(Rating,Q$2),10,1),"") -> 0.8334778151 | R3: =IF($F3<>R$2,1-_xlfn.NORM.DIST(0,INDEX(Rating,$F3)-INDEX(Rating,R$2),10,1),"") -> 0.7112362854 | S3: =IF($F3<>S$2,1-_xlfn.NORM.DIST(0,INDEX(Rating,$F3)-INDEX(Rating,S$2),10,1),"") -> 0.9507327246 | T3: =IF($F3<>T$2,1-_xlfn.NORM.DIST(0,INDEX(Rating,$F3)-INDEX(Rating,T$2),10,1),"") -> 0.8542873376 | U3: =IF($F3<>U$2,1-_xlfn.NORM.DIST(0,INDEX(Rating,$F3)-INDEX(Rating,U$2),10,1),"") -> 0.81084109 | V3: =IF($F3<>V$2,1-_xlfn.NORM.DIST(0,INDEX(Rating,$F3)-INDEX(Rating,V$2),10,1),"") -> 0.6205783139 | W3: =IF($F3<>W$2,1-_xlfn.NORM.DIST(0,INDEX(Rating,$F3)-INDEX(Rating,W$2),10,1),"") -> 0.9517436128 | X3: =IF($F3<>X$2,1-_xlfn.NORM.DIST(0,INDEX(Rating,$F3)-INDEX(Rating,X$2),10,1),"") -> 0.6469131975 | Y3: =IF($F3<>Y$2,1-_xlfn.NORM.DIST(0,INDEX(Rating,$F3)-INDEX(Rating,Y$2),10,1),"") -> 0.9971625733 | Z3: =IF($F3<>Z$2,1-_xlfn.NORM.DIST(0,INDEX(Rating,$F3)-INDEX(Rating,Z$2),10,1),"") -> 0.998175434 | AA3: =IF($F3<>AA$2,1-_xlfn.NORM.DIST(0,INDEX(Rating,$F3)-INDEX(Rating,AA$2),10,1),"") -> 0.7389137003 | AB3: =IF($F3<>AB$2,1-_xlfn.NORM.DIST(0,INDEX(Rating,$F3)-INDEX(Rating,AB$2),10,1),"") -> 0.8230367329 | AC3: =IF($F3<>AC$2,1-_xlfn.NORM.DIST(0,INDEX(Rating,$F3)-INDEX(Rating,AC$2),10,1),"") -> 0.7119191399 | AD3: =IF($F3<>AD$2,1-_xlfn.NORM.DIST(0,INDEX(Rating,$F3)-INDEX(Rating,AD$2),10,1),"") -> 0.8932502185 | AE3: =IF($F3<>AE$2,1-_xlfn.NORM.DIST(0,INDEX(Rating,$F3)-INDEX(Rating,AE$2),10,1),"") -> 0.6424442969 | AF3: =IF($F3<>AF$2,1-_xlfn.NORM.DIST(0,INDEX(Rating,$F3)-INDEX(Rating,AF$2),10,1),"") -> 0.939549158 | AG3: =IF($F3<>AG$2,1-_xlfn.NORM.DIST(0,INDEX(Rating,$F3)-INDEX(Rating,AG$2),10,1),"") -> 0.757411403 | AH3: =IF($F3<>AH$2,1-_xlfn.NORM.DIST(0,INDEX(Rating,$F3)-INDEX(Rating,AH$2),10,1),"") -> 0.81084109 | AI3: =IF($F3<>AI$2,1-_xlfn.NORM.DIST(0,INDEX(Rating,$F3)-INDEX(Rating,AI$2),10,1),"") -> 0.7760737216 | AJ3: =IF($F3<>AJ$2,1-_xlfn.NORM.DIST(0,INDEX(Rating,$F3)-INDEX(Rating,AJ$2),10,1),"") -> 0.9656965716 | AK3: =IF($F3<>AK$2,1-_xlfn.NORM.DIST(0,INDEX(Rating,$F3)-INDEX(Rating,AK$2),10,1),"") -> 0.7881446014 | AL3: =IF($F3<>AL$2,1-_xlfn.NORM.DIST(0,INDEX(Rating,$F3)-INDEX(Rating,AL$2),10,1),"") -> 0.81084109 | AM3: =IF($F3<>AM$2,1-_xlfn.NORM.DIST(0,INDEX(Rating,$F3)-INDEX(Rating,AM$2),10,1),"") -> 0.7060907471 | AN3: =IF($F3<>AN$2,1-_xlfn.NORM.DIST(0,INDEX(Rating,$F3)-INDEX(Rating,AN$2),10,1),"") -> 0.9472763684 | AO3: =IF($F3<>AO$2,1-_xlfn.NORM.DIST(0,INDEX(Rating,$F3)-INDEX(Rating,AO$2),10,1),"") -> 0.5430021539 | AP3: =IF($F3<>AP$2,1-_xlfn.NORM.DIST(0,INDEX(Rating,$F3)-INDEX(Rating,AP$2),10,1),"") -> 0.9788725027 | AQ3: =IF($F3<>AQ$2,1-_xlfn.NORM.DIST(0,INDEX(Rating,$F3)-INDEX(Rating,AQ$2),10,1),"") -> 0.7904547089 | AR3: =IF($F3<>AR$2,1-_xlfn.NORM.DIST(0,INDEX(Rating,$F3)-INDEX(Rating,AR$2),10,1),"") -> 0.7766714664 | AS3: =IF($F3<>AS$2,1-_xlfn.NORM.DIST(0,INDEX(Rating,$F3)-INDEX(Rating,AS$2),10,1),"") -> 0.8092130471 | AT3: =IF($F3<>AT$2,1-_xlfn.NORM.DIST(0,INDEX(Rating,$F3)-INDEX(Rating,AT$2),10,1),"") -> 0.8649864174 | AU3: =IF($F3<>AU$2,1-_xlfn.NORM.DIST(0,INDEX(Rating,$F3)-INDEX(Rating,AU$2),10,1),"") -> 0.7492081518 | AV3: =IF($F3<>AV$2,1-_xlfn.NORM.DIST(0,INDEX(Rating,$F3)-INDEX(Rating,AV$2),10,1),"") -> 0.8817934686 | AW3: =IF($F3<>AW$2,1-_xlfn.NORM.DIST(0,INDEX(Rating,$F3)-INDEX(Rating,AW$2),10,1),"") -> 0.8026153236 | AX3: =IF($F3<>AX$2,1-_xlfn.NORM.DIST(0,INDEX(Rating,$F3)-INDEX(Rating,AX$2),10,1),"") -> 0.857014082 | AY3: =IF($F3<>AY$2,1-_xlfn.NORM.DIST(0,INDEX(Rating,$F3)-INDEX(Rating,AY$2),10,1),"") -> 0.8726484229 | AZ3: =IF($F3<>AZ$2,1-_xlfn.NORM.DIST(0,INDEX(Rating,$F3)-INDEX(Rating,AZ$2),10,1),"") -> 0.7398879501 | BA3: =IF($F3<>BA$2,1-_xlfn.NORM.DIST(0,INDEX(Rating,$F3)-INDEX(Rating,BA$2),10,1),"") -> 0.9763162852 | BB3: =IF($F3<>BB$2,1-_xlfn.NORM.DIST(0,INDEX(Rating,$F3)-INDEX(Rating,BB$2),10,1),"") -> 0.7533280395 | BC3: =IF($F3<>BC$2,1-_xlfn.NORM.DIST(0,INDEX(Rating,$F3)-INDEX(Rating,BC$2),10,1),"") -> 0.8172673064 | BD3: =IF($F3<>BD$2,1-_xlfn.NORM.DIST(0,INDEX(Rating,$F3)-INDEX(Rating,BD$2),10,1),"") -> 0.597545888 | BE3: =IF($F3<>BE$2,1-_xlfn.NORM.DIST(0,INDEX(Rating,$F3)-INDEX(Rating,BE$2),10,1),"") -> 0.9535213421 | BF3: =IF($F3<>BF$2,1-_xlfn.NORM.DIST(0,INDEX(Rating,$F3)-INDEX(Rating,BF$2),10,1),"") -> 0.6171484182 | BG3: =IF($F3<>BG$2,1-_xlfn.NORM.DIST(0,INDEX(Rating,$F3)-INDEX(Rating,BG$2),10,1),"") -> 0.9916443795 | BH3: =IF($F3<>BH$2,1-_xlfn.NORM.DIST(0,INDEX(Rating,$F3)-INDEX(Rating,BH$2),10,1),"") -> 0.7633129517 | BI3: =IF($F3<>BI$2,1-_xlfn.NORM.DIST(0,INDEX(Rating,$F3)-INDEX(Rating,BI$2),10,1),"") -> 0.7772683021 | BJ3: =IF($F3<>BJ$2,1-_xlfn.NORM.DIST(0,INDEX(Rating,$F3)-INDEX(Rating,BJ$2),10,1),"") -> 0.7421538892 | BK3: =IF($F3<>BK$2,1-_xlfn.NORM.DIST(0,INDEX(Rating,$F3)-INDEX(Rating,BK$2),10,1),"") -> 0.8284352729 | BL3: =IF($F3<>BL$2,1-_xlfn.NORM.DIST(0,INDEX(Rating,$F3)-INDEX(Rating,BL$2),10,1),"") -> 0.6125609392 | BM3: =IF($F3<>BM$2,1-_xlfn.NORM.DIST(0,INDEX(Rating,$F3)-INDEX(Rating,BM$2),10,1),"") -> 0.9072484776 | BN3: =IF($F3<>BN$2,1-_xlfn.NORM.DIST(0,INDEX(Rating,$F3)-INDEX(Rating,BN$2),10,1),"") -> 0.757411403 | BO3: =IF($F3<>BO$2,1-_xlfn.NORM.DIST(0,INDEX(Rating,$F3)-INDEX(Rating,BO$2),10,1),"") -> 0.883761016 | BP3: =IF($F3<>BP$2,1-_xlfn.NORM.DIST(0,INDEX(Rating,$F3)-INDEX(Rating,BP$2),10,1),"") -> 0.9149682811 | BQ3: =IF($F3<>BQ$2,1-_xlfn.NORM.DIST(0,INDEX(Rating,$F3)-INDEX(Rating,BQ$2),10,1),"") -> 0.5971588837 | BR3: =IF($F3<>BR$2,1-_xlfn.NORM.DIST(0,INDEX(Rating,$F3)-INDEX(Rating,BR$2),10,1),"") -> 0.9547722664 | BS3: =IF($F3<>BS$2,1-_xlfn.NORM.DIST(0,INDEX(Rating,$F3)-INDEX(Rating,BS$2),10,1),"") -> 0.8159398747 | BT3: =IF($F3<>BT$2,1-_xlfn.NORM.DIST(0,INDEX(Rating,$F3)-INDEX(Rating,BT$2),10,1),"") -> 0.8652034312 | BU3: =IF($F3<>BU$2,1-_xlfn.NORM.DIST(0,INDEX(Rating,$F3)-INDEX(Rating,BU$2),10,1),"") -> 0.5682812355 | BV3: =IF($F3<>BV$2,1-_xlfn.NORM.DIST(0,INDEX(Rating,$F3)-INDEX(Rating,BV$2),10,1),"") -> 0.9777314331
B4: Texas A&M-CC | C4: 2 | D4: 70.24 | F4: 2 | G4: =IF($F4<>G$2,1-_xlfn.NORM.DIST(0,INDEX(Rating,$F4)-INDEX(Rating,G$2),10,1),"") -> 0.01163416293 | H4: =IF($F4<>H$2,1-_xlfn.NORM.DIST(0,INDEX(Rating,$F4)-INDEX(Rating,H$2),10,1),"") ->  | I4: =IF($F4<>I$2,1-_xlfn.NORM.DIST(0,INDEX(Rating,$F4)-INDEX(Rating,I$2),10,1),"") -> 0.6368306512 | J4: =IF($F4<>J$2,1-_xlfn.NORM.DIST(0,INDEX(Rating,$F4)-INDEX(Rating,J$2),10,1),"") -> 0.06387935271 | K4: =IF($F4<>K$2,1-_xlfn.NORM.DIST(0,INDEX(Rating,$F4)-INDEX(Rating,K$2),10,1),"") -> 0.05914399443 | L4: =IF($F4<>L$2,1-_xlfn.NORM.DIST(0,INDEX(Rating,$F4)-INDEX(Rating,L$2),10,1),"") -> 0.06745722107 | M4: =IF($F4<>M$2,1-_xlfn.NORM.DIST(0,INDEX(Rating,$F4)-INDEX(Rating,M$2),10,1),"") -> 0.1480114848 | N4: =IF($F4<>N$2,1-_xlfn.NORM.DIST(0,INDEX(Rating,$F4)-INDEX(Rating,N$2),10,1),"") -> 0.0689044603 | O4: =IF($F4<>O$2,1-_xlfn.NORM.DIST(0,INDEX(Rating,$F4)-INDEX(Rating,O$2),10,1),"") -> 0.1777431579 | P4: =IF($F4<>P$2,1-_xlfn.NORM.DIST(0,INDEX(Rating,$F4)-INDEX(Rating,P$2),10,1),"") -> 0.04101738146 | Q4: =IF($F4<>Q$2,1-_xlfn.NORM.DIST(0,INDEX(Rating,$F4)-INDEX(Rating,Q$2),10,1),"") -> 0.09662922736 | R4: =IF($F4<>R$2,1-_xlfn.NORM.DIST(0,INDEX(Rating,$F4)-INDEX(Rating,R$2),10,1),"") -> 0.04344833423 | S4: =IF($F4<>S$2,1-_xlfn.NORM.DIST(0,INDEX(Rating,$F4)-INDEX(Rating,S$2),10,1),"") -> 0.2686173629 | T4: =IF($F4<>T$2,1-_xlfn.NORM.DIST(0,INDEX(Rating,$F4)-INDEX(Rating,T$2),10,1),"") -> 0.1123738621 | U4: =IF($F4<>U$2,1-_xlfn.NORM.DIST(0,INDEX(Rating,$F4)-INDEX(Rating,U$2),10,1),"") -> 0.08256852256 | V4: =IF($F4<>V$2,1-_xlfn.NORM.DIST(0,INDEX(Rating,$F4)-INDEX(Rating,V$2),10,1),"") -> 0.02488124213 | W4: =IF($F4<>W$2,1-_xlfn.NORM.DIST(0,INDEX(Rating,$F4)-INDEX(Rating,W$2),10,1),"") -> 0.2719254561 | X4: =IF($F4<>X$2,1-_xlfn.NORM.DIST(0,INDEX(Rating,$F4)-INDEX(Rating,X$2),10,1),"") -> 0.0292454904 | Y4: =IF($F4<>Y$2,1-_xlfn.NORM.DIST(0,INDEX(Rating,$F4)-INDEX(Rating,Y$2),10,1),"") -> 0.6904054743 | Z4: =IF($F4<>Z$2,1-_xlfn.NORM.DIST(0,INDEX(Rating,$F4)-INDEX(Rating,Z$2),10,1),"") -> 0.73826316 | AA4: =IF($F4<>AA$2,1-_xlfn.NORM.DIST(0,INDEX(Rating,$F4)-INDEX(Rating,AA$2),10,1),"") -> 0.05165650948 | AB4: =IF($F4<>AB$2,1-_xlfn.NORM.DIST(0,INDEX(Rating,$F4)-INDEX(Rating,AB$2),10,1),"") -> 0.08979799783 | AC4: =IF($F4<>AC$2,1-_xlfn.NORM.DIST(0,INDEX(Rating,$F4)-INDEX(Rating,AC$2),10,1),"") -> 0.04363293652 | AD4: =IF($F4<>AD$2,1-_xlfn.NORM.DIST(0,INDEX(Rating,$F4)-INDEX(Rating,AD$2),10,1),"") -> 0.1526815938 | AE4: =IF($F4<>AE$2,1-_xlfn.NORM.DIST(0,INDEX(Rating,$F4)-INDEX(Rating,AE$2),10,1),"") -> 0.02845509209 | AF4: =IF($F4<>AF$2,1-_xlfn.NORM.DIST(0,INDEX(Rating,$F4)-INDEX(Rating,AF$2),10,1),"") -> 0.2363786434 | AG4: =IF($F4<>AG$2,1-_xlfn.NORM.DIST(0,INDEX(Rating,$F4)-INDEX(Rating,AG$2),10,1),"") -> 0.0580913244 | AH4: =IF($F4<>AH$2,1-_xlfn.NORM.DIST(0,INDEX(Rating,$F4)-INDEX(Rating,AH$2),10,1),"") -> 0.08256852256 | AI4: =IF($F4<>AI$2,1-_xlfn.NORM.DIST(0,INDEX(Rating,$F4)-INDEX(Rating,AI$2),10,1),"") -> 0.06552171209 | AJ4: =IF($F4<>AJ$2,1-_xlfn.NORM.DIST(0,INDEX(Rating,$F4)-INDEX(Rating,AJ$2),10,1),"") -> 0.3270765983 | AK4: =IF($F4<>AK$2,1-_xlfn.NORM.DIST(0,INDEX(Rating,$F4)-INDEX(Rating,AK$2),10,1),"") -> 0.07091639461 | AL4: =IF($F4<>AL$2,1-_xlfn.NORM.DIST(0,INDEX(Rating,$F4)-INDEX(Rating,AL$2),10,1),"") -> 0.08256852256 | AM4: =IF($F4<>AM$2,1-_xlfn.NORM.DIST(0,INDEX(Rating,$F4)-INDEX(Rating,AM$2),10,1),"") -> 0.04208383174 | AN4: =IF($F4<>AN$2,1-_xlfn.NORM.DIST(0,INDEX(Rating,$F4)-INDEX(Rating,AN$2),10,1),"") -> 0.2578461108 | AO4: =IF($F4<>AO$2,1-_xlfn.NORM.DIST(0,INDEX(Rating,$F4)-INDEX(Rating,AO$2),10,1),"") -> 0.01534766971 | AP4: =IF($F4<>AP$2,1-_xlfn.NORM.DIST(0,INDEX(Rating,$F4)-INDEX(Rating,AP$2),10,1),"") -> 0.4059405471 | AQ4: =IF($F4<>AQ$2,1-_xlfn.NORM.DIST(0,INDEX(Rating,$F4)-INDEX(Rating,AQ$2),10,1),"") -> 0.07200772071 | AR4: =IF($F4<>AR$2,1-_xlfn.NORM.DIST(0,INDEX(Rating,$F4)-INDEX(Rating,AR$2),10,1),"") -> 0.06577726351 | AS4: =IF($F4<>AS$2,1-_xlfn.NORM.DIST(0,INDEX(Rating,$F4)-INDEX(Rating,AS$2),10,1),"") -> 0.08165880232 | AT4: =IF($F4<>AT$2,1-_xlfn.NORM.DIST(0,INDEX(Rating,$F4)-INDEX(Rating,AT$2),10,1),"") -> 0.1218072227 | AU4: =IF($F4<>AU$2,1-_xlfn.NORM.DIST(0,INDEX(Rating,$F4)-INDEX(Rating,AU$2),10,1),"") -> 0.05513285361 | AV4: =IF($F4<>AV$2,1-_xlfn.NORM.DIST(0,INDEX(Rating,$F4)-INDEX(Rating,AV$2),10,1),"") -> 0.1389608276 | AW4: =IF($F4<>AW$2,1-_xlfn.NORM.DIST(0,INDEX(Rating,$F4)-INDEX(Rating,AW$2),10,1),"") -> 0.07809538239 | AX4: =IF($F4<>AX$2,1-_xlfn.NORM.DIST(0,INDEX(Rating,$F4)-INDEX(Rating,AX$2),10,1),"") -> 0.114681764 | AY4: =IF($F4<>AY$2,1-_xlfn.NORM.DIST(0,INDEX(Rating,$F4)-INDEX(Rating,AY$2),10,1),"") -> 0.1292381122 | AZ4: =IF($F4<>AZ$2,1-_xlfn.NORM.DIST(0,INDEX(Rating,$F4)-INDEX(Rating,AZ$2),10,1),"") -> 0.05197482768 | BA4: =IF($F4<>BA$2,1-_xlfn.NORM.DIST(0,INDEX(Rating,$F4)-INDEX(Rating,BA$2),10,1),"") -> 0.3874390608 | BB4: =IF($F4<>BB$2,1-_xlfn.NORM.DIST(0,INDEX(Rating,$F4)-INDEX(Rating,BB$2),10,1),"") -> 0.05659685955 | BC4: =IF($F4<>BC$2,1-_xlfn.NORM.DIST(0,INDEX(Rating,$F4)-INDEX(Rating,BC$2),10,1),"") -> 0.08628378283 | BD4: =IF($F4<>BD$2,1-_xlfn.NORM.DIST(0,INDEX(Rating,$F4)-INDEX(Rating,BD$2),10,1),"") -> 0.02158817593 | BE4: =IF($F4<>BE$2,1-_xlfn.NORM.DIST(0,INDEX(Rating,$F4)-INDEX(Rating,BE$2),10,1),"") -> 0.2779306368 | BF4: =IF($F4<>BF$2,1-_xlfn.NORM.DIST(0,INDEX(Rating,$F4)-INDEX(Rating,BF$2),10,1),"") -> 0.02436193791 | BG4: =IF($F4<>BG$2,1-_xlfn.NORM.DIST(0,INDEX(Rating,$F4)-INDEX(Rating,BG$2),10,1),"") -> 0.5493423625 | BH4: =IF($F4<>BH$2,1-_xlfn.NORM.DIST(0,INDEX(Rating,$F4)-INDEX(Rating,BH$2),10,1),"") -> 0.0603311118 | BI4: =IF($F4<>BI$2,1-_xlfn.NORM.DIST(0,INDEX(Rating,$F4)-INDEX(Rating,BI$2),10,1),"") -> 0.06603358683 | BJ4: =IF($F4<>BJ$2,1-_xlfn.NORM.DIST(0,INDEX(Rating,$F4)-INDEX(Rating,BJ$2),10,1),"") -> 0.05272363156 | BK4: =IF($F4<>BK$2,1-_xlfn.NORM.DIST(0,INDEX(Rating,$F4)-INDEX(Rating,BK$2),10,1),"") -> 0.09325068211 | BL4: =IF($F4<>BL$2,1-_xlfn.NORM.DIST(0,INDEX(Rating,$F4)-INDEX(Rating,BL$2),10,1),"") -> 0.02368371477 | BM4: =IF($F4<>BM$2,1-_xlfn.NORM.DIST(0,INDEX(Rating,$F4)-INDEX(Rating,BM$2),10,1),"") -> 0.172329438 | BN4: =IF($F4<>BN$2,1-_xlfn.NORM.DIST(0,INDEX(Rating,$F4)-INDEX(Rating,BN$2),10,1),"") -> 0.0580913244 | BO4: =IF($F4<>BO$2,1-_xlfn.NORM.DIST(0,INDEX(Rating,$F4)-INDEX(Rating,BO$2),10,1),"") -> 0.1411873642 | BP4: =IF($F4<>BP$2,1-_xlfn.NORM.DIST(0,INDEX(Rating,$F4)-INDEX(Rating,BP$2),10,1),"") -> 0.1848594585 | BQ4: =IF($F4<>BQ$2,1-_xlfn.NORM.DIST(0,INDEX(Rating,$F4)-INDEX(Rating,BQ$2),10,1),"") -> 0.02153657376 | BR4: =IF($F4<>BR$2,1-_xlfn.NORM.DIST(0,INDEX(Rating,$F4)-INDEX(Rating,BR$2),10,1),"") -> 0.2823075908 | BS4: =IF($F4<>BS$2,1-_xlfn.NORM.DIST(0,INDEX(Rating,$F4)-INDEX(Rating,BS$2),10,1),"") -> 0.08549963745 | BT4: =IF($F4<>BT$2,1-_xlfn.NORM.DIST(0,INDEX(Rating,$F4)-INDEX(Rating,BT$2),10,1),"") -> 0.1220094964 | BU4: =IF($F4<>BU$2,1-_xlfn.NORM.DIST(0,INDEX(Rating,$F4)-INDEX(Rating,BU$2),10,1),"") -> 0.01799678767 | BV4: =IF($F4<>BV$2,1-_xlfn.NORM.DIST(0,INDEX(Rating,$F4)-INDEX(Rating,BV$2),10,1),"") -> 0.3974318868
B5: SE Missouri St | C5: 3 | D5: 66.74 | F5: 3 | G5: =IF($F5<>G$2,1-_xlfn.NORM.DIST(0,INDEX(Rating,$F5)-INDEX(Rating,G$2),10,1),"") -> 0.004409397376 | H5: =IF($F5<>H$2,1-_xlfn.NORM.DIST(0,INDEX(Rating,$F5)-INDEX(Rating,H$2),10,1),"") -> 0.3631693488 | I5: =IF($F5<>I$2,1-_xlfn.NORM.DIST(0,INDEX(Rating,$F5)-INDEX(Rating,I$2),10,1),"") ->  | J5: =IF($F5<>J$2,1-_xlfn.NORM.DIST(0,INDEX(Rating,$F5)-INDEX(Rating,J$2),10,1),"") -> 0.0305341925 | K5: =IF($F5<>K$2,1-_xlfn.NORM.DIST(0,INDEX(Rating,$F5)-INDEX(Rating,K$2),10,1),"") -> 0.02793809703 | L5: =IF($F5<>L$2,1-_xlfn.NORM.DIST(0,INDEX(Rating,$F5)-INDEX(Rating,L$2),10,1),"") -> 0.03251876931 | M5: =IF($F5<>M$2,1-_xlfn.NORM.DIST(0,INDEX(Rating,$F5)-INDEX(Rating,M$2),10,1),"") -> 0.08150791978 | N5: =IF($F5<>N$2,1-_xlfn.NORM.DIST(0,INDEX(Rating,$F5)-INDEX(Rating,N$2),10,1),"") -> 0.03332699708 | O5: =IF($F5<>O$2,1-_xlfn.NORM.DIST(0,INDEX(Rating,$F5)-INDEX(Rating,O$2),10,1),"") -> 0.1013317081 | P5: =IF($F5<>P$2,1-_xlfn.NORM.DIST(0,INDEX(Rating,$F5)-INDEX(Rating,P$2),10,1),"") -> 0.01835386159 | Q5: =IF($F5<>Q$2,1-_xlfn.NORM.DIST(0,INDEX(Rating,$F5)-INDEX(Rating,Q$2),10,1),"") -> 0.04936928745 | R5: =IF($F5<>R$2,1-_xlfn.NORM.DIST(0,INDEX(Rating,$F5)-INDEX(Rating,R$2),10,1),"") -> 0.01960386799 | S5: =IF($F5<>S$2,1-_xlfn.NORM.DIST(0,INDEX(Rating,$F5)-INDEX(Rating,S$2),10,1),"") -> 0.1667720168 | T5: =IF($F5<>T$2,1-_xlfn.NORM.DIST(0,INDEX(Rating,$F5)-INDEX(Rating,T$2),10,1),"") -> 0.05890878421 | U5: =IF($F5<>U$2,1-_xlfn.NORM.DIST(0,INDEX(Rating,$F5)-INDEX(Rating,U$2),10,1),"") -> 0.04110540689 | V5: =IF($F5<>V$2,1-_xlfn.NORM.DIST(0,INDEX(Rating,$F5)-INDEX(Rating,V$2),10,1),"") -> 0.01038884166 | W5: =IF($F5<>W$2,1-_xlfn.NORM.DIST(0,INDEX(Rating,$F5)-INDEX(Rating,W$2),10,1),"") -> 0.1692836275 | X5: =IF($F5<>X$2,1-_xlfn.NORM.DIST(0,INDEX(Rating,$F5)-INDEX(Rating,X$2),10,1),"") -> 0.01248068615 | Y5: =IF($F5<>Y$2,1-_xlfn.NORM.DIST(0,INDEX(Rating,$F5)-INDEX(Rating,Y$2),10,1),"") -> 0.5584339898 | Z5: =IF($F5<>Z$2,1-_xlfn.NORM.DIST(0,INDEX(Rating,$F5)-INDEX(Rating,Z$2),10,1),"") -> 0.6133266307 | AA5: =IF($F5<>AA$2,1-_xlfn.NORM.DIST(0,INDEX(Rating,$F5)-INDEX(Rating,AA$2),10,1),"") -> 0.02390800313 | AB5: =IF($F5<>AB$2,1-_xlfn.NORM.DIST(0,INDEX(Rating,$F5)-INDEX(Rating,AB$2),10,1),"") -> 0.04532298681 | AC5: =IF($F5<>AC$2,1-_xlfn.NORM.DIST(0,INDEX(Rating,$F5)-INDEX(Rating,AC$2),10,1),"") -> 0.01969927041 | AD5: =IF($F5<>AD$2,1-_xlfn.NORM.DIST(0,INDEX(Rating,$F5)-INDEX(Rating,AD$2),10,1),"") -> 0.08456572235 | AE5: =IF($F5<>AE$2,1-_xlfn.NORM.DIST(0,INDEX(Rating,$F5)-INDEX(Rating,AE$2),10,1),"") -> 0.01209808399 | AF5: =IF($F5<>AF$2,1-_xlfn.NORM.DIST(0,INDEX(Rating,$F5)-INDEX(Rating,AF$2),10,1),"") -> 0.1427602559 | AG5: =IF($F5<>AG$2,1-_xlfn.NORM.DIST(0,INDEX(Rating,$F5)-INDEX(Rating,AG$2),10,1),"") -> 0.02736585374 | AH5: =IF($F5<>AH$2,1-_xlfn.NORM.DIST(0,INDEX(Rating,$F5)-INDEX(Rating,AH$2),10,1),"") -> 0.04110540689 | AI5: =IF($F5<>AI$2,1-_xlfn.NORM.DIST(0,INDEX(Rating,$F5)-INDEX(Rating,AI$2),10,1),"") -> 0.03144276298 | AJ5: =IF($F5<>AJ$2,1-_xlfn.NORM.DIST(0,INDEX(Rating,$F5)-INDEX(Rating,AJ$2),10,1),"") -> 0.2124352451 | AK5: =IF($F5<>AK$2,1-_xlfn.NORM.DIST(0,INDEX(Rating,$F5)-INDEX(Rating,AK$2),10,1),"") -> 0.03445571504 | AL5: =IF($F5<>AL$2,1-_xlfn.NORM.DIST(0,INDEX(Rating,$F5)-INDEX(Rating,AL$2),10,1),"") -> 0.04110540689 | AM5: =IF($F5<>AM$2,1-_xlfn.NORM.DIST(0,INDEX(Rating,$F5)-INDEX(Rating,AM$2),10,1),"") -> 0.01890077961 | AN5: =IF($F5<>AN$2,1-_xlfn.NORM.DIST(0,INDEX(Rating,$F5)-INDEX(Rating,AN$2),10,1),"") -> 0.1586552539 | AO5: =IF($F5<>AO$2,1-_xlfn.NORM.DIST(0,INDEX(Rating,$F5)-INDEX(Rating,AO$2),10,1),"") -> 0.006019484849 | AP5: =IF($F5<>AP$2,1-_xlfn.NORM.DIST(0,INDEX(Rating,$F5)-INDEX(Rating,AP$2),10,1),"") -> 0.2782661464 | AQ5: =IF($F5<>AQ$2,1-_xlfn.NORM.DIST(0,INDEX(Rating,$F5)-INDEX(Rating,AQ$2),10,1),"") -> 0.03507042583 | AR5: =IF($F5<>AR$2,1-_xlfn.NORM.DIST(0,INDEX(Rating,$F5)-INDEX(Rating,AR$2),10,1),"") -> 0.03158450715 | AS5: =IF($F5<>AS$2,1-_xlfn.NORM.DIST(0,INDEX(Rating,$F5)-INDEX(Rating,AS$2),10,1),"") -> 0.04057954492 | AT5: =IF($F5<>AT$2,1-_xlfn.NORM.DIST(0,INDEX(Rating,$F5)-INDEX(Rating,AT$2),10,1),"") -> 0.0647596762 | AU5: =IF($F5<>AU$2,1-_xlfn.NORM.DIST(0,INDEX(Rating,$F5)-INDEX(Rating,AU$2),10,1),"") -> 0.02576736734 | AV5: =IF($F5<>AV$2,1-_xlfn.NORM.DIST(0,INDEX(Rating,$F5)-INDEX(Rating,AV$2),10,1),"") -> 0.0756435488 | AW5: =IF($F5<>AW$2,1-_xlfn.NORM.DIST(0,INDEX(Rating,$F5)-INDEX(Rating,AW$2),10,1),"") -> 0.03853045183 | AX5: =IF($F5<>AX$2,1-_xlfn.NORM.DIST(0,INDEX(Rating,$F5)-INDEX(Rating,AX$2),10,1),"") -> 0.0603311118 | AY5: =IF($F5<>AY$2,1-_xlfn.NORM.DIST(0,INDEX(Rating,$F5)-INDEX(Rating,AY$2),10,1),"") -> 0.06943662333 | AZ5: =IF($F5<>AZ$2,1-_xlfn.NORM.DIST(0,INDEX(Rating,$F5)-INDEX(Rating,AZ$2),10,1),"") -> 0.0240773886 | BA5: =IF($F5<>BA$2,1-_xlfn.NORM.DIST(0,INDEX(Rating,$F5)-INDEX(Rating,BA$2),10,1),"") -> 0.262388211 | BB5: =IF($F5<>BB$2,1-_xlfn.NORM.DIST(0,INDEX(Rating,$F5)-INDEX(Rating,BB$2),10,1),"") -> 0.02655656392 | BC5: =IF($F5<>BC$2,1-_xlfn.NORM.DIST(0,INDEX(Rating,$F5)-INDEX(Rating,BC$2),10,1),"") -> 0.04326436293 | BD5: =IF($F5<>BD$2,1-_xlfn.NORM.DIST(0,INDEX(Rating,$F5)-INDEX(Rating,BD$2),10,1),"") -> 0.008846045357 | BE5: =IF($F5<>BE$2,1-_xlfn.NORM.DIST(0,INDEX(Rating,$F5)-INDEX(Rating,BE$2),10,1),"") -> 0.1738653722 | BF5: =IF($F5<>BF$2,1-_xlfn.NORM.DIST(0,INDEX(Rating,$F5)-INDEX(Rating,BF$2),10,1),"") -> 0.01014342193 | BG5: =IF($F5<>BG$2,1-_xlfn.NORM.DIST(0,INDEX(Rating,$F5)-INDEX(Rating,BG$2),10,1),"") -> 0.4106007102 | BH5: =IF($F5<>BH$2,1-_xlfn.NORM.DIST(0,INDEX(Rating,$F5)-INDEX(Rating,BH$2),10,1),"") -> 0.0285855773 | BI5: =IF($F5<>BI$2,1-_xlfn.NORM.DIST(0,INDEX(Rating,$F5)-INDEX(Rating,BI$2),10,1),"") -> 0.03172677903 | BJ5: =IF($F5<>BJ$2,1-_xlfn.NORM.DIST(0,INDEX(Rating,$F5)-INDEX(Rating,BJ$2),10,1),"") -> 0.02447654554 | BK5: =IF($F5<>BK$2,1-_xlfn.NORM.DIST(0,INDEX(Rating,$F5)-INDEX(Rating,BK$2),10,1),"") -> 0.04736083891 | BL5: =IF($F5<>BL$2,1-_xlfn.NORM.DIST(0,INDEX(Rating,$F5)-INDEX(Rating,BL$2),10,1),"") -> 0.009824072658 | BM5: =IF($F5<>BM$2,1-_xlfn.NORM.DIST(0,INDEX(Rating,$F5)-INDEX(Rating,BM$2),10,1),"") -> 0.09766011474 | BN5: =IF($F5<>BN$2,1-_xlfn.NORM.DIST(0,INDEX(Rating,$F5)-INDEX(Rating,BN$2),10,1),"") -> 0.02736585374 | BO5: =IF($F5<>BO$2,1-_xlfn.NORM.DIST(0,INDEX(Rating,$F5)-INDEX(Rating,BO$2),10,1),"") -> 0.07707860055 | BP5: =IF($F5<>BP$2,1-_xlfn.NORM.DIST(0,INDEX(Rating,$F5)-INDEX(Rating,BP$2),10,1),"") -> 0.1061987488 | BQ5: =IF($F5<>BQ$2,1-_xlfn.NORM.DIST(0,INDEX(Rating,$F5)-INDEX(Rating,BQ$2),10,1),"") -> 0.008822131961 | BR5: =IF($F5<>BR$2,1-_xlfn.NORM.DIST(0,INDEX(Rating,$F5)-INDEX(Rating,BR$2),10,1),"") -> 0.1772229901 | BS5: =IF($F5<>BS$2,1-_xlfn.NORM.DIST(0,INDEX(Rating,$F5)-INDEX(Rating,BS$2),10,1),"") -> 0.04280718596 | BT5: =IF($F5<>BT$2,1-_xlfn.NORM.DIST(0,INDEX(Rating,$F5)-INDEX(Rating,BT$2),10,1),"") -> 0.06488620206 | BU5: =IF($F5<>BU$2,1-_xlfn.NORM.DIST(0,INDEX(Rating,$F5)-INDEX(Rating,BU$2),10,1),"") -> 0.007202541952 | BV5: =IF($F5<>BV$2,1-_xlfn.NORM.DIST(0,INDEX(Rating,$F5)-INDEX(Rating,BV$2),10,1),"") -> 0.2709309038
B6: Maryland | C6: 4 | D6: 85.47 | F6: 4 | G6: =IF($F6<>G$2,1-_xlfn.NORM.DIST(0,INDEX(Rating,$F6)-INDEX(Rating,G$2),10,1),"") -> 0.2278337075 | H6: =IF($F6<>H$2,1-_xlfn.NORM.DIST(0,INDEX(Rating,$F6)-INDEX(Rating,H$2),10,1),"") -> 0.9361206473 | I6: =IF($F6<>I$2,1-_xlfn.NORM.DIST(0,INDEX(Rating,$F6)-INDEX(Rating,I$2),10,1),"") -> 0.9694658075 | J6: =IF($F6<>J$2,1-_xlfn.NORM.DIST(0,INDEX(Rating,$F6)-INDEX(Rating,J$2),10,1),"") ->  | K6: =IF($F6<>K$2,1-_xlfn.NORM.DIST(0,INDEX(Rating,$F6)-INDEX(Rating,K$2),10,1),"") -> 0.4844451943 | L6: =IF($F6<>L$2,1-_xlfn.NORM.DIST(0,INDEX(Rating,$F6)-INDEX(Rating,L$2),10,1),"") -> 0.5111689244 | M6: =IF($F6<>M$2,1-_xlfn.NORM.DIST(0,INDEX(Rating,$F6)-INDEX(Rating,M$2),10,1),"") -> 0.6836748975 | N6: =IF($F6<>N$2,1-_xlfn.NORM.DIST(0,INDEX(Rating,$F6)-INDEX(Rating,N$2),10,1),"") -> 0.5155548057 | O6: =IF($F6<>O$2,1-_xlfn.NORM.DIST(0,INDEX(Rating,$F6)-INDEX(Rating,O$2),10,1),"") -> 0.7254135577 | P6: =IF($F6<>P$2,1-_xlfn.NORM.DIST(0,INDEX(Rating,$F6)-INDEX(Rating,P$2),10,1),"") -> 0.4144938738 | Q6: =IF($F6<>Q$2,1-_xlfn.NORM.DIST(0,INDEX(Rating,$F6)-INDEX(Rating,Q$2),10,1),"") -> 0.5878430583 | R6: =IF($F6<>R$2,1-_xlfn.NORM.DIST(0,INDEX(Rating,$F6)-INDEX(Rating,R$2),10,1),"") -> 0.4250464084 | S6: =IF($F6<>S$2,1-_xlfn.NORM.DIST(0,INDEX(Rating,$F6)-INDEX(Rating,S$2),10,1),"") -> 0.8175320738 | T6: =IF($F6<>T$2,1-_xlfn.NORM.DIST(0,INDEX(Rating,$F6)-INDEX(Rating,T$2),10,1),"") -> 0.6213392366 | U6: =IF($F6<>U$2,1-_xlfn.NORM.DIST(0,INDEX(Rating,$F6)-INDEX(Rating,U$2),10,1),"") -> 0.5536940628 | V6: =IF($F6<>V$2,1-_xlfn.NORM.DIST(0,INDEX(Rating,$F6)-INDEX(Rating,V$2),10,1),"") -> 0.3303307682 | W6: =IF($F6<>W$2,1-_xlfn.NORM.DIST(0,INDEX(Rating,$F6)-INDEX(Rating,W$2),10,1),"") -> 0.8201665525 | X6: =IF($F6<>X$2,1-_xlfn.NORM.DIST(0,INDEX(Rating,$F6)-INDEX(Rating,X$2),10,1),"") -> 0.3560638624 | Y6: =IF($F6<>Y$2,1-_xlfn.NORM.DIST(0,INDEX(Rating,$F6)-INDEX(Rating,Y$2),10,1),"") -> 0.9783083062 | Z6: =IF($F6<>Z$2,1-_xlfn.NORM.DIST(0,INDEX(Rating,$F6)-INDEX(Rating,Z$2),10,1),"") -> 0.9846523303 | AA6: =IF($F6<>AA$2,1-_xlfn.NORM.DIST(0,INDEX(Rating,$F6)-INDEX(Rating,AA$2),10,1),"") -> 0.4577911761 | AB6: =IF($F6<>AB$2,1-_xlfn.NORM.DIST(0,INDEX(Rating,$F6)-INDEX(Rating,AB$2),10,1),"") -> 0.571816212 | AC6: =IF($F6<>AC$2,1-_xlfn.NORM.DIST(0,INDEX(Rating,$F6)-INDEX(Rating,AC$2),10,1),"") -> 0.4258303165 | AD6: =IF($F6<>AD$2,1-_xlfn.NORM.DIST(0,INDEX(Rating,$F6)-INDEX(Rating,AD$2),10,1),"") -> 0.6907579789 | AE6: =IF($F6<>AE$2,1-_xlfn.NORM.DIST(0,INDEX(Rating,$F6)-INDEX(Rating,AE$2),10,1),"") -> 0.3516016243 | AF6: =IF($F6<>AF$2,1-_xlfn.NORM.DIST(0,INDEX(Rating,$F6)-INDEX(Rating,AF$2),10,1),"") -> 0.7895901601 | AG6: =IF($F6<>AG$2,1-_xlfn.NORM.DIST(0,INDEX(Rating,$F6)-INDEX(Rating,AG$2),10,1),"") -> 0.4808581213 | AH6: =IF($F6<>AH$2,1-_xlfn.NORM.DIST(0,INDEX(Rating,$F6)-INDEX(Rating,AH$2),10,1),"") -> 0.5536940628 | AI6: =IF($F6<>AI$2,1-_xlfn.NORM.DIST(0,INDEX(Rating,$F6)-INDEX(Rating,AI$2),10,1),"") -> 0.5051861036 | AJ6: =IF($F6<>AJ$2,1-_xlfn.NORM.DIST(0,INDEX(Rating,$F6)-INDEX(Rating,AJ$2),10,1),"") -> 0.8588126358 | AK6: =IF($F6<>AK$2,1-_xlfn.NORM.DIST(0,INDEX(Rating,$F6)-INDEX(Rating,AK$2),10,1),"") -> 0.5215324179 | AL6: =IF($F6<>AL$2,1-_xlfn.NORM.DIST(0,INDEX(Rating,$F6)-INDEX(Rating,AL$2),10,1),"") -> 0.5536940628 | AM6: =IF($F6<>AM$2,1-_xlfn.NORM.DIST(0,INDEX(Rating,$F6)-INDEX(Rating,AM$2),10,1),"") -> 0.4191767495 | AN6: =IF($F6<>AN$2,1-_xlfn.NORM.DIST(0,INDEX(Rating,$F6)-INDEX(Rating,AN$2),10,1),"") -> 0.8086684611 | AO6: =IF($F6<>AO$2,1-_xlfn.NORM.DIST(0,INDEX(Rating,$F6)-INDEX(Rating,AO$2),10,1),"") -> 0.26173684 | AP6: =IF($F6<>AP$2,1-_xlfn.NORM.DIST(0,INDEX(Rating,$F6)-INDEX(Rating,AP$2),10,1),"") -> 0.900603858 | AQ6: =IF($F6<>AQ$2,1-_xlfn.NORM.DIST(0,INDEX(Rating,$F6)-INDEX(Rating,AQ$2),10,1),"") -> 0.524718584 | AR6: =IF($F6<>AR$2,1-_xlfn.NORM.DIST(0,INDEX(Rating,$F6)-INDEX(Rating,AR$2),10,1),"") -> 0.5059839098 | AS6: =IF($F6<>AS$2,1-_xlfn.NORM.DIST(0,INDEX(Rating,$F6)-INDEX(Rating,AS$2),10,1),"") -> 0.5513211756 | AT6: =IF($F6<>AT$2,1-_xlfn.NORM.DIST(0,INDEX(Rating,$F6)-INDEX(Rating,AT$2),10,1),"") -> 0.6394540971 | AU6: =IF($F6<>AU$2,1-_xlfn.NORM.DIST(0,INDEX(Rating,$F6)-INDEX(Rating,AU$2),10,1),"") -> 0.4705051926 | AV6: =IF($F6<>AV$2,1-_xlfn.NORM.DIST(0,INDEX(Rating,$F6)-INDEX(Rating,AV$2),10,1),"") -> 0.6693068583 | AW6: =IF($F6<>AW$2,1-_xlfn.NORM.DIST(0,INDEX(Rating,$F6)-INDEX(Rating,AW$2),10,1),"") -> 0.5418120956 | AX6: =IF($F6<>AX$2,1-_xlfn.NORM.DIST(0,INDEX(Rating,$F6)-INDEX(Rating,AX$2),10,1),"") -> 0.6258948045 | AY6: =IF($F6<>AY$2,1-_xlfn.NORM.DIST(0,INDEX(Rating,$F6)-INDEX(Rating,AY$2),10,1),"") -> 0.6528402593 | AZ6: =IF($F6<>AZ$2,1-_xlfn.NORM.DIST(0,INDEX(Rating,$F6)-INDEX(Rating,AZ$2),10,1),"") -> 0.4589814855 | BA6: =IF($F6<>BA$2,1-_xlfn.NORM.DIST(0,INDEX(Rating,$F6)-INDEX(Rating,BA$2),10,1),"") -> 0.8919564587 | BB6: =IF($F6<>BB$2,1-_xlfn.NORM.DIST(0,INDEX(Rating,$F6)-INDEX(Rating,BB$2),10,1),"") -> 0.4756796045 | BC6: =IF($F6<>BC$2,1-_xlfn.NORM.DIST(0,INDEX(Rating,$F6)-INDEX(Rating,BC$2),10,1),"") -> 0.5631655631 | BD6: =IF($F6<>BD$2,1-_xlfn.NORM.DIST(0,INDEX(Rating,$F6)-INDEX(Rating,BD$2),10,1),"") -> 0.308889692 | BE6: =IF($F6<>BE$2,1-_xlfn.NORM.DIST(0,INDEX(Rating,$F6)-INDEX(Rating,BE$2),10,1),"") -> 0.8248480535 | BF6: =IF($F6<>BF$2,1-_xlfn.NORM.DIST(0,INDEX(Rating,$F6)-INDEX(Rating,BF$2),10,1),"") -> 0.3270765983 | BG6: =IF($F6<>BG$2,1-_xlfn.NORM.DIST(0,INDEX(Rating,$F6)-INDEX(Rating,BG$2),10,1),"") -> 0.9502209771 | BH6: =IF($F6<>BH$2,1-_xlfn.NORM.DIST(0,INDEX(Rating,$F6)-INDEX(Rating,BH$2),10,1),"") -> 0.4884322953 | BI6: =IF($F6<>BI$2,1-_xlfn.NORM.DIST(0,INDEX(Rating,$F6)-INDEX(Rating,BI$2),10,1),"") -> 0.5067816921 | BJ6: =IF($F6<>BJ$2,1-_xlfn.NORM.DIST(0,INDEX(Rating,$F6)-INDEX(Rating,BJ$2),10,1),"") -> 0.4617602863 | BK6: =IF($F6<>BK$2,1-_xlfn.NORM.DIST(0,INDEX(Rating,$F6)-INDEX(Rating,BK$2),10,1),"") -> 0.5800416379 | BL6: =IF($F6<>BL$2,1-_xlfn.NORM.DIST(0,INDEX(Rating,$F6)-INDEX(Rating,BL$2),10,1),"") -> 0.3227581103 | BM6: =IF($F6<>BM$2,1-_xlfn.NORM.DIST(0,INDEX(Rating,$F6)-INDEX(Rating,BM$2),10,1),"") -> 0.7183679404 | BN6: =IF($F6<>BN$2,1-_xlfn.NORM.DIST(0,INDEX(Rating,$F6)-INDEX(Rating,BN$2),10,1),"") -> 0.4808581213 | BO6: =IF($F6<>BO$2,1-_xlfn.NORM.DIST(0,INDEX(Rating,$F6)-INDEX(Rating,BO$2),10,1),"") -> 0.6729234017 | BP6: =IF($F6<>BP$2,1-_xlfn.NORM.DIST(0,INDEX(Rating,$F6)-INDEX(Rating,BP$2),10,1),"") -> 0.7343425293 | BQ6: =IF($F6<>BQ$2,1-_xlfn.NORM.DIST(0,INDEX(Rating,$F6)-INDEX(Rating,BQ$2),10,1),"") -> 0.3085375387 | BR6: =IF($F6<>BR$2,1-_xlfn.NORM.DIST(0,INDEX(Rating,$F6)-INDEX(Rating,BR$2),10,1),"") -> 0.8281806105 | BS6: =IF($F6<>BS$2,1-_xlfn.NORM.DIST(0,INDEX(Rating,$F6)-INDEX(Rating,BS$2),10,1),"") -> 0.5611951322 | BT6: =IF($F6<>BT$2,1-_xlfn.NORM.DIST(0,INDEX(Rating,$F6)-INDEX(Rating,BT$2),10,1),"") -> 0.6398283432 | BU6: =IF($F6<>BU$2,1-_xlfn.NORM.DIST(0,INDEX(Rating,$F6)-INDEX(Rating,BU$2),10,1),"") -> 0.2829839006 | BV6: =IF($F6<>BV$2,1-_xlfn.NORM.DIST(0,INDEX(Rating,$F6)-INDEX(Rating,BV$2),10,1),"") -> 0.8967054101
B7: West Virginia | C7: 5 | D7: 85.86 | F7: 5 | G7: =IF($F7<>G$2,1-_xlfn.NORM.DIST(0,INDEX(Rating,$F7)-INDEX(Rating,G$2),10,1),"") -> 0.2397832389 | H7: =IF($F7<>H$2,1-_xlfn.NORM.DIST(0,INDEX(Rating,$F7)-INDEX(Rating,H$2),10,1),"") -> 0.9408560056 | I7: =IF($F7<>I$2,1-_xlfn.NORM.DIST(0,INDEX(Rating,$F7)-INDEX(Rating,I$2),10,1),"") -> 0.972061903 | J7: =IF($F7<>J$2,1-_xlfn.NORM.DIST(0,INDEX(Rating,$F7)-INDEX(Rating,J$2),10,1),"") -> 0.5155548057 | K7: =IF($F7<>K$2,1-_xlfn.NORM.DIST(0,INDEX(Rating,$F7)-INDEX(Rating,K$2),10,1),"") ->  | L7: =IF($F7<>L$2,1-_xlfn.NORM.DIST(0,INDEX(Rating,$F7)-INDEX(Rating,L$2),10,1),"") -> 0.5267091484 | M7: =IF($F7<>M$2,1-_xlfn.NORM.DIST(0,INDEX(Rating,$F7)-INDEX(Rating,M$2),10,1),"") -> 0.6974219206 | N7: =IF($F7<>N$2,1-_xlfn.NORM.DIST(0,INDEX(Rating,$F7)-INDEX(Rating,N$2),10,1),"") -> 0.5310859735 | O7: =IF($F7<>O$2,1-_xlfn.NORM.DIST(0,INDEX(Rating,$F7)-INDEX(Rating,O$2),10,1),"") -> 0.73826316 | P7: =IF($F7<>P$2,1-_xlfn.NORM.DIST(0,INDEX(Rating,$F7)-INDEX(Rating,P$2),10,1),"") -> 0.4297541948 | Q7: =IF($F7<>Q$2,1-_xlfn.NORM.DIST(0,INDEX(Rating,$F7)-INDEX(Rating,Q$2),10,1),"") -> 0.6029537464 | R7: =IF($F7<>R$2,1-_xlfn.NORM.DIST(0,INDEX(Rating,$F7)-INDEX(Rating,R$2),10,1),"") -> 0.4403823076 | S7: =IF($F7<>S$2,1-_xlfn.NORM.DIST(0,INDEX(Rating,$F7)-INDEX(Rating,S$2),10,1),"") -> 0.827670562 | T7: =IF($F7<>T$2,1-_xlfn.NORM.DIST(0,INDEX(Rating,$F7)-INDEX(Rating,T$2),10,1),"") -> 0.6360799083 | U7: =IF($F7<>U$2,1-_xlfn.NORM.DIST(0,INDEX(Rating,$F7)-INDEX(Rating,U$2),10,1),"") -> 0.5690672689 | V7: =IF($F7<>V$2,1-_xlfn.NORM.DIST(0,INDEX(Rating,$F7)-INDEX(Rating,V$2),10,1),"") -> 0.3445782584 | W7: =IF($F7<>W$2,1-_xlfn.NORM.DIST(0,INDEX(Rating,$F7)-INDEX(Rating,W$2),10,1),"") -> 0.8302111515 | X7: =IF($F7<>X$2,1-_xlfn.NORM.DIST(0,INDEX(Rating,$F7)-INDEX(Rating,X$2),10,1),"") -> 0.3706999811 | Y7: =IF($F7<>Y$2,1-_xlfn.NORM.DIST(0,INDEX(Rating,$F7)-INDEX(Rating,Y$2),10,1),"") -> 0.9802528808 | Z7: =IF($F7<>Z$2,1-_xlfn.NORM.DIST(0,INDEX(Rating,$F7)-INDEX(Rating,Z$2),10,1),"") -> 0.9860965525 | AA7: =IF($F7<>AA$2,1-_xlfn.NORM.DIST(0,INDEX(Rating,$F7)-INDEX(Rating,AA$2),10,1),"") -> 0.4732908516 | AB7: =IF($F7<>AB$2,1-_xlfn.NORM.DIST(0,INDEX(Rating,$F7)-INDEX(Rating,AB$2),10,1),"") -> 0.5870644226 | AC7: =IF($F7<>AC$2,1-_xlfn.NORM.DIST(0,INDEX(Rating,$F7)-INDEX(Rating,AC$2),10,1),"") -> 0.4411713841 | AD7: =IF($F7<>AD$2,1-_xlfn.NORM.DIST(0,INDEX(Rating,$F7)-INDEX(Rating,AD$2),10,1),"") -> 0.704366193 | AE7: =IF($F7<>AE$2,1-_xlfn.NORM.DIST(0,INDEX(Rating,$F7)-INDEX(Rating,AE$2),10,1),"") -> 0.3661754461 | AF7: =IF($F7<>AF$2,1-_xlfn.NORM.DIST(0,INDEX(Rating,$F7)-INDEX(Rating,AF$2),10,1),"") -> 0.8006652972 | AG7: =IF($F7<>AG$2,1-_xlfn.NORM.DIST(0,INDEX(Rating,$F7)-INDEX(Rating,AG$2),10,1),"") -> 0.4964095679 | AH7: =IF($F7<>AH$2,1-_xlfn.NORM.DIST(0,INDEX(Rating,$F7)-INDEX(Rating,AH$2),10,1),"") -> 0.5690672689 | AI7: =IF($F7<>AI$2,1-_xlfn.NORM.DIST(0,INDEX(Rating,$F7)-INDEX(Rating,AI$2),10,1),"") -> 0.5207356533 | AJ7: =IF($F7<>AJ$2,1-_xlfn.NORM.DIST(0,INDEX(Rating,$F7)-INDEX(Rating,AJ$2),10,1),"") -> 0.8673604067 | AK7: =IF($F7<>AK$2,1-_xlfn.NORM.DIST(0,INDEX(Rating,$F7)-INDEX(Rating,AK$2),10,1),"") -> 0.5370482194 | AL7: =IF($F7<>AL$2,1-_xlfn.NORM.DIST(0,INDEX(Rating,$F7)-INDEX(Rating,AL$2),10,1),"") -> 0.5690672689 | AM7: =IF($F7<>AM$2,1-_xlfn.NORM.DIST(0,INDEX(Rating,$F7)-INDEX(Rating,AM$2),10,1),"") -> 0.434471991 | AN7: =IF($F7<>AN$2,1-_xlfn.NORM.DIST(0,INDEX(Rating,$F7)-INDEX(Rating,AN$2),10,1),"") -> 0.8191156412 | AO7: =IF($F7<>AO$2,1-_xlfn.NORM.DIST(0,INDEX(Rating,$F7)-INDEX(Rating,AO$2),10,1),"") -> 0.2745864423 | AP7: =IF($F7<>AP$2,1-_xlfn.NORM.DIST(0,INDEX(Rating,$F7)-INDEX(Rating,AP$2),10,1),"") -> 0.9072484776 | AQ7: =IF($F7<>AQ$2,1-_xlfn.NORM.DIST(0,INDEX(Rating,$F7)-INDEX(Rating,AQ$2),10,1),"") -> 0.5402247699 | AR7: =IF($F7<>AR$2,1-_xlfn.NORM.DIST(0,INDEX(Rating,$F7)-INDEX(Rating,AR$2),10,1),"") -> 0.5215324179 | AS7: =IF($F7<>AS$2,1-_xlfn.NORM.DIST(0,INDEX(Rating,$F7)-INDEX(Rating,AS$2),10,1),"") -> 0.5667083605 | AT7: =IF($F7<>AT$2,1-_xlfn.NORM.DIST(0,INDEX(Rating,$F7)-INDEX(Rating,AT$2),10,1),"") -> 0.6539474859 | AU7: =IF($F7<>AU$2,1-_xlfn.NORM.DIST(0,INDEX(Rating,$F7)-INDEX(Rating,AU$2),10,1),"") -> 0.4860398704 | AV7: =IF($F7<>AV$2,1-_xlfn.NORM.DIST(0,INDEX(Rating,$F7)-INDEX(Rating,AV$2),10,1),"") -> 0.6833189392 | AW7: =IF($F7<>AW$2,1-_xlfn.NORM.DIST(0,INDEX(Rating,$F7)-INDEX(Rating,AW$2),10,1),"") -> 0.5572497652 | AX7: =IF($F7<>AX$2,1-_xlfn.NORM.DIST(0,INDEX(Rating,$F7)-INDEX(Rating,AX$2),10,1),"") -> 0.6405764332 | AY7: =IF($F7<>AY$2,1-_xlfn.NORM.DIST(0,INDEX(Rating,$F7)-INDEX(Rating,AY$2),10,1),"") -> 0.6671292934 | AZ7: =IF($F7<>AZ$2,1-_xlfn.NORM.DIST(0,INDEX(Rating,$F7)-INDEX(Rating,AZ$2),10,1),"") -> 0.4744851134 | BA7: =IF($F7<>BA$2,1-_xlfn.NORM.DIST(0,INDEX(Rating,$F7)-INDEX(Rating,BA$2),10,1),"") -> 0.8990222405 | BB7: =IF($F7<>BB$2,1-_xlfn.NORM.DIST(0,INDEX(Rating,$F7)-INDEX(Rating,BB$2),10,1),"") -> 0.4912239778 | BC7: =IF($F7<>BC$2,1-_xlfn.NORM.DIST(0,INDEX(Rating,$F7)-INDEX(Rating,BC$2),10,1),"") -> 0.5784774681 | BD7: =IF($F7<>BD$2,1-_xlfn.NORM.DIST(0,INDEX(Rating,$F7)-INDEX(Rating,BD$2),10,1),"") -> 0.3227581103 | BE7: =IF($F7<>BE$2,1-_xlfn.NORM.DIST(0,INDEX(Rating,$F7)-INDEX(Rating,BE$2),10,1),"") -> 0.834723349 | BF7: =IF($F7<>BF$2,1-_xlfn.NORM.DIST(0,INDEX(Rating,$F7)-INDEX(Rating,BF$2),10,1),"") -> 0.3412698306 | BG7: =IF($F7<>BG$2,1-_xlfn.NORM.DIST(0,INDEX(Rating,$F7)-INDEX(Rating,BG$2),10,1),"") -> 0.9541021003 | BH7: =IF($F7<>BH$2,1-_xlfn.NORM.DIST(0,INDEX(Rating,$F7)-INDEX(Rating,BH$2),10,1),"") -> 0.5039893563 | BI7: =IF($F7<>BI$2,1-_xlfn.NORM.DIST(0,INDEX(Rating,$F7)-INDEX(Rating,BI$2),10,1),"") -> 0.5223290964 | BJ7: =IF($F7<>BJ$2,1-_xlfn.NORM.DIST(0,INDEX(Rating,$F7)-INDEX(Rating,BJ$2),10,1),"") -> 0.4772725976 | BK7: =IF($F7<>BK$2,1-_xlfn.NORM.DIST(0,INDEX(Rating,$F7)-INDEX(Rating,BK$2),10,1),"") -> 0.5952224417 | BL7: =IF($F7<>BL$2,1-_xlfn.NORM.DIST(0,INDEX(Rating,$F7)-INDEX(Rating,BL$2),10,1),"") -> 0.3368775409 | BM7: =IF($F7<>BM$2,1-_xlfn.NORM.DIST(0,INDEX(Rating,$F7)-INDEX(Rating,BM$2),10,1),"") -> 0.7313826371 | BN7: =IF($F7<>BN$2,1-_xlfn.NORM.DIST(0,INDEX(Rating,$F7)-INDEX(Rating,BN$2),10,1),"") -> 0.4964095679 | BO7: =IF($F7<>BO$2,1-_xlfn.NORM.DIST(0,INDEX(Rating,$F7)-INDEX(Rating,BO$2),10,1),"") -> 0.6868708345 | BP7: =IF($F7<>BP$2,1-_xlfn.NORM.DIST(0,INDEX(Rating,$F7)-INDEX(Rating,BP$2),10,1),"") -> 0.7469747535 | BQ7: =IF($F7<>BQ$2,1-_xlfn.NORM.DIST(0,INDEX(Rating,$F7)-INDEX(Rating,BQ$2),10,1),"") -> 0.3223993026 | BR7: =IF($F7<>BR$2,1-_xlfn.NORM.DIST(0,INDEX(Rating,$F7)-INDEX(Rating,BR$2),10,1),"") -> 0.8379334436 | BS7: =IF($F7<>BS$2,1-_xlfn.NORM.DIST(0,INDEX(Rating,$F7)-INDEX(Rating,BS$2),10,1),"") -> 0.576520516 | BT7: =IF($F7<>BT$2,1-_xlfn.NORM.DIST(0,INDEX(Rating,$F7)-INDEX(Rating,BT$2),10,1),"") -> 0.6543162697 | BU7: =IF($F7<>BU$2,1-_xlfn.NORM.DIST(0,INDEX(Rating,$F7)-INDEX(Rating,BU$2),10,1),"") -> 0.2963249286 | BV7: =IF($F7<>BV$2,1-_xlfn.NORM.DIST(0,INDEX(Rating,$F7)-INDEX(Rating,BV$2),10,1),"") -> 0.9035418072
B8: San Diego St | C8: 6 | D8: 85.19 | F8: 6 | G8: =IF($F8<>G$2,1-_xlfn.NORM.DIST(0,INDEX(Rating,$F8)-INDEX(Rating,G$2),10,1),"") -> 0.2194653956 | H8: =IF($F8<>H$2,1-_xlfn.NORM.DIST(0,INDEX(Rating,$F8)-INDEX(Rating,H$2),10,1),"") -> 0.9325427789 | I8: =IF($F8<>I$2,1-_xlfn.NORM.DIST(0,INDEX(Rating,$F8)-INDEX(Rating,I$2),10,1),"") -> 0.9674812307 | J8: =IF($F8<>J$2,1-_xlfn.NORM.DIST(0,INDEX(Rating,$F8)-INDEX(Rating,J$2),10,1),"") -> 0.4888310756 | K8: =IF($F8<>K$2,1-_xlfn.NORM.DIST(0,INDEX(Rating,$F8)-INDEX(Rating,K$2),10,1),"") -> 0.4732908516 | L8: =IF($F8<>L$2,1-_xlfn.NORM.DIST(0,INDEX(Rating,$F8)-INDEX(Rating,L$2),10,1),"") ->  | M8: =IF($F8<>M$2,1-_xlfn.NORM.DIST(0,INDEX(Rating,$F8)-INDEX(Rating,M$2),10,1),"") -> 0.6736447797 | N8: =IF($F8<>N$2,1-_xlfn.NORM.DIST(0,INDEX(Rating,$F8)-INDEX(Rating,N$2),10,1),"") -> 0.5043882766 | O8: =IF($F8<>O$2,1-_xlfn.NORM.DIST(0,INDEX(Rating,$F8)-INDEX(Rating,O$2),10,1),"") -> 0.7160001786 | P8: =IF($F8<>P$2,1-_xlfn.NORM.DIST(0,INDEX(Rating,$F8)-INDEX(Rating,P$2),10,1),"") -> 0.40361541 | Q8: =IF($F8<>Q$2,1-_xlfn.NORM.DIST(0,INDEX(Rating,$F8)-INDEX(Rating,Q$2),10,1),"") -> 0.576912059 | R8: =IF($F8<>R$2,1-_xlfn.NORM.DIST(0,INDEX(Rating,$F8)-INDEX(Rating,R$2),10,1),"") -> 0.4141041725 | S8: =IF($F8<>S$2,1-_xlfn.NORM.DIST(0,INDEX(Rating,$F8)-INDEX(Rating,S$2),10,1),"") -> 0.8100281406 | T8: =IF($F8<>T$2,1-_xlfn.NORM.DIST(0,INDEX(Rating,$F8)-INDEX(Rating,T$2),10,1),"") -> 0.6106448001 | U8: =IF($F8<>U$2,1-_xlfn.NORM.DIST(0,INDEX(Rating,$F8)-INDEX(Rating,U$2),10,1),"") -> 0.5426055101 | V8: =IF($F8<>V$2,1-_xlfn.NORM.DIST(0,INDEX(Rating,$F8)-INDEX(Rating,V$2),10,1),"") -> 0.320249939 | W8: =IF($F8<>W$2,1-_xlfn.NORM.DIST(0,INDEX(Rating,$F8)-INDEX(Rating,W$2),10,1),"") -> 0.8127296243 | X8: =IF($F8<>X$2,1-_xlfn.NORM.DIST(0,INDEX(Rating,$F8)-INDEX(Rating,X$2),10,1),"") -> 0.3456837303 | Y8: =IF($F8<>Y$2,1-_xlfn.NORM.DIST(0,INDEX(Rating,$F8)-INDEX(Rating,Y$2),10,1),"") -> 0.9768144711 | Z8: =IF($F8<>Z$2,1-_xlfn.NORM.DIST(0,INDEX(Rating,$F8)-INDEX(Rating,Z$2),10,1),"") -> 0.9835376369 | AA8: =IF($F8<>AA$2,1-_xlfn.NORM.DIST(0,INDEX(Rating,$F8)-INDEX(Rating,AA$2),10,1),"") -> 0.4467012872 | AB8: =IF($F8<>AB$2,1-_xlfn.NORM.DIST(0,INDEX(Rating,$F8)-INDEX(Rating,AB$2),10,1),"") -> 0.5608008624 | AC8: =IF($F8<>AC$2,1-_xlfn.NORM.DIST(0,INDEX(Rating,$F8)-INDEX(Rating,AC$2),10,1),"") -> 0.4148836593 | AD8: =IF($F8<>AD$2,1-_xlfn.NORM.DIST(0,INDEX(Rating,$F8)-INDEX(Rating,AD$2),10,1),"") -> 0.6808224912 | AE8: =IF($F8<>AE$2,1-_xlfn.NORM.DIST(0,INDEX(Rating,$F8)-INDEX(Rating,AE$2),10,1),"") -> 0.3412698306 | AF8: =IF($F8<>AF$2,1-_xlfn.NORM.DIST(0,INDEX(Rating,$F8)-INDEX(Rating,AF$2),10,1),"") -> 0.7814206148 | AG8: =IF($F8<>AG$2,1-_xlfn.NORM.DIST(0,INDEX(Rating,$F8)-INDEX(Rating,AG$2),10,1),"") -> 0.4697095491 | AH8: =IF($F8<>AH$2,1-_xlfn.NORM.DIST(0,INDEX(Rating,$F8)-INDEX(Rating,AH$2),10,1),"") -> 0.5426055101 | AI8: =IF($F8<>AI$2,1-_xlfn.NORM.DIST(0,INDEX(Rating,$F8)-INDEX(Rating,AI$2),10,1),"") -> 0.4940160902 | AJ8: =IF($F8<>AJ$2,1-_xlfn.NORM.DIST(0,INDEX(Rating,$F8)-INDEX(Rating,AJ$2),10,1),"") -> 0.8524502109 | AK8: =IF($F8<>AK$2,1-_xlfn.NORM.DIST(0,INDEX(Rating,$F8)-INDEX(Rating,AK$2),10,1),"") -> 0.5103713308 | AL8: =IF($F8<>AL$2,1-_xlfn.NORM.DIST(0,INDEX(Rating,$F8)-INDEX(Rating,AL$2),10,1),"") -> 0.5426055101 | AM8: =IF($F8<>AM$2,1-_xlfn.NORM.DIST(0,INDEX(Rating,$F8)-INDEX(Rating,AM$2),10,1),"") -> 0.4082690069 | AN8: =IF($F8<>AN$2,1-_xlfn.NORM.DIST(0,INDEX(Rating,$F8)-INDEX(Rating,AN$2),10,1),"") -> 0.8009445805 | AO8: =IF($F8<>AO$2,1-_xlfn.NORM.DIST(0,INDEX(Rating,$F8)-INDEX(Rating,AO$2),10,1),"") -> 0.2527055502 | AP8: =IF($F8<>AP$2,1-_xlfn.NORM.DIST(0,INDEX(Rating,$F8)-INDEX(Rating,AP$2),10,1),"") -> 0.8956231822 | AQ8: =IF($F8<>AQ$2,1-_xlfn.NORM.DIST(0,INDEX(Rating,$F8)-INDEX(Rating,AQ$2),10,1),"") -> 0.5135614246 | AR8: =IF($F8<>AR$2,1-_xlfn.NORM.DIST(0,INDEX(Rating,$F8)-INDEX(Rating,AR$2),10,1),"") -> 0.4948138964 | AS8: =IF($F8<>AS$2,1-_xlfn.NORM.DIST(0,INDEX(Rating,$F8)-INDEX(Rating,AS$2),10,1),"") -> 0.5402247699 | AT8: =IF($F8<>AT$2,1-_xlfn.NORM.DIST(0,INDEX(Rating,$F8)-INDEX(Rating,AT$2),10,1),"") -> 0.628922156 | AU8: =IF($F8<>AU$2,1-_xlfn.NORM.DIST(0,INDEX(Rating,$F8)-INDEX(Rating,AU$2),10,1),"") -> 0.4593783375 | AV8: =IF($F8<>AV$2,1-_xlfn.NORM.DIST(0,INDEX(Rating,$F8)-INDEX(Rating,AV$2),10,1),"") -> 0.6590970262 | AW8: =IF($F8<>AW$2,1-_xlfn.NORM.DIST(0,INDEX(Rating,$F8)-INDEX(Rating,AW$2),10,1),"") -> 0.5306882275 | AX8: =IF($F8<>AX$2,1-_xlfn.NORM.DIST(0,INDEX(Rating,$F8)-INDEX(Rating,AX$2),10,1),"") -> 0.6152389242 | AY8: =IF($F8<>AY$2,1-_xlfn.NORM.DIST(0,INDEX(Rating,$F8)-INDEX(Rating,AY$2),10,1),"") -> 0.6424442969 | AZ8: =IF($F8<>AZ$2,1-_xlfn.NORM.DIST(0,INDEX(Rating,$F8)-INDEX(Rating,AZ$2),10,1),"") -> 0.4478876537 | BA8: =IF($F8<>BA$2,1-_xlfn.NORM.DIST(0,INDEX(Rating,$F8)-INDEX(Rating,BA$2),10,1),"") -> 0.8866685773 | BB8: =IF($F8<>BB$2,1-_xlfn.NORM.DIST(0,INDEX(Rating,$F8)-INDEX(Rating,BB$2),10,1),"") -> 0.4645409551 | BC8: =IF($F8<>BC$2,1-_xlfn.NORM.DIST(0,INDEX(Rating,$F8)-INDEX(Rating,BC$2),10,1),"") -> 0.5521123463 | BD8: =IF($F8<>BD$2,1-_xlfn.NORM.DIST(0,INDEX(Rating,$F8)-INDEX(Rating,BD$2),10,1),"") -> 0.2990967942 | BE8: =IF($F8<>BE$2,1-_xlfn.NORM.DIST(0,INDEX(Rating,$F8)-INDEX(Rating,BE$2),10,1),"") -> 0.8175320738 | BF8: =IF($F8<>BF$2,1-_xlfn.NORM.DIST(0,INDEX(Rating,$F8)-INDEX(Rating,BF$2),10,1),"") -> 0.317037189 | BG8: =IF($F8<>BG$2,1-_xlfn.NORM.DIST(0,INDEX(Rating,$F8)-INDEX(Rating,BG$2),10,1),"") -> 0.9472763684 | BH8: =IF($F8<>BH$2,1-_xlfn.NORM.DIST(0,INDEX(Rating,$F8)-INDEX(Rating,BH$2),10,1),"") -> 0.4772725976 | BI8: =IF($F8<>BI$2,1-_xlfn.NORM.DIST(0,INDEX(Rating,$F8)-INDEX(Rating,BI$2),10,1),"") -> 0.4956117234 | BJ8: =IF($F8<>BJ$2,1-_xlfn.NORM.DIST(0,INDEX(Rating,$F8)-INDEX(Rating,BJ$2),10,1),"") -> 0.4506576375 | BK8: =IF($F8<>BK$2,1-_xlfn.NORM.DIST(0,INDEX(Rating,$F8)-INDEX(Rating,BK$2),10,1),"") -> 0.5690672689 | BL8: =IF($F8<>BL$2,1-_xlfn.NORM.DIST(0,INDEX(Rating,$F8)-INDEX(Rating,BL$2),10,1),"") -> 0.3127749205 | BM8: =IF($F8<>BM$2,1-_xlfn.NORM.DIST(0,INDEX(Rating,$F8)-INDEX(Rating,BM$2),10,1),"") -> 0.7088403132 | BN8: =IF($F8<>BN$2,1-_xlfn.NORM.DIST(0,INDEX(Rating,$F8)-INDEX(Rating,BN$2),10,1),"") -> 0.4697095491 | BO8: =IF($F8<>BO$2,1-_xlfn.NORM.DIST(0,INDEX(Rating,$F8)-INDEX(Rating,BO$2),10,1),"") -> 0.6627572732 | BP8: =IF($F8<>BP$2,1-_xlfn.NORM.DIST(0,INDEX(Rating,$F8)-INDEX(Rating,BP$2),10,1),"") -> 0.7250800335 | BQ8: =IF($F8<>BQ$2,1-_xlfn.NORM.DIST(0,INDEX(Rating,$F8)-INDEX(Rating,BQ$2),10,1),"") -> 0.298749668 | BR8: =IF($F8<>BR$2,1-_xlfn.NORM.DIST(0,INDEX(Rating,$F8)-INDEX(Rating,BR$2),10,1),"") -> 0.8209522139 | BS8: =IF($F8<>BS$2,1-_xlfn.NORM.DIST(0,INDEX(Rating,$F8)-INDEX(Rating,BS$2),10,1),"") -> 0.5501340377 | BT8: =IF($F8<>BT$2,1-_xlfn.NORM.DIST(0,INDEX(Rating,$F8)-INDEX(Rating,BT$2),10,1),"") -> 0.6293000189 | BU8: =IF($F8<>BU$2,1-_xlfn.NORM.DIST(0,INDEX(Rating,$F8)-INDEX(Rating,BU$2),10,1),"") -> 0.2735870687 | BV8: =IF($F8<>BV$2,1-_xlfn.NORM.DIST(0,INDEX(Rating,$F8)-INDEX(Rating,BV$2),10,1),"") -> 0.8915847479
B9: Charleston | C9: 7 | D9: 80.69 | F9: 7 | G9: =IF($F9<>G$2,1-_xlfn.NORM.DIST(0,INDEX(Rating,$F9)-INDEX(Rating,G$2),10,1),"") -> 0.1104761138 | H9: =IF($F9<>H$2,1-_xlfn.NORM.DIST(0,INDEX(Rating,$F9)-INDEX(Rating,H$2),10,1),"") -> 0.8519885152 | I9: =IF($F9<>I$2,1-_xlfn.NORM.DIST(0,INDEX(Rating,$F9)-INDEX(Rating,I$2),10,1),"") -> 0.9184920802 | J9: =IF($F9<>J$2,1-_xlfn.NORM.DIST(0,INDEX(Rating,$F9)-INDEX(Rating,J$2),10,1),"") -> 0.3163251025 | K9: =IF($F9<>K$2,1-_xlfn.NORM.DIST(0,INDEX(Rating,$F9)-INDEX(Rating,K$2),10,1),"") -> 0.3025780794 | L9: =IF($F9<>L$2,1-_xlfn.NORM.DIST(0,INDEX(Rating,$F9)-INDEX(Rating,L$2),10,1),"") -> 0.3263552203 | M9: =IF($F9<>M$2,1-_xlfn.NORM.DIST(0,INDEX(Rating,$F9)-INDEX(Rating,M$2),10,1),"") ->  | N9: =IF($F9<>N$2,1-_xlfn.NORM.DIST(0,INDEX(Rating,$F9)-INDEX(Rating,N$2),10,1),"") -> 0.3303307682 | O9: =IF($F9<>O$2,1-_xlfn.NORM.DIST(0,INDEX(Rating,$F9)-INDEX(Rating,O$2),10,1),"") -> 0.5481544824 | P9: =IF($F9<>P$2,1-_xlfn.NORM.DIST(0,INDEX(Rating,$F9)-INDEX(Rating,P$2),10,1),"") -> 0.2438411045 | Q9: =IF($F9<>Q$2,1-_xlfn.NORM.DIST(0,INDEX(Rating,$F9)-INDEX(Rating,Q$2),10,1),"") -> 0.3989754187 | R9: =IF($F9<>R$2,1-_xlfn.NORM.DIST(0,INDEX(Rating,$F9)-INDEX(Rating,R$2),10,1),"") -> 0.2523860667 | S9: =IF($F9<>S$2,1-_xlfn.NORM.DIST(0,INDEX(Rating,$F9)-INDEX(Rating,S$2),10,1),"") -> 0.6656744398 | T9: =IF($F9<>T$2,1-_xlfn.NORM.DIST(0,INDEX(Rating,$F9)-INDEX(Rating,T$2),10,1),"") -> 0.4328983207 | U9: =IF($F9<>U$2,1-_xlfn.NORM.DIST(0,INDEX(Rating,$F9)-INDEX(Rating,U$2),10,1),"") -> 0.3657992301 | V9: =IF($F9<>V$2,1-_xlfn.NORM.DIST(0,INDEX(Rating,$F9)-INDEX(Rating,V$2),10,1),"") -> 0.1795713201 | W9: =IF($F9<>W$2,1-_xlfn.NORM.DIST(0,INDEX(Rating,$F9)-INDEX(Rating,W$2),10,1),"") -> 0.6693068583 | X9: =IF($F9<>X$2,1-_xlfn.NORM.DIST(0,INDEX(Rating,$F9)-INDEX(Rating,X$2),10,1),"") -> 0.1984975607 | Y9: =IF($F9<>Y$2,1-_xlfn.NORM.DIST(0,INDEX(Rating,$F9)-INDEX(Rating,Y$2),10,1),"") -> 0.9384632032 | Z9: =IF($F9<>Z$2,1-_xlfn.NORM.DIST(0,INDEX(Rating,$F9)-INDEX(Rating,Z$2),10,1),"") -> 0.9538124543 | AA9: =IF($F9<>AA$2,1-_xlfn.NORM.DIST(0,INDEX(Rating,$F9)-INDEX(Rating,AA$2),10,1),"") -> 0.279610156 | AB9: =IF($F9<>AB$2,1-_xlfn.NORM.DIST(0,INDEX(Rating,$F9)-INDEX(Rating,AB$2),10,1),"") -> 0.3832332546 | AC9: =IF($F9<>AC$2,1-_xlfn.NORM.DIST(0,INDEX(Rating,$F9)-INDEX(Rating,AC$2),10,1),"") -> 0.2530252465 | AD9: =IF($F9<>AD$2,1-_xlfn.NORM.DIST(0,INDEX(Rating,$F9)-INDEX(Rating,AD$2),10,1),"") -> 0.5079783137 | AE9: =IF($F9<>AE$2,1-_xlfn.NORM.DIST(0,INDEX(Rating,$F9)-INDEX(Rating,AE$2),10,1),"") -> 0.195170258 | AF9: =IF($F9<>AF$2,1-_xlfn.NORM.DIST(0,INDEX(Rating,$F9)-INDEX(Rating,AF$2),10,1),"") -> 0.6281660574 | AG9: =IF($F9<>AG$2,1-_xlfn.NORM.DIST(0,INDEX(Rating,$F9)-INDEX(Rating,AG$2),10,1),"") -> 0.2994441035 | AH9: =IF($F9<>AH$2,1-_xlfn.NORM.DIST(0,INDEX(Rating,$F9)-INDEX(Rating,AH$2),10,1),"") -> 0.3657992301 | AI9: =IF($F9<>AI$2,1-_xlfn.NORM.DIST(0,INDEX(Rating,$F9)-INDEX(Rating,AI$2),10,1),"") -> 0.3209657283 | AJ9: =IF($F9<>AJ$2,1-_xlfn.NORM.DIST(0,INDEX(Rating,$F9)-INDEX(Rating,AJ$2),10,1),"") -> 0.7247463097 | AK9: =IF($F9<>AK$2,1-_xlfn.NORM.DIST(0,INDEX(Rating,$F9)-INDEX(Rating,AK$2),10,1),"") -> 0.3357829066 | AL9: =IF($F9<>AL$2,1-_xlfn.NORM.DIST(0,INDEX(Rating,$F9)-INDEX(Rating,AL$2),10,1),"") -> 0.3657992301 | AM9: =IF($F9<>AM$2,1-_xlfn.NORM.DIST(0,INDEX(Rating,$F9)-INDEX(Rating,AM$2),10,1),"") -> 0.2476194754 | AN9: =IF($F9<>AN$2,1-_xlfn.NORM.DIST(0,INDEX(Rating,$F9)-INDEX(Rating,AN$2),10,1),"") -> 0.653578556 | AO9: =IF($F9<>AO$2,1-_xlfn.NORM.DIST(0,INDEX(Rating,$F9)-INDEX(Rating,AO$2),10,1),"") -> 0.1322110673 | AP9: =IF($F9<>AP$2,1-_xlfn.NORM.DIST(0,INDEX(Rating,$F9)-INDEX(Rating,AP$2),10,1),"") -> 0.7901667584 | AQ9: =IF($F9<>AQ$2,1-_xlfn.NORM.DIST(0,INDEX(Rating,$F9)-INDEX(Rating,AQ$2),10,1),"") -> 0.3387050016 | AR9: =IF($F9<>AR$2,1-_xlfn.NORM.DIST(0,INDEX(Rating,$F9)-INDEX(Rating,AR$2),10,1),"") -> 0.3216821836 | AS9: =IF($F9<>AS$2,1-_xlfn.NORM.DIST(0,INDEX(Rating,$F9)-INDEX(Rating,AS$2),10,1),"") -> 0.3635446548 | AT9: =IF($F9<>AT$2,1-_xlfn.NORM.DIST(0,INDEX(Rating,$F9)-INDEX(Rating,AT$2),10,1),"") -> 0.4518455176 | AU9: =IF($F9<>AU$2,1-_xlfn.NORM.DIST(0,INDEX(Rating,$F9)-INDEX(Rating,AU$2),10,1),"") -> 0.2904741766 | AV9: =IF($F9<>AV$2,1-_xlfn.NORM.DIST(0,INDEX(Rating,$F9)-INDEX(Rating,AV$2),10,1),"") -> 0.4840465631 | AW9: =IF($F9<>AW$2,1-_xlfn.NORM.DIST(0,INDEX(Rating,$F9)-INDEX(Rating,AW$2),10,1),"") -> 0.354574222 | AX9: =IF($F9<>AX$2,1-_xlfn.NORM.DIST(0,INDEX(Rating,$F9)-INDEX(Rating,AX$2),10,1),"") -> 0.4376224241 | AY9: =IF($F9<>AY$2,1-_xlfn.NORM.DIST(0,INDEX(Rating,$F9)-INDEX(Rating,AY$2),10,1),"") -> 0.4661306954 | AZ9: =IF($F9<>AZ$2,1-_xlfn.NORM.DIST(0,INDEX(Rating,$F9)-INDEX(Rating,AZ$2),10,1),"") -> 0.2806202268 | BA9: =IF($F9<>BA$2,1-_xlfn.NORM.DIST(0,INDEX(Rating,$F9)-INDEX(Rating,BA$2),10,1),"") -> 0.7760737216 | BB9: =IF($F9<>BB$2,1-_xlfn.NORM.DIST(0,INDEX(Rating,$F9)-INDEX(Rating,BB$2),10,1),"") -> 0.2949434273 | BC9: =IF($F9<>BC$2,1-_xlfn.NORM.DIST(0,INDEX(Rating,$F9)-INDEX(Rating,BC$2),10,1),"") -> 0.3748632564 | BD9: =IF($F9<>BD$2,1-_xlfn.NORM.DIST(0,INDEX(Rating,$F9)-INDEX(Rating,BD$2),10,1),"") -> 0.1642845762 | BE9: =IF($F9<>BE$2,1-_xlfn.NORM.DIST(0,INDEX(Rating,$F9)-INDEX(Rating,BE$2),10,1),"") -> 0.6758050109 | BF9: =IF($F9<>BF$2,1-_xlfn.NORM.DIST(0,INDEX(Rating,$F9)-INDEX(Rating,BF$2),10,1),"") -> 0.1772229901 | BG9: =IF($F9<>BG$2,1-_xlfn.NORM.DIST(0,INDEX(Rating,$F9)-INDEX(Rating,BG$2),10,1),"") -> 0.8787981843 | BH9: =IF($F9<>BH$2,1-_xlfn.NORM.DIST(0,INDEX(Rating,$F9)-INDEX(Rating,BH$2),10,1),"") -> 0.3060774093 | BI9: =IF($F9<>BI$2,1-_xlfn.NORM.DIST(0,INDEX(Rating,$F9)-INDEX(Rating,BI$2),10,1),"") -> 0.3223993026 | BJ9: =IF($F9<>BJ$2,1-_xlfn.NORM.DIST(0,INDEX(Rating,$F9)-INDEX(Rating,BJ$2),10,1),"") -> 0.2829839006 | BK9: =IF($F9<>BK$2,1-_xlfn.NORM.DIST(0,INDEX(Rating,$F9)-INDEX(Rating,BK$2),10,1),"") -> 0.3912740331 | BL9: =IF($F9<>BL$2,1-_xlfn.NORM.DIST(0,INDEX(Rating,$F9)-INDEX(Rating,BL$2),10,1),"") -> 0.1741222051 | BM9: =IF($F9<>BM$2,1-_xlfn.NORM.DIST(0,INDEX(Rating,$F9)-INDEX(Rating,BM$2),10,1),"") -> 0.5398278373 | BN9: =IF($F9<>BN$2,1-_xlfn.NORM.DIST(0,INDEX(Rating,$F9)-INDEX(Rating,BN$2),10,1),"") -> 0.2994441035 | BO9: =IF($F9<>BO$2,1-_xlfn.NORM.DIST(0,INDEX(Rating,$F9)-INDEX(Rating,BO$2),10,1),"") -> 0.4880335266 | BP9: =IF($F9<>BP$2,1-_xlfn.NORM.DIST(0,INDEX(Rating,$F9)-INDEX(Rating,BP$2),10,1),"") -> 0.5588286159 | BQ9: =IF($F9<>BQ$2,1-_xlfn.NORM.DIST(0,INDEX(Rating,$F9)-INDEX(Rating,BQ$2),10,1),"") -> 0.164037162 | BR9: =IF($F9<>BR$2,1-_xlfn.NORM.DIST(0,INDEX(Rating,$F9)-INDEX(Rating,BR$2),10,1),"") -> 0.680465182 | BS9: =IF($F9<>BS$2,1-_xlfn.NORM.DIST(0,INDEX(Rating,$F9)-INDEX(Rating,BS$2),10,1),"") -> 0.3729690171 | BT9: =IF($F9<>BT$2,1-_xlfn.NORM.DIST(0,INDEX(Rating,$F9)-INDEX(Rating,BT$2),10,1),"") -> 0.452241574 | BU9: =IF($F9<>BU$2,1-_xlfn.NORM.DIST(0,INDEX(Rating,$F9)-INDEX(Rating,BU$2),10,1),"") -> 0.1463997748 | BV9: =IF($F9<>BV$2,1-_xlfn.NORM.DIST(0,INDEX(Rating,$F9)-INDEX(Rating,BV$2),10,1),"") -> 0.7837732157
B10: Virginia | C10: 8 | D10: 85.08 | F10: 8 | G10: =IF($F10<>G$2,1-_xlfn.NORM.DIST(0,INDEX(Rating,$F10)-INDEX(Rating,G$2),10,1),"") -> 0.2162267843 | H10: =IF($F10<>H$2,1-_xlfn.NORM.DIST(0,INDEX(Rating,$F10)-INDEX(Rating,H$2),10,1),"") -> 0.9310955397 | I10: =IF($F10<>I$2,1-_xlfn.NORM.DIST(0,INDEX(Rating,$F10)-INDEX(Rating,I$2),10,1),"") -> 0.9666730029 | J10: =IF($F10<>J$2,1-_xlfn.NORM.DIST(0,INDEX(Rating,$F10)-INDEX(Rating,J$2),10,1),"") -> 0.4844451943 | K10: =IF($F10<>K$2,1-_xlfn.NORM.DIST(0,INDEX(Rating,$F10)-INDEX(Rating,K$2),10,1),"") -> 0.4689140265 | L10: =IF($F10<>L$2,1-_xlfn.NORM.DIST(0,INDEX(Rating,$F10)-INDEX(Rating,L$2),10,1),"") -> 0.4956117234 | M10: =IF($F10<>M$2,1-_xlfn.NORM.DIST(0,INDEX(Rating,$F10)-INDEX(Rating,M$2),10,1),"") -> 0.6696692318 | N10: =IF($F10<>N$2,1-_xlfn.NORM.DIST(0,INDEX(Rating,$F10)-INDEX(Rating,N$2),10,1),"") ->  | O10: =IF($F10<>O$2,1-_xlfn.NORM.DIST(0,INDEX(Rating,$F10)-INDEX(Rating,O$2),10,1),"") -> 0.7122602812 | P10: =IF($F10<>P$2,1-_xlfn.NORM.DIST(0,INDEX(Rating,$F10)-INDEX(Rating,P$2),10,1),"") -> 0.3993615496 | Q10: =IF($F10<>Q$2,1-_xlfn.NORM.DIST(0,INDEX(Rating,$F10)-INDEX(Rating,Q$2),10,1),"") -> 0.5726009907 | R10: =IF($F10<>R$2,1-_xlfn.NORM.DIST(0,INDEX(Rating,$F10)-INDEX(Rating,R$2),10,1),"") -> 0.4098231203 | S10: =IF($F10<>S$2,1-_xlfn.NORM.DIST(0,INDEX(Rating,$F10)-INDEX(Rating,S$2),10,1),"") -> 0.8070289952 | T10: =IF($F10<>T$2,1-_xlfn.NORM.DIST(0,INDEX(Rating,$F10)-INDEX(Rating,T$2),10,1),"") -> 0.6064198732 | U10: =IF($F10<>U$2,1-_xlfn.NORM.DIST(0,INDEX(Rating,$F10)-INDEX(Rating,U$2),10,1),"") -> 0.5382397137 | V10: =IF($F10<>V$2,1-_xlfn.NORM.DIST(0,INDEX(Rating,$F10)-INDEX(Rating,V$2),10,1),"") -> 0.3163251025 | W10: =IF($F10<>W$2,1-_xlfn.NORM.DIST(0,INDEX(Rating,$F10)-INDEX(Rating,W$2),10,1),"") -> 0.809756681 | X10: =IF($F10<>X$2,1-_xlfn.NORM.DIST(0,INDEX(Rating,$F10)-INDEX(Rating,X$2),10,1),"") -> 0.3416368375 | Y10: =IF($F10<>Y$2,1-_xlfn.NORM.DIST(0,INDEX(Rating,$F10)-INDEX(Rating,Y$2),10,1),"") -> 0.9762043632 | Z10: =IF($F10<>Z$2,1-_xlfn.NORM.DIST(0,INDEX(Rating,$F10)-INDEX(Rating,Z$2),10,1),"") -> 0.983081131 | AA10: =IF($F10<>AA$2,1-_xlfn.NORM.DIST(0,INDEX(Rating,$F10)-INDEX(Rating,AA$2),10,1),"") -> 0.4423554359 | AB10: =IF($F10<>AB$2,1-_xlfn.NORM.DIST(0,INDEX(Rating,$F10)-INDEX(Rating,AB$2),10,1),"") -> 0.5564599972 | AC10: =IF($F10<>AC$2,1-_xlfn.NORM.DIST(0,INDEX(Rating,$F10)-INDEX(Rating,AC$2),10,1),"") -> 0.4106007102 | AD10: =IF($F10<>AD$2,1-_xlfn.NORM.DIST(0,INDEX(Rating,$F10)-INDEX(Rating,AD$2),10,1),"") -> 0.676882917 | AE10: =IF($F10<>AE$2,1-_xlfn.NORM.DIST(0,INDEX(Rating,$F10)-INDEX(Rating,AE$2),10,1),"") -> 0.3372427268 | AF10: =IF($F10<>AF$2,1-_xlfn.NORM.DIST(0,INDEX(Rating,$F10)-INDEX(Rating,AF$2),10,1),"") -> 0.7781618489 | AG10: =IF($F10<>AG$2,1-_xlfn.NORM.DIST(0,INDEX(Rating,$F10)-INDEX(Rating,AG$2),10,1),"") -> 0.4653357561 | AH10: =IF($F10<>AH$2,1-_xlfn.NORM.DIST(0,INDEX(Rating,$F10)-INDEX(Rating,AH$2),10,1),"") -> 0.5382397137 | AI10: =IF($F10<>AI$2,1-_xlfn.NORM.DIST(0,INDEX(Rating,$F10)-INDEX(Rating,AI$2),10,1),"") -> 0.4896286692 | AJ10: =IF($F10<>AJ$2,1-_xlfn.NORM.DIST(0,INDEX(Rating,$F10)-INDEX(Rating,AJ$2),10,1),"") -> 0.8498989287 | AK10: =IF($F10<>AK$2,1-_xlfn.NORM.DIST(0,INDEX(Rating,$F10)-INDEX(Rating,AK$2),10,1),"") -> 0.5059839098 | AL10: =IF($F10<>AL$2,1-_xlfn.NORM.DIST(0,INDEX(Rating,$F10)-INDEX(Rating,AL$2),10,1),"") -> 0.5382397137 | AM10: =IF($F10<>AM$2,1-_xlfn.NORM.DIST(0,INDEX(Rating,$F10)-INDEX(Rating,AM$2),10,1),"") -> 0.4040026987 | AN10: =IF($F10<>AN$2,1-_xlfn.NORM.DIST(0,INDEX(Rating,$F10)-INDEX(Rating,AN$2),10,1),"") -> 0.7978595081 | AO10: =IF($F10<>AO$2,1-_xlfn.NORM.DIST(0,INDEX(Rating,$F10)-INDEX(Rating,AO$2),10,1),"") -> 0.2492029772 | AP10: =IF($F10<>AP$2,1-_xlfn.NORM.DIST(0,INDEX(Rating,$F10)-INDEX(Rating,AP$2),10,1),"") -> 0.8936178024 | AQ10: =IF($F10<>AQ$2,1-_xlfn.NORM.DIST(0,INDEX(Rating,$F10)-INDEX(Rating,AQ$2),10,1),"") -> 0.5091748635 | AR10: =IF($F10<>AR$2,1-_xlfn.NORM.DIST(0,INDEX(Rating,$F10)-INDEX(Rating,AR$2),10,1),"") -> 0.4904263044 | AS10: =IF($F10<>AS$2,1-_xlfn.NORM.DIST(0,INDEX(Rating,$F10)-INDEX(Rating,AS$2),10,1),"") -> 0.5358563926 | AT10: =IF($F10<>AT$2,1-_xlfn.NORM.DIST(0,INDEX(Rating,$F10)-INDEX(Rating,AT$2),10,1),"") -> 0.6247575315 | AU10: =IF($F10<>AU$2,1-_xlfn.NORM.DIST(0,INDEX(Rating,$F10)-INDEX(Rating,AU$2),10,1),"") -> 0.4550152776 | AV10: =IF($F10<>AV$2,1-_xlfn.NORM.DIST(0,INDEX(Rating,$F10)-INDEX(Rating,AV$2),10,1),"") -> 0.6550533979 | AW10: =IF($F10<>AW$2,1-_xlfn.NORM.DIST(0,INDEX(Rating,$F10)-INDEX(Rating,AW$2),10,1),"") -> 0.5263110873 | AX10: =IF($F10<>AX$2,1-_xlfn.NORM.DIST(0,INDEX(Rating,$F10)-INDEX(Rating,AX$2),10,1),"") -> 0.6110282448 | AY10: =IF($F10<>AY$2,1-_xlfn.NORM.DIST(0,INDEX(Rating,$F10)-INDEX(Rating,AY$2),10,1),"") -> 0.6383305584 | AZ10: =IF($F10<>AZ$2,1-_xlfn.NORM.DIST(0,INDEX(Rating,$F10)-INDEX(Rating,AZ$2),10,1),"") -> 0.4435400028 | BA10: =IF($F10<>BA$2,1-_xlfn.NORM.DIST(0,INDEX(Rating,$F10)-INDEX(Rating,BA$2),10,1),"") -> 0.8845414915 | BB10: =IF($F10<>BB$2,1-_xlfn.NORM.DIST(0,INDEX(Rating,$F10)-INDEX(Rating,BB$2),10,1),"") -> 0.4601721627 | BC10: =IF($F10<>BC$2,1-_xlfn.NORM.DIST(0,INDEX(Rating,$F10)-INDEX(Rating,BC$2),10,1),"") -> 0.547758426 | BD10: =IF($F10<>BD$2,1-_xlfn.NORM.DIST(0,INDEX(Rating,$F10)-INDEX(Rating,BD$2),10,1),"") -> 0.2952885243 | BE10: =IF($F10<>BE$2,1-_xlfn.NORM.DIST(0,INDEX(Rating,$F10)-INDEX(Rating,BE$2),10,1),"") -> 0.814606456 | BF10: =IF($F10<>BF$2,1-_xlfn.NORM.DIST(0,INDEX(Rating,$F10)-INDEX(Rating,BF$2),10,1),"") -> 0.3131291655 | BG10: =IF($F10<>BG$2,1-_xlfn.NORM.DIST(0,INDEX(Rating,$F10)-INDEX(Rating,BG$2),10,1),"") -> 0.9460824106 | BH10: =IF($F10<>BH$2,1-_xlfn.NORM.DIST(0,INDEX(Rating,$F10)-INDEX(Rating,BH$2),10,1),"") -> 0.4728928171 | BI10: =IF($F10<>BI$2,1-_xlfn.NORM.DIST(0,INDEX(Rating,$F10)-INDEX(Rating,BI$2),10,1),"") -> 0.4912239778 | BJ10: =IF($F10<>BJ$2,1-_xlfn.NORM.DIST(0,INDEX(Rating,$F10)-INDEX(Rating,BJ$2),10,1),"") -> 0.4463059372 | BK10: =IF($F10<>BK$2,1-_xlfn.NORM.DIST(0,INDEX(Rating,$F10)-INDEX(Rating,BK$2),10,1),"") -> 0.5647407827 | BL10: =IF($F10<>BL$2,1-_xlfn.NORM.DIST(0,INDEX(Rating,$F10)-INDEX(Rating,BL$2),10,1),"") -> 0.308889692 | BM10: =IF($F10<>BM$2,1-_xlfn.NORM.DIST(0,INDEX(Rating,$F10)-INDEX(Rating,BM$2),10,1),"") -> 0.7050565727 | BN10: =IF($F10<>BN$2,1-_xlfn.NORM.DIST(0,INDEX(Rating,$F10)-INDEX(Rating,BN$2),10,1),"") -> 0.4653357561 | BO10: =IF($F10<>BO$2,1-_xlfn.NORM.DIST(0,INDEX(Rating,$F10)-INDEX(Rating,BO$2),10,1),"") -> 0.6587301694 | BP10: =IF($F10<>BP$2,1-_xlfn.NORM.DIST(0,INDEX(Rating,$F10)-INDEX(Rating,BP$2),10,1),"") -> 0.7213981466 | BQ10: =IF($F10<>BQ$2,1-_xlfn.NORM.DIST(0,INDEX(Rating,$F10)-INDEX(Rating,BQ$2),10,1),"") -> 0.2949434273 | BR10: =IF($F10<>BR$2,1-_xlfn.NORM.DIST(0,INDEX(Rating,$F10)-INDEX(Rating,BR$2),10,1),"") -> 0.8180608892 | BS10: =IF($F10<>BS$2,1-_xlfn.NORM.DIST(0,INDEX(Rating,$F10)-INDEX(Rating,BS$2),10,1),"") -> 0.545777439 | BT10: =IF($F10<>BT$2,1-_xlfn.NORM.DIST(0,INDEX(Rating,$F10)-INDEX(Rating,BT$2),10,1),"") -> 0.6251367436 | BU10: =IF($F10<>BU$2,1-_xlfn.NORM.DIST(0,INDEX(Rating,$F10)-INDEX(Rating,BU$2),10,1),"") -> 0.2699381699 | BV10: =IF($F10<>BV$2,1-_xlfn.NORM.DIST(0,INDEX(Rating,$F10)-INDEX(Rating,BV$2),10,1),"") -> 0.8895238862
B11: Furman | C11: 9 | D11: 79.48 | F11: 9 | G11: =IF($F11<>G$2,1-_xlfn.NORM.DIST(0,INDEX(Rating,$F11)-INDEX(Rating,G$2),10,1),"") -> 0.08931261728 | H11: =IF($F11<>H$2,1-_xlfn.NORM.DIST(0,INDEX(Rating,$F11)-INDEX(Rating,H$2),10,1),"") -> 0.8222568421 | I11: =IF($F11<>I$2,1-_xlfn.NORM.DIST(0,INDEX(Rating,$F11)-INDEX(Rating,I$2),10,1),"") -> 0.8986682919 | J11: =IF($F11<>J$2,1-_xlfn.NORM.DIST(0,INDEX(Rating,$F11)-INDEX(Rating,J$2),10,1),"") -> 0.2745864423 | K11: =IF($F11<>K$2,1-_xlfn.NORM.DIST(0,INDEX(Rating,$F11)-INDEX(Rating,K$2),10,1),"") -> 0.26173684 | L11: =IF($F11<>L$2,1-_xlfn.NORM.DIST(0,INDEX(Rating,$F11)-INDEX(Rating,L$2),10,1),"") -> 0.2839998214 | M11: =IF($F11<>M$2,1-_xlfn.NORM.DIST(0,INDEX(Rating,$F11)-INDEX(Rating,M$2),10,1),"") -> 0.4518455176 | N11: =IF($F11<>N$2,1-_xlfn.NORM.DIST(0,INDEX(Rating,$F11)-INDEX(Rating,N$2),10,1),"") -> 0.2877397188 | O11: =IF($F11<>O$2,1-_xlfn.NORM.DIST(0,INDEX(Rating,$F11)-INDEX(Rating,O$2),10,1),"") ->  | P11: =IF($F11<>P$2,1-_xlfn.NORM.DIST(0,INDEX(Rating,$F11)-INDEX(Rating,P$2),10,1),"") -> 0.207536155 | Q11: =IF($F11<>Q$2,1-_xlfn.NORM.DIST(0,INDEX(Rating,$F11)-INDEX(Rating,Q$2),10,1),"") -> 0.3530868025 | R11: =IF($F11<>R$2,1-_xlfn.NORM.DIST(0,INDEX(Rating,$F11)-INDEX(Rating,R$2),10,1),"") -> 0.2153483529 | S11: =IF($F11<>S$2,1-_xlfn.NORM.DIST(0,INDEX(Rating,$F11)-INDEX(Rating,S$2),10,1),"") -> 0.6205783139 | T11: =IF($F11<>T$2,1-_xlfn.NORM.DIST(0,INDEX(Rating,$F11)-INDEX(Rating,T$2),10,1),"") -> 0.3859081188 | U11: =IF($F11<>U$2,1-_xlfn.NORM.DIST(0,INDEX(Rating,$F11)-INDEX(Rating,U$2),10,1),"") -> 0.3213238728 | V11: =IF($F11<>V$2,1-_xlfn.NORM.DIST(0,INDEX(Rating,$F11)-INDEX(Rating,V$2),10,1),"") -> 0.1496350275 | W11: =IF($F11<>W$2,1-_xlfn.NORM.DIST(0,INDEX(Rating,$F11)-INDEX(Rating,W$2),10,1),"") -> 0.6243781989 | X11: =IF($F11<>X$2,1-_xlfn.NORM.DIST(0,INDEX(Rating,$F11)-INDEX(Rating,X$2),10,1),"") -> 0.1665221849 | Y11: =IF($F11<>Y$2,1-_xlfn.NORM.DIST(0,INDEX(Rating,$F11)-INDEX(Rating,Y$2),10,1),"") -> 0.9223416203 | Z11: =IF($F11<>Z$2,1-_xlfn.NORM.DIST(0,INDEX(Rating,$F11)-INDEX(Rating,Z$2),10,1),"") -> 0.9408560056 | AA11: =IF($F11<>AA$2,1-_xlfn.NORM.DIST(0,INDEX(Rating,$F11)-INDEX(Rating,AA$2),10,1),"") -> 0.2404051181 | AB11: =IF($F11<>AB$2,1-_xlfn.NORM.DIST(0,INDEX(Rating,$F11)-INDEX(Rating,AB$2),10,1),"") -> 0.3379735586 | AC11: =IF($F11<>AC$2,1-_xlfn.NORM.DIST(0,INDEX(Rating,$F11)-INDEX(Rating,AC$2),10,1),"") -> 0.2159337436 | AD11: =IF($F11<>AD$2,1-_xlfn.NORM.DIST(0,INDEX(Rating,$F11)-INDEX(Rating,AD$2),10,1),"") -> 0.4597752301 | AE11: =IF($F11<>AE$2,1-_xlfn.NORM.DIST(0,INDEX(Rating,$F11)-INDEX(Rating,AE$2),10,1),"") -> 0.1635430593 | AF11: =IF($F11<>AF$2,1-_xlfn.NORM.DIST(0,INDEX(Rating,$F11)-INDEX(Rating,AF$2),10,1),"") -> 0.5816045443 | AG11: =IF($F11<>AG$2,1-_xlfn.NORM.DIST(0,INDEX(Rating,$F11)-INDEX(Rating,AG$2),10,1),"") -> 0.2588159717 | AH11: =IF($F11<>AH$2,1-_xlfn.NORM.DIST(0,INDEX(Rating,$F11)-INDEX(Rating,AH$2),10,1),"") -> 0.3213238728 | AI11: =IF($F11<>AI$2,1-_xlfn.NORM.DIST(0,INDEX(Rating,$F11)-INDEX(Rating,AI$2),10,1),"") -> 0.2789377574 | AJ11: =IF($F11<>AJ$2,1-_xlfn.NORM.DIST(0,INDEX(Rating,$F11)-INDEX(Rating,AJ$2),10,1),"") -> 0.682962811 | AK11: =IF($F11<>AK$2,1-_xlfn.NORM.DIST(0,INDEX(Rating,$F11)-INDEX(Rating,AK$2),10,1),"") -> 0.2928767588 | AL11: =IF($F11<>AL$2,1-_xlfn.NORM.DIST(0,INDEX(Rating,$F11)-INDEX(Rating,AL$2),10,1),"") -> 0.3213238728 | AM11: =IF($F11<>AM$2,1-_xlfn.NORM.DIST(0,INDEX(Rating,$F11)-INDEX(Rating,AM$2),10,1),"") -> 0.2109873673 | AN11: =IF($F11<>AN$2,1-_xlfn.NORM.DIST(0,INDEX(Rating,$F11)-INDEX(Rating,AN$2),10,1),"") -> 0.6079576892 | AO11: =IF($F11<>AO$2,1-_xlfn.NORM.DIST(0,INDEX(Rating,$F11)-INDEX(Rating,AO$2),10,1),"") -> 0.1080435413 | AP11: =IF($F11<>AP$2,1-_xlfn.NORM.DIST(0,INDEX(Rating,$F11)-INDEX(Rating,AP$2),10,1),"") -> 0.7536434458 | AQ11: =IF($F11<>AQ$2,1-_xlfn.NORM.DIST(0,INDEX(Rating,$F11)-INDEX(Rating,AQ$2),10,1),"") -> 0.295633807 | AR11: =IF($F11<>AR$2,1-_xlfn.NORM.DIST(0,INDEX(Rating,$F11)-INDEX(Rating,AR$2),10,1),"") -> 0.279610156 | AS11: =IF($F11<>AS$2,1-_xlfn.NORM.DIST(0,INDEX(Rating,$F11)-INDEX(Rating,AS$2),10,1),"") -> 0.3191775088 | AT11: =IF($F11<>AT$2,1-_xlfn.NORM.DIST(0,INDEX(Rating,$F11)-INDEX(Rating,AT$2),10,1),"") -> 0.4043900816 | AU11: =IF($F11<>AU$2,1-_xlfn.NORM.DIST(0,INDEX(Rating,$F11)-INDEX(Rating,AU$2),10,1),"") -> 0.2504736455 | AV11: =IF($F11<>AV$2,1-_xlfn.NORM.DIST(0,INDEX(Rating,$F11)-INDEX(Rating,AV$2),10,1),"") -> 0.4360467003 | AW11: =IF($F11<>AW$2,1-_xlfn.NORM.DIST(0,INDEX(Rating,$F11)-INDEX(Rating,AW$2),10,1),"") -> 0.3106530897 | AX11: =IF($F11<>AX$2,1-_xlfn.NORM.DIST(0,INDEX(Rating,$F11)-INDEX(Rating,AX$2),10,1),"") -> 0.3905061794 | AY11: =IF($F11<>AY$2,1-_xlfn.NORM.DIST(0,INDEX(Rating,$F11)-INDEX(Rating,AY$2),10,1),"") -> 0.4183954557 | AZ11: =IF($F11<>AZ$2,1-_xlfn.NORM.DIST(0,INDEX(Rating,$F11)-INDEX(Rating,AZ$2),10,1),"") -> 0.2413395817 | BA11: =IF($F11<>BA$2,1-_xlfn.NORM.DIST(0,INDEX(Rating,$F11)-INDEX(Rating,BA$2),10,1),"") -> 0.73826316 | BB11: =IF($F11<>BB$2,1-_xlfn.NORM.DIST(0,INDEX(Rating,$F11)-INDEX(Rating,BB$2),10,1),"") -> 0.2546269147 | BC11: =IF($F11<>BC$2,1-_xlfn.NORM.DIST(0,INDEX(Rating,$F11)-INDEX(Rating,BC$2),10,1),"") -> 0.3299685537 | BD11: =IF($F11<>BD$2,1-_xlfn.NORM.DIST(0,INDEX(Rating,$F11)-INDEX(Rating,BD$2),10,1),"") -> 0.1361022446 | BE11: =IF($F11<>BE$2,1-_xlfn.NORM.DIST(0,INDEX(Rating,$F11)-INDEX(Rating,BE$2),10,1),"") -> 0.6311874569 | BF11: =IF($F11<>BF$2,1-_xlfn.NORM.DIST(0,INDEX(Rating,$F11)-INDEX(Rating,BF$2),10,1),"") -> 0.1475497891 | BG11: =IF($F11<>BG$2,1-_xlfn.NORM.DIST(0,INDEX(Rating,$F11)-INDEX(Rating,BG$2),10,1),"") -> 0.8526806966 | BH11: =IF($F11<>BH$2,1-_xlfn.NORM.DIST(0,INDEX(Rating,$F11)-INDEX(Rating,BH$2),10,1),"") -> 0.26500197 | BI11: =IF($F11<>BI$2,1-_xlfn.NORM.DIST(0,INDEX(Rating,$F11)-INDEX(Rating,BI$2),10,1),"") -> 0.2802833404 | BJ11: =IF($F11<>BJ$2,1-_xlfn.NORM.DIST(0,INDEX(Rating,$F11)-INDEX(Rating,BJ$2),10,1),"") -> 0.2435276508 | BK11: =IF($F11<>BK$2,1-_xlfn.NORM.DIST(0,INDEX(Rating,$F11)-INDEX(Rating,BK$2),10,1),"") -> 0.3456837303 | BL11: =IF($F11<>BL$2,1-_xlfn.NORM.DIST(0,INDEX(Rating,$F11)-INDEX(Rating,BL$2),10,1),"") -> 0.1447998899 | BM11: =IF($F11<>BM$2,1-_xlfn.NORM.DIST(0,INDEX(Rating,$F11)-INDEX(Rating,BM$2),10,1),"") -> 0.4916228278 | BN11: =IF($F11<>BN$2,1-_xlfn.NORM.DIST(0,INDEX(Rating,$F11)-INDEX(Rating,BN$2),10,1),"") -> 0.2588159717 | BO11: =IF($F11<>BO$2,1-_xlfn.NORM.DIST(0,INDEX(Rating,$F11)-INDEX(Rating,BO$2),10,1),"") -> 0.4399878579 | BP11: =IF($F11<>BP$2,1-_xlfn.NORM.DIST(0,INDEX(Rating,$F11)-INDEX(Rating,BP$2),10,1),"") -> 0.510770133 | BQ11: =IF($F11<>BQ$2,1-_xlfn.NORM.DIST(0,INDEX(Rating,$F11)-INDEX(Rating,BQ$2),10,1),"") -> 0.1358840329 | BR11: =IF($F11<>BR$2,1-_xlfn.NORM.DIST(0,INDEX(Rating,$F11)-INDEX(Rating,BR$2),10,1),"") -> 0.6360799083 | BS11: =IF($F11<>BS$2,1-_xlfn.NORM.DIST(0,INDEX(Rating,$F11)-INDEX(Rating,BS$2),10,1),"") -> 0.3281598771 | BT11: =IF($F11<>BT$2,1-_xlfn.NORM.DIST(0,INDEX(Rating,$F11)-INDEX(Rating,BT$2),10,1),"") -> 0.4047775583 | BU11: =IF($F11<>BU$2,1-_xlfn.NORM.DIST(0,INDEX(Rating,$F11)-INDEX(Rating,BU$2),10,1),"") -> 0.1203979028 | BV11: =IF($F11<>BV$2,1-_xlfn.NORM.DIST(0,INDEX(Rating,$F11)-INDEX(Rating,BV$2),10,1),"") -> 0.7466548445
B12: Creighton | C12: 10 | D12: 87.63 | F12: 10 | G12: =IF($F12<>G$2,1-_xlfn.NORM.DIST(0,INDEX(Rating,$F12)-INDEX(Rating,G$2),10,1),"") -> 0.2980559654 | H12: =IF($F12<>H$2,1-_xlfn.NORM.DIST(0,INDEX(Rating,$F12)-INDEX(Rating,H$2),10,1),"") -> 0.9589826185 | I12: =IF($F12<>I$2,1-_xlfn.NORM.DIST(0,INDEX(Rating,$F12)-INDEX(Rating,I$2),10,1),"") -> 0.9816461384 | J12: =IF($F12<>J$2,1-_xlfn.NORM.DIST(0,INDEX(Rating,$F12)-INDEX(Rating,J$2),10,1),"") -> 0.5855061262 | K12: =IF($F12<>K$2,1-_xlfn.NORM.DIST(0,INDEX(Rating,$F12)-INDEX(Rating,K$2),10,1),"") -> 0.5702458052 | L12: =IF($F12<>L$2,1-_xlfn.NORM.DIST(0,INDEX(Rating,$F12)-INDEX(Rating,L$2),10,1),"") -> 0.59638459 | M12: =IF($F12<>M$2,1-_xlfn.NORM.DIST(0,INDEX(Rating,$F12)-INDEX(Rating,M$2),10,1),"") -> 0.7561588955 | N12: =IF($F12<>N$2,1-_xlfn.NORM.DIST(0,INDEX(Rating,$F12)-INDEX(Rating,N$2),10,1),"") -> 0.6006384504 | O12: =IF($F12<>O$2,1-_xlfn.NORM.DIST(0,INDEX(Rating,$F12)-INDEX(Rating,O$2),10,1),"") -> 0.792463845 | P12: =IF($F12<>P$2,1-_xlfn.NORM.DIST(0,INDEX(Rating,$F12)-INDEX(Rating,P$2),10,1),"") ->  | Q12: =IF($F12<>Q$2,1-_xlfn.NORM.DIST(0,INDEX(Rating,$F12)-INDEX(Rating,Q$2),10,1),"") -> 0.6693068583 | R12: =IF($F12<>R$2,1-_xlfn.NORM.DIST(0,INDEX(Rating,$F12)-INDEX(Rating,R$2),10,1),"") -> 0.510770133 | S12: =IF($F12<>S$2,1-_xlfn.NORM.DIST(0,INDEX(Rating,$F12)-INDEX(Rating,S$2),10,1),"") -> 0.86906878 | T12: =IF($F12<>T$2,1-_xlfn.NORM.DIST(0,INDEX(Rating,$F12)-INDEX(Rating,T$2),10,1),"") -> 0.7002084045 | U12: =IF($F12<>U$2,1-_xlfn.NORM.DIST(0,INDEX(Rating,$F12)-INDEX(Rating,U$2),10,1),"") -> 0.6372058258 | V12: =IF($F12<>V$2,1-_xlfn.NORM.DIST(0,INDEX(Rating,$F12)-INDEX(Rating,V$2),10,1),"") -> 0.4117677533 | W12: =IF($F12<>W$2,1-_xlfn.NORM.DIST(0,INDEX(Rating,$F12)-INDEX(Rating,W$2),10,1),"") -> 0.8711827828 | X12: =IF($F12<>X$2,1-_xlfn.NORM.DIST(0,INDEX(Rating,$F12)-INDEX(Rating,X$2),10,1),"") -> 0.4391991376 | Y12: =IF($F12<>Y$2,1-_xlfn.NORM.DIST(0,INDEX(Rating,$F12)-INDEX(Rating,Y$2),10,1),"") -> 0.9873241144 | Z12: =IF($F12<>Z$2,1-_xlfn.NORM.DIST(0,INDEX(Rating,$F12)-INDEX(Rating,Z$2),10,1),"") -> 0.9912729559 | AA12: =IF($F12<>AA$2,1-_xlfn.NORM.DIST(0,INDEX(Rating,$F12)-INDEX(Rating,AA$2),10,1),"") -> 0.5437953125 | AB12: =IF($F12<>AB$2,1-_xlfn.NORM.DIST(0,INDEX(Rating,$F12)-INDEX(Rating,AB$2),10,1),"") -> 0.6543162697 | AC12: =IF($F12<>AC$2,1-_xlfn.NORM.DIST(0,INDEX(Rating,$F12)-INDEX(Rating,AC$2),10,1),"") -> 0.5115677047 | AD12: =IF($F12<>AD$2,1-_xlfn.NORM.DIST(0,INDEX(Rating,$F12)-INDEX(Rating,AD$2),10,1),"") -> 0.7623864103 | AE12: =IF($F12<>AE$2,1-_xlfn.NORM.DIST(0,INDEX(Rating,$F12)-INDEX(Rating,AE$2),10,1),"") -> 0.434471991 | AF12: =IF($F12<>AF$2,1-_xlfn.NORM.DIST(0,INDEX(Rating,$F12)-INDEX(Rating,AF$2),10,1),"") -> 0.8463727806 | AG12: =IF($F12<>AG$2,1-_xlfn.NORM.DIST(0,INDEX(Rating,$F12)-INDEX(Rating,AG$2),10,1),"") -> 0.5667083605 | AH12: =IF($F12<>AH$2,1-_xlfn.NORM.DIST(0,INDEX(Rating,$F12)-INDEX(Rating,AH$2),10,1),"") -> 0.6372058258 | AI12: =IF($F12<>AI$2,1-_xlfn.NORM.DIST(0,INDEX(Rating,$F12)-INDEX(Rating,AI$2),10,1),"") -> 0.5905655419 | AJ12: =IF($F12<>AJ$2,1-_xlfn.NORM.DIST(0,INDEX(Rating,$F12)-INDEX(Rating,AJ$2),10,1),"") -> 0.9016481612 | AK12: =IF($F12<>AK$2,1-_xlfn.NORM.DIST(0,INDEX(Rating,$F12)-INDEX(Rating,AK$2),10,1),"") -> 0.6064198732 | AL12: =IF($F12<>AL$2,1-_xlfn.NORM.DIST(0,INDEX(Rating,$F12)-INDEX(Rating,AL$2),10,1),"") -> 0.6372058258 | AM12: =IF($F12<>AM$2,1-_xlfn.NORM.DIST(0,INDEX(Rating,$F12)-INDEX(Rating,AM$2),10,1),"") -> 0.5047871925 | AN12: =IF($F12<>AN$2,1-_xlfn.NORM.DIST(0,INDEX(Rating,$F12)-INDEX(Rating,AN$2),10,1),"") -> 0.8619230572 | AO12: =IF($F12<>AO$2,1-_xlfn.NORM.DIST(0,INDEX(Rating,$F12)-INDEX(Rating,AO$2),10,1),"") -> 0.3365125087 | AP12: =IF($F12<>AP$2,1-_xlfn.NORM.DIST(0,INDEX(Rating,$F12)-INDEX(Rating,AP$2),10,1),"") -> 0.9333222192 | AQ12: =IF($F12<>AQ$2,1-_xlfn.NORM.DIST(0,INDEX(Rating,$F12)-INDEX(Rating,AQ$2),10,1),"") -> 0.6094938206 | AR12: =IF($F12<>AR$2,1-_xlfn.NORM.DIST(0,INDEX(Rating,$F12)-INDEX(Rating,AR$2),10,1),"") -> 0.591342599 | AS12: =IF($F12<>AS$2,1-_xlfn.NORM.DIST(0,INDEX(Rating,$F12)-INDEX(Rating,AS$2),10,1),"") -> 0.6349528146 | AT12: =IF($F12<>AT$2,1-_xlfn.NORM.DIST(0,INDEX(Rating,$F12)-INDEX(Rating,AT$2),10,1),"") -> 0.716677653 | AU12: =IF($F12<>AU$2,1-_xlfn.NORM.DIST(0,INDEX(Rating,$F12)-INDEX(Rating,AU$2),10,1),"") -> 0.5564599972 | AV12: =IF($F12<>AV$2,1-_xlfn.NORM.DIST(0,INDEX(Rating,$F12)-INDEX(Rating,AV$2),10,1),"") -> 0.7434440972 | AW12: =IF($F12<>AW$2,1-_xlfn.NORM.DIST(0,INDEX(Rating,$F12)-INDEX(Rating,AW$2),10,1),"") -> 0.6258948045 | AX12: =IF($F12<>AX$2,1-_xlfn.NORM.DIST(0,INDEX(Rating,$F12)-INDEX(Rating,AX$2),10,1),"") -> 0.704366193 | AY12: =IF($F12<>AY$2,1-_xlfn.NORM.DIST(0,INDEX(Rating,$F12)-INDEX(Rating,AY$2),10,1),"") -> 0.7287377806 | AZ12: =IF($F12<>AZ$2,1-_xlfn.NORM.DIST(0,INDEX(Rating,$F12)-INDEX(Rating,AZ$2),10,1),"") -> 0.5449847224 | BA12: =IF($F12<>BA$2,1-_xlfn.NORM.DIST(0,INDEX(Rating,$F12)-INDEX(Rating,BA$2),10,1),"") -> 0.926888123 | BB12: =IF($F12<>BB$2,1-_xlfn.NORM.DIST(0,INDEX(Rating,$F12)-INDEX(Rating,BB$2),10,1),"") -> 0.5615893413 | BC12: =IF($F12<>BC$2,1-_xlfn.NORM.DIST(0,INDEX(Rating,$F12)-INDEX(Rating,BC$2),10,1),"") -> 0.6461697667 | BD12: =IF($F12<>BD$2,1-_xlfn.NORM.DIST(0,INDEX(Rating,$F12)-INDEX(Rating,BD$2),10,1),"") -> 0.3885884185 | BE12: =IF($F12<>BE$2,1-_xlfn.NORM.DIST(0,INDEX(Rating,$F12)-INDEX(Rating,BE$2),10,1),"") -> 0.8749280644 | BF12: =IF($F12<>BF$2,1-_xlfn.NORM.DIST(0,INDEX(Rating,$F12)-INDEX(Rating,BF$2),10,1),"") -> 0.4082690069 | BG12: =IF($F12<>BG$2,1-_xlfn.NORM.DIST(0,INDEX(Rating,$F12)-INDEX(Rating,BG$2),10,1),"") -> 0.9687688669 | BH12: =IF($F12<>BH$2,1-_xlfn.NORM.DIST(0,INDEX(Rating,$F12)-INDEX(Rating,BH$2),10,1),"") -> 0.5741696835 | BI12: =IF($F12<>BI$2,1-_xlfn.NORM.DIST(0,INDEX(Rating,$F12)-INDEX(Rating,BI$2),10,1),"") -> 0.5921192971 | BJ12: =IF($F12<>BJ$2,1-_xlfn.NORM.DIST(0,INDEX(Rating,$F12)-INDEX(Rating,BJ$2),10,1),"") -> 0.547758426 | BK12: =IF($F12<>BK$2,1-_xlfn.NORM.DIST(0,INDEX(Rating,$F12)-INDEX(Rating,BK$2),10,1),"") -> 0.6620264414 | BL12: =IF($F12<>BL$2,1-_xlfn.NORM.DIST(0,INDEX(Rating,$F12)-INDEX(Rating,BL$2),10,1),"") -> 0.40361541 | BM12: =IF($F12<>BM$2,1-_xlfn.NORM.DIST(0,INDEX(Rating,$F12)-INDEX(Rating,BM$2),10,1),"") -> 0.7864022843 | BN12: =IF($F12<>BN$2,1-_xlfn.NORM.DIST(0,INDEX(Rating,$F12)-INDEX(Rating,BN$2),10,1),"") -> 0.5667083605 | BO12: =IF($F12<>BO$2,1-_xlfn.NORM.DIST(0,INDEX(Rating,$F12)-INDEX(Rating,BO$2),10,1),"") -> 0.7466548445 | BP12: =IF($F12<>BP$2,1-_xlfn.NORM.DIST(0,INDEX(Rating,$F12)-INDEX(Rating,BP$2),10,1),"") -> 0.8001060233 | BQ12: =IF($F12<>BQ$2,1-_xlfn.NORM.DIST(0,INDEX(Rating,$F12)-INDEX(Rating,BQ$2),10,1),"") -> 0.3882051903 | BR12: =IF($F12<>BR$2,1-_xlfn.NORM.DIST(0,INDEX(Rating,$F12)-INDEX(Rating,BR$2),10,1),"") -> 0.8775852488 | BS12: =IF($F12<>BS$2,1-_xlfn.NORM.DIST(0,INDEX(Rating,$F12)-INDEX(Rating,BS$2),10,1),"") -> 0.6443087548 | BT12: =IF($F12<>BT$2,1-_xlfn.NORM.DIST(0,INDEX(Rating,$F12)-INDEX(Rating,BT$2),10,1),"") -> 0.7170160994 | BU12: =IF($F12<>BU$2,1-_xlfn.NORM.DIST(0,INDEX(Rating,$F12)-INDEX(Rating,BU$2),10,1),"") -> 0.3601716568 | BV12: =IF($F12<>BV$2,1-_xlfn.NORM.DIST(0,INDEX(Rating,$F12)-INDEX(Rating,BV$2),10,1),"") -> 0.9304298426
B13: NC State | C13: 11 | D13: 83.25 | F13: 11 | G13: =IF($F13<>G$2,1-_xlfn.NORM.DIST(0,INDEX(Rating,$F13)-INDEX(Rating,G$2),10,1),"") -> 0.1665221849 | H13: =IF($F13<>H$2,1-_xlfn.NORM.DIST(0,INDEX(Rating,$F13)-INDEX(Rating,H$2),10,1),"") -> 0.9033707726 | I13: =IF($F13<>I$2,1-_xlfn.NORM.DIST(0,INDEX(Rating,$F13)-INDEX(Rating,I$2),10,1),"") -> 0.9506307126 | J13: =IF($F13<>J$2,1-_xlfn.NORM.DIST(0,INDEX(Rating,$F13)-INDEX(Rating,J$2),10,1),"") -> 0.4121569417 | K13: =IF($F13<>K$2,1-_xlfn.NORM.DIST(0,INDEX(Rating,$F13)-INDEX(Rating,K$2),10,1),"") -> 0.3970462536 | L13: =IF($F13<>L$2,1-_xlfn.NORM.DIST(0,INDEX(Rating,$F13)-INDEX(Rating,L$2),10,1),"") -> 0.423087941 | M13: =IF($F13<>M$2,1-_xlfn.NORM.DIST(0,INDEX(Rating,$F13)-INDEX(Rating,M$2),10,1),"") -> 0.6010245813 | N13: =IF($F13<>N$2,1-_xlfn.NORM.DIST(0,INDEX(Rating,$F13)-INDEX(Rating,N$2),10,1),"") -> 0.4273990093 | O13: =IF($F13<>O$2,1-_xlfn.NORM.DIST(0,INDEX(Rating,$F13)-INDEX(Rating,O$2),10,1),"") -> 0.6469131975 | P13: =IF($F13<>P$2,1-_xlfn.NORM.DIST(0,INDEX(Rating,$F13)-INDEX(Rating,P$2),10,1),"") -> 0.3306931417 | Q13: =IF($F13<>Q$2,1-_xlfn.NORM.DIST(0,INDEX(Rating,$F13)-INDEX(Rating,Q$2),10,1),"") ->  | R13: =IF($F13<>R$2,1-_xlfn.NORM.DIST(0,INDEX(Rating,$F13)-INDEX(Rating,R$2),10,1),"") -> 0.3405362674 | S13: =IF($F13<>S$2,1-_xlfn.NORM.DIST(0,INDEX(Rating,$F13)-INDEX(Rating,S$2),10,1),"") -> 0.7530124171 | T13: =IF($F13<>T$2,1-_xlfn.NORM.DIST(0,INDEX(Rating,$F13)-INDEX(Rating,T$2),10,1),"") -> 0.5346642439 | U13: =IF($F13<>U$2,1-_xlfn.NORM.DIST(0,INDEX(Rating,$F13)-INDEX(Rating,U$2),10,1),"") -> 0.4653357561 | V13: =IF($F13<>V$2,1-_xlfn.NORM.DIST(0,INDEX(Rating,$F13)-INDEX(Rating,V$2),10,1),"") -> 0.2543061568 | W13: =IF($F13<>W$2,1-_xlfn.NORM.DIST(0,INDEX(Rating,$F13)-INDEX(Rating,W$2),10,1),"") -> 0.7561588955 | X13: =IF($F13<>X$2,1-_xlfn.NORM.DIST(0,INDEX(Rating,$F13)-INDEX(Rating,X$2),10,1),"") -> 0.2772602105 | Y13: =IF($F13<>Y$2,1-_xlfn.NORM.DIST(0,INDEX(Rating,$F13)-INDEX(Rating,Y$2),10,1),"") -> 0.9639114961 | Z13: =IF($F13<>Z$2,1-_xlfn.NORM.DIST(0,INDEX(Rating,$F13)-INDEX(Rating,Z$2),10,1),"") -> 0.9737493309 | AA13: =IF($F13<>AA$2,1-_xlfn.NORM.DIST(0,INDEX(Rating,$F13)-INDEX(Rating,AA$2),10,1),"") -> 0.3714558313 | AB13: =IF($F13<>AB$2,1-_xlfn.NORM.DIST(0,INDEX(Rating,$F13)-INDEX(Rating,AB$2),10,1),"") -> 0.4836479479 | AC13: =IF($F13<>AC$2,1-_xlfn.NORM.DIST(0,INDEX(Rating,$F13)-INDEX(Rating,AC$2),10,1),"") -> 0.3412698306 | AD13: =IF($F13<>AD$2,1-_xlfn.NORM.DIST(0,INDEX(Rating,$F13)-INDEX(Rating,AD$2),10,1),"") -> 0.6087259669 | AE13: =IF($F13<>AE$2,1-_xlfn.NORM.DIST(0,INDEX(Rating,$F13)-INDEX(Rating,AE$2),10,1),"") -> 0.2732543446 | AF13: =IF($F13<>AF$2,1-_xlfn.NORM.DIST(0,INDEX(Rating,$F13)-INDEX(Rating,AF$2),10,1),"") -> 0.7200533499 | AG13: =IF($F13<>AG$2,1-_xlfn.NORM.DIST(0,INDEX(Rating,$F13)-INDEX(Rating,AG$2),10,1),"") -> 0.3935801268 | AH13: =IF($F13<>AH$2,1-_xlfn.NORM.DIST(0,INDEX(Rating,$F13)-INDEX(Rating,AH$2),10,1),"") -> 0.4653357561 | AI13: =IF($F13<>AI$2,1-_xlfn.NORM.DIST(0,INDEX(Rating,$F13)-INDEX(Rating,AI$2),10,1),"") -> 0.4172241193 | AJ13: =IF($F13<>AJ$2,1-_xlfn.NORM.DIST(0,INDEX(Rating,$F13)-INDEX(Rating,AJ$2),10,1),"") -> 0.8031703479 | AK13: =IF($F13<>AK$2,1-_xlfn.NORM.DIST(0,INDEX(Rating,$F13)-INDEX(Rating,AK$2),10,1),"") -> 0.4332916395 | AL13: =IF($F13<>AL$2,1-_xlfn.NORM.DIST(0,INDEX(Rating,$F13)-INDEX(Rating,AL$2),10,1),"") -> 0.4653357561 | AM13: =IF($F13<>AM$2,1-_xlfn.NORM.DIST(0,INDEX(Rating,$F13)-INDEX(Rating,AM$2),10,1),"") -> 0.335053923 | AN13: =IF($F13<>AN$2,1-_xlfn.NORM.DIST(0,INDEX(Rating,$F13)-INDEX(Rating,AN$2),10,1),"") -> 0.7424767566 | AO13: =IF($F13<>AO$2,1-_xlfn.NORM.DIST(0,INDEX(Rating,$F13)-INDEX(Rating,AO$2),10,1),"") -> 0.1948945213 | AP13: =IF($F13<>AP$2,1-_xlfn.NORM.DIST(0,INDEX(Rating,$F13)-INDEX(Rating,AP$2),10,1),"") -> 0.8561090243 | AQ13: =IF($F13<>AQ$2,1-_xlfn.NORM.DIST(0,INDEX(Rating,$F13)-INDEX(Rating,AQ$2),10,1),"") -> 0.4364405371 | AR13: =IF($F13<>AR$2,1-_xlfn.NORM.DIST(0,INDEX(Rating,$F13)-INDEX(Rating,AR$2),10,1),"") -> 0.4180049292 | AS13: =IF($F13<>AS$2,1-_xlfn.NORM.DIST(0,INDEX(Rating,$F13)-INDEX(Rating,AS$2),10,1),"") -> 0.4629517806 | AT13: =IF($F13<>AT$2,1-_xlfn.NORM.DIST(0,INDEX(Rating,$F13)-INDEX(Rating,AT$2),10,1),"") -> 0.5536940628 | AU13: =IF($F13<>AU$2,1-_xlfn.NORM.DIST(0,INDEX(Rating,$F13)-INDEX(Rating,AU$2),10,1),"") -> 0.3836150407 | AV13: =IF($F13<>AV$2,1-_xlfn.NORM.DIST(0,INDEX(Rating,$F13)-INDEX(Rating,AV$2),10,1),"") -> 0.5855061262 | AW13: =IF($F13<>AW$2,1-_xlfn.NORM.DIST(0,INDEX(Rating,$F13)-INDEX(Rating,AW$2),10,1),"") -> 0.4534300267 | AX13: =IF($F13<>AX$2,1-_xlfn.NORM.DIST(0,INDEX(Rating,$F13)-INDEX(Rating,AX$2),10,1),"") -> 0.5394308649 | AY13: =IF($F13<>AY$2,1-_xlfn.NORM.DIST(0,INDEX(Rating,$F13)-INDEX(Rating,AY$2),10,1),"") -> 0.5678881172 | AZ13: =IF($F13<>AZ$2,1-_xlfn.NORM.DIST(0,INDEX(Rating,$F13)-INDEX(Rating,AZ$2),10,1),"") -> 0.3725905358 | BA13: =IF($F13<>BA$2,1-_xlfn.NORM.DIST(0,INDEX(Rating,$F13)-INDEX(Rating,BA$2),10,1),"") -> 0.8449470862 | BB13: =IF($F13<>BB$2,1-_xlfn.NORM.DIST(0,INDEX(Rating,$F13)-INDEX(Rating,BB$2),10,1),"") -> 0.3885884185 | BC13: =IF($F13<>BC$2,1-_xlfn.NORM.DIST(0,INDEX(Rating,$F13)-INDEX(Rating,BC$2),10,1),"") -> 0.4748832522 | BD13: =IF($F13<>BD$2,1-_xlfn.NORM.DIST(0,INDEX(Rating,$F13)-INDEX(Rating,BD$2),10,1),"") -> 0.2354547574 | BE13: =IF($F13<>BE$2,1-_xlfn.NORM.DIST(0,INDEX(Rating,$F13)-INDEX(Rating,BE$2),10,1),"") -> 0.761767612 | BF13: =IF($F13<>BF$2,1-_xlfn.NORM.DIST(0,INDEX(Rating,$F13)-INDEX(Rating,BF$2),10,1),"") -> 0.2514288951 | BG13: =IF($F13<>BG$2,1-_xlfn.NORM.DIST(0,INDEX(Rating,$F13)-INDEX(Rating,BG$2),10,1),"") -> 0.9229213994 | BH13: =IF($F13<>BH$2,1-_xlfn.NORM.DIST(0,INDEX(Rating,$F13)-INDEX(Rating,BH$2),10,1),"") -> 0.4009070546 | BI13: =IF($F13<>BI$2,1-_xlfn.NORM.DIST(0,INDEX(Rating,$F13)-INDEX(Rating,BI$2),10,1),"") -> 0.4187860625 | BJ13: =IF($F13<>BJ$2,1-_xlfn.NORM.DIST(0,INDEX(Rating,$F13)-INDEX(Rating,BJ$2),10,1),"") -> 0.3752424685 | BK13: =IF($F13<>BK$2,1-_xlfn.NORM.DIST(0,INDEX(Rating,$F13)-INDEX(Rating,BK$2),10,1),"") -> 0.4920216863 | BL13: =IF($F13<>BL$2,1-_xlfn.NORM.DIST(0,INDEX(Rating,$F13)-INDEX(Rating,BL$2),10,1),"") -> 0.2476194754 | BM13: =IF($F13<>BM$2,1-_xlfn.NORM.DIST(0,INDEX(Rating,$F13)-INDEX(Rating,BM$2),10,1),"") -> 0.6390797174 | BN13: =IF($F13<>BN$2,1-_xlfn.NORM.DIST(0,INDEX(Rating,$F13)-INDEX(Rating,BN$2),10,1),"") -> 0.3935801268 | BO13: =IF($F13<>BO$2,1-_xlfn.NORM.DIST(0,INDEX(Rating,$F13)-INDEX(Rating,BO$2),10,1),"") -> 0.5893992898 | BP13: =IF($F13<>BP$2,1-_xlfn.NORM.DIST(0,INDEX(Rating,$F13)-INDEX(Rating,BP$2),10,1),"") -> 0.6568936404 | BQ13: =IF($F13<>BQ$2,1-_xlfn.NORM.DIST(0,INDEX(Rating,$F13)-INDEX(Rating,BQ$2),10,1),"") -> 0.2351472388 | BR13: =IF($F13<>BR$2,1-_xlfn.NORM.DIST(0,INDEX(Rating,$F13)-INDEX(Rating,BR$2),10,1),"") -> 0.7657739848 | BS13: =IF($F13<>BS$2,1-_xlfn.NORM.DIST(0,INDEX(Rating,$F13)-INDEX(Rating,BS$2),10,1),"") -> 0.4728928171 | BT13: =IF($F13<>BT$2,1-_xlfn.NORM.DIST(0,INDEX(Rating,$F13)-INDEX(Rating,BT$2),10,1),"") -> 0.5540893595 | BU13: =IF($F13<>BU$2,1-_xlfn.NORM.DIST(0,INDEX(Rating,$F13)-INDEX(Rating,BU$2),10,1),"") -> 0.2130160177 | BV13: =IF($F13<>BV$2,1-_xlfn.NORM.DIST(0,INDEX(Rating,$F13)-INDEX(Rating,BV$2),10,1),"") -> 0.8510622259
B14: Baylor | C14: 12 | D14: 87.36 | F14: 12 | G14: =IF($F14<>G$2,1-_xlfn.NORM.DIST(0,INDEX(Rating,$F14)-INDEX(Rating,G$2),10,1),"") -> 0.2887637146 | H14: =IF($F14<>H$2,1-_xlfn.NORM.DIST(0,INDEX(Rating,$F14)-INDEX(Rating,H$2),10,1),"") -> 0.9565516658 | I14: =IF($F14<>I$2,1-_xlfn.NORM.DIST(0,INDEX(Rating,$F14)-INDEX(Rating,I$2),10,1),"") -> 0.980396132 | J14: =IF($F14<>J$2,1-_xlfn.NORM.DIST(0,INDEX(Rating,$F14)-INDEX(Rating,J$2),10,1),"") -> 0.5749535916 | K14: =IF($F14<>K$2,1-_xlfn.NORM.DIST(0,INDEX(Rating,$F14)-INDEX(Rating,K$2),10,1),"") -> 0.5596176924 | L14: =IF($F14<>L$2,1-_xlfn.NORM.DIST(0,INDEX(Rating,$F14)-INDEX(Rating,L$2),10,1),"") -> 0.5858958275 | M14: =IF($F14<>M$2,1-_xlfn.NORM.DIST(0,INDEX(Rating,$F14)-INDEX(Rating,M$2),10,1),"") -> 0.7476139333 | N14: =IF($F14<>N$2,1-_xlfn.NORM.DIST(0,INDEX(Rating,$F14)-INDEX(Rating,N$2),10,1),"") -> 0.5901768797 | O14: =IF($F14<>O$2,1-_xlfn.NORM.DIST(0,INDEX(Rating,$F14)-INDEX(Rating,O$2),10,1),"") -> 0.7846516471 | P14: =IF($F14<>P$2,1-_xlfn.NORM.DIST(0,INDEX(Rating,$F14)-INDEX(Rating,P$2),10,1),"") -> 0.489229867 | Q14: =IF($F14<>Q$2,1-_xlfn.NORM.DIST(0,INDEX(Rating,$F14)-INDEX(Rating,Q$2),10,1),"") -> 0.6594637326 | R14: =IF($F14<>R$2,1-_xlfn.NORM.DIST(0,INDEX(Rating,$F14)-INDEX(Rating,R$2),10,1),"") ->  | S14: =IF($F14<>S$2,1-_xlfn.NORM.DIST(0,INDEX(Rating,$F14)-INDEX(Rating,S$2),10,1),"") -> 0.8632416818 | T14: =IF($F14<>T$2,1-_xlfn.NORM.DIST(0,INDEX(Rating,$F14)-INDEX(Rating,T$2),10,1),"") -> 0.6907579789 | U14: =IF($F14<>U$2,1-_xlfn.NORM.DIST(0,INDEX(Rating,$F14)-INDEX(Rating,U$2),10,1),"") -> 0.6270309829 | V14: =IF($F14<>V$2,1-_xlfn.NORM.DIST(0,INDEX(Rating,$F14)-INDEX(Rating,V$2),10,1),"") -> 0.4012936743 | W14: =IF($F14<>W$2,1-_xlfn.NORM.DIST(0,INDEX(Rating,$F14)-INDEX(Rating,W$2),10,1),"") -> 0.8654202054 | X14: =IF($F14<>X$2,1-_xlfn.NORM.DIST(0,INDEX(Rating,$F14)-INDEX(Rating,X$2),10,1),"") -> 0.4285762841 | Y14: =IF($F14<>Y$2,1-_xlfn.NORM.DIST(0,INDEX(Rating,$F14)-INDEX(Rating,Y$2),10,1),"") -> 0.9864126795 | Z14: =IF($F14<>Z$2,1-_xlfn.NORM.DIST(0,INDEX(Rating,$F14)-INDEX(Rating,Z$2),10,1),"") -> 0.9906132945 | AA14: =IF($F14<>AA$2,1-_xlfn.NORM.DIST(0,INDEX(Rating,$F14)-INDEX(Rating,AA$2),10,1),"") -> 0.5330742302 | AB14: =IF($F14<>AB$2,1-_xlfn.NORM.DIST(0,INDEX(Rating,$F14)-INDEX(Rating,AB$2),10,1),"") -> 0.6443087548 | AC14: =IF($F14<>AC$2,1-_xlfn.NORM.DIST(0,INDEX(Rating,$F14)-INDEX(Rating,AC$2),10,1),"") -> 0.500797884 | AD14: =IF($F14<>AD$2,1-_xlfn.NORM.DIST(0,INDEX(Rating,$F14)-INDEX(Rating,AD$2),10,1),"") -> 0.7539586358 | AE14: =IF($F14<>AE$2,1-_xlfn.NORM.DIST(0,INDEX(Rating,$F14)-INDEX(Rating,AE$2),10,1),"") -> 0.4238711027 | AF14: =IF($F14<>AF$2,1-_xlfn.NORM.DIST(0,INDEX(Rating,$F14)-INDEX(Rating,AF$2),10,1),"") -> 0.8398885663 | AG14: =IF($F14<>AG$2,1-_xlfn.NORM.DIST(0,INDEX(Rating,$F14)-INDEX(Rating,AG$2),10,1),"") -> 0.5560650288 | AH14: =IF($F14<>AH$2,1-_xlfn.NORM.DIST(0,INDEX(Rating,$F14)-INDEX(Rating,AH$2),10,1),"") -> 0.6270309829 | AI14: =IF($F14<>AI$2,1-_xlfn.NORM.DIST(0,INDEX(Rating,$F14)-INDEX(Rating,AI$2),10,1),"") -> 0.5800416379 | AJ14: =IF($F14<>AJ$2,1-_xlfn.NORM.DIST(0,INDEX(Rating,$F14)-INDEX(Rating,AJ$2),10,1),"") -> 0.8968849865 | AK14: =IF($F14<>AK$2,1-_xlfn.NORM.DIST(0,INDEX(Rating,$F14)-INDEX(Rating,AK$2),10,1),"") -> 0.5959973013 | AL14: =IF($F14<>AL$2,1-_xlfn.NORM.DIST(0,INDEX(Rating,$F14)-INDEX(Rating,AL$2),10,1),"") -> 0.6270309829 | AM14: =IF($F14<>AM$2,1-_xlfn.NORM.DIST(0,INDEX(Rating,$F14)-INDEX(Rating,AM$2),10,1),"") -> 0.4940160902 | AN14: =IF($F14<>AN$2,1-_xlfn.NORM.DIST(0,INDEX(Rating,$F14)-INDEX(Rating,AN$2),10,1),"") -> 0.8558821574 | AO14: =IF($F14<>AO$2,1-_xlfn.NORM.DIST(0,INDEX(Rating,$F14)-INDEX(Rating,AO$2),10,1),"") -> 0.3267158283 | AP14: =IF($F14<>AP$2,1-_xlfn.NORM.DIST(0,INDEX(Rating,$F14)-INDEX(Rating,AP$2),10,1),"") -> 0.9297592044 | AQ14: =IF($F14<>AQ$2,1-_xlfn.NORM.DIST(0,INDEX(Rating,$F14)-INDEX(Rating,AQ$2),10,1),"") -> 0.5990929454 | AR14: =IF($F14<>AR$2,1-_xlfn.NORM.DIST(0,INDEX(Rating,$F14)-INDEX(Rating,AR$2),10,1),"") -> 0.5808232505 | AS14: =IF($F14<>AS$2,1-_xlfn.NORM.DIST(0,INDEX(Rating,$F14)-INDEX(Rating,AS$2),10,1),"") -> 0.6247575315 | AT14: =IF($F14<>AT$2,1-_xlfn.NORM.DIST(0,INDEX(Rating,$F14)-INDEX(Rating,AT$2),10,1),"") -> 0.7074670314 | AU14: =IF($F14<>AU$2,1-_xlfn.NORM.DIST(0,INDEX(Rating,$F14)-INDEX(Rating,AU$2),10,1),"") -> 0.545777439 | AV14: =IF($F14<>AV$2,1-_xlfn.NORM.DIST(0,INDEX(Rating,$F14)-INDEX(Rating,AV$2),10,1),"") -> 0.7346703824 | AW14: =IF($F14<>AW$2,1-_xlfn.NORM.DIST(0,INDEX(Rating,$F14)-INDEX(Rating,AW$2),10,1),"") -> 0.6156210483 | AX14: =IF($F14<>AX$2,1-_xlfn.NORM.DIST(0,INDEX(Rating,$F14)-INDEX(Rating,AX$2),10,1),"") -> 0.6949742691 | AY14: =IF($F14<>AY$2,1-_xlfn.NORM.DIST(0,INDEX(Rating,$F14)-INDEX(Rating,AY$2),10,1),"") -> 0.7197166596 | AZ14: =IF($F14<>AZ$2,1-_xlfn.NORM.DIST(0,INDEX(Rating,$F14)-INDEX(Rating,AZ$2),10,1),"") -> 0.5342667914 | BA14: =IF($F14<>BA$2,1-_xlfn.NORM.DIST(0,INDEX(Rating,$F14)-INDEX(Rating,BA$2),10,1),"") -> 0.923065829 | BB14: =IF($F14<>BB$2,1-_xlfn.NORM.DIST(0,INDEX(Rating,$F14)-INDEX(Rating,BB$2),10,1),"") -> 0.5509255135 | BC14: =IF($F14<>BC$2,1-_xlfn.NORM.DIST(0,INDEX(Rating,$F14)-INDEX(Rating,BC$2),10,1),"") -> 0.6360799083 | BD14: =IF($F14<>BD$2,1-_xlfn.NORM.DIST(0,INDEX(Rating,$F14)-INDEX(Rating,BD$2),10,1),"") -> 0.3782804782 | BE14: =IF($F14<>BE$2,1-_xlfn.NORM.DIST(0,INDEX(Rating,$F14)-INDEX(Rating,BE$2),10,1),"") -> 0.8692812528 | BF14: =IF($F14<>BF$2,1-_xlfn.NORM.DIST(0,INDEX(Rating,$F14)-INDEX(Rating,BF$2),10,1),"") -> 0.3978176202 | BG14: =IF($F14<>BG$2,1-_xlfn.NORM.DIST(0,INDEX(Rating,$F14)-INDEX(Rating,BG$2),10,1),"") -> 0.9668211717 | BH14: =IF($F14<>BH$2,1-_xlfn.NORM.DIST(0,INDEX(Rating,$F14)-INDEX(Rating,BH$2),10,1),"") -> 0.5635594629 | BI14: =IF($F14<>BI$2,1-_xlfn.NORM.DIST(0,INDEX(Rating,$F14)-INDEX(Rating,BI$2),10,1),"") -> 0.5816045443 | BJ14: =IF($F14<>BJ$2,1-_xlfn.NORM.DIST(0,INDEX(Rating,$F14)-INDEX(Rating,BJ$2),10,1),"") -> 0.5370482194 | BK14: =IF($F14<>BK$2,1-_xlfn.NORM.DIST(0,INDEX(Rating,$F14)-INDEX(Rating,BK$2),10,1),"") -> 0.6521013821 | BL14: =IF($F14<>BL$2,1-_xlfn.NORM.DIST(0,INDEX(Rating,$F14)-INDEX(Rating,BL$2),10,1),"") -> 0.3931955161 | BM14: =IF($F14<>BM$2,1-_xlfn.NORM.DIST(0,INDEX(Rating,$F14)-INDEX(Rating,BM$2),10,1),"") -> 0.7784592422 | BN14: =IF($F14<>BN$2,1-_xlfn.NORM.DIST(0,INDEX(Rating,$F14)-INDEX(Rating,BN$2),10,1),"") -> 0.5560650288 | BO14: =IF($F14<>BO$2,1-_xlfn.NORM.DIST(0,INDEX(Rating,$F14)-INDEX(Rating,BO$2),10,1),"") -> 0.7379375782 | BP14: =IF($F14<>BP$2,1-_xlfn.NORM.DIST(0,INDEX(Rating,$F14)-INDEX(Rating,BP$2),10,1),"") -> 0.792463845 | BQ14: =IF($F14<>BQ$2,1-_xlfn.NORM.DIST(0,INDEX(Rating,$F14)-INDEX(Rating,BQ$2),10,1),"") -> 0.3779003108 | BR14: =IF($F14<>BR$2,1-_xlfn.NORM.DIST(0,INDEX(Rating,$F14)-INDEX(Rating,BR$2),10,1),"") -> 0.8720217178 | BS14: =IF($F14<>BS$2,1-_xlfn.NORM.DIST(0,INDEX(Rating,$F14)-INDEX(Rating,BS$2),10,1),"") -> 0.6342007699 | BT14: =IF($F14<>BT$2,1-_xlfn.NORM.DIST(0,INDEX(Rating,$F14)-INDEX(Rating,BT$2),10,1),"") -> 0.7078106339 | BU14: =IF($F14<>BU$2,1-_xlfn.NORM.DIST(0,INDEX(Rating,$F14)-INDEX(Rating,BU$2),10,1),"") -> 0.3501187078 | BV14: =IF($F14<>BV$2,1-_xlfn.NORM.DIST(0,INDEX(Rating,$F14)-INDEX(Rating,BV$2),10,1),"") -> 0.9267491974
B15: UCSB | C15: 13 | D15: 76.41 | F15: 13 | G15: =IF($F15<>G$2,1-_xlfn.NORM.DIST(0,INDEX(Rating,$F15)-INDEX(Rating,G$2),10,1),"") -> 0.04926727542 | H15: =IF($F15<>H$2,1-_xlfn.NORM.DIST(0,INDEX(Rating,$F15)-INDEX(Rating,H$2),10,1),"") -> 0.7313826371 | I15: =IF($F15<>I$2,1-_xlfn.NORM.DIST(0,INDEX(Rating,$F15)-INDEX(Rating,I$2),10,1),"") -> 0.8332279832 | J15: =IF($F15<>J$2,1-_xlfn.NORM.DIST(0,INDEX(Rating,$F15)-INDEX(Rating,J$2),10,1),"") -> 0.1824679262 | K15: =IF($F15<>K$2,1-_xlfn.NORM.DIST(0,INDEX(Rating,$F15)-INDEX(Rating,K$2),10,1),"") -> 0.172329438 | L15: =IF($F15<>L$2,1-_xlfn.NORM.DIST(0,INDEX(Rating,$F15)-INDEX(Rating,L$2),10,1),"") -> 0.1899718594 | M15: =IF($F15<>M$2,1-_xlfn.NORM.DIST(0,INDEX(Rating,$F15)-INDEX(Rating,M$2),10,1),"") -> 0.3343255602 | N15: =IF($F15<>N$2,1-_xlfn.NORM.DIST(0,INDEX(Rating,$F15)-INDEX(Rating,N$2),10,1),"") -> 0.1929710048 | O15: =IF($F15<>O$2,1-_xlfn.NORM.DIST(0,INDEX(Rating,$F15)-INDEX(Rating,O$2),10,1),"") -> 0.3794216861 | P15: =IF($F15<>P$2,1-_xlfn.NORM.DIST(0,INDEX(Rating,$F15)-INDEX(Rating,P$2),10,1),"") -> 0.13093122 | Q15: =IF($F15<>Q$2,1-_xlfn.NORM.DIST(0,INDEX(Rating,$F15)-INDEX(Rating,Q$2),10,1),"") -> 0.2469875829 | R15: =IF($F15<>R$2,1-_xlfn.NORM.DIST(0,INDEX(Rating,$F15)-INDEX(Rating,R$2),10,1),"") -> 0.1367583182 | S15: =IF($F15<>S$2,1-_xlfn.NORM.DIST(0,INDEX(Rating,$F15)-INDEX(Rating,S$2),10,1),"") ->  | T15: =IF($F15<>T$2,1-_xlfn.NORM.DIST(0,INDEX(Rating,$F15)-INDEX(Rating,T$2),10,1),"") -> 0.2752536903 | U15: =IF($F15<>U$2,1-_xlfn.NORM.DIST(0,INDEX(Rating,$F15)-INDEX(Rating,U$2),10,1),"") -> 0.2203534658 | V15: =IF($F15<>V$2,1-_xlfn.NORM.DIST(0,INDEX(Rating,$F15)-INDEX(Rating,V$2),10,1),"") -> 0.08931261728 | W15: =IF($F15<>W$2,1-_xlfn.NORM.DIST(0,INDEX(Rating,$F15)-INDEX(Rating,W$2),10,1),"") -> 0.5039893563 | X15: =IF($F15<>X$2,1-_xlfn.NORM.DIST(0,INDEX(Rating,$F15)-INDEX(Rating,X$2),10,1),"") -> 0.101154621 | Y15: =IF($F15<>Y$2,1-_xlfn.NORM.DIST(0,INDEX(Rating,$F15)-INDEX(Rating,Y$2),10,1),"") -> 0.8673604067 | Z15: =IF($F15<>Z$2,1-_xlfn.NORM.DIST(0,INDEX(Rating,$F15)-INDEX(Rating,Z$2),10,1),"") -> 0.89526062 | AA15: =IF($F15<>AA$2,1-_xlfn.NORM.DIST(0,INDEX(Rating,$F15)-INDEX(Rating,AA$2),10,1),"") -> 0.1557690267 | AB15: =IF($F15<>AB$2,1-_xlfn.NORM.DIST(0,INDEX(Rating,$F15)-INDEX(Rating,AB$2),10,1),"") -> 0.2342260152 | AC15: =IF($F15<>AC$2,1-_xlfn.NORM.DIST(0,INDEX(Rating,$F15)-INDEX(Rating,AC$2),10,1),"") -> 0.1371968999 | AD15: =IF($F15<>AD$2,1-_xlfn.NORM.DIST(0,INDEX(Rating,$F15)-INDEX(Rating,AD$2),10,1),"") -> 0.3416368375 | AE15: =IF($F15<>AE$2,1-_xlfn.NORM.DIST(0,INDEX(Rating,$F15)-INDEX(Rating,AE$2),10,1),"") -> 0.09904714407 | AF15: =IF($F15<>AF$2,1-_xlfn.NORM.DIST(0,INDEX(Rating,$F15)-INDEX(Rating,AF$2),10,1),"") -> 0.4597752301 | AG15: =IF($F15<>AG$2,1-_xlfn.NORM.DIST(0,INDEX(Rating,$F15)-INDEX(Rating,AG$2),10,1),"") -> 0.1700418212 | AH15: =IF($F15<>AH$2,1-_xlfn.NORM.DIST(0,INDEX(Rating,$F15)-INDEX(Rating,AH$2),10,1),"") -> 0.2203534658 | AI15: =IF($F15<>AI$2,1-_xlfn.NORM.DIST(0,INDEX(Rating,$F15)-INDEX(Rating,AI$2),10,1),"") -> 0.1859285863 | AJ15: =IF($F15<>AJ$2,1-_xlfn.NORM.DIST(0,INDEX(Rating,$F15)-INDEX(Rating,AJ$2),10,1),"") -> 0.5671016793 | AK15: =IF($F15<>AK$2,1-_xlfn.NORM.DIST(0,INDEX(Rating,$F15)-INDEX(Rating,AK$2),10,1),"") -> 0.197107046 | AL15: =IF($F15<>AL$2,1-_xlfn.NORM.DIST(0,INDEX(Rating,$F15)-INDEX(Rating,AL$2),10,1),"") -> 0.2203534658 | AM15: =IF($F15<>AM$2,1-_xlfn.NORM.DIST(0,INDEX(Rating,$F15)-INDEX(Rating,AM$2),10,1),"") -> 0.1334995132 | AN15: =IF($F15<>AN$2,1-_xlfn.NORM.DIST(0,INDEX(Rating,$F15)-INDEX(Rating,AN$2),10,1),"") -> 0.4868372938 | AO15: =IF($F15<>AO$2,1-_xlfn.NORM.DIST(0,INDEX(Rating,$F15)-INDEX(Rating,AO$2),10,1),"") -> 0.06129416631 | AP15: =IF($F15<>AP$2,1-_xlfn.NORM.DIST(0,INDEX(Rating,$F15)-INDEX(Rating,AP$2),10,1),"") -> 0.6476560681 | AQ15: =IF($F15<>AQ$2,1-_xlfn.NORM.DIST(0,INDEX(Rating,$F15)-INDEX(Rating,AQ$2),10,1),"") -> 0.1993347028 | AR15: =IF($F15<>AR$2,1-_xlfn.NORM.DIST(0,INDEX(Rating,$F15)-INDEX(Rating,AR$2),10,1),"") -> 0.1864645851 | AS15: =IF($F15<>AS$2,1-_xlfn.NORM.DIST(0,INDEX(Rating,$F15)-INDEX(Rating,AS$2),10,1),"") -> 0.2185793852 | AT15: =IF($F15<>AT$2,1-_xlfn.NORM.DIST(0,INDEX(Rating,$F15)-INDEX(Rating,AT$2),10,1),"") -> 0.2915027249 | AU15: =IF($F15<>AU$2,1-_xlfn.NORM.DIST(0,INDEX(Rating,$F15)-INDEX(Rating,AU$2),10,1),"") -> 0.1635430593 | AV15: =IF($F15<>AV$2,1-_xlfn.NORM.DIST(0,INDEX(Rating,$F15)-INDEX(Rating,AV$2),10,1),"") -> 0.3198922949 | AW15: =IF($F15<>AW$2,1-_xlfn.NORM.DIST(0,INDEX(Rating,$F15)-INDEX(Rating,AW$2),10,1),"") -> 0.2115658229 | AX15: =IF($F15<>AX$2,1-_xlfn.NORM.DIST(0,INDEX(Rating,$F15)-INDEX(Rating,AX$2),10,1),"") -> 0.2792738584 | AY15: =IF($F15<>AY$2,1-_xlfn.NORM.DIST(0,INDEX(Rating,$F15)-INDEX(Rating,AY$2),10,1),"") -> 0.3039756603 | AZ15: =IF($F15<>AZ$2,1-_xlfn.NORM.DIST(0,INDEX(Rating,$F15)-INDEX(Rating,AZ$2),10,1),"") -> 0.1564873171 | BA15: =IF($F15<>BA$2,1-_xlfn.NORM.DIST(0,INDEX(Rating,$F15)-INDEX(Rating,BA$2),10,1),"") -> 0.6296777572 | BB15: =IF($F15<>BB$2,1-_xlfn.NORM.DIST(0,INDEX(Rating,$F15)-INDEX(Rating,BB$2),10,1),"") -> 0.1667720168 | BC15: =IF($F15<>BC$2,1-_xlfn.NORM.DIST(0,INDEX(Rating,$F15)-INDEX(Rating,BC$2),10,1),"") -> 0.2275317804 | BD15: =IF($F15<>BD$2,1-_xlfn.NORM.DIST(0,INDEX(Rating,$F15)-INDEX(Rating,BD$2),10,1),"") -> 0.08001063914 | BE15: =IF($F15<>BE$2,1-_xlfn.NORM.DIST(0,INDEX(Rating,$F15)-INDEX(Rating,BE$2),10,1),"") -> 0.5111689244 | BF15: =IF($F15<>BF$2,1-_xlfn.NORM.DIST(0,INDEX(Rating,$F15)-INDEX(Rating,BF$2),10,1),"") -> 0.08786818886 | BG15: =IF($F15<>BG$2,1-_xlfn.NORM.DIST(0,INDEX(Rating,$F15)-INDEX(Rating,BG$2),10,1),"") -> 0.7706532798 | BH15: =IF($F15<>BH$2,1-_xlfn.NORM.DIST(0,INDEX(Rating,$F15)-INDEX(Rating,BH$2),10,1),"") -> 0.1748941497 | BI15: =IF($F15<>BI$2,1-_xlfn.NORM.DIST(0,INDEX(Rating,$F15)-INDEX(Rating,BI$2),10,1),"") -> 0.1870015399 | BJ15: =IF($F15<>BJ$2,1-_xlfn.NORM.DIST(0,INDEX(Rating,$F15)-INDEX(Rating,BJ$2),10,1),"") -> 0.1581717964 | BK15: =IF($F15<>BK$2,1-_xlfn.NORM.DIST(0,INDEX(Rating,$F15)-INDEX(Rating,BK$2),10,1),"") -> 0.2407163868 | BL15: =IF($F15<>BL$2,1-_xlfn.NORM.DIST(0,INDEX(Rating,$F15)-INDEX(Rating,BL$2),10,1),"") -> 0.0859694817 | BM15: =IF($F15<>BM$2,1-_xlfn.NORM.DIST(0,INDEX(Rating,$F15)-INDEX(Rating,BM$2),10,1),"") -> 0.3714558313 | BN15: =IF($F15<>BN$2,1-_xlfn.NORM.DIST(0,INDEX(Rating,$F15)-INDEX(Rating,BN$2),10,1),"") -> 0.1700418212 | BO15: =IF($F15<>BO$2,1-_xlfn.NORM.DIST(0,INDEX(Rating,$F15)-INDEX(Rating,BO$2),10,1),"") -> 0.3234762206 | BP15: =IF($F15<>BP$2,1-_xlfn.NORM.DIST(0,INDEX(Rating,$F15)-INDEX(Rating,BP$2),10,1),"") -> 0.3897387524 | BQ15: =IF($F15<>BQ$2,1-_xlfn.NORM.DIST(0,INDEX(Rating,$F15)-INDEX(Rating,BQ$2),10,1),"") -> 0.07986206239 | BR15: =IF($F15<>BR$2,1-_xlfn.NORM.DIST(0,INDEX(Rating,$F15)-INDEX(Rating,BR$2),10,1),"") -> 0.5163520521 | BS15: =IF($F15<>BS$2,1-_xlfn.NORM.DIST(0,INDEX(Rating,$F15)-INDEX(Rating,BS$2),10,1),"") -> 0.2260255294 | BT15: =IF($F15<>BT$2,1-_xlfn.NORM.DIST(0,INDEX(Rating,$F15)-INDEX(Rating,BT$2),10,1),"") -> 0.2918459514 | BU15: =IF($F15<>BU$2,1-_xlfn.NORM.DIST(0,INDEX(Rating,$F15)-INDEX(Rating,BU$2),10,1),"") -> 0.06943662333 | BV15: =IF($F15<>BV$2,1-_xlfn.NORM.DIST(0,INDEX(Rating,$F15)-INDEX(Rating,BV$2),10,1),"") -> 0.6394540971
B16: Missouri | C16: 14 | D16: 82.38 | F16: 14 | G16: =IF($F16<>G$2,1-_xlfn.NORM.DIST(0,INDEX(Rating,$F16)-INDEX(Rating,G$2),10,1),"") -> 0.1457126624 | H16: =IF($F16<>H$2,1-_xlfn.NORM.DIST(0,INDEX(Rating,$F16)-INDEX(Rating,H$2),10,1),"") -> 0.8876261379 | I16: =IF($F16<>I$2,1-_xlfn.NORM.DIST(0,INDEX(Rating,$F16)-INDEX(Rating,I$2),10,1),"") -> 0.9410912158 | J16: =IF($F16<>J$2,1-_xlfn.NORM.DIST(0,INDEX(Rating,$F16)-INDEX(Rating,J$2),10,1),"") -> 0.3786607634 | K16: =IF($F16<>K$2,1-_xlfn.NORM.DIST(0,INDEX(Rating,$F16)-INDEX(Rating,K$2),10,1),"") -> 0.3639200917 | L16: =IF($F16<>L$2,1-_xlfn.NORM.DIST(0,INDEX(Rating,$F16)-INDEX(Rating,L$2),10,1),"") -> 0.3893551999 | M16: =IF($F16<>M$2,1-_xlfn.NORM.DIST(0,INDEX(Rating,$F16)-INDEX(Rating,M$2),10,1),"") -> 0.5671016793 | N16: =IF($F16<>N$2,1-_xlfn.NORM.DIST(0,INDEX(Rating,$F16)-INDEX(Rating,N$2),10,1),"") -> 0.3935801268 | O16: =IF($F16<>O$2,1-_xlfn.NORM.DIST(0,INDEX(Rating,$F16)-INDEX(Rating,O$2),10,1),"") -> 0.6140918812 | P16: =IF($F16<>P$2,1-_xlfn.NORM.DIST(0,INDEX(Rating,$F16)-INDEX(Rating,P$2),10,1),"") -> 0.2997915955 | Q16: =IF($F16<>Q$2,1-_xlfn.NORM.DIST(0,INDEX(Rating,$F16)-INDEX(Rating,Q$2),10,1),"") -> 0.4653357561 | R16: =IF($F16<>R$2,1-_xlfn.NORM.DIST(0,INDEX(Rating,$F16)-INDEX(Rating,R$2),10,1),"") -> 0.3092420211 | S16: =IF($F16<>S$2,1-_xlfn.NORM.DIST(0,INDEX(Rating,$F16)-INDEX(Rating,S$2),10,1),"") -> 0.7247463097 | T16: =IF($F16<>T$2,1-_xlfn.NORM.DIST(0,INDEX(Rating,$F16)-INDEX(Rating,T$2),10,1),"") ->  | U16: =IF($F16<>U$2,1-_xlfn.NORM.DIST(0,INDEX(Rating,$F16)-INDEX(Rating,U$2),10,1),"") -> 0.4309327311 | V16: =IF($F16<>V$2,1-_xlfn.NORM.DIST(0,INDEX(Rating,$F16)-INDEX(Rating,V$2),10,1),"") -> 0.2272300788 | W16: =IF($F16<>W$2,1-_xlfn.NORM.DIST(0,INDEX(Rating,$F16)-INDEX(Rating,W$2),10,1),"") -> 0.7280745439 | X16: =IF($F16<>X$2,1-_xlfn.NORM.DIST(0,INDEX(Rating,$F16)-INDEX(Rating,X$2),10,1),"") -> 0.2488858466 | Y16: =IF($F16<>Y$2,1-_xlfn.NORM.DIST(0,INDEX(Rating,$F16)-INDEX(Rating,Y$2),10,1),"") -> 0.9564594436 | Z16: =IF($F16<>Z$2,1-_xlfn.NORM.DIST(0,INDEX(Rating,$F16)-INDEX(Rating,Z$2),10,1),"") -> 0.9679870885 | AA16: =IF($F16<>AA$2,1-_xlfn.NORM.DIST(0,INDEX(Rating,$F16)-INDEX(Rating,AA$2),10,1),"") -> 0.3390709516 | AB16: =IF($F16<>AB$2,1-_xlfn.NORM.DIST(0,INDEX(Rating,$F16)-INDEX(Rating,AB$2),10,1),"") -> 0.4490744865 | AC16: =IF($F16<>AC$2,1-_xlfn.NORM.DIST(0,INDEX(Rating,$F16)-INDEX(Rating,AC$2),10,1),"") -> 0.3099472055 | AD16: =IF($F16<>AD$2,1-_xlfn.NORM.DIST(0,INDEX(Rating,$F16)-INDEX(Rating,AD$2),10,1),"") -> 0.5749535916 | AE16: =IF($F16<>AE$2,1-_xlfn.NORM.DIST(0,INDEX(Rating,$F16)-INDEX(Rating,AE$2),10,1),"") -> 0.2450970937 | AF16: =IF($F16<>AF$2,1-_xlfn.NORM.DIST(0,INDEX(Rating,$F16)-INDEX(Rating,AF$2),10,1),"") -> 0.6900527945 | AG16: =IF($F16<>AG$2,1-_xlfn.NORM.DIST(0,INDEX(Rating,$F16)-INDEX(Rating,AG$2),10,1),"") -> 0.3605459029 | AH16: =IF($F16<>AH$2,1-_xlfn.NORM.DIST(0,INDEX(Rating,$F16)-INDEX(Rating,AH$2),10,1),"") -> 0.4309327311 | AI16: =IF($F16<>AI$2,1-_xlfn.NORM.DIST(0,INDEX(Rating,$F16)-INDEX(Rating,AI$2),10,1),"") -> 0.3836150407 | AJ16: =IF($F16<>AJ$2,1-_xlfn.NORM.DIST(0,INDEX(Rating,$F16)-INDEX(Rating,AJ$2),10,1),"") -> 0.7781618489 | AK16: =IF($F16<>AK$2,1-_xlfn.NORM.DIST(0,INDEX(Rating,$F16)-INDEX(Rating,AK$2),10,1),"") -> 0.3993615496 | AL16: =IF($F16<>AL$2,1-_xlfn.NORM.DIST(0,INDEX(Rating,$F16)-INDEX(Rating,AL$2),10,1),"") -> 0.4309327311 | AM16: =IF($F16<>AM$2,1-_xlfn.NORM.DIST(0,INDEX(Rating,$F16)-INDEX(Rating,AM$2),10,1),"") -> 0.3039756603 | AN16: =IF($F16<>AN$2,1-_xlfn.NORM.DIST(0,INDEX(Rating,$F16)-INDEX(Rating,AN$2),10,1),"") -> 0.7136229339 | AO16: =IF($F16<>AO$2,1-_xlfn.NORM.DIST(0,INDEX(Rating,$F16)-INDEX(Rating,AO$2),10,1),"") -> 0.1718193895 | AP16: =IF($F16<>AP$2,1-_xlfn.NORM.DIST(0,INDEX(Rating,$F16)-INDEX(Rating,AP$2),10,1),"") -> 0.8354677678 | AQ16: =IF($F16<>AQ$2,1-_xlfn.NORM.DIST(0,INDEX(Rating,$F16)-INDEX(Rating,AQ$2),10,1),"") -> 0.402454112 | AR16: =IF($F16<>AR$2,1-_xlfn.NORM.DIST(0,INDEX(Rating,$F16)-INDEX(Rating,AR$2),10,1),"") -> 0.3843789517 | AS16: =IF($F16<>AS$2,1-_xlfn.NORM.DIST(0,INDEX(Rating,$F16)-INDEX(Rating,AS$2),10,1),"") -> 0.4285762841 | AT16: =IF($F16<>AT$2,1-_xlfn.NORM.DIST(0,INDEX(Rating,$F16)-INDEX(Rating,AT$2),10,1),"") -> 0.5191418787 | AU16: =IF($F16<>AU$2,1-_xlfn.NORM.DIST(0,INDEX(Rating,$F16)-INDEX(Rating,AU$2),10,1),"") -> 0.350859882 | AV16: =IF($F16<>AV$2,1-_xlfn.NORM.DIST(0,INDEX(Rating,$F16)-INDEX(Rating,AV$2),10,1),"") -> 0.5513211756 | AW16: =IF($F16<>AW$2,1-_xlfn.NORM.DIST(0,INDEX(Rating,$F16)-INDEX(Rating,AW$2),10,1),"") -> 0.4191767495 | AX16: =IF($F16<>AX$2,1-_xlfn.NORM.DIST(0,INDEX(Rating,$F16)-INDEX(Rating,AX$2),10,1),"") -> 0.5047871925 | AY16: =IF($F16<>AY$2,1-_xlfn.NORM.DIST(0,INDEX(Rating,$F16)-INDEX(Rating,AY$2),10,1),"") -> 0.5334717841 | AZ16: =IF($F16<>AZ$2,1-_xlfn.NORM.DIST(0,INDEX(Rating,$F16)-INDEX(Rating,AZ$2),10,1),"") -> 0.3401697116 | BA16: =IF($F16<>BA$2,1-_xlfn.NORM.DIST(0,INDEX(Rating,$F16)-INDEX(Rating,BA$2),10,1),"") -> 0.8232962152 | BB16: =IF($F16<>BB$2,1-_xlfn.NORM.DIST(0,INDEX(Rating,$F16)-INDEX(Rating,BB$2),10,1),"") -> 0.3556912452 | BC16: =IF($F16<>BC$2,1-_xlfn.NORM.DIST(0,INDEX(Rating,$F16)-INDEX(Rating,BC$2),10,1),"") -> 0.4403823076 | BD16: =IF($F16<>BD$2,1-_xlfn.NORM.DIST(0,INDEX(Rating,$F16)-INDEX(Rating,BD$2),10,1),"") -> 0.2095452911 | BE16: =IF($F16<>BE$2,1-_xlfn.NORM.DIST(0,INDEX(Rating,$F16)-INDEX(Rating,BE$2),10,1),"") -> 0.734014471 | BF16: =IF($F16<>BF$2,1-_xlfn.NORM.DIST(0,INDEX(Rating,$F16)-INDEX(Rating,BF$2),10,1),"") -> 0.2245249312 | BG16: =IF($F16<>BG$2,1-_xlfn.NORM.DIST(0,INDEX(Rating,$F16)-INDEX(Rating,BG$2),10,1),"") -> 0.9095517816 | BH16: =IF($F16<>BH$2,1-_xlfn.NORM.DIST(0,INDEX(Rating,$F16)-INDEX(Rating,BH$2),10,1),"") -> 0.3676815939 | BI16: =IF($F16<>BI$2,1-_xlfn.NORM.DIST(0,INDEX(Rating,$F16)-INDEX(Rating,BI$2),10,1),"") -> 0.385143312 | BJ16: =IF($F16<>BJ$2,1-_xlfn.NORM.DIST(0,INDEX(Rating,$F16)-INDEX(Rating,BJ$2),10,1),"") -> 0.3427387555 | BK16: =IF($F16<>BK$2,1-_xlfn.NORM.DIST(0,INDEX(Rating,$F16)-INDEX(Rating,BK$2),10,1),"") -> 0.4573944899 | BL16: =IF($F16<>BL$2,1-_xlfn.NORM.DIST(0,INDEX(Rating,$F16)-INDEX(Rating,BL$2),10,1),"") -> 0.2209466553 | BM16: =IF($F16<>BM$2,1-_xlfn.NORM.DIST(0,INDEX(Rating,$F16)-INDEX(Rating,BM$2),10,1),"") -> 0.6060351587 | BN16: =IF($F16<>BN$2,1-_xlfn.NORM.DIST(0,INDEX(Rating,$F16)-INDEX(Rating,BN$2),10,1),"") -> 0.3605459029 | BO16: =IF($F16<>BO$2,1-_xlfn.NORM.DIST(0,INDEX(Rating,$F16)-INDEX(Rating,BO$2),10,1),"") -> 0.5552749255 | BP16: =IF($F16<>BP$2,1-_xlfn.NORM.DIST(0,INDEX(Rating,$F16)-INDEX(Rating,BP$2),10,1),"") -> 0.6243781989 | BQ16: =IF($F16<>BQ$2,1-_xlfn.NORM.DIST(0,INDEX(Rating,$F16)-INDEX(Rating,BQ$2),10,1),"") -> 0.2092575731 | BR16: =IF($F16<>BR$2,1-_xlfn.NORM.DIST(0,INDEX(Rating,$F16)-INDEX(Rating,BR$2),10,1),"") -> 0.73826316 | BS16: =IF($F16<>BS$2,1-_xlfn.NORM.DIST(0,INDEX(Rating,$F16)-INDEX(Rating,BS$2),10,1),"") -> 0.4384106587 | BT16: =IF($F16<>BT$2,1-_xlfn.NORM.DIST(0,INDEX(Rating,$F16)-INDEX(Rating,BT$2),10,1),"") -> 0.519540352 | BU16: =IF($F16<>BU$2,1-_xlfn.NORM.DIST(0,INDEX(Rating,$F16)-INDEX(Rating,BU$2),10,1),"") -> 0.1886181358 | BV16: =IF($F16<>BV$2,1-_xlfn.NORM.DIST(0,INDEX(Rating,$F16)-INDEX(Rating,BV$2),10,1),"") -> 0.8299581788
B17: Utah St | C17: 15 | D17: 84.12 | F17: 15 | G17: =IF($F17<>G$2,1-_xlfn.NORM.DIST(0,INDEX(Rating,$F17)-INDEX(Rating,G$2),10,1),"") -> 0.18915891 | H17: =IF($F17<>H$2,1-_xlfn.NORM.DIST(0,INDEX(Rating,$F17)-INDEX(Rating,H$2),10,1),"") -> 0.9174314774 | I17: =IF($F17<>I$2,1-_xlfn.NORM.DIST(0,INDEX(Rating,$F17)-INDEX(Rating,I$2),10,1),"") -> 0.9588945931 | J17: =IF($F17<>J$2,1-_xlfn.NORM.DIST(0,INDEX(Rating,$F17)-INDEX(Rating,J$2),10,1),"") -> 0.4463059372 | K17: =IF($F17<>K$2,1-_xlfn.NORM.DIST(0,INDEX(Rating,$F17)-INDEX(Rating,K$2),10,1),"") -> 0.4309327311 | L17: =IF($F17<>L$2,1-_xlfn.NORM.DIST(0,INDEX(Rating,$F17)-INDEX(Rating,L$2),10,1),"") -> 0.4573944899 | M17: =IF($F17<>M$2,1-_xlfn.NORM.DIST(0,INDEX(Rating,$F17)-INDEX(Rating,M$2),10,1),"") -> 0.6342007699 | N17: =IF($F17<>N$2,1-_xlfn.NORM.DIST(0,INDEX(Rating,$F17)-INDEX(Rating,N$2),10,1),"") -> 0.4617602863 | O17: =IF($F17<>O$2,1-_xlfn.NORM.DIST(0,INDEX(Rating,$F17)-INDEX(Rating,O$2),10,1),"") -> 0.6786761272 | P17: =IF($F17<>P$2,1-_xlfn.NORM.DIST(0,INDEX(Rating,$F17)-INDEX(Rating,P$2),10,1),"") -> 0.3627941742 | Q17: =IF($F17<>Q$2,1-_xlfn.NORM.DIST(0,INDEX(Rating,$F17)-INDEX(Rating,Q$2),10,1),"") -> 0.5346642439 | R17: =IF($F17<>R$2,1-_xlfn.NORM.DIST(0,INDEX(Rating,$F17)-INDEX(Rating,R$2),10,1),"") -> 0.3729690171 | S17: =IF($F17<>S$2,1-_xlfn.NORM.DIST(0,INDEX(Rating,$F17)-INDEX(Rating,S$2),10,1),"") -> 0.7796465342 | T17: =IF($F17<>T$2,1-_xlfn.NORM.DIST(0,INDEX(Rating,$F17)-INDEX(Rating,T$2),10,1),"") -> 0.5690672689 | U17: =IF($F17<>U$2,1-_xlfn.NORM.DIST(0,INDEX(Rating,$F17)-INDEX(Rating,U$2),10,1),"") ->  | V17: =IF($F17<>V$2,1-_xlfn.NORM.DIST(0,INDEX(Rating,$F17)-INDEX(Rating,V$2),10,1),"") -> 0.2829839006 | W17: =IF($F17<>W$2,1-_xlfn.NORM.DIST(0,INDEX(Rating,$F17)-INDEX(Rating,W$2),10,1),"") -> 0.7825987526 | X17: =IF($F17<>X$2,1-_xlfn.NORM.DIST(0,INDEX(Rating,$F17)-INDEX(Rating,X$2),10,1),"") -> 0.3071306885 | Y17: =IF($F17<>Y$2,1-_xlfn.NORM.DIST(0,INDEX(Rating,$F17)-INDEX(Rating,Y$2),10,1),"") -> 0.9702850811 | Z17: =IF($F17<>Z$2,1-_xlfn.NORM.DIST(0,INDEX(Rating,$F17)-INDEX(Rating,Z$2),10,1),"") -> 0.9786176077 | AA17: =IF($F17<>AA$2,1-_xlfn.NORM.DIST(0,INDEX(Rating,$F17)-INDEX(Rating,AA$2),10,1),"") -> 0.4047775583 | AB17: =IF($F17<>AB$2,1-_xlfn.NORM.DIST(0,INDEX(Rating,$F17)-INDEX(Rating,AB$2),10,1),"") -> 0.518344875 | AC17: =IF($F17<>AC$2,1-_xlfn.NORM.DIST(0,INDEX(Rating,$F17)-INDEX(Rating,AC$2),10,1),"") -> 0.3737263473 | AD17: =IF($F17<>AD$2,1-_xlfn.NORM.DIST(0,INDEX(Rating,$F17)-INDEX(Rating,AD$2),10,1),"") -> 0.6416975578 | AE17: =IF($F17<>AE$2,1-_xlfn.NORM.DIST(0,INDEX(Rating,$F17)-INDEX(Rating,AE$2),10,1),"") -> 0.3029272046 | AF17: =IF($F17<>AF$2,1-_xlfn.NORM.DIST(0,INDEX(Rating,$F17)-INDEX(Rating,AF$2),10,1),"") -> 0.7485711049 | AG17: =IF($F17<>AG$2,1-_xlfn.NORM.DIST(0,INDEX(Rating,$F17)-INDEX(Rating,AG$2),10,1),"") -> 0.4273990093 | AH17: =IF($F17<>AH$2,1-_xlfn.NORM.DIST(0,INDEX(Rating,$F17)-INDEX(Rating,AH$2),10,1),"") -> 0.5 | AI17: =IF($F17<>AI$2,1-_xlfn.NORM.DIST(0,INDEX(Rating,$F17)-INDEX(Rating,AI$2),10,1),"") -> 0.4514495091 | AJ17: =IF($F17<>AJ$2,1-_xlfn.NORM.DIST(0,INDEX(Rating,$F17)-INDEX(Rating,AJ$2),10,1),"") -> 0.8263912197 | AK17: =IF($F17<>AK$2,1-_xlfn.NORM.DIST(0,INDEX(Rating,$F17)-INDEX(Rating,AK$2),10,1),"") -> 0.4677209763 | AL17: =IF($F17<>AL$2,1-_xlfn.NORM.DIST(0,INDEX(Rating,$F17)-INDEX(Rating,AL$2),10,1),"") -> 0.5 | AM17: =IF($F17<>AM$2,1-_xlfn.NORM.DIST(0,INDEX(Rating,$F17)-INDEX(Rating,AM$2),10,1),"") -> 0.3673048651 | AN17: =IF($F17<>AN$2,1-_xlfn.NORM.DIST(0,INDEX(Rating,$F17)-INDEX(Rating,AN$2),10,1),"") -> 0.7697427754 | AO17: =IF($F17<>AO$2,1-_xlfn.NORM.DIST(0,INDEX(Rating,$F17)-INDEX(Rating,AO$2),10,1),"") -> 0.2197611903 | AP17: =IF($F17<>AP$2,1-_xlfn.NORM.DIST(0,INDEX(Rating,$F17)-INDEX(Rating,AP$2),10,1),"") -> 0.8749280644 | AQ17: =IF($F17<>AQ$2,1-_xlfn.NORM.DIST(0,INDEX(Rating,$F17)-INDEX(Rating,AQ$2),10,1),"") -> 0.4709030588 | AR17: =IF($F17<>AR$2,1-_xlfn.NORM.DIST(0,INDEX(Rating,$F17)-INDEX(Rating,AR$2),10,1),"") -> 0.452241574 | AS17: =IF($F17<>AS$2,1-_xlfn.NORM.DIST(0,INDEX(Rating,$F17)-INDEX(Rating,AS$2),10,1),"") -> 0.4976063607 | AT17: =IF($F17<>AT$2,1-_xlfn.NORM.DIST(0,INDEX(Rating,$F17)-INDEX(Rating,AT$2),10,1),"") -> 0.5878430583 | AU17: =IF($F17<>AU$2,1-_xlfn.NORM.DIST(0,INDEX(Rating,$F17)-INDEX(Rating,AU$2),10,1),"") -> 0.4172241193 | AV17: =IF($F17<>AV$2,1-_xlfn.NORM.DIST(0,INDEX(Rating,$F17)-INDEX(Rating,AV$2),10,1),"") -> 0.6190550692 | AW17: =IF($F17<>AW$2,1-_xlfn.NORM.DIST(0,INDEX(Rating,$F17)-INDEX(Rating,AW$2),10,1),"") -> 0.4880335266 | AX17: =IF($F17<>AX$2,1-_xlfn.NORM.DIST(0,INDEX(Rating,$F17)-INDEX(Rating,AX$2),10,1),"") -> 0.5737776193 | AY17: =IF($F17<>AY$2,1-_xlfn.NORM.DIST(0,INDEX(Rating,$F17)-INDEX(Rating,AY$2),10,1),"") -> 0.6017965464 | AZ17: =IF($F17<>AZ$2,1-_xlfn.NORM.DIST(0,INDEX(Rating,$F17)-INDEX(Rating,AZ$2),10,1),"") -> 0.4059405471 | BA17: =IF($F17<>BA$2,1-_xlfn.NORM.DIST(0,INDEX(Rating,$F17)-INDEX(Rating,BA$2),10,1),"") -> 0.8647691642 | BB17: =IF($F17<>BB$2,1-_xlfn.NORM.DIST(0,INDEX(Rating,$F17)-INDEX(Rating,BB$2),10,1),"") -> 0.422305083 | BC17: =IF($F17<>BC$2,1-_xlfn.NORM.DIST(0,INDEX(Rating,$F17)-INDEX(Rating,BC$2),10,1),"") -> 0.5095736956 | BD17: =IF($F17<>BD$2,1-_xlfn.NORM.DIST(0,INDEX(Rating,$F17)-INDEX(Rating,BD$2),10,1),"") -> 0.2630404111 | BE17: =IF($F17<>BE$2,1-_xlfn.NORM.DIST(0,INDEX(Rating,$F17)-INDEX(Rating,BE$2),10,1),"") -> 0.787854794 | BF17: =IF($F17<>BF$2,1-_xlfn.NORM.DIST(0,INDEX(Rating,$F17)-INDEX(Rating,BF$2),10,1),"") -> 0.2799466501 | BG17: =IF($F17<>BG$2,1-_xlfn.NORM.DIST(0,INDEX(Rating,$F17)-INDEX(Rating,BG$2),10,1),"") -> 0.9347330687 | BH17: =IF($F17<>BH$2,1-_xlfn.NORM.DIST(0,INDEX(Rating,$F17)-INDEX(Rating,BH$2),10,1),"") -> 0.4348655719 | BI17: =IF($F17<>BI$2,1-_xlfn.NORM.DIST(0,INDEX(Rating,$F17)-INDEX(Rating,BI$2),10,1),"") -> 0.4530338289 | BJ17: =IF($F17<>BJ$2,1-_xlfn.NORM.DIST(0,INDEX(Rating,$F17)-INDEX(Rating,BJ$2),10,1),"") -> 0.408657401 | BK17: =IF($F17<>BK$2,1-_xlfn.NORM.DIST(0,INDEX(Rating,$F17)-INDEX(Rating,BK$2),10,1),"") -> 0.5267091484 | BL17: =IF($F17<>BL$2,1-_xlfn.NORM.DIST(0,INDEX(Rating,$F17)-INDEX(Rating,BL$2),10,1),"") -> 0.2759217355 | BM17: =IF($F17<>BM$2,1-_xlfn.NORM.DIST(0,INDEX(Rating,$F17)-INDEX(Rating,BM$2),10,1),"") -> 0.6711171326 | BN17: =IF($F17<>BN$2,1-_xlfn.NORM.DIST(0,INDEX(Rating,$F17)-INDEX(Rating,BN$2),10,1),"") -> 0.4273990093 | BO17: =IF($F17<>BO$2,1-_xlfn.NORM.DIST(0,INDEX(Rating,$F17)-INDEX(Rating,BO$2),10,1),"") -> 0.6228596689 | BP17: =IF($F17<>BP$2,1-_xlfn.NORM.DIST(0,INDEX(Rating,$F17)-INDEX(Rating,BP$2),10,1),"") -> 0.6882867762 | BQ17: =IF($F17<>BQ$2,1-_xlfn.NORM.DIST(0,INDEX(Rating,$F17)-INDEX(Rating,BQ$2),10,1),"") -> 0.2627142075 | BR17: =IF($F17<>BR$2,1-_xlfn.NORM.DIST(0,INDEX(Rating,$F17)-INDEX(Rating,BR$2),10,1),"") -> 0.7916041843 | BS17: =IF($F17<>BS$2,1-_xlfn.NORM.DIST(0,INDEX(Rating,$F17)-INDEX(Rating,BS$2),10,1),"") -> 0.5075794473 | BT17: =IF($F17<>BT$2,1-_xlfn.NORM.DIST(0,INDEX(Rating,$F17)-INDEX(Rating,BT$2),10,1),"") -> 0.5882322467 | BU17: =IF($F17<>BU$2,1-_xlfn.NORM.DIST(0,INDEX(Rating,$F17)-INDEX(Rating,BU$2),10,1),"") -> 0.2391622384 | BV17: =IF($F17<>BV$2,1-_xlfn.NORM.DIST(0,INDEX(Rating,$F17)-INDEX(Rating,BV$2),10,1),"") -> 0.8703400404
B18: Arizona | C18: 16 | D18: 89.86 | F18: 16 | G18: =IF($F18<>G$2,1-_xlfn.NORM.DIST(0,INDEX(Rating,$F18)-INDEX(Rating,G$2),10,1),"") -> 0.3794216861 | H18: =IF($F18<>H$2,1-_xlfn.NORM.DIST(0,INDEX(Rating,$F18)-INDEX(Rating,H$2),10,1),"") -> 0.9751187579 | I18: =IF($F18<>I$2,1-_xlfn.NORM.DIST(0,INDEX(Rating,$F18)-INDEX(Rating,I$2),10,1),"") -> 0.9896111583 | J18: =IF($F18<>J$2,1-_xlfn.NORM.DIST(0,INDEX(Rating,$F18)-INDEX(Rating,J$2),10,1),"") -> 0.6696692318 | K18: =IF($F18<>K$2,1-_xlfn.NORM.DIST(0,INDEX(Rating,$F18)-INDEX(Rating,K$2),10,1),"") -> 0.6554217416 | L18: =IF($F18<>L$2,1-_xlfn.NORM.DIST(0,INDEX(Rating,$F18)-INDEX(Rating,L$2),10,1),"") -> 0.679750061 | M18: =IF($F18<>M$2,1-_xlfn.NORM.DIST(0,INDEX(Rating,$F18)-INDEX(Rating,M$2),10,1),"") -> 0.8204286799 | N18: =IF($F18<>N$2,1-_xlfn.NORM.DIST(0,INDEX(Rating,$F18)-INDEX(Rating,N$2),10,1),"") -> 0.6836748975 | O18: =IF($F18<>O$2,1-_xlfn.NORM.DIST(0,INDEX(Rating,$F18)-INDEX(Rating,O$2),10,1),"") -> 0.8503649725 | P18: =IF($F18<>P$2,1-_xlfn.NORM.DIST(0,INDEX(Rating,$F18)-INDEX(Rating,P$2),10,1),"") -> 0.5882322467 | Q18: =IF($F18<>Q$2,1-_xlfn.NORM.DIST(0,INDEX(Rating,$F18)-INDEX(Rating,Q$2),10,1),"") -> 0.7456938432 | R18: =IF($F18<>R$2,1-_xlfn.NORM.DIST(0,INDEX(Rating,$F18)-INDEX(Rating,R$2),10,1),"") -> 0.5987063257 | S18: =IF($F18<>S$2,1-_xlfn.NORM.DIST(0,INDEX(Rating,$F18)-INDEX(Rating,S$2),10,1),"") -> 0.9106873827 | T18: =IF($F18<>T$2,1-_xlfn.NORM.DIST(0,INDEX(Rating,$F18)-INDEX(Rating,T$2),10,1),"") -> 0.7727699212 | U18: =IF($F18<>U$2,1-_xlfn.NORM.DIST(0,INDEX(Rating,$F18)-INDEX(Rating,U$2),10,1),"") -> 0.7170160994 | V18: =IF($F18<>V$2,1-_xlfn.NORM.DIST(0,INDEX(Rating,$F18)-INDEX(Rating,V$2),10,1),"") ->  | W18: =IF($F18<>W$2,1-_xlfn.NORM.DIST(0,INDEX(Rating,$F18)-INDEX(Rating,W$2),10,1),"") -> 0.9122912215 | X18: =IF($F18<>X$2,1-_xlfn.NORM.DIST(0,INDEX(Rating,$F18)-INDEX(Rating,X$2),10,1),"") -> 0.5279031702 | Y18: =IF($F18<>Y$2,1-_xlfn.NORM.DIST(0,INDEX(Rating,$F18)-INDEX(Rating,Y$2),10,1),"") -> 0.9930337691 | Z18: =IF($F18<>Z$2,1-_xlfn.NORM.DIST(0,INDEX(Rating,$F18)-INDEX(Rating,Z$2),10,1),"") -> 0.995338812 | AA18: =IF($F18<>AA$2,1-_xlfn.NORM.DIST(0,INDEX(Rating,$F18)-INDEX(Rating,AA$2),10,1),"") -> 0.6304328584 | AB18: =IF($F18<>AB$2,1-_xlfn.NORM.DIST(0,INDEX(Rating,$F18)-INDEX(Rating,AB$2),10,1),"") -> 0.7323711065 | AC18: =IF($F18<>AC$2,1-_xlfn.NORM.DIST(0,INDEX(Rating,$F18)-INDEX(Rating,AC$2),10,1),"") -> 0.5994794681 | AD18: =IF($F18<>AD$2,1-_xlfn.NORM.DIST(0,INDEX(Rating,$F18)-INDEX(Rating,AD$2),10,1),"") -> 0.825620721 | AE18: =IF($F18<>AE$2,1-_xlfn.NORM.DIST(0,INDEX(Rating,$F18)-INDEX(Rating,AE$2),10,1),"") -> 0.5231256857 | AF18: =IF($F18<>AF$2,1-_xlfn.NORM.DIST(0,INDEX(Rating,$F18)-INDEX(Rating,AF$2),10,1),"") -> 0.8932502185 | AG18: =IF($F18<>AG$2,1-_xlfn.NORM.DIST(0,INDEX(Rating,$F18)-INDEX(Rating,AG$2),10,1),"") -> 0.6521013821 | AH18: =IF($F18<>AH$2,1-_xlfn.NORM.DIST(0,INDEX(Rating,$F18)-INDEX(Rating,AH$2),10,1),"") -> 0.7170160994 | AI18: =IF($F18<>AI$2,1-_xlfn.NORM.DIST(0,INDEX(Rating,$F18)-INDEX(Rating,AI$2),10,1),"") -> 0.6743655088 | AJ18: =IF($F18<>AJ$2,1-_xlfn.NORM.DIST(0,INDEX(Rating,$F18)-INDEX(Rating,AJ$2),10,1),"") -> 0.9349870803 | AK18: =IF($F18<>AK$2,1-_xlfn.NORM.DIST(0,INDEX(Rating,$F18)-INDEX(Rating,AK$2),10,1),"") -> 0.6889937063 | AL18: =IF($F18<>AL$2,1-_xlfn.NORM.DIST(0,INDEX(Rating,$F18)-INDEX(Rating,AL$2),10,1),"") -> 0.7170160994 | AM18: =IF($F18<>AM$2,1-_xlfn.NORM.DIST(0,INDEX(Rating,$F18)-INDEX(Rating,AM$2),10,1),"") -> 0.5928956334 | AN18: =IF($F18<>AN$2,1-_xlfn.NORM.DIST(0,INDEX(Rating,$F18)-INDEX(Rating,AN$2),10,1),"") -> 0.9052399327 | AO18: =IF($F18<>AO$2,1-_xlfn.NORM.DIST(0,INDEX(Rating,$F18)-INDEX(Rating,AO$2),10,1),"") -> 0.4211313723 | AP18: =IF($F18<>AP$2,1-_xlfn.NORM.DIST(0,INDEX(Rating,$F18)-INDEX(Rating,AP$2),10,1),"") -> 0.9576460784 | AQ18: =IF($F18<>AQ$2,1-_xlfn.NORM.DIST(0,INDEX(Rating,$F18)-INDEX(Rating,AQ$2),10,1),"") -> 0.6918144385 | AR18: =IF($F18<>AR$2,1-_xlfn.NORM.DIST(0,INDEX(Rating,$F18)-INDEX(Rating,AR$2),10,1),"") -> 0.6750855866 | AS18: =IF($F18<>AS$2,1-_xlfn.NORM.DIST(0,INDEX(Rating,$F18)-INDEX(Rating,AS$2),10,1),"") -> 0.714982516 | AT18: =IF($F18<>AT$2,1-_xlfn.NORM.DIST(0,INDEX(Rating,$F18)-INDEX(Rating,AT$2),10,1),"") -> 0.7869839823 | AU18: =IF($F18<>AU$2,1-_xlfn.NORM.DIST(0,INDEX(Rating,$F18)-INDEX(Rating,AU$2),10,1),"") -> 0.6424442969 | AV18: =IF($F18<>AV$2,1-_xlfn.NORM.DIST(0,INDEX(Rating,$F18)-INDEX(Rating,AV$2),10,1),"") -> 0.809756681 | AW18: =IF($F18<>AW$2,1-_xlfn.NORM.DIST(0,INDEX(Rating,$F18)-INDEX(Rating,AW$2),10,1),"") -> 0.7067792636 | AX18: =IF($F18<>AX$2,1-_xlfn.NORM.DIST(0,INDEX(Rating,$F18)-INDEX(Rating,AX$2),10,1),"") -> 0.7763727076 | AY18: =IF($F18<>AY$2,1-_xlfn.NORM.DIST(0,INDEX(Rating,$F18)-INDEX(Rating,AY$2),10,1),"") -> 0.7972955277 | AZ18: =IF($F18<>AZ$2,1-_xlfn.NORM.DIST(0,INDEX(Rating,$F18)-INDEX(Rating,AZ$2),10,1),"") -> 0.6315645668 | BA18: =IF($F18<>BA$2,1-_xlfn.NORM.DIST(0,INDEX(Rating,$F18)-INDEX(Rating,BA$2),10,1),"") -> 0.9531309037 | BB18: =IF($F18<>BB$2,1-_xlfn.NORM.DIST(0,INDEX(Rating,$F18)-INDEX(Rating,BB$2),10,1),"") -> 0.647284703 | BC18: =IF($F18<>BC$2,1-_xlfn.NORM.DIST(0,INDEX(Rating,$F18)-INDEX(Rating,BC$2),10,1),"") -> 0.7250800335 | BD18: =IF($F18<>BD$2,1-_xlfn.NORM.DIST(0,INDEX(Rating,$F18)-INDEX(Rating,BD$2),10,1),"") -> 0.4760778173 | BE18: =IF($F18<>BE$2,1-_xlfn.NORM.DIST(0,INDEX(Rating,$F18)-INDEX(Rating,BE$2),10,1),"") -> 0.9151238267 | BF18: =IF($F18<>BF$2,1-_xlfn.NORM.DIST(0,INDEX(Rating,$F18)-INDEX(Rating,BF$2),10,1),"") -> 0.4964095679 | BG18: =IF($F18<>BG$2,1-_xlfn.NORM.DIST(0,INDEX(Rating,$F18)-INDEX(Rating,BG$2),10,1),"") -> 0.9815106885 | BH18: =IF($F18<>BH$2,1-_xlfn.NORM.DIST(0,INDEX(Rating,$F18)-INDEX(Rating,BH$2),10,1),"") -> 0.6590970262 | BI18: =IF($F18<>BI$2,1-_xlfn.NORM.DIST(0,INDEX(Rating,$F18)-INDEX(Rating,BI$2),10,1),"") -> 0.6758050109 | BJ18: =IF($F18<>BJ$2,1-_xlfn.NORM.DIST(0,INDEX(Rating,$F18)-INDEX(Rating,BJ$2),10,1),"") -> 0.6342007699 | BK18: =IF($F18<>BK$2,1-_xlfn.NORM.DIST(0,INDEX(Rating,$F18)-INDEX(Rating,BK$2),10,1),"") -> 0.7392386585 | BL18: =IF($F18<>BL$2,1-_xlfn.NORM.DIST(0,INDEX(Rating,$F18)-INDEX(Rating,BL$2),10,1),"") -> 0.4916228278 | BM18: =IF($F18<>BM$2,1-_xlfn.NORM.DIST(0,INDEX(Rating,$F18)-INDEX(Rating,BM$2),10,1),"") -> 0.8454232853 | BN18: =IF($F18<>BN$2,1-_xlfn.NORM.DIST(0,INDEX(Rating,$F18)-INDEX(Rating,BN$2),10,1),"") -> 0.6521013821 | BO18: =IF($F18<>BO$2,1-_xlfn.NORM.DIST(0,INDEX(Rating,$F18)-INDEX(Rating,BO$2),10,1),"") -> 0.8124605498 | BP18: =IF($F18<>BP$2,1-_xlfn.NORM.DIST(0,INDEX(Rating,$F18)-INDEX(Rating,BP$2),10,1),"") -> 0.8565620351 | BQ18: =IF($F18<>BQ$2,1-_xlfn.NORM.DIST(0,INDEX(Rating,$F18)-INDEX(Rating,BQ$2),10,1),"") -> 0.4756796045 | BR18: =IF($F18<>BR$2,1-_xlfn.NORM.DIST(0,INDEX(Rating,$F18)-INDEX(Rating,BR$2),10,1),"") -> 0.9171265483 | BS18: =IF($F18<>BS$2,1-_xlfn.NORM.DIST(0,INDEX(Rating,$F18)-INDEX(Rating,BS$2),10,1),"") -> 0.7234094239 | BT18: =IF($F18<>BT$2,1-_xlfn.NORM.DIST(0,INDEX(Rating,$F18)-INDEX(Rating,BT$2),10,1),"") -> 0.7872744843 | BU18: =IF($F18<>BU$2,1-_xlfn.NORM.DIST(0,INDEX(Rating,$F18)-INDEX(Rating,BU$2),10,1),"") -> 0.4463059372 | BV18: =IF($F18<>BV$2,1-_xlfn.NORM.DIST(0,INDEX(Rating,$F18)-INDEX(Rating,BV$2),10,1),"") -> 0.9556223159
B19: Princeton | C19: 17 | D19: 76.31 | F19: 17 | G19: =IF($F19<>G$2,1-_xlfn.NORM.DIST(0,INDEX(Rating,$F19)-INDEX(Rating,G$2),10,1),"") -> 0.04825638724 | H19: =IF($F19<>H$2,1-_xlfn.NORM.DIST(0,INDEX(Rating,$F19)-INDEX(Rating,H$2),10,1),"") -> 0.7280745439 | I19: =IF($F19<>I$2,1-_xlfn.NORM.DIST(0,INDEX(Rating,$F19)-INDEX(Rating,I$2),10,1),"") -> 0.8307163725 | J19: =IF($F19<>J$2,1-_xlfn.NORM.DIST(0,INDEX(Rating,$F19)-INDEX(Rating,J$2),10,1),"") -> 0.1798334475 | K19: =IF($F19<>K$2,1-_xlfn.NORM.DIST(0,INDEX(Rating,$F19)-INDEX(Rating,K$2),10,1),"") -> 0.1697888485 | L19: =IF($F19<>L$2,1-_xlfn.NORM.DIST(0,INDEX(Rating,$F19)-INDEX(Rating,L$2),10,1),"") -> 0.1872703757 | M19: =IF($F19<>M$2,1-_xlfn.NORM.DIST(0,INDEX(Rating,$F19)-INDEX(Rating,M$2),10,1),"") -> 0.3306931417 | N19: =IF($F19<>N$2,1-_xlfn.NORM.DIST(0,INDEX(Rating,$F19)-INDEX(Rating,N$2),10,1),"") -> 0.190243319 | O19: =IF($F19<>O$2,1-_xlfn.NORM.DIST(0,INDEX(Rating,$F19)-INDEX(Rating,O$2),10,1),"") -> 0.3756218011 | P19: =IF($F19<>P$2,1-_xlfn.NORM.DIST(0,INDEX(Rating,$F19)-INDEX(Rating,P$2),10,1),"") -> 0.1288172172 | Q19: =IF($F19<>Q$2,1-_xlfn.NORM.DIST(0,INDEX(Rating,$F19)-INDEX(Rating,Q$2),10,1),"") -> 0.2438411045 | R19: =IF($F19<>R$2,1-_xlfn.NORM.DIST(0,INDEX(Rating,$F19)-INDEX(Rating,R$2),10,1),"") -> 0.1345797946 | S19: =IF($F19<>S$2,1-_xlfn.NORM.DIST(0,INDEX(Rating,$F19)-INDEX(Rating,S$2),10,1),"") -> 0.4960106437 | T19: =IF($F19<>T$2,1-_xlfn.NORM.DIST(0,INDEX(Rating,$F19)-INDEX(Rating,T$2),10,1),"") -> 0.2719254561 | U19: =IF($F19<>U$2,1-_xlfn.NORM.DIST(0,INDEX(Rating,$F19)-INDEX(Rating,U$2),10,1),"") -> 0.2174012474 | V19: =IF($F19<>V$2,1-_xlfn.NORM.DIST(0,INDEX(Rating,$F19)-INDEX(Rating,V$2),10,1),"") -> 0.08770877851 | W19: =IF($F19<>W$2,1-_xlfn.NORM.DIST(0,INDEX(Rating,$F19)-INDEX(Rating,W$2),10,1),"") ->  | X19: =IF($F19<>X$2,1-_xlfn.NORM.DIST(0,INDEX(Rating,$F19)-INDEX(Rating,X$2),10,1),"") -> 0.09939614202 | Y19: =IF($F19<>Y$2,1-_xlfn.NORM.DIST(0,INDEX(Rating,$F19)-INDEX(Rating,Y$2),10,1),"") -> 0.8652034312 | Z19: =IF($F19<>Z$2,1-_xlfn.NORM.DIST(0,INDEX(Rating,$F19)-INDEX(Rating,Z$2),10,1),"") -> 0.8934341249 | AA19: =IF($F19<>AA$2,1-_xlfn.NORM.DIST(0,INDEX(Rating,$F19)-INDEX(Rating,AA$2),10,1),"") -> 0.1533904502 | AB19: =IF($F19<>AB$2,1-_xlfn.NORM.DIST(0,INDEX(Rating,$F19)-INDEX(Rating,AB$2),10,1),"") -> 0.2311697471 | AC19: =IF($F19<>AC$2,1-_xlfn.NORM.DIST(0,INDEX(Rating,$F19)-INDEX(Rating,AC$2),10,1),"") -> 0.1350135826 | AD19: =IF($F19<>AD$2,1-_xlfn.NORM.DIST(0,INDEX(Rating,$F19)-INDEX(Rating,AD$2),10,1),"") -> 0.3379735586 | AE19: =IF($F19<>AE$2,1-_xlfn.NORM.DIST(0,INDEX(Rating,$F19)-INDEX(Rating,AE$2),10,1),"") -> 0.0973155934 | AF19: =IF($F19<>AF$2,1-_xlfn.NORM.DIST(0,INDEX(Rating,$F19)-INDEX(Rating,AF$2),10,1),"") -> 0.4558081734 | AG19: =IF($F19<>AG$2,1-_xlfn.NORM.DIST(0,INDEX(Rating,$F19)-INDEX(Rating,AG$2),10,1),"") -> 0.1675229629 | AH19: =IF($F19<>AH$2,1-_xlfn.NORM.DIST(0,INDEX(Rating,$F19)-INDEX(Rating,AH$2),10,1),"") -> 0.2174012474 | AI19: =IF($F19<>AI$2,1-_xlfn.NORM.DIST(0,INDEX(Rating,$F19)-INDEX(Rating,AI$2),10,1),"") -> 0.1832629475 | AJ19: =IF($F19<>AJ$2,1-_xlfn.NORM.DIST(0,INDEX(Rating,$F19)-INDEX(Rating,AJ$2),10,1),"") -> 0.5631655631 | AK19: =IF($F19<>AK$2,1-_xlfn.NORM.DIST(0,INDEX(Rating,$F19)-INDEX(Rating,AK$2),10,1),"") -> 0.1943437589 | AL19: =IF($F19<>AL$2,1-_xlfn.NORM.DIST(0,INDEX(Rating,$F19)-INDEX(Rating,AL$2),10,1),"") -> 0.2174012474 | AM19: =IF($F19<>AM$2,1-_xlfn.NORM.DIST(0,INDEX(Rating,$F19)-INDEX(Rating,AM$2),10,1),"") -> 0.131356881 | AN19: =IF($F19<>AN$2,1-_xlfn.NORM.DIST(0,INDEX(Rating,$F19)-INDEX(Rating,AN$2),10,1),"") -> 0.4828507669 | AO19: =IF($F19<>AO$2,1-_xlfn.NORM.DIST(0,INDEX(Rating,$F19)-INDEX(Rating,AO$2),10,1),"") -> 0.06009220831 | AP19: =IF($F19<>AP$2,1-_xlfn.NORM.DIST(0,INDEX(Rating,$F19)-INDEX(Rating,AP$2),10,1),"") -> 0.6439361376 | AQ19: =IF($F19<>AQ$2,1-_xlfn.NORM.DIST(0,INDEX(Rating,$F19)-INDEX(Rating,AQ$2),10,1),"") -> 0.1965524947 | AR19: =IF($F19<>AR$2,1-_xlfn.NORM.DIST(0,INDEX(Rating,$F19)-INDEX(Rating,AR$2),10,1),"") -> 0.1837941598 | AS19: =IF($F19<>AS$2,1-_xlfn.NORM.DIST(0,INDEX(Rating,$F19)-INDEX(Rating,AS$2),10,1),"") -> 0.2156409331 | AT19: =IF($F19<>AT$2,1-_xlfn.NORM.DIST(0,INDEX(Rating,$F19)-INDEX(Rating,AT$2),10,1),"") -> 0.2880808601 | AU19: =IF($F19<>AU$2,1-_xlfn.NORM.DIST(0,INDEX(Rating,$F19)-INDEX(Rating,AU$2),10,1),"") -> 0.1610870595 | AV19: =IF($F19<>AV$2,1-_xlfn.NORM.DIST(0,INDEX(Rating,$F19)-INDEX(Rating,AV$2),10,1),"") -> 0.3163251025 | AW19: =IF($F19<>AW$2,1-_xlfn.NORM.DIST(0,INDEX(Rating,$F19)-INDEX(Rating,AW$2),10,1),"") -> 0.2086828354 | AX19: =IF($F19<>AX$2,1-_xlfn.NORM.DIST(0,INDEX(Rating,$F19)-INDEX(Rating,AX$2),10,1),"") -> 0.2759217355 | AY19: =IF($F19<>AY$2,1-_xlfn.NORM.DIST(0,INDEX(Rating,$F19)-INDEX(Rating,AY$2),10,1),"") -> 0.3004871266 | AZ19: =IF($F19<>AZ$2,1-_xlfn.NORM.DIST(0,INDEX(Rating,$F19)-INDEX(Rating,AZ$2),10,1),"") -> 0.1541014833 | BA19: =IF($F19<>BA$2,1-_xlfn.NORM.DIST(0,INDEX(Rating,$F19)-INDEX(Rating,BA$2),10,1),"") -> 0.6258948045 | BB19: =IF($F19<>BB$2,1-_xlfn.NORM.DIST(0,INDEX(Rating,$F19)-INDEX(Rating,BB$2),10,1),"") -> 0.1642845762 | BC19: =IF($F19<>BC$2,1-_xlfn.NORM.DIST(0,INDEX(Rating,$F19)-INDEX(Rating,BC$2),10,1),"") -> 0.2245249312 | BD19: =IF($F19<>BD$2,1-_xlfn.NORM.DIST(0,INDEX(Rating,$F19)-INDEX(Rating,BD$2),10,1),"") -> 0.07853424802 | BE19: =IF($F19<>BE$2,1-_xlfn.NORM.DIST(0,INDEX(Rating,$F19)-INDEX(Rating,BE$2),10,1),"") -> 0.5071805733 | BF19: =IF($F19<>BF$2,1-_xlfn.NORM.DIST(0,INDEX(Rating,$F19)-INDEX(Rating,BF$2),10,1),"") -> 0.08628378283 | BG19: =IF($F19<>BG$2,1-_xlfn.NORM.DIST(0,INDEX(Rating,$F19)-INDEX(Rating,BG$2),10,1),"") -> 0.7676104235 | BH19: =IF($F19<>BH$2,1-_xlfn.NORM.DIST(0,INDEX(Rating,$F19)-INDEX(Rating,BH$2),10,1),"") -> 0.172329438 | BI19: =IF($F19<>BI$2,1-_xlfn.NORM.DIST(0,INDEX(Rating,$F19)-INDEX(Rating,BI$2),10,1),"") -> 0.1843263303 | BJ19: =IF($F19<>BJ$2,1-_xlfn.NORM.DIST(0,INDEX(Rating,$F19)-INDEX(Rating,BJ$2),10,1),"") -> 0.1557690267 | BK19: =IF($F19<>BK$2,1-_xlfn.NORM.DIST(0,INDEX(Rating,$F19)-INDEX(Rating,BK$2),10,1),"") -> 0.2376135897 | BL19: =IF($F19<>BL$2,1-_xlfn.NORM.DIST(0,INDEX(Rating,$F19)-INDEX(Rating,BL$2),10,1),"") -> 0.08441081663 | BM19: =IF($F19<>BM$2,1-_xlfn.NORM.DIST(0,INDEX(Rating,$F19)-INDEX(Rating,BM$2),10,1),"") -> 0.3676815939 | BN19: =IF($F19<>BN$2,1-_xlfn.NORM.DIST(0,INDEX(Rating,$F19)-INDEX(Rating,BN$2),10,1),"") -> 0.1675229629 | BO19: =IF($F19<>BO$2,1-_xlfn.NORM.DIST(0,INDEX(Rating,$F19)-INDEX(Rating,BO$2),10,1),"") -> 0.3198922949 | BP19: =IF($F19<>BP$2,1-_xlfn.NORM.DIST(0,INDEX(Rating,$F19)-INDEX(Rating,BP$2),10,1),"") -> 0.3859081188 | BQ19: =IF($F19<>BQ$2,1-_xlfn.NORM.DIST(0,INDEX(Rating,$F19)-INDEX(Rating,BQ$2),10,1),"") -> 0.07838775223 | BR19: =IF($F19<>BR$2,1-_xlfn.NORM.DIST(0,INDEX(Rating,$F19)-INDEX(Rating,BR$2),10,1),"") -> 0.5123652302 | BS19: =IF($F19<>BS$2,1-_xlfn.NORM.DIST(0,INDEX(Rating,$F19)-INDEX(Rating,BS$2),10,1),"") -> 0.2230300021 | BT19: =IF($F19<>BT$2,1-_xlfn.NORM.DIST(0,INDEX(Rating,$F19)-INDEX(Rating,BT$2),10,1),"") -> 0.2884221921 | BU19: =IF($F19<>BU$2,1-_xlfn.NORM.DIST(0,INDEX(Rating,$F19)-INDEX(Rating,BU$2),10,1),"") -> 0.06811211797 | BV19: =IF($F19<>BV$2,1-_xlfn.NORM.DIST(0,INDEX(Rating,$F19)-INDEX(Rating,BV$2),10,1),"") -> 0.6357043406
B20: Purdue | C20: 18 | D20: 89.16 | F20: 18 | G20: =IF($F20<>G$2,1-_xlfn.NORM.DIST(0,INDEX(Rating,$F20)-INDEX(Rating,G$2),10,1),"") -> 0.3530868025 | H20: =IF($F20<>H$2,1-_xlfn.NORM.DIST(0,INDEX(Rating,$F20)-INDEX(Rating,H$2),10,1),"") -> 0.9707545096 | I20: =IF($F20<>I$2,1-_xlfn.NORM.DIST(0,INDEX(Rating,$F20)-INDEX(Rating,I$2),10,1),"") -> 0.9875193138 | J20: =IF($F20<>J$2,1-_xlfn.NORM.DIST(0,INDEX(Rating,$F20)-INDEX(Rating,J$2),10,1),"") -> 0.6439361376 | K20: =IF($F20<>K$2,1-_xlfn.NORM.DIST(0,INDEX(Rating,$F20)-INDEX(Rating,K$2),10,1),"") -> 0.6293000189 | L20: =IF($F20<>L$2,1-_xlfn.NORM.DIST(0,INDEX(Rating,$F20)-INDEX(Rating,L$2),10,1),"") -> 0.6543162697 | M20: =IF($F20<>M$2,1-_xlfn.NORM.DIST(0,INDEX(Rating,$F20)-INDEX(Rating,M$2),10,1),"") -> 0.8015024393 | N20: =IF($F20<>N$2,1-_xlfn.NORM.DIST(0,INDEX(Rating,$F20)-INDEX(Rating,N$2),10,1),"") -> 0.6583631625 | O20: =IF($F20<>O$2,1-_xlfn.NORM.DIST(0,INDEX(Rating,$F20)-INDEX(Rating,O$2),10,1),"") -> 0.8334778151 | P20: =IF($F20<>P$2,1-_xlfn.NORM.DIST(0,INDEX(Rating,$F20)-INDEX(Rating,P$2),10,1),"") -> 0.5608008624 | Q20: =IF($F20<>Q$2,1-_xlfn.NORM.DIST(0,INDEX(Rating,$F20)-INDEX(Rating,Q$2),10,1),"") -> 0.7227397895 | R20: =IF($F20<>R$2,1-_xlfn.NORM.DIST(0,INDEX(Rating,$F20)-INDEX(Rating,R$2),10,1),"") -> 0.5714237159 | S20: =IF($F20<>S$2,1-_xlfn.NORM.DIST(0,INDEX(Rating,$F20)-INDEX(Rating,S$2),10,1),"") -> 0.898845379 | T20: =IF($F20<>T$2,1-_xlfn.NORM.DIST(0,INDEX(Rating,$F20)-INDEX(Rating,T$2),10,1),"") -> 0.7511141534 | U20: =IF($F20<>U$2,1-_xlfn.NORM.DIST(0,INDEX(Rating,$F20)-INDEX(Rating,U$2),10,1),"") -> 0.6928693115 | V20: =IF($F20<>V$2,1-_xlfn.NORM.DIST(0,INDEX(Rating,$F20)-INDEX(Rating,V$2),10,1),"") -> 0.4720968298 | W20: =IF($F20<>W$2,1-_xlfn.NORM.DIST(0,INDEX(Rating,$F20)-INDEX(Rating,W$2),10,1),"") -> 0.900603858 | X20: =IF($F20<>X$2,1-_xlfn.NORM.DIST(0,INDEX(Rating,$F20)-INDEX(Rating,X$2),10,1),"") ->  | Y20: =IF($F20<>Y$2,1-_xlfn.NORM.DIST(0,INDEX(Rating,$F20)-INDEX(Rating,Y$2),10,1),"") -> 0.9915528488 | Z20: =IF($F20<>Z$2,1-_xlfn.NORM.DIST(0,INDEX(Rating,$F20)-INDEX(Rating,Z$2),10,1),"") -> 0.9942968737 | AA20: =IF($F20<>AA$2,1-_xlfn.NORM.DIST(0,INDEX(Rating,$F20)-INDEX(Rating,AA$2),10,1),"") -> 0.6037247104 | AB20: =IF($F20<>AB$2,1-_xlfn.NORM.DIST(0,INDEX(Rating,$F20)-INDEX(Rating,AB$2),10,1),"") -> 0.7088403132 | AC20: =IF($F20<>AC$2,1-_xlfn.NORM.DIST(0,INDEX(Rating,$F20)-INDEX(Rating,AC$2),10,1),"") -> 0.572208637 | AD20: =IF($F20<>AD$2,1-_xlfn.NORM.DIST(0,INDEX(Rating,$F20)-INDEX(Rating,AD$2),10,1),"") -> 0.8070289952 | AE20: =IF($F20<>AE$2,1-_xlfn.NORM.DIST(0,INDEX(Rating,$F20)-INDEX(Rating,AE$2),10,1),"") -> 0.4952128075 | AF20: =IF($F20<>AF$2,1-_xlfn.NORM.DIST(0,INDEX(Rating,$F20)-INDEX(Rating,AF$2),10,1),"") -> 0.8798024872 | AG20: =IF($F20<>AG$2,1-_xlfn.NORM.DIST(0,INDEX(Rating,$F20)-INDEX(Rating,AG$2),10,1),"") -> 0.6258948045 | AH20: =IF($F20<>AH$2,1-_xlfn.NORM.DIST(0,INDEX(Rating,$F20)-INDEX(Rating,AH$2),10,1),"") -> 0.6928693115 | AI20: =IF($F20<>AI$2,1-_xlfn.NORM.DIST(0,INDEX(Rating,$F20)-INDEX(Rating,AI$2),10,1),"") -> 0.6487693177 | AJ20: =IF($F20<>AJ$2,1-_xlfn.NORM.DIST(0,INDEX(Rating,$F20)-INDEX(Rating,AJ$2),10,1),"") -> 0.9256305123 | AK20: =IF($F20<>AK$2,1-_xlfn.NORM.DIST(0,INDEX(Rating,$F20)-INDEX(Rating,AK$2),10,1),"") -> 0.6638523695 | AL20: =IF($F20<>AL$2,1-_xlfn.NORM.DIST(0,INDEX(Rating,$F20)-INDEX(Rating,AL$2),10,1),"") -> 0.6928693115 | AM20: =IF($F20<>AM$2,1-_xlfn.NORM.DIST(0,INDEX(Rating,$F20)-INDEX(Rating,AM$2),10,1),"") -> 0.565528009 | AN20: =IF($F20<>AN$2,1-_xlfn.NORM.DIST(0,INDEX(Rating,$F20)-INDEX(Rating,AN$2),10,1),"") -> 0.892881719 | AO20: =IF($F20<>AO$2,1-_xlfn.NORM.DIST(0,INDEX(Rating,$F20)-INDEX(Rating,AO$2),10,1),"") -> 0.3939648413 | AP20: =IF($F20<>AP$2,1-_xlfn.NORM.DIST(0,INDEX(Rating,$F20)-INDEX(Rating,AP$2),10,1),"") -> 0.9509362436 | AQ20: =IF($F20<>AQ$2,1-_xlfn.NORM.DIST(0,INDEX(Rating,$F20)-INDEX(Rating,AQ$2),10,1),"") -> 0.6667658148 | AR20: =IF($F20<>AR$2,1-_xlfn.NORM.DIST(0,INDEX(Rating,$F20)-INDEX(Rating,AR$2),10,1),"") -> 0.6495107763 | AS20: =IF($F20<>AS$2,1-_xlfn.NORM.DIST(0,INDEX(Rating,$F20)-INDEX(Rating,AS$2),10,1),"") -> 0.6907579789 | AT20: =IF($F20<>AT$2,1-_xlfn.NORM.DIST(0,INDEX(Rating,$F20)-INDEX(Rating,AT$2),10,1),"") -> 0.7660806147 | AU20: =IF($F20<>AU$2,1-_xlfn.NORM.DIST(0,INDEX(Rating,$F20)-INDEX(Rating,AU$2),10,1),"") -> 0.6160030601 | AV20: =IF($F20<>AV$2,1-_xlfn.NORM.DIST(0,INDEX(Rating,$F20)-INDEX(Rating,AV$2),10,1),"") -> 0.7901667584 | AW20: =IF($F20<>AW$2,1-_xlfn.NORM.DIST(0,INDEX(Rating,$F20)-INDEX(Rating,AW$2),10,1),"") -> 0.6822500464 | AX20: =IF($F20<>AX$2,1-_xlfn.NORM.DIST(0,INDEX(Rating,$F20)-INDEX(Rating,AX$2),10,1),"") -> 0.7549029063 | AY20: =IF($F20<>AY$2,1-_xlfn.NORM.DIST(0,INDEX(Rating,$F20)-INDEX(Rating,AY$2),10,1),"") -> 0.7769699979 | AZ20: =IF($F20<>AZ$2,1-_xlfn.NORM.DIST(0,INDEX(Rating,$F20)-INDEX(Rating,AZ$2),10,1),"") -> 0.6048803955 | BA20: =IF($F20<>BA$2,1-_xlfn.NORM.DIST(0,INDEX(Rating,$F20)-INDEX(Rating,BA$2),10,1),"") -> 0.945863045 | BB20: =IF($F20<>BB$2,1-_xlfn.NORM.DIST(0,INDEX(Rating,$F20)-INDEX(Rating,BB$2),10,1),"") -> 0.6209588338 | BC20: =IF($F20<>BC$2,1-_xlfn.NORM.DIST(0,INDEX(Rating,$F20)-INDEX(Rating,BC$2),10,1),"") -> 0.701250332 | BD20: =IF($F20<>BD$2,1-_xlfn.NORM.DIST(0,INDEX(Rating,$F20)-INDEX(Rating,BD$2),10,1),"") -> 0.4482832133 | BE20: =IF($F20<>BE$2,1-_xlfn.NORM.DIST(0,INDEX(Rating,$F20)-INDEX(Rating,BE$2),10,1),"") -> 0.9037126192 | BF20: =IF($F20<>BF$2,1-_xlfn.NORM.DIST(0,INDEX(Rating,$F20)-INDEX(Rating,BF$2),10,1),"") -> 0.4685163115 | BG20: =IF($F20<>BG$2,1-_xlfn.NORM.DIST(0,INDEX(Rating,$F20)-INDEX(Rating,BG$2),10,1),"") -> 0.9781000121 | BH20: =IF($F20<>BH$2,1-_xlfn.NORM.DIST(0,INDEX(Rating,$F20)-INDEX(Rating,BH$2),10,1),"") -> 0.633071736 | BI20: =IF($F20<>BI$2,1-_xlfn.NORM.DIST(0,INDEX(Rating,$F20)-INDEX(Rating,BI$2),10,1),"") -> 0.6502516656 | BJ20: =IF($F20<>BJ$2,1-_xlfn.NORM.DIST(0,INDEX(Rating,$F20)-INDEX(Rating,BJ$2),10,1),"") -> 0.6075733922 | BK20: =IF($F20<>BK$2,1-_xlfn.NORM.DIST(0,INDEX(Rating,$F20)-INDEX(Rating,BK$2),10,1),"") -> 0.7160001786 | BL20: =IF($F20<>BL$2,1-_xlfn.NORM.DIST(0,INDEX(Rating,$F20)-INDEX(Rating,BL$2),10,1),"") -> 0.4637462955 | BM20: =IF($F20<>BM$2,1-_xlfn.NORM.DIST(0,INDEX(Rating,$F20)-INDEX(Rating,BM$2),10,1),"") -> 0.8281806105 | BN20: =IF($F20<>BN$2,1-_xlfn.NORM.DIST(0,INDEX(Rating,$F20)-INDEX(Rating,BN$2),10,1),"") -> 0.6258948045 | BO20: =IF($F20<>BO$2,1-_xlfn.NORM.DIST(0,INDEX(Rating,$F20)-INDEX(Rating,BO$2),10,1),"") -> 0.793035786 | BP20: =IF($F20<>BP$2,1-_xlfn.NORM.DIST(0,INDEX(Rating,$F20)-INDEX(Rating,BP$2),10,1),"") -> 0.8401318678 | BQ20: =IF($F20<>BQ$2,1-_xlfn.NORM.DIST(0,INDEX(Rating,$F20)-INDEX(Rating,BQ$2),10,1),"") -> 0.4478876537 | BR20: =IF($F20<>BR$2,1-_xlfn.NORM.DIST(0,INDEX(Rating,$F20)-INDEX(Rating,BR$2),10,1),"") -> 0.9059129787 | BS20: =IF($F20<>BS$2,1-_xlfn.NORM.DIST(0,INDEX(Rating,$F20)-INDEX(Rating,BS$2),10,1),"") -> 0.6995128734 | BT20: =IF($F20<>BT$2,1-_xlfn.NORM.DIST(0,INDEX(Rating,$F20)-INDEX(Rating,BT$2),10,1),"") -> 0.7663870221 | BU20: =IF($F20<>BU$2,1-_xlfn.NORM.DIST(0,INDEX(Rating,$F20)-INDEX(Rating,BU$2),10,1),"") -> 0.4187860625 | BV20: =IF($F20<>BV$2,1-_xlfn.NORM.DIST(0,INDEX(Rating,$F20)-INDEX(Rating,BV$2),10,1),"") -> 0.9486602569
B21: Texas Southern | C21: 19 | D21: 65.27 | F21: 19 | G21: =IF($F21<>G$2,1-_xlfn.NORM.DIST(0,INDEX(Rating,$F21)-INDEX(Rating,G$2),10,1),"") -> 0.00283742674 | H21: =IF($F21<>H$2,1-_xlfn.NORM.DIST(0,INDEX(Rating,$F21)-INDEX(Rating,H$2),10,1),"") -> 0.3095945257 | I21: =IF($F21<>I$2,1-_xlfn.NORM.DIST(0,INDEX(Rating,$F21)-INDEX(Rating,I$2),10,1),"") -> 0.4415660102 | J21: =IF($F21<>J$2,1-_xlfn.NORM.DIST(0,INDEX(Rating,$F21)-INDEX(Rating,J$2),10,1),"") -> 0.02169169377 | K21: =IF($F21<>K$2,1-_xlfn.NORM.DIST(0,INDEX(Rating,$F21)-INDEX(Rating,K$2),10,1),"") -> 0.01974711924 | L21: =IF($F21<>L$2,1-_xlfn.NORM.DIST(0,INDEX(Rating,$F21)-INDEX(Rating,L$2),10,1),"") -> 0.02318552894 | M21: =IF($F21<>M$2,1-_xlfn.NORM.DIST(0,INDEX(Rating,$F21)-INDEX(Rating,M$2),10,1),"") -> 0.0615367968 | N21: =IF($F21<>N$2,1-_xlfn.NORM.DIST(0,INDEX(Rating,$F21)-INDEX(Rating,N$2),10,1),"") -> 0.02379563679 | O21: =IF($F21<>O$2,1-_xlfn.NORM.DIST(0,INDEX(Rating,$F21)-INDEX(Rating,O$2),10,1),"") -> 0.07765837972 | P21: =IF($F21<>P$2,1-_xlfn.NORM.DIST(0,INDEX(Rating,$F21)-INDEX(Rating,P$2),10,1),"") -> 0.01267588558 | Q21: =IF($F21<>Q$2,1-_xlfn.NORM.DIST(0,INDEX(Rating,$F21)-INDEX(Rating,Q$2),10,1),"") -> 0.03608850389 | R21: =IF($F21<>R$2,1-_xlfn.NORM.DIST(0,INDEX(Rating,$F21)-INDEX(Rating,R$2),10,1),"") -> 0.01358732045 | S21: =IF($F21<>S$2,1-_xlfn.NORM.DIST(0,INDEX(Rating,$F21)-INDEX(Rating,S$2),10,1),"") -> 0.1326395933 | T21: =IF($F21<>T$2,1-_xlfn.NORM.DIST(0,INDEX(Rating,$F21)-INDEX(Rating,T$2),10,1),"") -> 0.04354055641 | U21: =IF($F21<>U$2,1-_xlfn.NORM.DIST(0,INDEX(Rating,$F21)-INDEX(Rating,U$2),10,1),"") -> 0.02971491891 | V21: =IF($F21<>V$2,1-_xlfn.NORM.DIST(0,INDEX(Rating,$F21)-INDEX(Rating,V$2),10,1),"") -> 0.00696623089 | W21: =IF($F21<>W$2,1-_xlfn.NORM.DIST(0,INDEX(Rating,$F21)-INDEX(Rating,W$2),10,1),"") -> 0.1347965688 | X21: =IF($F21<>X$2,1-_xlfn.NORM.DIST(0,INDEX(Rating,$F21)-INDEX(Rating,X$2),10,1),"") -> 0.008447151181 | Y21: =IF($F21<>Y$2,1-_xlfn.NORM.DIST(0,INDEX(Rating,$F21)-INDEX(Rating,Y$2),10,1),"") ->  | Z21: =IF($F21<>Z$2,1-_xlfn.NORM.DIST(0,INDEX(Rating,$F21)-INDEX(Rating,Z$2),10,1),"") -> 0.5560650288 | AA21: =IF($F21<>AA$2,1-_xlfn.NORM.DIST(0,INDEX(Rating,$F21)-INDEX(Rating,AA$2),10,1),"") -> 0.01675162977 | AB21: =IF($F21<>AB$2,1-_xlfn.NORM.DIST(0,INDEX(Rating,$F21)-INDEX(Rating,AB$2),10,1),"") -> 0.03295759304 | AC21: =IF($F21<>AC$2,1-_xlfn.NORM.DIST(0,INDEX(Rating,$F21)-INDEX(Rating,AC$2),10,1),"") -> 0.01365702967 | AD21: =IF($F21<>AD$2,1-_xlfn.NORM.DIST(0,INDEX(Rating,$F21)-INDEX(Rating,AD$2),10,1),"") -> 0.06400454035 | AE21: =IF($F21<>AE$2,1-_xlfn.NORM.DIST(0,INDEX(Rating,$F21)-INDEX(Rating,AE$2),10,1),"") -> 0.00817516825 | AF21: =IF($F21<>AF$2,1-_xlfn.NORM.DIST(0,INDEX(Rating,$F21)-INDEX(Rating,AF$2),10,1),"") -> 0.1121830457 | AG21: =IF($F21<>AG$2,1-_xlfn.NORM.DIST(0,INDEX(Rating,$F21)-INDEX(Rating,AG$2),10,1),"") -> 0.01932001155 | AH21: =IF($F21<>AH$2,1-_xlfn.NORM.DIST(0,INDEX(Rating,$F21)-INDEX(Rating,AH$2),10,1),"") -> 0.02971491891 | AI21: =IF($F21<>AI$2,1-_xlfn.NORM.DIST(0,INDEX(Rating,$F21)-INDEX(Rating,AI$2),10,1),"") -> 0.02237483149 | AJ21: =IF($F21<>AJ$2,1-_xlfn.NORM.DIST(0,INDEX(Rating,$F21)-INDEX(Rating,AJ$2),10,1),"") -> 0.172329438 | AK21: =IF($F21<>AK$2,1-_xlfn.NORM.DIST(0,INDEX(Rating,$F21)-INDEX(Rating,AK$2),10,1),"") -> 0.02464930531 | AL21: =IF($F21<>AL$2,1-_xlfn.NORM.DIST(0,INDEX(Rating,$F21)-INDEX(Rating,AL$2),10,1),"") -> 0.02971491891 | AM21: =IF($F21<>AM$2,1-_xlfn.NORM.DIST(0,INDEX(Rating,$F21)-INDEX(Rating,AM$2),10,1),"") -> 0.01307422212 | AN21: =IF($F21<>AN$2,1-_xlfn.NORM.DIST(0,INDEX(Rating,$F21)-INDEX(Rating,AN$2),10,1),"") -> 0.1256908105 | AO21: =IF($F21<>AO$2,1-_xlfn.NORM.DIST(0,INDEX(Rating,$F21)-INDEX(Rating,AO$2),10,1),"") -> 0.003930294652 | AP21: =IF($F21<>AP$2,1-_xlfn.NORM.DIST(0,INDEX(Rating,$F21)-INDEX(Rating,AP$2),10,1),"") -> 0.2311697471 | AQ21: =IF($F21<>AQ$2,1-_xlfn.NORM.DIST(0,INDEX(Rating,$F21)-INDEX(Rating,AQ$2),10,1),"") -> 0.02511500635 | AR21: =IF($F21<>AR$2,1-_xlfn.NORM.DIST(0,INDEX(Rating,$F21)-INDEX(Rating,AR$2),10,1),"") -> 0.02248152352 | AS21: =IF($F21<>AS$2,1-_xlfn.NORM.DIST(0,INDEX(Rating,$F21)-INDEX(Rating,AS$2),10,1),"") -> 0.02931217211 | AT21: =IF($F21<>AT$2,1-_xlfn.NORM.DIST(0,INDEX(Rating,$F21)-INDEX(Rating,AT$2),10,1),"") -> 0.04815621775 | AU21: =IF($F21<>AU$2,1-_xlfn.NORM.DIST(0,INDEX(Rating,$F21)-INDEX(Rating,AU$2),10,1),"") -> 0.01812999013 | AV21: =IF($F21<>AV$2,1-_xlfn.NORM.DIST(0,INDEX(Rating,$F21)-INDEX(Rating,AV$2),10,1),"") -> 0.05682478524 | AW21: =IF($F21<>AW$2,1-_xlfn.NORM.DIST(0,INDEX(Rating,$F21)-INDEX(Rating,AW$2),10,1),"") -> 0.02774625181 | AX21: =IF($F21<>AX$2,1-_xlfn.NORM.DIST(0,INDEX(Rating,$F21)-INDEX(Rating,AX$2),10,1),"") -> 0.04465959181 | AY21: =IF($F21<>AY$2,1-_xlfn.NORM.DIST(0,INDEX(Rating,$F21)-INDEX(Rating,AY$2),10,1),"") -> 0.0518685489 | AZ21: =IF($F21<>AZ$2,1-_xlfn.NORM.DIST(0,INDEX(Rating,$F21)-INDEX(Rating,AZ$2),10,1),"") -> 0.01687692593 | BA21: =IF($F21<>BA$2,1-_xlfn.NORM.DIST(0,INDEX(Rating,$F21)-INDEX(Rating,BA$2),10,1),"") -> 0.216813556 | BB21: =IF($F21<>BB$2,1-_xlfn.NORM.DIST(0,INDEX(Rating,$F21)-INDEX(Rating,BB$2),10,1),"") -> 0.01871695303 | BC21: =IF($F21<>BC$2,1-_xlfn.NORM.DIST(0,INDEX(Rating,$F21)-INDEX(Rating,BC$2),10,1),"") -> 0.03137208835 | BD21: =IF($F21<>BD$2,1-_xlfn.NORM.DIST(0,INDEX(Rating,$F21)-INDEX(Rating,BD$2),10,1),"") -> 0.005884432835 | BE21: =IF($F21<>BE$2,1-_xlfn.NORM.DIST(0,INDEX(Rating,$F21)-INDEX(Rating,BE$2),10,1),"") -> 0.1387394961 | BF21: =IF($F21<>BF$2,1-_xlfn.NORM.DIST(0,INDEX(Rating,$F21)-INDEX(Rating,BF$2),10,1),"") -> 0.006793515982 | BG21: =IF($F21<>BG$2,1-_xlfn.NORM.DIST(0,INDEX(Rating,$F21)-INDEX(Rating,BG$2),10,1),"") -> 0.354574222 | BH21: =IF($F21<>BH$2,1-_xlfn.NORM.DIST(0,INDEX(Rating,$F21)-INDEX(Rating,BH$2),10,1),"") -> 0.02023105746 | BI21: =IF($F21<>BI$2,1-_xlfn.NORM.DIST(0,INDEX(Rating,$F21)-INDEX(Rating,BI$2),10,1),"") -> 0.02258864424 | BJ21: =IF($F21<>BJ$2,1-_xlfn.NORM.DIST(0,INDEX(Rating,$F21)-INDEX(Rating,BJ$2),10,1),"") -> 0.01717240379 | BK21: =IF($F21<>BK$2,1-_xlfn.NORM.DIST(0,INDEX(Rating,$F21)-INDEX(Rating,BK$2),10,1),"") -> 0.03453206639 | BL21: =IF($F21<>BL$2,1-_xlfn.NORM.DIST(0,INDEX(Rating,$F21)-INDEX(Rating,BL$2),10,1),"") -> 0.006569119136 | BM21: =IF($F21<>BM$2,1-_xlfn.NORM.DIST(0,INDEX(Rating,$F21)-INDEX(Rating,BM$2),10,1),"") -> 0.07465118681 | BN21: =IF($F21<>BN$2,1-_xlfn.NORM.DIST(0,INDEX(Rating,$F21)-INDEX(Rating,BN$2),10,1),"") -> 0.01932001155 | BO21: =IF($F21<>BO$2,1-_xlfn.NORM.DIST(0,INDEX(Rating,$F21)-INDEX(Rating,BO$2),10,1),"") -> 0.05797527561 | BP21: =IF($F21<>BP$2,1-_xlfn.NORM.DIST(0,INDEX(Rating,$F21)-INDEX(Rating,BP$2),10,1),"") -> 0.08165880232 | BQ21: =IF($F21<>BQ$2,1-_xlfn.NORM.DIST(0,INDEX(Rating,$F21)-INDEX(Rating,BQ$2),10,1),"") -> 0.005867741715 | BR21: =IF($F21<>BR$2,1-_xlfn.NORM.DIST(0,INDEX(Rating,$F21)-INDEX(Rating,BR$2),10,1),"") -> 0.1416355581 | BS21: =IF($F21<>BS$2,1-_xlfn.NORM.DIST(0,INDEX(Rating,$F21)-INDEX(Rating,BS$2),10,1),"") -> 0.03102068275 | BT21: =IF($F21<>BT$2,1-_xlfn.NORM.DIST(0,INDEX(Rating,$F21)-INDEX(Rating,BT$2),10,1),"") -> 0.04825638724 | BU21: =IF($F21<>BU$2,1-_xlfn.NORM.DIST(0,INDEX(Rating,$F21)-INDEX(Rating,BU$2),10,1),"") -> 0.004743324346 | BV21: =IF($F21<>BV$2,1-_xlfn.NORM.DIST(0,INDEX(Rating,$F21)-INDEX(Rating,BV$2),10,1),"") -> 0.2245249312
B22: Fairleigh Dickinson | C22: 20 | D22: 63.86 | F22: 20 | G22: =IF($F22<>G$2,1-_xlfn.NORM.DIST(0,INDEX(Rating,$F22)-INDEX(Rating,G$2),10,1),"") -> 0.001824565989 | H22: =IF($F22<>H$2,1-_xlfn.NORM.DIST(0,INDEX(Rating,$F22)-INDEX(Rating,H$2),10,1),"") -> 0.26173684 | I22: =IF($F22<>I$2,1-_xlfn.NORM.DIST(0,INDEX(Rating,$F22)-INDEX(Rating,I$2),10,1),"") -> 0.3866733693 | J22: =IF($F22<>J$2,1-_xlfn.NORM.DIST(0,INDEX(Rating,$F22)-INDEX(Rating,J$2),10,1),"") -> 0.01534766971 | K22: =IF($F22<>K$2,1-_xlfn.NORM.DIST(0,INDEX(Rating,$F22)-INDEX(Rating,K$2),10,1),"") -> 0.01390344751 | L22: =IF($F22<>L$2,1-_xlfn.NORM.DIST(0,INDEX(Rating,$F22)-INDEX(Rating,L$2),10,1),"") -> 0.0164623631 | M22: =IF($F22<>M$2,1-_xlfn.NORM.DIST(0,INDEX(Rating,$F22)-INDEX(Rating,M$2),10,1),"") -> 0.04618754571 | N22: =IF($F22<>N$2,1-_xlfn.NORM.DIST(0,INDEX(Rating,$F22)-INDEX(Rating,N$2),10,1),"") -> 0.01691886902 | O22: =IF($F22<>O$2,1-_xlfn.NORM.DIST(0,INDEX(Rating,$F22)-INDEX(Rating,O$2),10,1),"") -> 0.05914399443 | P22: =IF($F22<>P$2,1-_xlfn.NORM.DIST(0,INDEX(Rating,$F22)-INDEX(Rating,P$2),10,1),"") -> 0.008727044064 | Q22: =IF($F22<>Q$2,1-_xlfn.NORM.DIST(0,INDEX(Rating,$F22)-INDEX(Rating,Q$2),10,1),"") -> 0.02625066908 | R22: =IF($F22<>R$2,1-_xlfn.NORM.DIST(0,INDEX(Rating,$F22)-INDEX(Rating,R$2),10,1),"") -> 0.009386705535 | S22: =IF($F22<>S$2,1-_xlfn.NORM.DIST(0,INDEX(Rating,$F22)-INDEX(Rating,S$2),10,1),"") -> 0.10473938 | T22: =IF($F22<>T$2,1-_xlfn.NORM.DIST(0,INDEX(Rating,$F22)-INDEX(Rating,T$2),10,1),"") -> 0.03201291145 | U22: =IF($F22<>U$2,1-_xlfn.NORM.DIST(0,INDEX(Rating,$F22)-INDEX(Rating,U$2),10,1),"") -> 0.02138239232 | V22: =IF($F22<>V$2,1-_xlfn.NORM.DIST(0,INDEX(Rating,$F22)-INDEX(Rating,V$2),10,1),"") -> 0.004661188024 | W22: =IF($F22<>W$2,1-_xlfn.NORM.DIST(0,INDEX(Rating,$F22)-INDEX(Rating,W$2),10,1),"") -> 0.1065658751 | X22: =IF($F22<>X$2,1-_xlfn.NORM.DIST(0,INDEX(Rating,$F22)-INDEX(Rating,X$2),10,1),"") -> 0.005703126333 | Y22: =IF($F22<>Y$2,1-_xlfn.NORM.DIST(0,INDEX(Rating,$F22)-INDEX(Rating,Y$2),10,1),"") -> 0.4439349712 | Z22: =IF($F22<>Z$2,1-_xlfn.NORM.DIST(0,INDEX(Rating,$F22)-INDEX(Rating,Z$2),10,1),"") ->  | AA22: =IF($F22<>AA$2,1-_xlfn.NORM.DIST(0,INDEX(Rating,$F22)-INDEX(Rating,AA$2),10,1),"") -> 0.01169511286 | AB22: =IF($F22<>AB$2,1-_xlfn.NORM.DIST(0,INDEX(Rating,$F22)-INDEX(Rating,AB$2),10,1),"") -> 0.02385176434 | AC22: =IF($F22<>AC$2,1-_xlfn.NORM.DIST(0,INDEX(Rating,$F22)-INDEX(Rating,AC$2),10,1),"") -> 0.009437260652 | AD22: =IF($F22<>AD$2,1-_xlfn.NORM.DIST(0,INDEX(Rating,$F22)-INDEX(Rating,AD$2),10,1),"") -> 0.04815621775 | AE22: =IF($F22<>AE$2,1-_xlfn.NORM.DIST(0,INDEX(Rating,$F22)-INDEX(Rating,AE$2),10,1),"") -> 0.005511008676 | AF22: =IF($F22<>AF$2,1-_xlfn.NORM.DIST(0,INDEX(Rating,$F22)-INDEX(Rating,AF$2),10,1),"") -> 0.08754958403 | AG22: =IF($F22<>AG$2,1-_xlfn.NORM.DIST(0,INDEX(Rating,$F22)-INDEX(Rating,AG$2),10,1),"") -> 0.01358732045 | AH22: =IF($F22<>AH$2,1-_xlfn.NORM.DIST(0,INDEX(Rating,$F22)-INDEX(Rating,AH$2),10,1),"") -> 0.02138239232 | AI22: =IF($F22<>AI$2,1-_xlfn.NORM.DIST(0,INDEX(Rating,$F22)-INDEX(Rating,AI$2),10,1),"") -> 0.01585687773 | AJ22: =IF($F22<>AJ$2,1-_xlfn.NORM.DIST(0,INDEX(Rating,$F22)-INDEX(Rating,AJ$2),10,1),"") -> 0.1387394961 | AK22: =IF($F22<>AK$2,1-_xlfn.NORM.DIST(0,INDEX(Rating,$F22)-INDEX(Rating,AK$2),10,1),"") -> 0.01755878979 | AL22: =IF($F22<>AL$2,1-_xlfn.NORM.DIST(0,INDEX(Rating,$F22)-INDEX(Rating,AL$2),10,1),"") -> 0.02138239232 | AM22: =IF($F22<>AM$2,1-_xlfn.NORM.DIST(0,INDEX(Rating,$F22)-INDEX(Rating,AM$2),10,1),"") -> 0.009015035465 | AN22: =IF($F22<>AN$2,1-_xlfn.NORM.DIST(0,INDEX(Rating,$F22)-INDEX(Rating,AN$2),10,1),"") -> 0.09887298159 | AO22: =IF($F22<>AO$2,1-_xlfn.NORM.DIST(0,INDEX(Rating,$F22)-INDEX(Rating,AO$2),10,1),"") -> 0.002563056873 | AP22: =IF($F22<>AP$2,1-_xlfn.NORM.DIST(0,INDEX(Rating,$F22)-INDEX(Rating,AP$2),10,1),"") -> 0.1905150169 | AQ22: =IF($F22<>AQ$2,1-_xlfn.NORM.DIST(0,INDEX(Rating,$F22)-INDEX(Rating,AQ$2),10,1),"") -> 0.01790845037 | AR22: =IF($F22<>AR$2,1-_xlfn.NORM.DIST(0,INDEX(Rating,$F22)-INDEX(Rating,AR$2),10,1),"") -> 0.01593648935 | AS22: =IF($F22<>AS$2,1-_xlfn.NORM.DIST(0,INDEX(Rating,$F22)-INDEX(Rating,AS$2),10,1),"") -> 0.02107682797 | AT22: =IF($F22<>AT$2,1-_xlfn.NORM.DIST(0,INDEX(Rating,$F22)-INDEX(Rating,AT$2),10,1),"") -> 0.03561565348 | AU22: =IF($F22<>AU$2,1-_xlfn.NORM.DIST(0,INDEX(Rating,$F22)-INDEX(Rating,AU$2),10,1),"") -> 0.01270867437 | AV22: =IF($F22<>AV$2,1-_xlfn.NORM.DIST(0,INDEX(Rating,$F22)-INDEX(Rating,AV$2),10,1),"") -> 0.04244426252 | AW22: =IF($F22<>AW$2,1-_xlfn.NORM.DIST(0,INDEX(Rating,$F22)-INDEX(Rating,AW$2),10,1),"") -> 0.0198912581 | AX22: =IF($F22<>AX$2,1-_xlfn.NORM.DIST(0,INDEX(Rating,$F22)-INDEX(Rating,AX$2),10,1),"") -> 0.03288411866 | AY22: =IF($F22<>AY$2,1-_xlfn.NORM.DIST(0,INDEX(Rating,$F22)-INDEX(Rating,AY$2),10,1),"") -> 0.03853045183 | AZ22: =IF($F22<>AZ$2,1-_xlfn.NORM.DIST(0,INDEX(Rating,$F22)-INDEX(Rating,AZ$2),10,1),"") -> 0.01178705739 | BA22: =IF($F22<>BA$2,1-_xlfn.NORM.DIST(0,INDEX(Rating,$F22)-INDEX(Rating,BA$2),10,1),"") -> 0.1777431579 | BB22: =IF($F22<>BB$2,1-_xlfn.NORM.DIST(0,INDEX(Rating,$F22)-INDEX(Rating,BB$2),10,1),"") -> 0.0131416528 | BC22: =IF($F22<>BC$2,1-_xlfn.NORM.DIST(0,INDEX(Rating,$F22)-INDEX(Rating,BC$2),10,1),"") -> 0.02264236576 | BD22: =IF($F22<>BD$2,1-_xlfn.NORM.DIST(0,INDEX(Rating,$F22)-INDEX(Rating,BD$2),10,1),"") -> 0.003907032575 | BE22: =IF($F22<>BE$2,1-_xlfn.NORM.DIST(0,INDEX(Rating,$F22)-INDEX(Rating,BE$2),10,1),"") -> 0.1099112955 | BF22: =IF($F22<>BF$2,1-_xlfn.NORM.DIST(0,INDEX(Rating,$F22)-INDEX(Rating,BF$2),10,1),"") -> 0.004540362118 | BG22: =IF($F22<>BG$2,1-_xlfn.NORM.DIST(0,INDEX(Rating,$F22)-INDEX(Rating,BG$2),10,1),"") -> 0.3036259953 | BH22: =IF($F22<>BH$2,1-_xlfn.NORM.DIST(0,INDEX(Rating,$F22)-INDEX(Rating,BH$2),10,1),"") -> 0.01426211841 | BI22: =IF($F22<>BI$2,1-_xlfn.NORM.DIST(0,INDEX(Rating,$F22)-INDEX(Rating,BI$2),10,1),"") -> 0.01601644339 | BJ22: =IF($F22<>BJ$2,1-_xlfn.NORM.DIST(0,INDEX(Rating,$F22)-INDEX(Rating,BJ$2),10,1),"") -> 0.01200403738 | BK22: =IF($F22<>BK$2,1-_xlfn.NORM.DIST(0,INDEX(Rating,$F22)-INDEX(Rating,BK$2),10,1),"") -> 0.02505639339 | BL22: =IF($F22<>BL$2,1-_xlfn.NORM.DIST(0,INDEX(Rating,$F22)-INDEX(Rating,BL$2),10,1),"") -> 0.004383613098 | BM22: =IF($F22<>BM$2,1-_xlfn.NORM.DIST(0,INDEX(Rating,$F22)-INDEX(Rating,BM$2),10,1),"") -> 0.05671073219 | BN22: =IF($F22<>BN$2,1-_xlfn.NORM.DIST(0,INDEX(Rating,$F22)-INDEX(Rating,BN$2),10,1),"") -> 0.01358732045 | BO22: =IF($F22<>BO$2,1-_xlfn.NORM.DIST(0,INDEX(Rating,$F22)-INDEX(Rating,BO$2),10,1),"") -> 0.0433562698 | BP22: =IF($F22<>BP$2,1-_xlfn.NORM.DIST(0,INDEX(Rating,$F22)-INDEX(Rating,BP$2),10,1),"") -> 0.06239191402 | BQ22: =IF($F22<>BQ$2,1-_xlfn.NORM.DIST(0,INDEX(Rating,$F22)-INDEX(Rating,BQ$2),10,1),"") -> 0.003895447856 | BR22: =IF($F22<>BR$2,1-_xlfn.NORM.DIST(0,INDEX(Rating,$F22)-INDEX(Rating,BR$2),10,1),"") -> 0.1123738621 | BS22: =IF($F22<>BS$2,1-_xlfn.NORM.DIST(0,INDEX(Rating,$F22)-INDEX(Rating,BS$2),10,1),"") -> 0.02237483149 | BT22: =IF($F22<>BT$2,1-_xlfn.NORM.DIST(0,INDEX(Rating,$F22)-INDEX(Rating,BT$2),10,1),"") -> 0.03569410734 | BU22: =IF($F22<>BU$2,1-_xlfn.NORM.DIST(0,INDEX(Rating,$F22)-INDEX(Rating,BU$2),10,1),"") -> 0.003119013803 | BV22: =IF($F22<>BV$2,1-_xlfn.NORM.DIST(0,INDEX(Rating,$F22)-INDEX(Rating,BV$2),10,1),"") -> 0.1845927747
B23: Memphis | C23: 21 | D23: 86.53 | F23: 21 | G23: =IF($F23<>G$2,1-_xlfn.NORM.DIST(0,INDEX(Rating,$F23)-INDEX(Rating,G$2),10,1),"") -> 0.2610862997 | H23: =IF($F23<>H$2,1-_xlfn.NORM.DIST(0,INDEX(Rating,$F23)-INDEX(Rating,H$2),10,1),"") -> 0.9483434905 | I23: =IF($F23<>I$2,1-_xlfn.NORM.DIST(0,INDEX(Rating,$F23)-INDEX(Rating,I$2),10,1),"") -> 0.9760919969 | J23: =IF($F23<>J$2,1-_xlfn.NORM.DIST(0,INDEX(Rating,$F23)-INDEX(Rating,J$2),10,1),"") -> 0.5422088239 | K23: =IF($F23<>K$2,1-_xlfn.NORM.DIST(0,INDEX(Rating,$F23)-INDEX(Rating,K$2),10,1),"") -> 0.5267091484 | L23: =IF($F23<>L$2,1-_xlfn.NORM.DIST(0,INDEX(Rating,$F23)-INDEX(Rating,L$2),10,1),"") -> 0.5532987128 | M23: =IF($F23<>M$2,1-_xlfn.NORM.DIST(0,INDEX(Rating,$F23)-INDEX(Rating,M$2),10,1),"") -> 0.720389844 | N23: =IF($F23<>N$2,1-_xlfn.NORM.DIST(0,INDEX(Rating,$F23)-INDEX(Rating,N$2),10,1),"") -> 0.5576445641 | O23: =IF($F23<>O$2,1-_xlfn.NORM.DIST(0,INDEX(Rating,$F23)-INDEX(Rating,O$2),10,1),"") -> 0.7595948819 | P23: =IF($F23<>P$2,1-_xlfn.NORM.DIST(0,INDEX(Rating,$F23)-INDEX(Rating,P$2),10,1),"") -> 0.4562046875 | Q23: =IF($F23<>Q$2,1-_xlfn.NORM.DIST(0,INDEX(Rating,$F23)-INDEX(Rating,Q$2),10,1),"") -> 0.6285441687 | R23: =IF($F23<>R$2,1-_xlfn.NORM.DIST(0,INDEX(Rating,$F23)-INDEX(Rating,R$2),10,1),"") -> 0.4669257698 | S23: =IF($F23<>S$2,1-_xlfn.NORM.DIST(0,INDEX(Rating,$F23)-INDEX(Rating,S$2),10,1),"") -> 0.8442309733 | T23: =IF($F23<>T$2,1-_xlfn.NORM.DIST(0,INDEX(Rating,$F23)-INDEX(Rating,T$2),10,1),"") -> 0.6609290484 | U23: =IF($F23<>U$2,1-_xlfn.NORM.DIST(0,INDEX(Rating,$F23)-INDEX(Rating,U$2),10,1),"") -> 0.5952224417 | V23: =IF($F23<>V$2,1-_xlfn.NORM.DIST(0,INDEX(Rating,$F23)-INDEX(Rating,V$2),10,1),"") -> 0.3695671416 | W23: =IF($F23<>W$2,1-_xlfn.NORM.DIST(0,INDEX(Rating,$F23)-INDEX(Rating,W$2),10,1),"") -> 0.8466095498 | X23: =IF($F23<>X$2,1-_xlfn.NORM.DIST(0,INDEX(Rating,$F23)-INDEX(Rating,X$2),10,1),"") -> 0.3962752896 | Y23: =IF($F23<>Y$2,1-_xlfn.NORM.DIST(0,INDEX(Rating,$F23)-INDEX(Rating,Y$2),10,1),"") -> 0.9832483702 | Z23: =IF($F23<>Z$2,1-_xlfn.NORM.DIST(0,INDEX(Rating,$F23)-INDEX(Rating,Z$2),10,1),"") -> 0.9883048871 | AA23: =IF($F23<>AA$2,1-_xlfn.NORM.DIST(0,INDEX(Rating,$F23)-INDEX(Rating,AA$2),10,1),"") ->  | AB23: =IF($F23<>AB$2,1-_xlfn.NORM.DIST(0,INDEX(Rating,$F23)-INDEX(Rating,AB$2),10,1),"") -> 0.6129438399 | AC23: =IF($F23<>AC$2,1-_xlfn.NORM.DIST(0,INDEX(Rating,$F23)-INDEX(Rating,AC$2),10,1),"") -> 0.4677209763 | AD23: =IF($F23<>AD$2,1-_xlfn.NORM.DIST(0,INDEX(Rating,$F23)-INDEX(Rating,AD$2),10,1),"") -> 0.7270781789 | AE23: =IF($F23<>AE$2,1-_xlfn.NORM.DIST(0,INDEX(Rating,$F23)-INDEX(Rating,AE$2),10,1),"") -> 0.3916581192 | AF23: =IF($F23<>AF$2,1-_xlfn.NORM.DIST(0,INDEX(Rating,$F23)-INDEX(Rating,AF$2),10,1),"") -> 0.8188523132 | AG23: =IF($F23<>AG$2,1-_xlfn.NORM.DIST(0,INDEX(Rating,$F23)-INDEX(Rating,AG$2),10,1),"") -> 0.5231256857 | AH23: =IF($F23<>AH$2,1-_xlfn.NORM.DIST(0,INDEX(Rating,$F23)-INDEX(Rating,AH$2),10,1),"") -> 0.5952224417 | AI23: =IF($F23<>AI$2,1-_xlfn.NORM.DIST(0,INDEX(Rating,$F23)-INDEX(Rating,AI$2),10,1),"") -> 0.5473623221 | AJ23: =IF($F23<>AJ$2,1-_xlfn.NORM.DIST(0,INDEX(Rating,$F23)-INDEX(Rating,AJ$2),10,1),"") -> 0.8811986383 | AK23: =IF($F23<>AK$2,1-_xlfn.NORM.DIST(0,INDEX(Rating,$F23)-INDEX(Rating,AK$2),10,1),"") -> 0.5635594629 | AL23: =IF($F23<>AL$2,1-_xlfn.NORM.DIST(0,INDEX(Rating,$F23)-INDEX(Rating,AL$2),10,1),"") -> 0.5952224417 | AM23: =IF($F23<>AM$2,1-_xlfn.NORM.DIST(0,INDEX(Rating,$F23)-INDEX(Rating,AM$2),10,1),"") -> 0.4609661467 | AN23: =IF($F23<>AN$2,1-_xlfn.NORM.DIST(0,INDEX(Rating,$F23)-INDEX(Rating,AN$2),10,1),"") -> 0.8362100102 | AO23: =IF($F23<>AO$2,1-_xlfn.NORM.DIST(0,INDEX(Rating,$F23)-INDEX(Rating,AO$2),10,1),"") -> 0.2973629978 | AP23: =IF($F23<>AP$2,1-_xlfn.NORM.DIST(0,INDEX(Rating,$F23)-INDEX(Rating,AP$2),10,1),"") -> 0.9178872866 | AQ23: =IF($F23<>AQ$2,1-_xlfn.NORM.DIST(0,INDEX(Rating,$F23)-INDEX(Rating,AQ$2),10,1),"") -> 0.5667083605 | AR23: =IF($F23<>AR$2,1-_xlfn.NORM.DIST(0,INDEX(Rating,$F23)-INDEX(Rating,AR$2),10,1),"") -> 0.5481544824 | AS23: =IF($F23<>AS$2,1-_xlfn.NORM.DIST(0,INDEX(Rating,$F23)-INDEX(Rating,AS$2),10,1),"") -> 0.5928956334 | AT23: =IF($F23<>AT$2,1-_xlfn.NORM.DIST(0,INDEX(Rating,$F23)-INDEX(Rating,AT$2),10,1),"") -> 0.6783178164 | AU23: =IF($F23<>AU$2,1-_xlfn.NORM.DIST(0,INDEX(Rating,$F23)-INDEX(Rating,AU$2),10,1),"") -> 0.5127639746 | AV23: =IF($F23<>AV$2,1-_xlfn.NORM.DIST(0,INDEX(Rating,$F23)-INDEX(Rating,AV$2),10,1),"") -> 0.7067792636 | AW23: =IF($F23<>AW$2,1-_xlfn.NORM.DIST(0,INDEX(Rating,$F23)-INDEX(Rating,AW$2),10,1),"") -> 0.5835563643 | AX23: =IF($F23<>AX$2,1-_xlfn.NORM.DIST(0,INDEX(Rating,$F23)-INDEX(Rating,AX$2),10,1),"") -> 0.6653103362 | AY23: =IF($F23<>AY$2,1-_xlfn.NORM.DIST(0,INDEX(Rating,$F23)-INDEX(Rating,AY$2),10,1),"") -> 0.691110308 | AZ23: =IF($F23<>AZ$2,1-_xlfn.NORM.DIST(0,INDEX(Rating,$F23)-INDEX(Rating,AZ$2),10,1),"") -> 0.501196825 | BA23: =IF($F23<>BA$2,1-_xlfn.NORM.DIST(0,INDEX(Rating,$F23)-INDEX(Rating,BA$2),10,1),"") -> 0.9103640131 | BB23: =IF($F23<>BB$2,1-_xlfn.NORM.DIST(0,INDEX(Rating,$F23)-INDEX(Rating,BB$2),10,1),"") -> 0.5179463455 | BC23: =IF($F23<>BC$2,1-_xlfn.NORM.DIST(0,INDEX(Rating,$F23)-INDEX(Rating,BC$2),10,1),"") -> 0.6044952691 | BD23: =IF($F23<>BD$2,1-_xlfn.NORM.DIST(0,INDEX(Rating,$F23)-INDEX(Rating,BD$2),10,1),"") -> 0.3471597407 | BE23: =IF($F23<>BE$2,1-_xlfn.NORM.DIST(0,INDEX(Rating,$F23)-INDEX(Rating,BE$2),10,1),"") -> 0.8508300497 | BF23: =IF($F23<>BF$2,1-_xlfn.NORM.DIST(0,INDEX(Rating,$F23)-INDEX(Rating,BF$2),10,1),"") -> 0.3661754461 | BG23: =IF($F23<>BG$2,1-_xlfn.NORM.DIST(0,INDEX(Rating,$F23)-INDEX(Rating,BG$2),10,1),"") -> 0.9601989965 | BH23: =IF($F23<>BH$2,1-_xlfn.NORM.DIST(0,INDEX(Rating,$F23)-INDEX(Rating,BH$2),10,1),"") -> 0.5306882275 | BI23: =IF($F23<>BI$2,1-_xlfn.NORM.DIST(0,INDEX(Rating,$F23)-INDEX(Rating,BI$2),10,1),"") -> 0.548946451 | BJ23: =IF($F23<>BJ$2,1-_xlfn.NORM.DIST(0,INDEX(Rating,$F23)-INDEX(Rating,BJ$2),10,1),"") -> 0.5039893563 | BK23: =IF($F23<>BK$2,1-_xlfn.NORM.DIST(0,INDEX(Rating,$F23)-INDEX(Rating,BK$2),10,1),"") -> 0.6209588338 | BL23: =IF($F23<>BL$2,1-_xlfn.NORM.DIST(0,INDEX(Rating,$F23)-INDEX(Rating,BL$2),10,1),"") -> 0.3616694416 | BM23: =IF($F23<>BM$2,1-_xlfn.NORM.DIST(0,INDEX(Rating,$F23)-INDEX(Rating,BM$2),10,1),"") -> 0.7530124171 | BN23: =IF($F23<>BN$2,1-_xlfn.NORM.DIST(0,INDEX(Rating,$F23)-INDEX(Rating,BN$2),10,1),"") -> 0.5231256857 | BO23: =IF($F23<>BO$2,1-_xlfn.NORM.DIST(0,INDEX(Rating,$F23)-INDEX(Rating,BO$2),10,1),"") -> 0.7102105771 | BP23: =IF($F23<>BP$2,1-_xlfn.NORM.DIST(0,INDEX(Rating,$F23)-INDEX(Rating,BP$2),10,1),"") -> 0.7679157161 | BQ23: =IF($F23<>BQ$2,1-_xlfn.NORM.DIST(0,INDEX(Rating,$F23)-INDEX(Rating,BQ$2),10,1),"") -> 0.3467905196 | BR23: =IF($F23<>BR$2,1-_xlfn.NORM.DIST(0,INDEX(Rating,$F23)-INDEX(Rating,BR$2),10,1),"") -> 0.853829504 | BS23: =IF($F23<>BS$2,1-_xlfn.NORM.DIST(0,INDEX(Rating,$F23)-INDEX(Rating,BS$2),10,1),"") -> 0.6025681132 | BT23: =IF($F23<>BT$2,1-_xlfn.NORM.DIST(0,INDEX(Rating,$F23)-INDEX(Rating,BT$2),10,1),"") -> 0.6786761272 | BU23: =IF($F23<>BU$2,1-_xlfn.NORM.DIST(0,INDEX(Rating,$F23)-INDEX(Rating,BU$2),10,1),"") -> 0.3198922949 | BV23: =IF($F23<>BV$2,1-_xlfn.NORM.DIST(0,INDEX(Rating,$F23)-INDEX(Rating,BV$2),10,1),"") -> 0.9145003625
B24: Florida Atlantic | C24: 22 | D24: 83.66 | F24: 22 | G24: =IF($F24<>G$2,1-_xlfn.NORM.DIST(0,INDEX(Rating,$F24)-INDEX(Rating,G$2),10,1),"") -> 0.1769632671 | H24: =IF($F24<>H$2,1-_xlfn.NORM.DIST(0,INDEX(Rating,$F24)-INDEX(Rating,H$2),10,1),"") -> 0.9102020022 | I24: =IF($F24<>I$2,1-_xlfn.NORM.DIST(0,INDEX(Rating,$F24)-INDEX(Rating,I$2),10,1),"") -> 0.9546770132 | J24: =IF($F24<>J$2,1-_xlfn.NORM.DIST(0,INDEX(Rating,$F24)-INDEX(Rating,J$2),10,1),"") -> 0.428183788 | K24: =IF($F24<>K$2,1-_xlfn.NORM.DIST(0,INDEX(Rating,$F24)-INDEX(Rating,K$2),10,1),"") -> 0.4129355774 | L24: =IF($F24<>L$2,1-_xlfn.NORM.DIST(0,INDEX(Rating,$F24)-INDEX(Rating,L$2),10,1),"") -> 0.4391991376 | M24: =IF($F24<>M$2,1-_xlfn.NORM.DIST(0,INDEX(Rating,$F24)-INDEX(Rating,M$2),10,1),"") -> 0.6167667454 | N24: =IF($F24<>N$2,1-_xlfn.NORM.DIST(0,INDEX(Rating,$F24)-INDEX(Rating,N$2),10,1),"") -> 0.4435400028 | O24: =IF($F24<>O$2,1-_xlfn.NORM.DIST(0,INDEX(Rating,$F24)-INDEX(Rating,O$2),10,1),"") -> 0.6620264414 | P24: =IF($F24<>P$2,1-_xlfn.NORM.DIST(0,INDEX(Rating,$F24)-INDEX(Rating,P$2),10,1),"") -> 0.3456837303 | Q24: =IF($F24<>Q$2,1-_xlfn.NORM.DIST(0,INDEX(Rating,$F24)-INDEX(Rating,Q$2),10,1),"") -> 0.5163520521 | R24: =IF($F24<>R$2,1-_xlfn.NORM.DIST(0,INDEX(Rating,$F24)-INDEX(Rating,R$2),10,1),"") -> 0.3556912452 | S24: =IF($F24<>S$2,1-_xlfn.NORM.DIST(0,INDEX(Rating,$F24)-INDEX(Rating,S$2),10,1),"") -> 0.7657739848 | T24: =IF($F24<>T$2,1-_xlfn.NORM.DIST(0,INDEX(Rating,$F24)-INDEX(Rating,T$2),10,1),"") -> 0.5509255135 | U24: =IF($F24<>U$2,1-_xlfn.NORM.DIST(0,INDEX(Rating,$F24)-INDEX(Rating,U$2),10,1),"") -> 0.481655125 | V24: =IF($F24<>V$2,1-_xlfn.NORM.DIST(0,INDEX(Rating,$F24)-INDEX(Rating,V$2),10,1),"") -> 0.2676288935 | W24: =IF($F24<>W$2,1-_xlfn.NORM.DIST(0,INDEX(Rating,$F24)-INDEX(Rating,W$2),10,1),"") -> 0.7688302529 | X24: =IF($F24<>X$2,1-_xlfn.NORM.DIST(0,INDEX(Rating,$F24)-INDEX(Rating,X$2),10,1),"") -> 0.2911596868 | Y24: =IF($F24<>Y$2,1-_xlfn.NORM.DIST(0,INDEX(Rating,$F24)-INDEX(Rating,Y$2),10,1),"") -> 0.967042407 | Z24: =IF($F24<>Z$2,1-_xlfn.NORM.DIST(0,INDEX(Rating,$F24)-INDEX(Rating,Z$2),10,1),"") -> 0.9761482357 | AA24: =IF($F24<>AA$2,1-_xlfn.NORM.DIST(0,INDEX(Rating,$F24)-INDEX(Rating,AA$2),10,1),"") -> 0.3870561601 | AB24: =IF($F24<>AB$2,1-_xlfn.NORM.DIST(0,INDEX(Rating,$F24)-INDEX(Rating,AB$2),10,1),"") ->  | AC24: =IF($F24<>AC$2,1-_xlfn.NORM.DIST(0,INDEX(Rating,$F24)-INDEX(Rating,AC$2),10,1),"") -> 0.3564366171 | AD24: =IF($F24<>AD$2,1-_xlfn.NORM.DIST(0,INDEX(Rating,$F24)-INDEX(Rating,AD$2),10,1),"") -> 0.6243781989 | AE24: =IF($F24<>AE$2,1-_xlfn.NORM.DIST(0,INDEX(Rating,$F24)-INDEX(Rating,AE$2),10,1),"") -> 0.2870580096 | AF24: =IF($F24<>AF$2,1-_xlfn.NORM.DIST(0,INDEX(Rating,$F24)-INDEX(Rating,AF$2),10,1),"") -> 0.7336862075 | AG24: =IF($F24<>AG$2,1-_xlfn.NORM.DIST(0,INDEX(Rating,$F24)-INDEX(Rating,AG$2),10,1),"") -> 0.4094344581 | AH24: =IF($F24<>AH$2,1-_xlfn.NORM.DIST(0,INDEX(Rating,$F24)-INDEX(Rating,AH$2),10,1),"") -> 0.481655125 | AI24: =IF($F24<>AI$2,1-_xlfn.NORM.DIST(0,INDEX(Rating,$F24)-INDEX(Rating,AI$2),10,1),"") -> 0.4332916395 | AJ24: =IF($F24<>AJ$2,1-_xlfn.NORM.DIST(0,INDEX(Rating,$F24)-INDEX(Rating,AJ$2),10,1),"") -> 0.8143390544 | AK24: =IF($F24<>AK$2,1-_xlfn.NORM.DIST(0,INDEX(Rating,$F24)-INDEX(Rating,AK$2),10,1),"") -> 0.4494701993 | AL24: =IF($F24<>AL$2,1-_xlfn.NORM.DIST(0,INDEX(Rating,$F24)-INDEX(Rating,AL$2),10,1),"") -> 0.481655125 | AM24: =IF($F24<>AM$2,1-_xlfn.NORM.DIST(0,INDEX(Rating,$F24)-INDEX(Rating,AM$2),10,1),"") -> 0.3501187078 | AN24: =IF($F24<>AN$2,1-_xlfn.NORM.DIST(0,INDEX(Rating,$F24)-INDEX(Rating,AN$2),10,1),"") -> 0.7555313355 | AO24: =IF($F24<>AO$2,1-_xlfn.NORM.DIST(0,INDEX(Rating,$F24)-INDEX(Rating,AO$2),10,1),"") -> 0.2063932068 | AP24: =IF($F24<>AP$2,1-_xlfn.NORM.DIST(0,INDEX(Rating,$F24)-INDEX(Rating,AP$2),10,1),"") -> 0.8652034312 | AQ24: =IF($F24<>AQ$2,1-_xlfn.NORM.DIST(0,INDEX(Rating,$F24)-INDEX(Rating,AQ$2),10,1),"") -> 0.4526376779 | AR24: =IF($F24<>AR$2,1-_xlfn.NORM.DIST(0,INDEX(Rating,$F24)-INDEX(Rating,AR$2),10,1),"") -> 0.4340784751 | AS24: =IF($F24<>AS$2,1-_xlfn.NORM.DIST(0,INDEX(Rating,$F24)-INDEX(Rating,AS$2),10,1),"") -> 0.4792643467 | AT24: =IF($F24<>AT$2,1-_xlfn.NORM.DIST(0,INDEX(Rating,$F24)-INDEX(Rating,AT$2),10,1),"") -> 0.5698530288 | AU24: =IF($F24<>AU$2,1-_xlfn.NORM.DIST(0,INDEX(Rating,$F24)-INDEX(Rating,AU$2),10,1),"") -> 0.3993615496 | AV24: =IF($F24<>AV$2,1-_xlfn.NORM.DIST(0,INDEX(Rating,$F24)-INDEX(Rating,AV$2),10,1),"") -> 0.6014106135 | AW24: =IF($F24<>AW$2,1-_xlfn.NORM.DIST(0,INDEX(Rating,$F24)-INDEX(Rating,AW$2),10,1),"") -> 0.4697095491 | AX24: =IF($F24<>AX$2,1-_xlfn.NORM.DIST(0,INDEX(Rating,$F24)-INDEX(Rating,AX$2),10,1),"") -> 0.5556700048 | AY24: =IF($F24<>AY$2,1-_xlfn.NORM.DIST(0,INDEX(Rating,$F24)-INDEX(Rating,AY$2),10,1),"") -> 0.5839464828 | AZ24: =IF($F24<>AZ$2,1-_xlfn.NORM.DIST(0,INDEX(Rating,$F24)-INDEX(Rating,AZ$2),10,1),"") -> 0.3882051903 | BA24: =IF($F24<>BA$2,1-_xlfn.NORM.DIST(0,INDEX(Rating,$F24)-INDEX(Rating,BA$2),10,1),"") -> 0.8545158926 | BB24: =IF($F24<>BB$2,1-_xlfn.NORM.DIST(0,INDEX(Rating,$F24)-INDEX(Rating,BB$2),10,1),"") -> 0.4043900816 | BC24: =IF($F24<>BC$2,1-_xlfn.NORM.DIST(0,INDEX(Rating,$F24)-INDEX(Rating,BC$2),10,1),"") -> 0.4912239778 | BD24: =IF($F24<>BD$2,1-_xlfn.NORM.DIST(0,INDEX(Rating,$F24)-INDEX(Rating,BD$2),10,1),"") -> 0.2482522305 | BE24: =IF($F24<>BE$2,1-_xlfn.NORM.DIST(0,INDEX(Rating,$F24)-INDEX(Rating,BE$2),10,1),"") -> 0.774275043 | BF24: =IF($F24<>BF$2,1-_xlfn.NORM.DIST(0,INDEX(Rating,$F24)-INDEX(Rating,BF$2),10,1),"") -> 0.2646745281 | BG24: =IF($F24<>BG$2,1-_xlfn.NORM.DIST(0,INDEX(Rating,$F24)-INDEX(Rating,BG$2),10,1),"") -> 0.9286758566 | BH24: =IF($F24<>BH$2,1-_xlfn.NORM.DIST(0,INDEX(Rating,$F24)-INDEX(Rating,BH$2),10,1),"") -> 0.4168338365 | BI24: =IF($F24<>BI$2,1-_xlfn.NORM.DIST(0,INDEX(Rating,$F24)-INDEX(Rating,BI$2),10,1),"") -> 0.4348655719 | BJ24: =IF($F24<>BJ$2,1-_xlfn.NORM.DIST(0,INDEX(Rating,$F24)-INDEX(Rating,BJ$2),10,1),"") -> 0.3908900531 | BK24: =IF($F24<>BK$2,1-_xlfn.NORM.DIST(0,INDEX(Rating,$F24)-INDEX(Rating,BK$2),10,1),"") -> 0.5083771722 | BL24: =IF($F24<>BL$2,1-_xlfn.NORM.DIST(0,INDEX(Rating,$F24)-INDEX(Rating,BL$2),10,1),"") -> 0.2607613415 | BM24: =IF($F24<>BM$2,1-_xlfn.NORM.DIST(0,INDEX(Rating,$F24)-INDEX(Rating,BM$2),10,1),"") -> 0.6543162697 | BN24: =IF($F24<>BN$2,1-_xlfn.NORM.DIST(0,INDEX(Rating,$F24)-INDEX(Rating,BN$2),10,1),"") -> 0.4094344581 | BO24: =IF($F24<>BO$2,1-_xlfn.NORM.DIST(0,INDEX(Rating,$F24)-INDEX(Rating,BO$2),10,1),"") -> 0.6052654195 | BP24: =IF($F24<>BP$2,1-_xlfn.NORM.DIST(0,INDEX(Rating,$F24)-INDEX(Rating,BP$2),10,1),"") -> 0.6718401229 | BQ24: =IF($F24<>BQ$2,1-_xlfn.NORM.DIST(0,INDEX(Rating,$F24)-INDEX(Rating,BQ$2),10,1),"") -> 0.2479357452 | BR24: =IF($F24<>BR$2,1-_xlfn.NORM.DIST(0,INDEX(Rating,$F24)-INDEX(Rating,BR$2),10,1),"") -> 0.7781618489 | BS24: =IF($F24<>BS$2,1-_xlfn.NORM.DIST(0,INDEX(Rating,$F24)-INDEX(Rating,BS$2),10,1),"") -> 0.489229867 | BT24: =IF($F24<>BT$2,1-_xlfn.NORM.DIST(0,INDEX(Rating,$F24)-INDEX(Rating,BT$2),10,1),"") -> 0.5702458052 | BU24: =IF($F24<>BU$2,1-_xlfn.NORM.DIST(0,INDEX(Rating,$F24)-INDEX(Rating,BU$2),10,1),"") -> 0.2251244911 | BV24: =IF($F24<>BV$2,1-_xlfn.NORM.DIST(0,INDEX(Rating,$F24)-INDEX(Rating,BV$2),10,1),"") -> 0.860373736
B25: Duke | C25: 23 | D25: 87.34 | F25: 23 | G25: =IF($F25<>G$2,1-_xlfn.NORM.DIST(0,INDEX(Rating,$F25)-INDEX(Rating,G$2),10,1),"") -> 0.2880808601 | H25: =IF($F25<>H$2,1-_xlfn.NORM.DIST(0,INDEX(Rating,$F25)-INDEX(Rating,H$2),10,1),"") -> 0.9563670635 | I25: =IF($F25<>I$2,1-_xlfn.NORM.DIST(0,INDEX(Rating,$F25)-INDEX(Rating,I$2),10,1),"") -> 0.9803007296 | J25: =IF($F25<>J$2,1-_xlfn.NORM.DIST(0,INDEX(Rating,$F25)-INDEX(Rating,J$2),10,1),"") -> 0.5741696835 | K25: =IF($F25<>K$2,1-_xlfn.NORM.DIST(0,INDEX(Rating,$F25)-INDEX(Rating,K$2),10,1),"") -> 0.5588286159 | L25: =IF($F25<>L$2,1-_xlfn.NORM.DIST(0,INDEX(Rating,$F25)-INDEX(Rating,L$2),10,1),"") -> 0.5851163407 | M25: =IF($F25<>M$2,1-_xlfn.NORM.DIST(0,INDEX(Rating,$F25)-INDEX(Rating,M$2),10,1),"") -> 0.7469747535 | N25: =IF($F25<>N$2,1-_xlfn.NORM.DIST(0,INDEX(Rating,$F25)-INDEX(Rating,N$2),10,1),"") -> 0.5893992898 | O25: =IF($F25<>O$2,1-_xlfn.NORM.DIST(0,INDEX(Rating,$F25)-INDEX(Rating,O$2),10,1),"") -> 0.7840662564 | P25: =IF($F25<>P$2,1-_xlfn.NORM.DIST(0,INDEX(Rating,$F25)-INDEX(Rating,P$2),10,1),"") -> 0.4884322953 | Q25: =IF($F25<>Q$2,1-_xlfn.NORM.DIST(0,INDEX(Rating,$F25)-INDEX(Rating,Q$2),10,1),"") -> 0.6587301694 | R25: =IF($F25<>R$2,1-_xlfn.NORM.DIST(0,INDEX(Rating,$F25)-INDEX(Rating,R$2),10,1),"") -> 0.499202116 | S25: =IF($F25<>S$2,1-_xlfn.NORM.DIST(0,INDEX(Rating,$F25)-INDEX(Rating,S$2),10,1),"") -> 0.8628031001 | T25: =IF($F25<>T$2,1-_xlfn.NORM.DIST(0,INDEX(Rating,$F25)-INDEX(Rating,T$2),10,1),"") -> 0.6900527945 | U25: =IF($F25<>U$2,1-_xlfn.NORM.DIST(0,INDEX(Rating,$F25)-INDEX(Rating,U$2),10,1),"") -> 0.6262736527 | V25: =IF($F25<>V$2,1-_xlfn.NORM.DIST(0,INDEX(Rating,$F25)-INDEX(Rating,V$2),10,1),"") -> 0.4005205319 | W25: =IF($F25<>W$2,1-_xlfn.NORM.DIST(0,INDEX(Rating,$F25)-INDEX(Rating,W$2),10,1),"") -> 0.8649864174 | X25: =IF($F25<>X$2,1-_xlfn.NORM.DIST(0,INDEX(Rating,$F25)-INDEX(Rating,X$2),10,1),"") -> 0.427791363 | Y25: =IF($F25<>Y$2,1-_xlfn.NORM.DIST(0,INDEX(Rating,$F25)-INDEX(Rating,Y$2),10,1),"") -> 0.9863429703 | Z25: =IF($F25<>Z$2,1-_xlfn.NORM.DIST(0,INDEX(Rating,$F25)-INDEX(Rating,Z$2),10,1),"") -> 0.9905627393 | AA25: =IF($F25<>AA$2,1-_xlfn.NORM.DIST(0,INDEX(Rating,$F25)-INDEX(Rating,AA$2),10,1),"") -> 0.5322790237 | AB25: =IF($F25<>AB$2,1-_xlfn.NORM.DIST(0,INDEX(Rating,$F25)-INDEX(Rating,AB$2),10,1),"") -> 0.6435633829 | AC25: =IF($F25<>AC$2,1-_xlfn.NORM.DIST(0,INDEX(Rating,$F25)-INDEX(Rating,AC$2),10,1),"") ->  | AD25: =IF($F25<>AD$2,1-_xlfn.NORM.DIST(0,INDEX(Rating,$F25)-INDEX(Rating,AD$2),10,1),"") -> 0.7533280395 | AE25: =IF($F25<>AE$2,1-_xlfn.NORM.DIST(0,INDEX(Rating,$F25)-INDEX(Rating,AE$2),10,1),"") -> 0.423087941 | AF25: =IF($F25<>AF$2,1-_xlfn.NORM.DIST(0,INDEX(Rating,$F25)-INDEX(Rating,AF$2),10,1),"") -> 0.8394012373 | AG25: =IF($F25<>AG$2,1-_xlfn.NORM.DIST(0,INDEX(Rating,$F25)-INDEX(Rating,AG$2),10,1),"") -> 0.5552749255 | AH25: =IF($F25<>AH$2,1-_xlfn.NORM.DIST(0,INDEX(Rating,$F25)-INDEX(Rating,AH$2),10,1),"") -> 0.6262736527 | AI25: =IF($F25<>AI$2,1-_xlfn.NORM.DIST(0,INDEX(Rating,$F25)-INDEX(Rating,AI$2),10,1),"") -> 0.5792597094 | AJ25: =IF($F25<>AJ$2,1-_xlfn.NORM.DIST(0,INDEX(Rating,$F25)-INDEX(Rating,AJ$2),10,1),"") -> 0.8965256068 | AK25: =IF($F25<>AK$2,1-_xlfn.NORM.DIST(0,INDEX(Rating,$F25)-INDEX(Rating,AK$2),10,1),"") -> 0.5952224417 | AL25: =IF($F25<>AL$2,1-_xlfn.NORM.DIST(0,INDEX(Rating,$F25)-INDEX(Rating,AL$2),10,1),"") -> 0.6262736527 | AM25: =IF($F25<>AM$2,1-_xlfn.NORM.DIST(0,INDEX(Rating,$F25)-INDEX(Rating,AM$2),10,1),"") -> 0.4932183079 | AN25: =IF($F25<>AN$2,1-_xlfn.NORM.DIST(0,INDEX(Rating,$F25)-INDEX(Rating,AN$2),10,1),"") -> 0.8554277003 | AO25: =IF($F25<>AO$2,1-_xlfn.NORM.DIST(0,INDEX(Rating,$F25)-INDEX(Rating,AO$2),10,1),"") -> 0.3259947745 | AP25: =IF($F25<>AP$2,1-_xlfn.NORM.DIST(0,INDEX(Rating,$F25)-INDEX(Rating,AP$2),10,1),"") -> 0.9294895612 | AQ25: =IF($F25<>AQ$2,1-_xlfn.NORM.DIST(0,INDEX(Rating,$F25)-INDEX(Rating,AQ$2),10,1),"") -> 0.5983196093 | AR25: =IF($F25<>AR$2,1-_xlfn.NORM.DIST(0,INDEX(Rating,$F25)-INDEX(Rating,AR$2),10,1),"") -> 0.5800416379 | AS25: =IF($F25<>AS$2,1-_xlfn.NORM.DIST(0,INDEX(Rating,$F25)-INDEX(Rating,AS$2),10,1),"") -> 0.6239987459 | AT25: =IF($F25<>AT$2,1-_xlfn.NORM.DIST(0,INDEX(Rating,$F25)-INDEX(Rating,AT$2),10,1),"") -> 0.7067792636 | AU25: =IF($F25<>AU$2,1-_xlfn.NORM.DIST(0,INDEX(Rating,$F25)-INDEX(Rating,AU$2),10,1),"") -> 0.5449847224 | AV25: =IF($F25<>AV$2,1-_xlfn.NORM.DIST(0,INDEX(Rating,$F25)-INDEX(Rating,AV$2),10,1),"") -> 0.734014471 | AW25: =IF($F25<>AW$2,1-_xlfn.NORM.DIST(0,INDEX(Rating,$F25)-INDEX(Rating,AW$2),10,1),"") -> 0.614856688 | AX25: =IF($F25<>AX$2,1-_xlfn.NORM.DIST(0,INDEX(Rating,$F25)-INDEX(Rating,AX$2),10,1),"") -> 0.6942733284 | AY25: =IF($F25<>AY$2,1-_xlfn.NORM.DIST(0,INDEX(Rating,$F25)-INDEX(Rating,AY$2),10,1),"") -> 0.7190426911 | AZ25: =IF($F25<>AZ$2,1-_xlfn.NORM.DIST(0,INDEX(Rating,$F25)-INDEX(Rating,AZ$2),10,1),"") -> 0.5334717841 | BA25: =IF($F25<>BA$2,1-_xlfn.NORM.DIST(0,INDEX(Rating,$F25)-INDEX(Rating,BA$2),10,1),"") -> 0.922776764 | BB25: =IF($F25<>BB$2,1-_xlfn.NORM.DIST(0,INDEX(Rating,$F25)-INDEX(Rating,BB$2),10,1),"") -> 0.5501340377 | BC25: =IF($F25<>BC$2,1-_xlfn.NORM.DIST(0,INDEX(Rating,$F25)-INDEX(Rating,BC$2),10,1),"") -> 0.6353286426 | BD25: =IF($F25<>BD$2,1-_xlfn.NORM.DIST(0,INDEX(Rating,$F25)-INDEX(Rating,BD$2),10,1),"") -> 0.3775202617 | BE25: =IF($F25<>BE$2,1-_xlfn.NORM.DIST(0,INDEX(Rating,$F25)-INDEX(Rating,BE$2),10,1),"") -> 0.8688560688 | BF25: =IF($F25<>BF$2,1-_xlfn.NORM.DIST(0,INDEX(Rating,$F25)-INDEX(Rating,BF$2),10,1),"") -> 0.3970462536 | BG25: =IF($F25<>BG$2,1-_xlfn.NORM.DIST(0,INDEX(Rating,$F25)-INDEX(Rating,BG$2),10,1),"") -> 0.9666730029 | BH25: =IF($F25<>BH$2,1-_xlfn.NORM.DIST(0,INDEX(Rating,$F25)-INDEX(Rating,BH$2),10,1),"") -> 0.5627716006 | BI25: =IF($F25<>BI$2,1-_xlfn.NORM.DIST(0,INDEX(Rating,$F25)-INDEX(Rating,BI$2),10,1),"") -> 0.5808232505 | BJ25: =IF($F25<>BJ$2,1-_xlfn.NORM.DIST(0,INDEX(Rating,$F25)-INDEX(Rating,BJ$2),10,1),"") -> 0.5362537045 | BK25: =IF($F25<>BK$2,1-_xlfn.NORM.DIST(0,INDEX(Rating,$F25)-INDEX(Rating,BK$2),10,1),"") -> 0.6513619268 | BL25: =IF($F25<>BL$2,1-_xlfn.NORM.DIST(0,INDEX(Rating,$F25)-INDEX(Rating,BL$2),10,1),"") -> 0.3924266078 | BM25: =IF($F25<>BM$2,1-_xlfn.NORM.DIST(0,INDEX(Rating,$F25)-INDEX(Rating,BM$2),10,1),"") -> 0.7778642277 | BN25: =IF($F25<>BN$2,1-_xlfn.NORM.DIST(0,INDEX(Rating,$F25)-INDEX(Rating,BN$2),10,1),"") -> 0.5552749255 | BO25: =IF($F25<>BO$2,1-_xlfn.NORM.DIST(0,INDEX(Rating,$F25)-INDEX(Rating,BO$2),10,1),"") -> 0.7372857925 | BP25: =IF($F25<>BP$2,1-_xlfn.NORM.DIST(0,INDEX(Rating,$F25)-INDEX(Rating,BP$2),10,1),"") -> 0.7918909709 | BQ25: =IF($F25<>BQ$2,1-_xlfn.NORM.DIST(0,INDEX(Rating,$F25)-INDEX(Rating,BQ$2),10,1),"") -> 0.3771403311 | BR25: =IF($F25<>BR$2,1-_xlfn.NORM.DIST(0,INDEX(Rating,$F25)-INDEX(Rating,BR$2),10,1),"") -> 0.871602726 | BS25: =IF($F25<>BS$2,1-_xlfn.NORM.DIST(0,INDEX(Rating,$F25)-INDEX(Rating,BS$2),10,1),"") -> 0.6334482091 | BT25: =IF($F25<>BT$2,1-_xlfn.NORM.DIST(0,INDEX(Rating,$F25)-INDEX(Rating,BT$2),10,1),"") -> 0.7071232412 | BU25: =IF($F25<>BU$2,1-_xlfn.NORM.DIST(0,INDEX(Rating,$F25)-INDEX(Rating,BU$2),10,1),"") -> 0.349378104 | BV25: =IF($F25<>BV$2,1-_xlfn.NORM.DIST(0,INDEX(Rating,$F25)-INDEX(Rating,BV$2),10,1),"") -> 0.9264707404
B26: Oral Roberts | C26: 24 | D26: 80.49 | F26: 24 | G26: =IF($F26<>G$2,1-_xlfn.NORM.DIST(0,INDEX(Rating,$F26)-INDEX(Rating,G$2),10,1),"") -> 0.1067497815 | H26: =IF($F26<>H$2,1-_xlfn.NORM.DIST(0,INDEX(Rating,$F26)-INDEX(Rating,H$2),10,1),"") -> 0.8473184062 | I26: =IF($F26<>I$2,1-_xlfn.NORM.DIST(0,INDEX(Rating,$F26)-INDEX(Rating,I$2),10,1),"") -> 0.9154342776 | J26: =IF($F26<>J$2,1-_xlfn.NORM.DIST(0,INDEX(Rating,$F26)-INDEX(Rating,J$2),10,1),"") -> 0.3092420211 | K26: =IF($F26<>K$2,1-_xlfn.NORM.DIST(0,INDEX(Rating,$F26)-INDEX(Rating,K$2),10,1),"") -> 0.295633807 | L26: =IF($F26<>L$2,1-_xlfn.NORM.DIST(0,INDEX(Rating,$F26)-INDEX(Rating,L$2),10,1),"") -> 0.3191775088 | M26: =IF($F26<>M$2,1-_xlfn.NORM.DIST(0,INDEX(Rating,$F26)-INDEX(Rating,M$2),10,1),"") -> 0.4920216863 | N26: =IF($F26<>N$2,1-_xlfn.NORM.DIST(0,INDEX(Rating,$F26)-INDEX(Rating,N$2),10,1),"") -> 0.323117083 | O26: =IF($F26<>O$2,1-_xlfn.NORM.DIST(0,INDEX(Rating,$F26)-INDEX(Rating,O$2),10,1),"") -> 0.5402247699 | P26: =IF($F26<>P$2,1-_xlfn.NORM.DIST(0,INDEX(Rating,$F26)-INDEX(Rating,P$2),10,1),"") -> 0.2376135897 | Q26: =IF($F26<>Q$2,1-_xlfn.NORM.DIST(0,INDEX(Rating,$F26)-INDEX(Rating,Q$2),10,1),"") -> 0.3912740331 | R26: =IF($F26<>R$2,1-_xlfn.NORM.DIST(0,INDEX(Rating,$F26)-INDEX(Rating,R$2),10,1),"") -> 0.2460413642 | S26: =IF($F26<>S$2,1-_xlfn.NORM.DIST(0,INDEX(Rating,$F26)-INDEX(Rating,S$2),10,1),"") -> 0.6583631625 | T26: =IF($F26<>T$2,1-_xlfn.NORM.DIST(0,INDEX(Rating,$F26)-INDEX(Rating,T$2),10,1),"") -> 0.4250464084 | U26: =IF($F26<>U$2,1-_xlfn.NORM.DIST(0,INDEX(Rating,$F26)-INDEX(Rating,U$2),10,1),"") -> 0.3583024422 | V26: =IF($F26<>V$2,1-_xlfn.NORM.DIST(0,INDEX(Rating,$F26)-INDEX(Rating,V$2),10,1),"") -> 0.174379279 | W26: =IF($F26<>W$2,1-_xlfn.NORM.DIST(0,INDEX(Rating,$F26)-INDEX(Rating,W$2),10,1),"") -> 0.6620264414 | X26: =IF($F26<>X$2,1-_xlfn.NORM.DIST(0,INDEX(Rating,$F26)-INDEX(Rating,X$2),10,1),"") -> 0.1929710048 | Y26: =IF($F26<>Y$2,1-_xlfn.NORM.DIST(0,INDEX(Rating,$F26)-INDEX(Rating,Y$2),10,1),"") -> 0.9359954597 | Z26: =IF($F26<>Z$2,1-_xlfn.NORM.DIST(0,INDEX(Rating,$F26)-INDEX(Rating,Z$2),10,1),"") -> 0.9518437823 | AA26: =IF($F26<>AA$2,1-_xlfn.NORM.DIST(0,INDEX(Rating,$F26)-INDEX(Rating,AA$2),10,1),"") -> 0.2729218211 | AB26: =IF($F26<>AB$2,1-_xlfn.NORM.DIST(0,INDEX(Rating,$F26)-INDEX(Rating,AB$2),10,1),"") -> 0.3756218011 | AC26: =IF($F26<>AC$2,1-_xlfn.NORM.DIST(0,INDEX(Rating,$F26)-INDEX(Rating,AC$2),10,1),"") -> 0.2466719605 | AD26: =IF($F26<>AD$2,1-_xlfn.NORM.DIST(0,INDEX(Rating,$F26)-INDEX(Rating,AD$2),10,1),"") ->  | AE26: =IF($F26<>AE$2,1-_xlfn.NORM.DIST(0,INDEX(Rating,$F26)-INDEX(Rating,AE$2),10,1),"") -> 0.1897006379 | AF26: =IF($F26<>AF$2,1-_xlfn.NORM.DIST(0,INDEX(Rating,$F26)-INDEX(Rating,AF$2),10,1),"") -> 0.6205783139 | AG26: =IF($F26<>AG$2,1-_xlfn.NORM.DIST(0,INDEX(Rating,$F26)-INDEX(Rating,AG$2),10,1),"") -> 0.2925329686 | AH26: =IF($F26<>AH$2,1-_xlfn.NORM.DIST(0,INDEX(Rating,$F26)-INDEX(Rating,AH$2),10,1),"") -> 0.3583024422 | AI26: =IF($F26<>AI$2,1-_xlfn.NORM.DIST(0,INDEX(Rating,$F26)-INDEX(Rating,AI$2),10,1),"") -> 0.3138381728 | AJ26: =IF($F26<>AJ$2,1-_xlfn.NORM.DIST(0,INDEX(Rating,$F26)-INDEX(Rating,AJ$2),10,1),"") -> 0.7180302722 | AK26: =IF($F26<>AK$2,1-_xlfn.NORM.DIST(0,INDEX(Rating,$F26)-INDEX(Rating,AK$2),10,1),"") -> 0.328521292 | AL26: =IF($F26<>AL$2,1-_xlfn.NORM.DIST(0,INDEX(Rating,$F26)-INDEX(Rating,AL$2),10,1),"") -> 0.3583024422 | AM26: =IF($F26<>AM$2,1-_xlfn.NORM.DIST(0,INDEX(Rating,$F26)-INDEX(Rating,AM$2),10,1),"") -> 0.2413395817 | AN26: =IF($F26<>AN$2,1-_xlfn.NORM.DIST(0,INDEX(Rating,$F26)-INDEX(Rating,AN$2),10,1),"") -> 0.6461697667 | AO26: =IF($F26<>AO$2,1-_xlfn.NORM.DIST(0,INDEX(Rating,$F26)-INDEX(Rating,AO$2),10,1),"") -> 0.1279782822 | AP26: =IF($F26<>AP$2,1-_xlfn.NORM.DIST(0,INDEX(Rating,$F26)-INDEX(Rating,AP$2),10,1),"") -> 0.7843590669 | AQ26: =IF($F26<>AQ$2,1-_xlfn.NORM.DIST(0,INDEX(Rating,$F26)-INDEX(Rating,AQ$2),10,1),"") -> 0.3314183648 | AR26: =IF($F26<>AR$2,1-_xlfn.NORM.DIST(0,INDEX(Rating,$F26)-INDEX(Rating,AR$2),10,1),"") -> 0.3145478681 | AS26: =IF($F26<>AS$2,1-_xlfn.NORM.DIST(0,INDEX(Rating,$F26)-INDEX(Rating,AS$2),10,1),"") -> 0.3560638624 | AT26: =IF($F26<>AT$2,1-_xlfn.NORM.DIST(0,INDEX(Rating,$F26)-INDEX(Rating,AT$2),10,1),"") -> 0.4439349712 | AU26: =IF($F26<>AU$2,1-_xlfn.NORM.DIST(0,INDEX(Rating,$F26)-INDEX(Rating,AU$2),10,1),"") -> 0.2836609873 | AV26: =IF($F26<>AV$2,1-_xlfn.NORM.DIST(0,INDEX(Rating,$F26)-INDEX(Rating,AV$2),10,1),"") -> 0.4760778173 | AW26: =IF($F26<>AW$2,1-_xlfn.NORM.DIST(0,INDEX(Rating,$F26)-INDEX(Rating,AW$2),10,1),"") -> 0.3471597407 | AX26: =IF($F26<>AX$2,1-_xlfn.NORM.DIST(0,INDEX(Rating,$F26)-INDEX(Rating,AX$2),10,1),"") -> 0.4297541948 | AY26: =IF($F26<>AY$2,1-_xlfn.NORM.DIST(0,INDEX(Rating,$F26)-INDEX(Rating,AY$2),10,1),"") -> 0.4581879044 | AZ26: =IF($F26<>AZ$2,1-_xlfn.NORM.DIST(0,INDEX(Rating,$F26)-INDEX(Rating,AZ$2),10,1),"") -> 0.2739199932 | BA26: =IF($F26<>BA$2,1-_xlfn.NORM.DIST(0,INDEX(Rating,$F26)-INDEX(Rating,BA$2),10,1),"") -> 0.7700465013 | BB26: =IF($F26<>BB$2,1-_xlfn.NORM.DIST(0,INDEX(Rating,$F26)-INDEX(Rating,BB$2),10,1),"") -> 0.2880808601 | BC26: =IF($F26<>BC$2,1-_xlfn.NORM.DIST(0,INDEX(Rating,$F26)-INDEX(Rating,BC$2),10,1),"") -> 0.3673048651 | BD26: =IF($F26<>BD$2,1-_xlfn.NORM.DIST(0,INDEX(Rating,$F26)-INDEX(Rating,BD$2),10,1),"") -> 0.159382255 | BE26: =IF($F26<>BE$2,1-_xlfn.NORM.DIST(0,INDEX(Rating,$F26)-INDEX(Rating,BE$2),10,1),"") -> 0.6685816352 | BF26: =IF($F26<>BF$2,1-_xlfn.NORM.DIST(0,INDEX(Rating,$F26)-INDEX(Rating,BF$2),10,1),"") -> 0.1720742931 | BG26: =IF($F26<>BG$2,1-_xlfn.NORM.DIST(0,INDEX(Rating,$F26)-INDEX(Rating,BG$2),10,1),"") -> 0.8747220097 | BH26: =IF($F26<>BH$2,1-_xlfn.NORM.DIST(0,INDEX(Rating,$F26)-INDEX(Rating,BH$2),10,1),"") -> 0.2990967942 | BI26: =IF($F26<>BI$2,1-_xlfn.NORM.DIST(0,INDEX(Rating,$F26)-INDEX(Rating,BI$2),10,1),"") -> 0.3152582494 | BJ26: =IF($F26<>BJ$2,1-_xlfn.NORM.DIST(0,INDEX(Rating,$F26)-INDEX(Rating,BJ$2),10,1),"") -> 0.2762560565 | BK26: =IF($F26<>BK$2,1-_xlfn.NORM.DIST(0,INDEX(Rating,$F26)-INDEX(Rating,BK$2),10,1),"") -> 0.3836150407 | BL26: =IF($F26<>BL$2,1-_xlfn.NORM.DIST(0,INDEX(Rating,$F26)-INDEX(Rating,BL$2),10,1),"") -> 0.1690313793 | BM26: =IF($F26<>BM$2,1-_xlfn.NORM.DIST(0,INDEX(Rating,$F26)-INDEX(Rating,BM$2),10,1),"") -> 0.531881372 | BN26: =IF($F26<>BN$2,1-_xlfn.NORM.DIST(0,INDEX(Rating,$F26)-INDEX(Rating,BN$2),10,1),"") -> 0.2925329686 | BO26: =IF($F26<>BO$2,1-_xlfn.NORM.DIST(0,INDEX(Rating,$F26)-INDEX(Rating,BO$2),10,1),"") -> 0.4800611942 | BP26: =IF($F26<>BP$2,1-_xlfn.NORM.DIST(0,INDEX(Rating,$F26)-INDEX(Rating,BP$2),10,1),"") -> 0.5509255135 | BQ26: =IF($F26<>BQ$2,1-_xlfn.NORM.DIST(0,INDEX(Rating,$F26)-INDEX(Rating,BQ$2),10,1),"") -> 0.1591396793 | BR26: =IF($F26<>BR$2,1-_xlfn.NORM.DIST(0,INDEX(Rating,$F26)-INDEX(Rating,BR$2),10,1),"") -> 0.6732841717 | BS26: =IF($F26<>BS$2,1-_xlfn.NORM.DIST(0,INDEX(Rating,$F26)-INDEX(Rating,BS$2),10,1),"") -> 0.365423143 | BT26: =IF($F26<>BT$2,1-_xlfn.NORM.DIST(0,INDEX(Rating,$F26)-INDEX(Rating,BT$2),10,1),"") -> 0.4443299952 | BU26: =IF($F26<>BU$2,1-_xlfn.NORM.DIST(0,INDEX(Rating,$F26)-INDEX(Rating,BU$2),10,1),"") -> 0.1418600161 | BV26: =IF($F26<>BV$2,1-_xlfn.NORM.DIST(0,INDEX(Rating,$F26)-INDEX(Rating,BV$2),10,1),"") -> 0.7778642277
B27: Tennessee | C27: 25 | D27: 89.28 | F27: 25 | G27: =IF($F27<>G$2,1-_xlfn.NORM.DIST(0,INDEX(Rating,$F27)-INDEX(Rating,G$2),10,1),"") -> 0.3575557031 | H27: =IF($F27<>H$2,1-_xlfn.NORM.DIST(0,INDEX(Rating,$F27)-INDEX(Rating,H$2),10,1),"") -> 0.9715449079 | I27: =IF($F27<>I$2,1-_xlfn.NORM.DIST(0,INDEX(Rating,$F27)-INDEX(Rating,I$2),10,1),"") -> 0.987901916 | J27: =IF($F27<>J$2,1-_xlfn.NORM.DIST(0,INDEX(Rating,$F27)-INDEX(Rating,J$2),10,1),"") -> 0.6483983757 | K27: =IF($F27<>K$2,1-_xlfn.NORM.DIST(0,INDEX(Rating,$F27)-INDEX(Rating,K$2),10,1),"") -> 0.6338245539 | L27: =IF($F27<>L$2,1-_xlfn.NORM.DIST(0,INDEX(Rating,$F27)-INDEX(Rating,L$2),10,1),"") -> 0.6587301694 | M27: =IF($F27<>M$2,1-_xlfn.NORM.DIST(0,INDEX(Rating,$F27)-INDEX(Rating,M$2),10,1),"") -> 0.804829742 | N27: =IF($F27<>N$2,1-_xlfn.NORM.DIST(0,INDEX(Rating,$F27)-INDEX(Rating,N$2),10,1),"") -> 0.6627572732 | O27: =IF($F27<>O$2,1-_xlfn.NORM.DIST(0,INDEX(Rating,$F27)-INDEX(Rating,O$2),10,1),"") -> 0.8364569407 | P27: =IF($F27<>P$2,1-_xlfn.NORM.DIST(0,INDEX(Rating,$F27)-INDEX(Rating,P$2),10,1),"") -> 0.565528009 | Q27: =IF($F27<>Q$2,1-_xlfn.NORM.DIST(0,INDEX(Rating,$F27)-INDEX(Rating,Q$2),10,1),"") -> 0.7267456554 | R27: =IF($F27<>R$2,1-_xlfn.NORM.DIST(0,INDEX(Rating,$F27)-INDEX(Rating,R$2),10,1),"") -> 0.5761288973 | S27: =IF($F27<>S$2,1-_xlfn.NORM.DIST(0,INDEX(Rating,$F27)-INDEX(Rating,S$2),10,1),"") -> 0.9009528559 | T27: =IF($F27<>T$2,1-_xlfn.NORM.DIST(0,INDEX(Rating,$F27)-INDEX(Rating,T$2),10,1),"") -> 0.7549029063 | U27: =IF($F27<>U$2,1-_xlfn.NORM.DIST(0,INDEX(Rating,$F27)-INDEX(Rating,U$2),10,1),"") -> 0.6970727954 | V27: =IF($F27<>V$2,1-_xlfn.NORM.DIST(0,INDEX(Rating,$F27)-INDEX(Rating,V$2),10,1),"") -> 0.4768743143 | W27: =IF($F27<>W$2,1-_xlfn.NORM.DIST(0,INDEX(Rating,$F27)-INDEX(Rating,W$2),10,1),"") -> 0.9026844066 | X27: =IF($F27<>X$2,1-_xlfn.NORM.DIST(0,INDEX(Rating,$F27)-INDEX(Rating,X$2),10,1),"") -> 0.5047871925 | Y27: =IF($F27<>Y$2,1-_xlfn.NORM.DIST(0,INDEX(Rating,$F27)-INDEX(Rating,Y$2),10,1),"") -> 0.9918248318 | Z27: =IF($F27<>Z$2,1-_xlfn.NORM.DIST(0,INDEX(Rating,$F27)-INDEX(Rating,Z$2),10,1),"") -> 0.9944889913 | AA27: =IF($F27<>AA$2,1-_xlfn.NORM.DIST(0,INDEX(Rating,$F27)-INDEX(Rating,AA$2),10,1),"") -> 0.6083418808 | AB27: =IF($F27<>AB$2,1-_xlfn.NORM.DIST(0,INDEX(Rating,$F27)-INDEX(Rating,AB$2),10,1),"") -> 0.7129419904 | AC27: =IF($F27<>AC$2,1-_xlfn.NORM.DIST(0,INDEX(Rating,$F27)-INDEX(Rating,AC$2),10,1),"") -> 0.576912059 | AD27: =IF($F27<>AD$2,1-_xlfn.NORM.DIST(0,INDEX(Rating,$F27)-INDEX(Rating,AD$2),10,1),"") -> 0.8102993621 | AE27: =IF($F27<>AE$2,1-_xlfn.NORM.DIST(0,INDEX(Rating,$F27)-INDEX(Rating,AE$2),10,1),"") ->  | AF27: =IF($F27<>AF$2,1-_xlfn.NORM.DIST(0,INDEX(Rating,$F27)-INDEX(Rating,AF$2),10,1),"") -> 0.8821888502 | AG27: =IF($F27<>AG$2,1-_xlfn.NORM.DIST(0,INDEX(Rating,$F27)-INDEX(Rating,AG$2),10,1),"") -> 0.6304328584 | AH27: =IF($F27<>AH$2,1-_xlfn.NORM.DIST(0,INDEX(Rating,$F27)-INDEX(Rating,AH$2),10,1),"") -> 0.6970727954 | AI27: =IF($F27<>AI$2,1-_xlfn.NORM.DIST(0,INDEX(Rating,$F27)-INDEX(Rating,AI$2),10,1),"") -> 0.6532094804 | AJ27: =IF($F27<>AJ$2,1-_xlfn.NORM.DIST(0,INDEX(Rating,$F27)-INDEX(Rating,AJ$2),10,1),"") -> 0.9273036902 | AK27: =IF($F27<>AK$2,1-_xlfn.NORM.DIST(0,INDEX(Rating,$F27)-INDEX(Rating,AK$2),10,1),"") -> 0.6682187863 | AL27: =IF($F27<>AL$2,1-_xlfn.NORM.DIST(0,INDEX(Rating,$F27)-INDEX(Rating,AL$2),10,1),"") -> 0.6970727954 | AM27: =IF($F27<>AM$2,1-_xlfn.NORM.DIST(0,INDEX(Rating,$F27)-INDEX(Rating,AM$2),10,1),"") -> 0.5702458052 | AN27: =IF($F27<>AN$2,1-_xlfn.NORM.DIST(0,INDEX(Rating,$F27)-INDEX(Rating,AN$2),10,1),"") -> 0.8950789973 | AO27: =IF($F27<>AO$2,1-_xlfn.NORM.DIST(0,INDEX(Rating,$F27)-INDEX(Rating,AO$2),10,1),"") -> 0.3985893865 | AP27: =IF($F27<>AP$2,1-_xlfn.NORM.DIST(0,INDEX(Rating,$F27)-INDEX(Rating,AP$2),10,1),"") -> 0.9521432928 | AQ27: =IF($F27<>AQ$2,1-_xlfn.NORM.DIST(0,INDEX(Rating,$F27)-INDEX(Rating,AQ$2),10,1),"") -> 0.6711171326 | AR27: =IF($F27<>AR$2,1-_xlfn.NORM.DIST(0,INDEX(Rating,$F27)-INDEX(Rating,AR$2),10,1),"") -> 0.6539474859 | AS27: =IF($F27<>AS$2,1-_xlfn.NORM.DIST(0,INDEX(Rating,$F27)-INDEX(Rating,AS$2),10,1),"") -> 0.6949742691 | AT27: =IF($F27<>AT$2,1-_xlfn.NORM.DIST(0,INDEX(Rating,$F27)-INDEX(Rating,AT$2),10,1),"") -> 0.7697427754 | AU27: =IF($F27<>AU$2,1-_xlfn.NORM.DIST(0,INDEX(Rating,$F27)-INDEX(Rating,AU$2),10,1),"") -> 0.6205783139 | AV27: =IF($F27<>AV$2,1-_xlfn.NORM.DIST(0,INDEX(Rating,$F27)-INDEX(Rating,AV$2),10,1),"") -> 0.7936067932 | AW27: =IF($F27<>AW$2,1-_xlfn.NORM.DIST(0,INDEX(Rating,$F27)-INDEX(Rating,AW$2),10,1),"") -> 0.686516417 | AX27: =IF($F27<>AX$2,1-_xlfn.NORM.DIST(0,INDEX(Rating,$F27)-INDEX(Rating,AX$2),10,1),"") -> 0.7586604183 | AY27: =IF($F27<>AY$2,1-_xlfn.NORM.DIST(0,INDEX(Rating,$F27)-INDEX(Rating,AY$2),10,1),"") -> 0.7805346044 | AZ27: =IF($F27<>AZ$2,1-_xlfn.NORM.DIST(0,INDEX(Rating,$F27)-INDEX(Rating,AZ$2),10,1),"") -> 0.6094938206 | BA27: =IF($F27<>BA$2,1-_xlfn.NORM.DIST(0,INDEX(Rating,$F27)-INDEX(Rating,BA$2),10,1),"") -> 0.9471687012 | BB27: =IF($F27<>BB$2,1-_xlfn.NORM.DIST(0,INDEX(Rating,$F27)-INDEX(Rating,BB$2),10,1),"") -> 0.6255158347 | BC27: =IF($F27<>BC$2,1-_xlfn.NORM.DIST(0,INDEX(Rating,$F27)-INDEX(Rating,BC$2),10,1),"") -> 0.7054014838 | BD27: =IF($F27<>BD$2,1-_xlfn.NORM.DIST(0,INDEX(Rating,$F27)-INDEX(Rating,BD$2),10,1),"") -> 0.4530338289 | BE27: =IF($F27<>BE$2,1-_xlfn.NORM.DIST(0,INDEX(Rating,$F27)-INDEX(Rating,BE$2),10,1),"") -> 0.9057450488 | BF27: =IF($F27<>BF$2,1-_xlfn.NORM.DIST(0,INDEX(Rating,$F27)-INDEX(Rating,BF$2),10,1),"") -> 0.4732908516 | BG27: =IF($F27<>BG$2,1-_xlfn.NORM.DIST(0,INDEX(Rating,$F27)-INDEX(Rating,BG$2),10,1),"") -> 0.978719876 | BH27: =IF($F27<>BH$2,1-_xlfn.NORM.DIST(0,INDEX(Rating,$F27)-INDEX(Rating,BH$2),10,1),"") -> 0.6375808688 | BI27: =IF($F27<>BI$2,1-_xlfn.NORM.DIST(0,INDEX(Rating,$F27)-INDEX(Rating,BI$2),10,1),"") -> 0.6546849071 | BJ27: =IF($F27<>BJ$2,1-_xlfn.NORM.DIST(0,INDEX(Rating,$F27)-INDEX(Rating,BJ$2),10,1),"") -> 0.612177929 | BK27: =IF($F27<>BK$2,1-_xlfn.NORM.DIST(0,INDEX(Rating,$F27)-INDEX(Rating,BK$2),10,1),"") -> 0.7200533499 | BL27: =IF($F27<>BL$2,1-_xlfn.NORM.DIST(0,INDEX(Rating,$F27)-INDEX(Rating,BL$2),10,1),"") -> 0.4685163115 | BM27: =IF($F27<>BM$2,1-_xlfn.NORM.DIST(0,INDEX(Rating,$F27)-INDEX(Rating,BM$2),10,1),"") -> 0.8312206274 | BN27: =IF($F27<>BN$2,1-_xlfn.NORM.DIST(0,INDEX(Rating,$F27)-INDEX(Rating,BN$2),10,1),"") -> 0.6304328584 | BO27: =IF($F27<>BO$2,1-_xlfn.NORM.DIST(0,INDEX(Rating,$F27)-INDEX(Rating,BO$2),10,1),"") -> 0.7964477964 | BP27: =IF($F27<>BP$2,1-_xlfn.NORM.DIST(0,INDEX(Rating,$F27)-INDEX(Rating,BP$2),10,1),"") -> 0.8430326129 | BQ27: =IF($F27<>BQ$2,1-_xlfn.NORM.DIST(0,INDEX(Rating,$F27)-INDEX(Rating,BQ$2),10,1),"") -> 0.4526376779 | BR27: =IF($F27<>BR$2,1-_xlfn.NORM.DIST(0,INDEX(Rating,$F27)-INDEX(Rating,BR$2),10,1),"") -> 0.9079109465 | BS27: =IF($F27<>BS$2,1-_xlfn.NORM.DIST(0,INDEX(Rating,$F27)-INDEX(Rating,BS$2),10,1),"") -> 0.7036750714 | BT27: =IF($F27<>BT$2,1-_xlfn.NORM.DIST(0,INDEX(Rating,$F27)-INDEX(Rating,BT$2),10,1),"") -> 0.7700465013 | BU27: =IF($F27<>BU$2,1-_xlfn.NORM.DIST(0,INDEX(Rating,$F27)-INDEX(Rating,BU$2),10,1),"") -> 0.423479484 | BV27: =IF($F27<>BV$2,1-_xlfn.NORM.DIST(0,INDEX(Rating,$F27)-INDEX(Rating,BV$2),10,1),"") -> 0.9499118988
B28: Louisiana | C28: 26 | D28: 77.42 | F28: 26 | G28: =IF($F28<>G$2,1-_xlfn.NORM.DIST(0,INDEX(Rating,$F28)-INDEX(Rating,G$2),10,1),"") -> 0.06045084198 | H28: =IF($F28<>H$2,1-_xlfn.NORM.DIST(0,INDEX(Rating,$F28)-INDEX(Rating,H$2),10,1),"") -> 0.7636213566 | I28: =IF($F28<>I$2,1-_xlfn.NORM.DIST(0,INDEX(Rating,$F28)-INDEX(Rating,I$2),10,1),"") -> 0.8572397441 | J28: =IF($F28<>J$2,1-_xlfn.NORM.DIST(0,INDEX(Rating,$F28)-INDEX(Rating,J$2),10,1),"") -> 0.2104098399 | K28: =IF($F28<>K$2,1-_xlfn.NORM.DIST(0,INDEX(Rating,$F28)-INDEX(Rating,K$2),10,1),"") -> 0.1993347028 | L28: =IF($F28<>L$2,1-_xlfn.NORM.DIST(0,INDEX(Rating,$F28)-INDEX(Rating,L$2),10,1),"") -> 0.2185793852 | M28: =IF($F28<>M$2,1-_xlfn.NORM.DIST(0,INDEX(Rating,$F28)-INDEX(Rating,M$2),10,1),"") -> 0.3718339426 | N28: =IF($F28<>N$2,1-_xlfn.NORM.DIST(0,INDEX(Rating,$F28)-INDEX(Rating,N$2),10,1),"") -> 0.2218381511 | O28: =IF($F28<>O$2,1-_xlfn.NORM.DIST(0,INDEX(Rating,$F28)-INDEX(Rating,O$2),10,1),"") -> 0.4183954557 | P28: =IF($F28<>P$2,1-_xlfn.NORM.DIST(0,INDEX(Rating,$F28)-INDEX(Rating,P$2),10,1),"") -> 0.1536272194 | Q28: =IF($F28<>Q$2,1-_xlfn.NORM.DIST(0,INDEX(Rating,$F28)-INDEX(Rating,Q$2),10,1),"") -> 0.2799466501 | R28: =IF($F28<>R$2,1-_xlfn.NORM.DIST(0,INDEX(Rating,$F28)-INDEX(Rating,R$2),10,1),"") -> 0.1601114337 | S28: =IF($F28<>S$2,1-_xlfn.NORM.DIST(0,INDEX(Rating,$F28)-INDEX(Rating,S$2),10,1),"") -> 0.5402247699 | T28: =IF($F28<>T$2,1-_xlfn.NORM.DIST(0,INDEX(Rating,$F28)-INDEX(Rating,T$2),10,1),"") -> 0.3099472055 | U28: =IF($F28<>U$2,1-_xlfn.NORM.DIST(0,INDEX(Rating,$F28)-INDEX(Rating,U$2),10,1),"") -> 0.2514288951 | V28: =IF($F28<>V$2,1-_xlfn.NORM.DIST(0,INDEX(Rating,$F28)-INDEX(Rating,V$2),10,1),"") -> 0.1067497815 | W28: =IF($F28<>W$2,1-_xlfn.NORM.DIST(0,INDEX(Rating,$F28)-INDEX(Rating,W$2),10,1),"") -> 0.5441918266 | X28: =IF($F28<>X$2,1-_xlfn.NORM.DIST(0,INDEX(Rating,$F28)-INDEX(Rating,X$2),10,1),"") -> 0.1201975128 | Y28: =IF($F28<>Y$2,1-_xlfn.NORM.DIST(0,INDEX(Rating,$F28)-INDEX(Rating,Y$2),10,1),"") -> 0.8878169543 | Z28: =IF($F28<>Z$2,1-_xlfn.NORM.DIST(0,INDEX(Rating,$F28)-INDEX(Rating,Z$2),10,1),"") -> 0.912450416 | AA28: =IF($F28<>AA$2,1-_xlfn.NORM.DIST(0,INDEX(Rating,$F28)-INDEX(Rating,AA$2),10,1),"") -> 0.1811476868 | AB28: =IF($F28<>AB$2,1-_xlfn.NORM.DIST(0,INDEX(Rating,$F28)-INDEX(Rating,AB$2),10,1),"") -> 0.2663137925 | AC28: =IF($F28<>AC$2,1-_xlfn.NORM.DIST(0,INDEX(Rating,$F28)-INDEX(Rating,AC$2),10,1),"") -> 0.1605987627 | AD28: =IF($F28<>AD$2,1-_xlfn.NORM.DIST(0,INDEX(Rating,$F28)-INDEX(Rating,AD$2),10,1),"") -> 0.3794216861 | AE28: =IF($F28<>AE$2,1-_xlfn.NORM.DIST(0,INDEX(Rating,$F28)-INDEX(Rating,AE$2),10,1),"") -> 0.1178111498 | AF28: =IF($F28<>AF$2,1-_xlfn.NORM.DIST(0,INDEX(Rating,$F28)-INDEX(Rating,AF$2),10,1),"") ->  | AG28: =IF($F28<>AG$2,1-_xlfn.NORM.DIST(0,INDEX(Rating,$F28)-INDEX(Rating,AG$2),10,1),"") -> 0.1968296521 | AH28: =IF($F28<>AH$2,1-_xlfn.NORM.DIST(0,INDEX(Rating,$F28)-INDEX(Rating,AH$2),10,1),"") -> 0.2514288951 | AI28: =IF($F28<>AI$2,1-_xlfn.NORM.DIST(0,INDEX(Rating,$F28)-INDEX(Rating,AI$2),10,1),"") -> 0.2141803381 | AJ28: =IF($F28<>AJ$2,1-_xlfn.NORM.DIST(0,INDEX(Rating,$F28)-INDEX(Rating,AJ$2),10,1),"") -> 0.6064198732 | AK28: =IF($F28<>AK$2,1-_xlfn.NORM.DIST(0,INDEX(Rating,$F28)-INDEX(Rating,AK$2),10,1),"") -> 0.2263263279 | AL28: =IF($F28<>AL$2,1-_xlfn.NORM.DIST(0,INDEX(Rating,$F28)-INDEX(Rating,AL$2),10,1),"") -> 0.2514288951 | AM28: =IF($F28<>AM$2,1-_xlfn.NORM.DIST(0,INDEX(Rating,$F28)-INDEX(Rating,AM$2),10,1),"") -> 0.1564873171 | AN28: =IF($F28<>AN$2,1-_xlfn.NORM.DIST(0,INDEX(Rating,$F28)-INDEX(Rating,AN$2),10,1),"") -> 0.5271071829 | AO28: =IF($F28<>AO$2,1-_xlfn.NORM.DIST(0,INDEX(Rating,$F28)-INDEX(Rating,AO$2),10,1),"") -> 0.07451023562 | AP28: =IF($F28<>AP$2,1-_xlfn.NORM.DIST(0,INDEX(Rating,$F28)-INDEX(Rating,AP$2),10,1),"") -> 0.6843863035 | AQ28: =IF($F28<>AQ$2,1-_xlfn.NORM.DIST(0,INDEX(Rating,$F28)-INDEX(Rating,AQ$2),10,1),"") -> 0.2287408402 | AR28: =IF($F28<>AR$2,1-_xlfn.NORM.DIST(0,INDEX(Rating,$F28)-INDEX(Rating,AR$2),10,1),"") -> 0.2147638842 | AS28: =IF($F28<>AS$2,1-_xlfn.NORM.DIST(0,INDEX(Rating,$F28)-INDEX(Rating,AS$2),10,1),"") -> 0.2495203225 | AT28: =IF($F28<>AT$2,1-_xlfn.NORM.DIST(0,INDEX(Rating,$F28)-INDEX(Rating,AT$2),10,1),"") -> 0.3270765983 | AU28: =IF($F28<>AU$2,1-_xlfn.NORM.DIST(0,INDEX(Rating,$F28)-INDEX(Rating,AU$2),10,1),"") -> 0.1897006379 | AV28: =IF($F28<>AV$2,1-_xlfn.NORM.DIST(0,INDEX(Rating,$F28)-INDEX(Rating,AV$2),10,1),"") -> 0.356809509 | AW28: =IF($F28<>AW$2,1-_xlfn.NORM.DIST(0,INDEX(Rating,$F28)-INDEX(Rating,AW$2),10,1),"") -> 0.2419636522 | AX28: =IF($F28<>AX$2,1-_xlfn.NORM.DIST(0,INDEX(Rating,$F28)-INDEX(Rating,AX$2),10,1),"") -> 0.3141929346 | AY28: =IF($F28<>AY$2,1-_xlfn.NORM.DIST(0,INDEX(Rating,$F28)-INDEX(Rating,AY$2),10,1),"") -> 0.3401697116 | AZ28: =IF($F28<>AZ$2,1-_xlfn.NORM.DIST(0,INDEX(Rating,$F28)-INDEX(Rating,AZ$2),10,1),"") -> 0.1819391108 | BA28: =IF($F28<>BA$2,1-_xlfn.NORM.DIST(0,INDEX(Rating,$F28)-INDEX(Rating,BA$2),10,1),"") -> 0.6671292934 | BB28: =IF($F28<>BB$2,1-_xlfn.NORM.DIST(0,INDEX(Rating,$F28)-INDEX(Rating,BB$2),10,1),"") -> 0.1932450809 | BC28: =IF($F28<>BC$2,1-_xlfn.NORM.DIST(0,INDEX(Rating,$F28)-INDEX(Rating,BC$2),10,1),"") -> 0.2591396777 | BD28: =IF($F28<>BD$2,1-_xlfn.NORM.DIST(0,INDEX(Rating,$F28)-INDEX(Rating,BD$2),10,1),"") -> 0.09611679119 | BE28: =IF($F28<>BE$2,1-_xlfn.NORM.DIST(0,INDEX(Rating,$F28)-INDEX(Rating,BE$2),10,1),"") -> 0.5513211756 | BF28: =IF($F28<>BF$2,1-_xlfn.NORM.DIST(0,INDEX(Rating,$F28)-INDEX(Rating,BF$2),10,1),"") -> 0.1051028533 | BG28: =IF($F28<>BG$2,1-_xlfn.NORM.DIST(0,INDEX(Rating,$F28)-INDEX(Rating,BG$2),10,1),"") -> 0.8001060233 | BH28: =IF($F28<>BH$2,1-_xlfn.NORM.DIST(0,INDEX(Rating,$F28)-INDEX(Rating,BH$2),10,1),"") -> 0.2021404919 | BI28: =IF($F28<>BI$2,1-_xlfn.NORM.DIST(0,INDEX(Rating,$F28)-INDEX(Rating,BI$2),10,1),"") -> 0.2153483529 | BJ28: =IF($F28<>BJ$2,1-_xlfn.NORM.DIST(0,INDEX(Rating,$F28)-INDEX(Rating,BJ$2),10,1),"") -> 0.1837941598 | BK28: =IF($F28<>BK$2,1-_xlfn.NORM.DIST(0,INDEX(Rating,$F28)-INDEX(Rating,BK$2),10,1),"") -> 0.2732543446 | BL28: =IF($F28<>BL$2,1-_xlfn.NORM.DIST(0,INDEX(Rating,$F28)-INDEX(Rating,BL$2),10,1),"") -> 0.1029356639 | BM28: =IF($F28<>BM$2,1-_xlfn.NORM.DIST(0,INDEX(Rating,$F28)-INDEX(Rating,BM$2),10,1),"") -> 0.4102118711 | BN28: =IF($F28<>BN$2,1-_xlfn.NORM.DIST(0,INDEX(Rating,$F28)-INDEX(Rating,BN$2),10,1),"") -> 0.1968296521 | BO28: =IF($F28<>BO$2,1-_xlfn.NORM.DIST(0,INDEX(Rating,$F28)-INDEX(Rating,BO$2),10,1),"") -> 0.3605459029 | BP28: =IF($F28<>BP$2,1-_xlfn.NORM.DIST(0,INDEX(Rating,$F28)-INDEX(Rating,BP$2),10,1),"") -> 0.4289688508 | BQ28: =IF($F28<>BQ$2,1-_xlfn.NORM.DIST(0,INDEX(Rating,$F28)-INDEX(Rating,BQ$2),10,1),"") -> 0.09594642389 | BR28: =IF($F28<>BR$2,1-_xlfn.NORM.DIST(0,INDEX(Rating,$F28)-INDEX(Rating,BR$2),10,1),"") -> 0.5564599972 | BS28: =IF($F28<>BS$2,1-_xlfn.NORM.DIST(0,INDEX(Rating,$F28)-INDEX(Rating,BS$2),10,1),"") -> 0.2575232434 | BT28: =IF($F28<>BT$2,1-_xlfn.NORM.DIST(0,INDEX(Rating,$F28)-INDEX(Rating,BT$2),10,1),"") -> 0.3274375299 | BU28: =IF($F28<>BU$2,1-_xlfn.NORM.DIST(0,INDEX(Rating,$F28)-INDEX(Rating,BU$2),10,1),"") -> 0.08394737695 | BV28: =IF($F28<>BV$2,1-_xlfn.NORM.DIST(0,INDEX(Rating,$F28)-INDEX(Rating,BV$2),10,1),"") -> 0.6765237794
B29: Kentucky | C29: 27 | D29: 85.95 | F29: 27 | G29: =IF($F29<>G$2,1-_xlfn.NORM.DIST(0,INDEX(Rating,$F29)-INDEX(Rating,G$2),10,1),"") -> 0.242588597 | H29: =IF($F29<>H$2,1-_xlfn.NORM.DIST(0,INDEX(Rating,$F29)-INDEX(Rating,H$2),10,1),"") -> 0.9419086756 | I29: =IF($F29<>I$2,1-_xlfn.NORM.DIST(0,INDEX(Rating,$F29)-INDEX(Rating,I$2),10,1),"") -> 0.9726341463 | J29: =IF($F29<>J$2,1-_xlfn.NORM.DIST(0,INDEX(Rating,$F29)-INDEX(Rating,J$2),10,1),"") -> 0.5191418787 | K29: =IF($F29<>K$2,1-_xlfn.NORM.DIST(0,INDEX(Rating,$F29)-INDEX(Rating,K$2),10,1),"") -> 0.5035904321 | L29: =IF($F29<>L$2,1-_xlfn.NORM.DIST(0,INDEX(Rating,$F29)-INDEX(Rating,L$2),10,1),"") -> 0.5302904509 | M29: =IF($F29<>M$2,1-_xlfn.NORM.DIST(0,INDEX(Rating,$F29)-INDEX(Rating,M$2),10,1),"") -> 0.7005558965 | N29: =IF($F29<>N$2,1-_xlfn.NORM.DIST(0,INDEX(Rating,$F29)-INDEX(Rating,N$2),10,1),"") -> 0.5346642439 | O29: =IF($F29<>O$2,1-_xlfn.NORM.DIST(0,INDEX(Rating,$F29)-INDEX(Rating,O$2),10,1),"") -> 0.7411840283 | P29: =IF($F29<>P$2,1-_xlfn.NORM.DIST(0,INDEX(Rating,$F29)-INDEX(Rating,P$2),10,1),"") -> 0.4332916395 | Q29: =IF($F29<>Q$2,1-_xlfn.NORM.DIST(0,INDEX(Rating,$F29)-INDEX(Rating,Q$2),10,1),"") -> 0.6064198732 | R29: =IF($F29<>R$2,1-_xlfn.NORM.DIST(0,INDEX(Rating,$F29)-INDEX(Rating,R$2),10,1),"") -> 0.4439349712 | S29: =IF($F29<>S$2,1-_xlfn.NORM.DIST(0,INDEX(Rating,$F29)-INDEX(Rating,S$2),10,1),"") -> 0.8299581788 | T29: =IF($F29<>T$2,1-_xlfn.NORM.DIST(0,INDEX(Rating,$F29)-INDEX(Rating,T$2),10,1),"") -> 0.6394540971 | U29: =IF($F29<>U$2,1-_xlfn.NORM.DIST(0,INDEX(Rating,$F29)-INDEX(Rating,U$2),10,1),"") -> 0.5726009907 | V29: =IF($F29<>V$2,1-_xlfn.NORM.DIST(0,INDEX(Rating,$F29)-INDEX(Rating,V$2),10,1),"") -> 0.3478986179 | W29: =IF($F29<>W$2,1-_xlfn.NORM.DIST(0,INDEX(Rating,$F29)-INDEX(Rating,W$2),10,1),"") -> 0.8324770371 | X29: =IF($F29<>X$2,1-_xlfn.NORM.DIST(0,INDEX(Rating,$F29)-INDEX(Rating,X$2),10,1),"") -> 0.3741051955 | Y29: =IF($F29<>Y$2,1-_xlfn.NORM.DIST(0,INDEX(Rating,$F29)-INDEX(Rating,Y$2),10,1),"") -> 0.9806799885 | Z29: =IF($F29<>Z$2,1-_xlfn.NORM.DIST(0,INDEX(Rating,$F29)-INDEX(Rating,Z$2),10,1),"") -> 0.9864126795 | AA29: =IF($F29<>AA$2,1-_xlfn.NORM.DIST(0,INDEX(Rating,$F29)-INDEX(Rating,AA$2),10,1),"") -> 0.4768743143 | AB29: =IF($F29<>AB$2,1-_xlfn.NORM.DIST(0,INDEX(Rating,$F29)-INDEX(Rating,AB$2),10,1),"") -> 0.5905655419 | AC29: =IF($F29<>AC$2,1-_xlfn.NORM.DIST(0,INDEX(Rating,$F29)-INDEX(Rating,AC$2),10,1),"") -> 0.4447250745 | AD29: =IF($F29<>AD$2,1-_xlfn.NORM.DIST(0,INDEX(Rating,$F29)-INDEX(Rating,AD$2),10,1),"") -> 0.7074670314 | AE29: =IF($F29<>AE$2,1-_xlfn.NORM.DIST(0,INDEX(Rating,$F29)-INDEX(Rating,AE$2),10,1),"") -> 0.3695671416 | AF29: =IF($F29<>AF$2,1-_xlfn.NORM.DIST(0,INDEX(Rating,$F29)-INDEX(Rating,AF$2),10,1),"") -> 0.8031703479 | AG29: =IF($F29<>AG$2,1-_xlfn.NORM.DIST(0,INDEX(Rating,$F29)-INDEX(Rating,AG$2),10,1),"") ->  | AH29: =IF($F29<>AH$2,1-_xlfn.NORM.DIST(0,INDEX(Rating,$F29)-INDEX(Rating,AH$2),10,1),"") -> 0.5726009907 | AI29: =IF($F29<>AI$2,1-_xlfn.NORM.DIST(0,INDEX(Rating,$F29)-INDEX(Rating,AI$2),10,1),"") -> 0.5243203955 | AJ29: =IF($F29<>AJ$2,1-_xlfn.NORM.DIST(0,INDEX(Rating,$F29)-INDEX(Rating,AJ$2),10,1),"") -> 0.8692812528 | AK29: =IF($F29<>AK$2,1-_xlfn.NORM.DIST(0,INDEX(Rating,$F29)-INDEX(Rating,AK$2),10,1),"") -> 0.5406216625 | AL29: =IF($F29<>AL$2,1-_xlfn.NORM.DIST(0,INDEX(Rating,$F29)-INDEX(Rating,AL$2),10,1),"") -> 0.5726009907 | AM29: =IF($F29<>AM$2,1-_xlfn.NORM.DIST(0,INDEX(Rating,$F29)-INDEX(Rating,AM$2),10,1),"") -> 0.4380165106 | AN29: =IF($F29<>AN$2,1-_xlfn.NORM.DIST(0,INDEX(Rating,$F29)-INDEX(Rating,AN$2),10,1),"") -> 0.8214747865 | AO29: =IF($F29<>AO$2,1-_xlfn.NORM.DIST(0,INDEX(Rating,$F29)-INDEX(Rating,AO$2),10,1),"") -> 0.2775953248 | AP29: =IF($F29<>AP$2,1-_xlfn.NORM.DIST(0,INDEX(Rating,$F29)-INDEX(Rating,AP$2),10,1),"") -> 0.9087340981 | AQ29: =IF($F29<>AQ$2,1-_xlfn.NORM.DIST(0,INDEX(Rating,$F29)-INDEX(Rating,AQ$2),10,1),"") -> 0.5437953125 | AR29: =IF($F29<>AR$2,1-_xlfn.NORM.DIST(0,INDEX(Rating,$F29)-INDEX(Rating,AR$2),10,1),"") -> 0.5251167478 | AS29: =IF($F29<>AS$2,1-_xlfn.NORM.DIST(0,INDEX(Rating,$F29)-INDEX(Rating,AS$2),10,1),"") -> 0.5702458052 | AT29: =IF($F29<>AT$2,1-_xlfn.NORM.DIST(0,INDEX(Rating,$F29)-INDEX(Rating,AT$2),10,1),"") -> 0.6572612445 | AU29: =IF($F29<>AU$2,1-_xlfn.NORM.DIST(0,INDEX(Rating,$F29)-INDEX(Rating,AU$2),10,1),"") -> 0.4896286692 | AV29: =IF($F29<>AV$2,1-_xlfn.NORM.DIST(0,INDEX(Rating,$F29)-INDEX(Rating,AV$2),10,1),"") -> 0.686516417 | AW29: =IF($F29<>AW$2,1-_xlfn.NORM.DIST(0,INDEX(Rating,$F29)-INDEX(Rating,AW$2),10,1),"") -> 0.5608008624 | AX29: =IF($F29<>AX$2,1-_xlfn.NORM.DIST(0,INDEX(Rating,$F29)-INDEX(Rating,AX$2),10,1),"") -> 0.6439361376 | AY29: =IF($F29<>AY$2,1-_xlfn.NORM.DIST(0,INDEX(Rating,$F29)-INDEX(Rating,AY$2),10,1),"") -> 0.6703935015 | AZ29: =IF($F29<>AZ$2,1-_xlfn.NORM.DIST(0,INDEX(Rating,$F29)-INDEX(Rating,AZ$2),10,1),"") -> 0.4780692319 | BA29: =IF($F29<>BA$2,1-_xlfn.NORM.DIST(0,INDEX(Rating,$F29)-INDEX(Rating,BA$2),10,1),"") -> 0.900603858 | BB29: =IF($F29<>BB$2,1-_xlfn.NORM.DIST(0,INDEX(Rating,$F29)-INDEX(Rating,BB$2),10,1),"") -> 0.4948138964 | BC29: =IF($F29<>BC$2,1-_xlfn.NORM.DIST(0,INDEX(Rating,$F29)-INDEX(Rating,BC$2),10,1),"") -> 0.5819950708 | BD29: =IF($F29<>BD$2,1-_xlfn.NORM.DIST(0,INDEX(Rating,$F29)-INDEX(Rating,BD$2),10,1),"") -> 0.3259947745 | BE29: =IF($F29<>BE$2,1-_xlfn.NORM.DIST(0,INDEX(Rating,$F29)-INDEX(Rating,BE$2),10,1),"") -> 0.8369500759 | BF29: =IF($F29<>BF$2,1-_xlfn.NORM.DIST(0,INDEX(Rating,$F29)-INDEX(Rating,BF$2),10,1),"") -> 0.3445782584 | BG29: =IF($F29<>BG$2,1-_xlfn.NORM.DIST(0,INDEX(Rating,$F29)-INDEX(Rating,BG$2),10,1),"") -> 0.9549622896 | BH29: =IF($F29<>BH$2,1-_xlfn.NORM.DIST(0,INDEX(Rating,$F29)-INDEX(Rating,BH$2),10,1),"") -> 0.5075794473 | BI29: =IF($F29<>BI$2,1-_xlfn.NORM.DIST(0,INDEX(Rating,$F29)-INDEX(Rating,BI$2),10,1),"") -> 0.5259129999 | BJ29: =IF($F29<>BJ$2,1-_xlfn.NORM.DIST(0,INDEX(Rating,$F29)-INDEX(Rating,BJ$2),10,1),"") -> 0.4808581213 | BK29: =IF($F29<>BK$2,1-_xlfn.NORM.DIST(0,INDEX(Rating,$F29)-INDEX(Rating,BK$2),10,1),"") -> 0.5987063257 | BL29: =IF($F29<>BL$2,1-_xlfn.NORM.DIST(0,INDEX(Rating,$F29)-INDEX(Rating,BL$2),10,1),"") -> 0.3401697116 | BM29: =IF($F29<>BM$2,1-_xlfn.NORM.DIST(0,INDEX(Rating,$F29)-INDEX(Rating,BM$2),10,1),"") -> 0.7343425293 | BN29: =IF($F29<>BN$2,1-_xlfn.NORM.DIST(0,INDEX(Rating,$F29)-INDEX(Rating,BN$2),10,1),"") -> 0.5 | BO29: =IF($F29<>BO$2,1-_xlfn.NORM.DIST(0,INDEX(Rating,$F29)-INDEX(Rating,BO$2),10,1),"") -> 0.6900527945 | BP29: =IF($F29<>BP$2,1-_xlfn.NORM.DIST(0,INDEX(Rating,$F29)-INDEX(Rating,BP$2),10,1),"") -> 0.7498443432 | BQ29: =IF($F29<>BQ$2,1-_xlfn.NORM.DIST(0,INDEX(Rating,$F29)-INDEX(Rating,BQ$2),10,1),"") -> 0.3256344912 | BR29: =IF($F29<>BR$2,1-_xlfn.NORM.DIST(0,INDEX(Rating,$F29)-INDEX(Rating,BR$2),10,1),"") -> 0.8401318678 | BS29: =IF($F29<>BS$2,1-_xlfn.NORM.DIST(0,INDEX(Rating,$F29)-INDEX(Rating,BS$2),10,1),"") -> 0.5800416379 | BT29: =IF($F29<>BT$2,1-_xlfn.NORM.DIST(0,INDEX(Rating,$F29)-INDEX(Rating,BT$2),10,1),"") -> 0.6576286998 | BU29: =IF($F29<>BU$2,1-_xlfn.NORM.DIST(0,INDEX(Rating,$F29)-INDEX(Rating,BU$2),10,1),"") -> 0.2994441035 | BV29: =IF($F29<>BV$2,1-_xlfn.NORM.DIST(0,INDEX(Rating,$F29)-INDEX(Rating,BV$2),10,1),"") -> 0.9050711182
B30: Providence | C30: 28 | D30: 84.12 | F30: 28 | G30: =IF($F30<>G$2,1-_xlfn.NORM.DIST(0,INDEX(Rating,$F30)-INDEX(Rating,G$2),10,1),"") -> 0.18915891 | H30: =IF($F30<>H$2,1-_xlfn.NORM.DIST(0,INDEX(Rating,$F30)-INDEX(Rating,H$2),10,1),"") -> 0.9174314774 | I30: =IF($F30<>I$2,1-_xlfn.NORM.DIST(0,INDEX(Rating,$F30)-INDEX(Rating,I$2),10,1),"") -> 0.9588945931 | J30: =IF($F30<>J$2,1-_xlfn.NORM.DIST(0,INDEX(Rating,$F30)-INDEX(Rating,J$2),10,1),"") -> 0.4463059372 | K30: =IF($F30<>K$2,1-_xlfn.NORM.DIST(0,INDEX(Rating,$F30)-INDEX(Rating,K$2),10,1),"") -> 0.4309327311 | L30: =IF($F30<>L$2,1-_xlfn.NORM.DIST(0,INDEX(Rating,$F30)-INDEX(Rating,L$2),10,1),"") -> 0.4573944899 | M30: =IF($F30<>M$2,1-_xlfn.NORM.DIST(0,INDEX(Rating,$F30)-INDEX(Rating,M$2),10,1),"") -> 0.6342007699 | N30: =IF($F30<>N$2,1-_xlfn.NORM.DIST(0,INDEX(Rating,$F30)-INDEX(Rating,N$2),10,1),"") -> 0.4617602863 | O30: =IF($F30<>O$2,1-_xlfn.NORM.DIST(0,INDEX(Rating,$F30)-INDEX(Rating,O$2),10,1),"") -> 0.6786761272 | P30: =IF($F30<>P$2,1-_xlfn.NORM.DIST(0,INDEX(Rating,$F30)-INDEX(Rating,P$2),10,1),"") -> 0.3627941742 | Q30: =IF($F30<>Q$2,1-_xlfn.NORM.DIST(0,INDEX(Rating,$F30)-INDEX(Rating,Q$2),10,1),"") -> 0.5346642439 | R30: =IF($F30<>R$2,1-_xlfn.NORM.DIST(0,INDEX(Rating,$F30)-INDEX(Rating,R$2),10,1),"") -> 0.3729690171 | S30: =IF($F30<>S$2,1-_xlfn.NORM.DIST(0,INDEX(Rating,$F30)-INDEX(Rating,S$2),10,1),"") -> 0.7796465342 | T30: =IF($F30<>T$2,1-_xlfn.NORM.DIST(0,INDEX(Rating,$F30)-INDEX(Rating,T$2),10,1),"") -> 0.5690672689 | U30: =IF($F30<>U$2,1-_xlfn.NORM.DIST(0,INDEX(Rating,$F30)-INDEX(Rating,U$2),10,1),"") -> 0.5 | V30: =IF($F30<>V$2,1-_xlfn.NORM.DIST(0,INDEX(Rating,$F30)-INDEX(Rating,V$2),10,1),"") -> 0.2829839006 | W30: =IF($F30<>W$2,1-_xlfn.NORM.DIST(0,INDEX(Rating,$F30)-INDEX(Rating,W$2),10,1),"") -> 0.7825987526 | X30: =IF($F30<>X$2,1-_xlfn.NORM.DIST(0,INDEX(Rating,$F30)-INDEX(Rating,X$2),10,1),"") -> 0.3071306885 | Y30: =IF($F30<>Y$2,1-_xlfn.NORM.DIST(0,INDEX(Rating,$F30)-INDEX(Rating,Y$2),10,1),"") -> 0.9702850811 | Z30: =IF($F30<>Z$2,1-_xlfn.NORM.DIST(0,INDEX(Rating,$F30)-INDEX(Rating,Z$2),10,1),"") -> 0.9786176077 | AA30: =IF($F30<>AA$2,1-_xlfn.NORM.DIST(0,INDEX(Rating,$F30)-INDEX(Rating,AA$2),10,1),"") -> 0.4047775583 | AB30: =IF($F30<>AB$2,1-_xlfn.NORM.DIST(0,INDEX(Rating,$F30)-INDEX(Rating,AB$2),10,1),"") -> 0.518344875 | AC30: =IF($F30<>AC$2,1-_xlfn.NORM.DIST(0,INDEX(Rating,$F30)-INDEX(Rating,AC$2),10,1),"") -> 0.3737263473 | AD30: =IF($F30<>AD$2,1-_xlfn.NORM.DIST(0,INDEX(Rating,$F30)-INDEX(Rating,AD$2),10,1),"") -> 0.6416975578 | AE30: =IF($F30<>AE$2,1-_xlfn.NORM.DIST(0,INDEX(Rating,$F30)-INDEX(Rating,AE$2),10,1),"") -> 0.3029272046 | AF30: =IF($F30<>AF$2,1-_xlfn.NORM.DIST(0,INDEX(Rating,$F30)-INDEX(Rating,AF$2),10,1),"") -> 0.7485711049 | AG30: =IF($F30<>AG$2,1-_xlfn.NORM.DIST(0,INDEX(Rating,$F30)-INDEX(Rating,AG$2),10,1),"") -> 0.4273990093 | AH30: =IF($F30<>AH$2,1-_xlfn.NORM.DIST(0,INDEX(Rating,$F30)-INDEX(Rating,AH$2),10,1),"") ->  | AI30: =IF($F30<>AI$2,1-_xlfn.NORM.DIST(0,INDEX(Rating,$F30)-INDEX(Rating,AI$2),10,1),"") -> 0.4514495091 | AJ30: =IF($F30<>AJ$2,1-_xlfn.NORM.DIST(0,INDEX(Rating,$F30)-INDEX(Rating,AJ$2),10,1),"") -> 0.8263912197 | AK30: =IF($F30<>AK$2,1-_xlfn.NORM.DIST(0,INDEX(Rating,$F30)-INDEX(Rating,AK$2),10,1),"") -> 0.4677209763 | AL30: =IF($F30<>AL$2,1-_xlfn.NORM.DIST(0,INDEX(Rating,$F30)-INDEX(Rating,AL$2),10,1),"") -> 0.5 | AM30: =IF($F30<>AM$2,1-_xlfn.NORM.DIST(0,INDEX(Rating,$F30)-INDEX(Rating,AM$2),10,1),"") -> 0.3673048651 | AN30: =IF($F30<>AN$2,1-_xlfn.NORM.DIST(0,INDEX(Rating,$F30)-INDEX(Rating,AN$2),10,1),"") -> 0.7697427754 | AO30: =IF($F30<>AO$2,1-_xlfn.NORM.DIST(0,INDEX(Rating,$F30)-INDEX(Rating,AO$2),10,1),"") -> 0.2197611903 | AP30: =IF($F30<>AP$2,1-_xlfn.NORM.DIST(0,INDEX(Rating,$F30)-INDEX(Rating,AP$2),10,1),"") -> 0.8749280644 | AQ30: =IF($F30<>AQ$2,1-_xlfn.NORM.DIST(0,INDEX(Rating,$F30)-INDEX(Rating,AQ$2),10,1),"") -> 0.4709030588 | AR30: =IF($F30<>AR$2,1-_xlfn.NORM.DIST(0,INDEX(Rating,$F30)-INDEX(Rating,AR$2),10,1),"") -> 0.452241574 | AS30: =IF($F30<>AS$2,1-_xlfn.NORM.DIST(0,INDEX(Rating,$F30)-INDEX(Rating,AS$2),10,1),"") -> 0.4976063607 | AT30: =IF($F30<>AT$2,1-_xlfn.NORM.DIST(0,INDEX(Rating,$F30)-INDEX(Rating,AT$2),10,1),"") -> 0.5878430583 | AU30: =IF($F30<>AU$2,1-_xlfn.NORM.DIST(0,INDEX(Rating,$F30)-INDEX(Rating,AU$2),10,1),"") -> 0.4172241193 | AV30: =IF($F30<>AV$2,1-_xlfn.NORM.DIST(0,INDEX(Rating,$F30)-INDEX(Rating,AV$2),10,1),"") -> 0.6190550692 | AW30: =IF($F30<>AW$2,1-_xlfn.NORM.DIST(0,INDEX(Rating,$F30)-INDEX(Rating,AW$2),10,1),"") -> 0.4880335266 | AX30: =IF($F30<>AX$2,1-_xlfn.NORM.DIST(0,INDEX(Rating,$F30)-INDEX(Rating,AX$2),10,1),"") -> 0.5737776193 | AY30: =IF($F30<>AY$2,1-_xlfn.NORM.DIST(0,INDEX(Rating,$F30)-INDEX(Rating,AY$2),10,1),"") -> 0.6017965464 | AZ30: =IF($F30<>AZ$2,1-_xlfn.NORM.DIST(0,INDEX(Rating,$F30)-INDEX(Rating,AZ$2),10,1),"") -> 0.4059405471 | BA30: =IF($F30<>BA$2,1-_xlfn.NORM.DIST(0,INDEX(Rating,$F30)-INDEX(Rating,BA$2),10,1),"") -> 0.8647691642 | BB30: =IF($F30<>BB$2,1-_xlfn.NORM.DIST(0,INDEX(Rating,$F30)-INDEX(Rating,BB$2),10,1),"") -> 0.422305083 | BC30: =IF($F30<>BC$2,1-_xlfn.NORM.DIST(0,INDEX(Rating,$F30)-INDEX(Rating,BC$2),10,1),"") -> 0.5095736956 | BD30: =IF($F30<>BD$2,1-_xlfn.NORM.DIST(0,INDEX(Rating,$F30)-INDEX(Rating,BD$2),10,1),"") -> 0.2630404111 | BE30: =IF($F30<>BE$2,1-_xlfn.NORM.DIST(0,INDEX(Rating,$F30)-INDEX(Rating,BE$2),10,1),"") -> 0.787854794 | BF30: =IF($F30<>BF$2,1-_xlfn.NORM.DIST(0,INDEX(Rating,$F30)-INDEX(Rating,BF$2),10,1),"") -> 0.2799466501 | BG30: =IF($F30<>BG$2,1-_xlfn.NORM.DIST(0,INDEX(Rating,$F30)-INDEX(Rating,BG$2),10,1),"") -> 0.9347330687 | BH30: =IF($F30<>BH$2,1-_xlfn.NORM.DIST(0,INDEX(Rating,$F30)-INDEX(Rating,BH$2),10,1),"") -> 0.4348655719 | BI30: =IF($F30<>BI$2,1-_xlfn.NORM.DIST(0,INDEX(Rating,$F30)-INDEX(Rating,BI$2),10,1),"") -> 0.4530338289 | BJ30: =IF($F30<>BJ$2,1-_xlfn.NORM.DIST(0,INDEX(Rating,$F30)-INDEX(Rating,BJ$2),10,1),"") -> 0.408657401 | BK30: =IF($F30<>BK$2,1-_xlfn.NORM.DIST(0,INDEX(Rating,$F30)-INDEX(Rating,BK$2),10,1),"") -> 0.5267091484 | BL30: =IF($F30<>BL$2,1-_xlfn.NORM.DIST(0,INDEX(Rating,$F30)-INDEX(Rating,BL$2),10,1),"") -> 0.2759217355 | BM30: =IF($F30<>BM$2,1-_xlfn.NORM.DIST(0,INDEX(Rating,$F30)-INDEX(Rating,BM$2),10,1),"") -> 0.6711171326 | BN30: =IF($F30<>BN$2,1-_xlfn.NORM.DIST(0,INDEX(Rating,$F30)-INDEX(Rating,BN$2),10,1),"") -> 0.4273990093 | BO30: =IF($F30<>BO$2,1-_xlfn.NORM.DIST(0,INDEX(Rating,$F30)-INDEX(Rating,BO$2),10,1),"") -> 0.6228596689 | BP30: =IF($F30<>BP$2,1-_xlfn.NORM.DIST(0,INDEX(Rating,$F30)-INDEX(Rating,BP$2),10,1),"") -> 0.6882867762 | BQ30: =IF($F30<>BQ$2,1-_xlfn.NORM.DIST(0,INDEX(Rating,$F30)-INDEX(Rating,BQ$2),10,1),"") -> 0.2627142075 | BR30: =IF($F30<>BR$2,1-_xlfn.NORM.DIST(0,INDEX(Rating,$F30)-INDEX(Rating,BR$2),10,1),"") -> 0.7916041843 | BS30: =IF($F30<>BS$2,1-_xlfn.NORM.DIST(0,INDEX(Rating,$F30)-INDEX(Rating,BS$2),10,1),"") -> 0.5075794473 | BT30: =IF($F30<>BT$2,1-_xlfn.NORM.DIST(0,INDEX(Rating,$F30)-INDEX(Rating,BT$2),10,1),"") -> 0.5882322467 | BU30: =IF($F30<>BU$2,1-_xlfn.NORM.DIST(0,INDEX(Rating,$F30)-INDEX(Rating,BU$2),10,1),"") -> 0.2391622384 | BV30: =IF($F30<>BV$2,1-_xlfn.NORM.DIST(0,INDEX(Rating,$F30)-INDEX(Rating,BV$2),10,1),"") -> 0.8703400404
B31: Kansas St | C31: 29 | D31: 85.34 | F31: 29 | G31: =IF($F31<>G$2,1-_xlfn.NORM.DIST(0,INDEX(Rating,$F31)-INDEX(Rating,G$2),10,1),"") -> 0.2239262784 | H31: =IF($F31<>H$2,1-_xlfn.NORM.DIST(0,INDEX(Rating,$F31)-INDEX(Rating,H$2),10,1),"") -> 0.9344782879 | I31: =IF($F31<>I$2,1-_xlfn.NORM.DIST(0,INDEX(Rating,$F31)-INDEX(Rating,I$2),10,1),"") -> 0.968557237 | J31: =IF($F31<>J$2,1-_xlfn.NORM.DIST(0,INDEX(Rating,$F31)-INDEX(Rating,J$2),10,1),"") -> 0.4948138964 | K31: =IF($F31<>K$2,1-_xlfn.NORM.DIST(0,INDEX(Rating,$F31)-INDEX(Rating,K$2),10,1),"") -> 0.4792643467 | L31: =IF($F31<>L$2,1-_xlfn.NORM.DIST(0,INDEX(Rating,$F31)-INDEX(Rating,L$2),10,1),"") -> 0.5059839098 | M31: =IF($F31<>M$2,1-_xlfn.NORM.DIST(0,INDEX(Rating,$F31)-INDEX(Rating,M$2),10,1),"") -> 0.6790342717 | N31: =IF($F31<>N$2,1-_xlfn.NORM.DIST(0,INDEX(Rating,$F31)-INDEX(Rating,N$2),10,1),"") -> 0.5103713308 | O31: =IF($F31<>O$2,1-_xlfn.NORM.DIST(0,INDEX(Rating,$F31)-INDEX(Rating,O$2),10,1),"") -> 0.7210622426 | P31: =IF($F31<>P$2,1-_xlfn.NORM.DIST(0,INDEX(Rating,$F31)-INDEX(Rating,P$2),10,1),"") -> 0.4094344581 | Q31: =IF($F31<>Q$2,1-_xlfn.NORM.DIST(0,INDEX(Rating,$F31)-INDEX(Rating,Q$2),10,1),"") -> 0.5827758807 | R31: =IF($F31<>R$2,1-_xlfn.NORM.DIST(0,INDEX(Rating,$F31)-INDEX(Rating,R$2),10,1),"") -> 0.4199583621 | S31: =IF($F31<>S$2,1-_xlfn.NORM.DIST(0,INDEX(Rating,$F31)-INDEX(Rating,S$2),10,1),"") -> 0.8140714137 | T31: =IF($F31<>T$2,1-_xlfn.NORM.DIST(0,INDEX(Rating,$F31)-INDEX(Rating,T$2),10,1),"") -> 0.6163849593 | U31: =IF($F31<>U$2,1-_xlfn.NORM.DIST(0,INDEX(Rating,$F31)-INDEX(Rating,U$2),10,1),"") -> 0.5485504909 | V31: =IF($F31<>V$2,1-_xlfn.NORM.DIST(0,INDEX(Rating,$F31)-INDEX(Rating,V$2),10,1),"") -> 0.3256344912 | W31: =IF($F31<>W$2,1-_xlfn.NORM.DIST(0,INDEX(Rating,$F31)-INDEX(Rating,W$2),10,1),"") -> 0.8167370525 | X31: =IF($F31<>X$2,1-_xlfn.NORM.DIST(0,INDEX(Rating,$F31)-INDEX(Rating,X$2),10,1),"") -> 0.3512306823 | Y31: =IF($F31<>Y$2,1-_xlfn.NORM.DIST(0,INDEX(Rating,$F31)-INDEX(Rating,Y$2),10,1),"") -> 0.9776251685 | Z31: =IF($F31<>Z$2,1-_xlfn.NORM.DIST(0,INDEX(Rating,$F31)-INDEX(Rating,Z$2),10,1),"") -> 0.9841431223 | AA31: =IF($F31<>AA$2,1-_xlfn.NORM.DIST(0,INDEX(Rating,$F31)-INDEX(Rating,AA$2),10,1),"") -> 0.4526376779 | AB31: =IF($F31<>AB$2,1-_xlfn.NORM.DIST(0,INDEX(Rating,$F31)-INDEX(Rating,AB$2),10,1),"") -> 0.5667083605 | AC31: =IF($F31<>AC$2,1-_xlfn.NORM.DIST(0,INDEX(Rating,$F31)-INDEX(Rating,AC$2),10,1),"") -> 0.4207402906 | AD31: =IF($F31<>AD$2,1-_xlfn.NORM.DIST(0,INDEX(Rating,$F31)-INDEX(Rating,AD$2),10,1),"") -> 0.6861618272 | AE31: =IF($F31<>AE$2,1-_xlfn.NORM.DIST(0,INDEX(Rating,$F31)-INDEX(Rating,AE$2),10,1),"") -> 0.3467905196 | AF31: =IF($F31<>AF$2,1-_xlfn.NORM.DIST(0,INDEX(Rating,$F31)-INDEX(Rating,AF$2),10,1),"") -> 0.7858196619 | AG31: =IF($F31<>AG$2,1-_xlfn.NORM.DIST(0,INDEX(Rating,$F31)-INDEX(Rating,AG$2),10,1),"") -> 0.4756796045 | AH31: =IF($F31<>AH$2,1-_xlfn.NORM.DIST(0,INDEX(Rating,$F31)-INDEX(Rating,AH$2),10,1),"") -> 0.5485504909 | AI31: =IF($F31<>AI$2,1-_xlfn.NORM.DIST(0,INDEX(Rating,$F31)-INDEX(Rating,AI$2),10,1),"") ->  | AJ31: =IF($F31<>AJ$2,1-_xlfn.NORM.DIST(0,INDEX(Rating,$F31)-INDEX(Rating,AJ$2),10,1),"") -> 0.8558821574 | AK31: =IF($F31<>AK$2,1-_xlfn.NORM.DIST(0,INDEX(Rating,$F31)-INDEX(Rating,AK$2),10,1),"") -> 0.5163520521 | AL31: =IF($F31<>AL$2,1-_xlfn.NORM.DIST(0,INDEX(Rating,$F31)-INDEX(Rating,AL$2),10,1),"") -> 0.5485504909 | AM31: =IF($F31<>AM$2,1-_xlfn.NORM.DIST(0,INDEX(Rating,$F31)-INDEX(Rating,AM$2),10,1),"") -> 0.4141041725 | AN31: =IF($F31<>AN$2,1-_xlfn.NORM.DIST(0,INDEX(Rating,$F31)-INDEX(Rating,AN$2),10,1),"") -> 0.8051054787 | AO31: =IF($F31<>AO$2,1-_xlfn.NORM.DIST(0,INDEX(Rating,$F31)-INDEX(Rating,AO$2),10,1),"") -> 0.2575232434 | AP31: =IF($F31<>AP$2,1-_xlfn.NORM.DIST(0,INDEX(Rating,$F31)-INDEX(Rating,AP$2),10,1),"") -> 0.8983134404 | AQ31: =IF($F31<>AQ$2,1-_xlfn.NORM.DIST(0,INDEX(Rating,$F31)-INDEX(Rating,AQ$2),10,1),"") -> 0.519540352 | AR31: =IF($F31<>AR$2,1-_xlfn.NORM.DIST(0,INDEX(Rating,$F31)-INDEX(Rating,AR$2),10,1),"") -> 0.500797884 | AS31: =IF($F31<>AS$2,1-_xlfn.NORM.DIST(0,INDEX(Rating,$F31)-INDEX(Rating,AS$2),10,1),"") -> 0.5461737291 | AT31: =IF($F31<>AT$2,1-_xlfn.NORM.DIST(0,INDEX(Rating,$F31)-INDEX(Rating,AT$2),10,1),"") -> 0.634576857 | AU31: =IF($F31<>AU$2,1-_xlfn.NORM.DIST(0,INDEX(Rating,$F31)-INDEX(Rating,AU$2),10,1),"") -> 0.4653357561 | AV31: =IF($F31<>AV$2,1-_xlfn.NORM.DIST(0,INDEX(Rating,$F31)-INDEX(Rating,AV$2),10,1),"") -> 0.6645816626 | AW31: =IF($F31<>AW$2,1-_xlfn.NORM.DIST(0,INDEX(Rating,$F31)-INDEX(Rating,AW$2),10,1),"") -> 0.5366509802 | AX31: =IF($F31<>AX$2,1-_xlfn.NORM.DIST(0,INDEX(Rating,$F31)-INDEX(Rating,AX$2),10,1),"") -> 0.6209588338 | AY31: =IF($F31<>AY$2,1-_xlfn.NORM.DIST(0,INDEX(Rating,$F31)-INDEX(Rating,AY$2),10,1),"") -> 0.6480272924 | AZ31: =IF($F31<>AZ$2,1-_xlfn.NORM.DIST(0,INDEX(Rating,$F31)-INDEX(Rating,AZ$2),10,1),"") -> 0.4538262709 | BA31: =IF($F31<>BA$2,1-_xlfn.NORM.DIST(0,INDEX(Rating,$F31)-INDEX(Rating,BA$2),10,1),"") -> 0.8895238862 | BB31: =IF($F31<>BB$2,1-_xlfn.NORM.DIST(0,INDEX(Rating,$F31)-INDEX(Rating,BB$2),10,1),"") -> 0.4705051926 | BC31: =IF($F31<>BC$2,1-_xlfn.NORM.DIST(0,INDEX(Rating,$F31)-INDEX(Rating,BC$2),10,1),"") -> 0.5580393058 | BD31: =IF($F31<>BD$2,1-_xlfn.NORM.DIST(0,INDEX(Rating,$F31)-INDEX(Rating,BD$2),10,1),"") -> 0.3043255048 | BE31: =IF($F31<>BE$2,1-_xlfn.NORM.DIST(0,INDEX(Rating,$F31)-INDEX(Rating,BE$2),10,1),"") -> 0.8214747865 | BF31: =IF($F31<>BF$2,1-_xlfn.NORM.DIST(0,INDEX(Rating,$F31)-INDEX(Rating,BF$2),10,1),"") -> 0.3223993026 | BG31: =IF($F31<>BG$2,1-_xlfn.NORM.DIST(0,INDEX(Rating,$F31)-INDEX(Rating,BG$2),10,1),"") -> 0.9488705747 | BH31: =IF($F31<>BH$2,1-_xlfn.NORM.DIST(0,INDEX(Rating,$F31)-INDEX(Rating,BH$2),10,1),"") -> 0.4832493491 | BI31: =IF($F31<>BI$2,1-_xlfn.NORM.DIST(0,INDEX(Rating,$F31)-INDEX(Rating,BI$2),10,1),"") -> 0.5015957649 | BJ31: =IF($F31<>BJ$2,1-_xlfn.NORM.DIST(0,INDEX(Rating,$F31)-INDEX(Rating,BJ$2),10,1),"") -> 0.4566012452 | BK31: =IF($F31<>BK$2,1-_xlfn.NORM.DIST(0,INDEX(Rating,$F31)-INDEX(Rating,BK$2),10,1),"") -> 0.5749535916 | BL31: =IF($F31<>BL$2,1-_xlfn.NORM.DIST(0,INDEX(Rating,$F31)-INDEX(Rating,BL$2),10,1),"") -> 0.3181065896 | BM31: =IF($F31<>BM$2,1-_xlfn.NORM.DIST(0,INDEX(Rating,$F31)-INDEX(Rating,BM$2),10,1),"") -> 0.7139631179 | BN31: =IF($F31<>BN$2,1-_xlfn.NORM.DIST(0,INDEX(Rating,$F31)-INDEX(Rating,BN$2),10,1),"") -> 0.4756796045 | BO31: =IF($F31<>BO$2,1-_xlfn.NORM.DIST(0,INDEX(Rating,$F31)-INDEX(Rating,BO$2),10,1),"") -> 0.6682187863 | BP31: =IF($F31<>BP$2,1-_xlfn.NORM.DIST(0,INDEX(Rating,$F31)-INDEX(Rating,BP$2),10,1),"") -> 0.7300618301 | BQ31: =IF($F31<>BQ$2,1-_xlfn.NORM.DIST(0,INDEX(Rating,$F31)-INDEX(Rating,BQ$2),10,1),"") -> 0.3039756603 | BR31: =IF($F31<>BR$2,1-_xlfn.NORM.DIST(0,INDEX(Rating,$F31)-INDEX(Rating,BR$2),10,1),"") -> 0.8248480535 | BS31: =IF($F31<>BS$2,1-_xlfn.NORM.DIST(0,INDEX(Rating,$F31)-INDEX(Rating,BS$2),10,1),"") -> 0.5560650288 | BT31: =IF($F31<>BT$2,1-_xlfn.NORM.DIST(0,INDEX(Rating,$F31)-INDEX(Rating,BT$2),10,1),"") -> 0.6349528146 | BU31: =IF($F31<>BU$2,1-_xlfn.NORM.DIST(0,INDEX(Rating,$F31)-INDEX(Rating,BU$2),10,1),"") -> 0.2786018534 | BV31: =IF($F31<>BV$2,1-_xlfn.NORM.DIST(0,INDEX(Rating,$F31)-INDEX(Rating,BV$2),10,1),"") -> 0.8943502263
B32: Montana St | C32: 30 | D32: 74.72 | F32: 30 | G32: =IF($F32<>G$2,1-_xlfn.NORM.DIST(0,INDEX(Rating,$F32)-INDEX(Rating,G$2),10,1),"") -> 0.03430342843 | H32: =IF($F32<>H$2,1-_xlfn.NORM.DIST(0,INDEX(Rating,$F32)-INDEX(Rating,H$2),10,1),"") -> 0.6729234017 | I32: =IF($F32<>I$2,1-_xlfn.NORM.DIST(0,INDEX(Rating,$F32)-INDEX(Rating,I$2),10,1),"") -> 0.7875647549 | J32: =IF($F32<>J$2,1-_xlfn.NORM.DIST(0,INDEX(Rating,$F32)-INDEX(Rating,J$2),10,1),"") -> 0.1411873642 | K32: =IF($F32<>K$2,1-_xlfn.NORM.DIST(0,INDEX(Rating,$F32)-INDEX(Rating,K$2),10,1),"") -> 0.1326395933 | L32: =IF($F32<>L$2,1-_xlfn.NORM.DIST(0,INDEX(Rating,$F32)-INDEX(Rating,L$2),10,1),"") -> 0.1475497891 | M32: =IF($F32<>M$2,1-_xlfn.NORM.DIST(0,INDEX(Rating,$F32)-INDEX(Rating,M$2),10,1),"") -> 0.2752536903 | N32: =IF($F32<>N$2,1-_xlfn.NORM.DIST(0,INDEX(Rating,$F32)-INDEX(Rating,N$2),10,1),"") -> 0.1501010713 | O32: =IF($F32<>O$2,1-_xlfn.NORM.DIST(0,INDEX(Rating,$F32)-INDEX(Rating,O$2),10,1),"") -> 0.317037189 | P32: =IF($F32<>P$2,1-_xlfn.NORM.DIST(0,INDEX(Rating,$F32)-INDEX(Rating,P$2),10,1),"") -> 0.09835183876 | Q32: =IF($F32<>Q$2,1-_xlfn.NORM.DIST(0,INDEX(Rating,$F32)-INDEX(Rating,Q$2),10,1),"") -> 0.1968296521 | R32: =IF($F32<>R$2,1-_xlfn.NORM.DIST(0,INDEX(Rating,$F32)-INDEX(Rating,R$2),10,1),"") -> 0.1031150135 | S32: =IF($F32<>S$2,1-_xlfn.NORM.DIST(0,INDEX(Rating,$F32)-INDEX(Rating,S$2),10,1),"") -> 0.4328983207 | T32: =IF($F32<>T$2,1-_xlfn.NORM.DIST(0,INDEX(Rating,$F32)-INDEX(Rating,T$2),10,1),"") -> 0.2218381511 | U32: =IF($F32<>U$2,1-_xlfn.NORM.DIST(0,INDEX(Rating,$F32)-INDEX(Rating,U$2),10,1),"") -> 0.1736087803 | V32: =IF($F32<>V$2,1-_xlfn.NORM.DIST(0,INDEX(Rating,$F32)-INDEX(Rating,V$2),10,1),"") -> 0.06501291975 | W32: =IF($F32<>W$2,1-_xlfn.NORM.DIST(0,INDEX(Rating,$F32)-INDEX(Rating,W$2),10,1),"") -> 0.4368344369 | X32: =IF($F32<>X$2,1-_xlfn.NORM.DIST(0,INDEX(Rating,$F32)-INDEX(Rating,X$2),10,1),"") -> 0.07436948767 | Y32: =IF($F32<>Y$2,1-_xlfn.NORM.DIST(0,INDEX(Rating,$F32)-INDEX(Rating,Y$2),10,1),"") -> 0.827670562 | Z32: =IF($F32<>Z$2,1-_xlfn.NORM.DIST(0,INDEX(Rating,$F32)-INDEX(Rating,Z$2),10,1),"") -> 0.8612605039 | AA32: =IF($F32<>AA$2,1-_xlfn.NORM.DIST(0,INDEX(Rating,$F32)-INDEX(Rating,AA$2),10,1),"") -> 0.1188013617 | AB32: =IF($F32<>AB$2,1-_xlfn.NORM.DIST(0,INDEX(Rating,$F32)-INDEX(Rating,AB$2),10,1),"") -> 0.1856609456 | AC32: =IF($F32<>AC$2,1-_xlfn.NORM.DIST(0,INDEX(Rating,$F32)-INDEX(Rating,AC$2),10,1),"") -> 0.1034743932 | AD32: =IF($F32<>AD$2,1-_xlfn.NORM.DIST(0,INDEX(Rating,$F32)-INDEX(Rating,AD$2),10,1),"") -> 0.2819697278 | AE32: =IF($F32<>AE$2,1-_xlfn.NORM.DIST(0,INDEX(Rating,$F32)-INDEX(Rating,AE$2),10,1),"") -> 0.07269630981 | AF32: =IF($F32<>AF$2,1-_xlfn.NORM.DIST(0,INDEX(Rating,$F32)-INDEX(Rating,AF$2),10,1),"") -> 0.3935801268 | AG32: =IF($F32<>AG$2,1-_xlfn.NORM.DIST(0,INDEX(Rating,$F32)-INDEX(Rating,AG$2),10,1),"") -> 0.1307187472 | AH32: =IF($F32<>AH$2,1-_xlfn.NORM.DIST(0,INDEX(Rating,$F32)-INDEX(Rating,AH$2),10,1),"") -> 0.1736087803 | AI32: =IF($F32<>AI$2,1-_xlfn.NORM.DIST(0,INDEX(Rating,$F32)-INDEX(Rating,AI$2),10,1),"") -> 0.1441178426 | AJ32: =IF($F32<>AJ$2,1-_xlfn.NORM.DIST(0,INDEX(Rating,$F32)-INDEX(Rating,AJ$2),10,1),"") ->  | AK32: =IF($F32<>AK$2,1-_xlfn.NORM.DIST(0,INDEX(Rating,$F32)-INDEX(Rating,AK$2),10,1),"") -> 0.1536272194 | AL32: =IF($F32<>AL$2,1-_xlfn.NORM.DIST(0,INDEX(Rating,$F32)-INDEX(Rating,AL$2),10,1),"") -> 0.1736087803 | AM32: =IF($F32<>AM$2,1-_xlfn.NORM.DIST(0,INDEX(Rating,$F32)-INDEX(Rating,AM$2),10,1),"") -> 0.1004485279 | AN32: =IF($F32<>AN$2,1-_xlfn.NORM.DIST(0,INDEX(Rating,$F32)-INDEX(Rating,AN$2),10,1),"") -> 0.4199583621 | AO32: =IF($F32<>AO$2,1-_xlfn.NORM.DIST(0,INDEX(Rating,$F32)-INDEX(Rating,AO$2),10,1),"") -> 0.0433562698 | AP32: =IF($F32<>AP$2,1-_xlfn.NORM.DIST(0,INDEX(Rating,$F32)-INDEX(Rating,AP$2),10,1),"") -> 0.5831661635 | AQ32: =IF($F32<>AQ$2,1-_xlfn.NORM.DIST(0,INDEX(Rating,$F32)-INDEX(Rating,AQ$2),10,1),"") -> 0.1555300805 | AR32: =IF($F32<>AR$2,1-_xlfn.NORM.DIST(0,INDEX(Rating,$F32)-INDEX(Rating,AR$2),10,1),"") -> 0.1445722997 | AS32: =IF($F32<>AS$2,1-_xlfn.NORM.DIST(0,INDEX(Rating,$F32)-INDEX(Rating,AS$2),10,1),"") -> 0.1720742931 | AT32: =IF($F32<>AT$2,1-_xlfn.NORM.DIST(0,INDEX(Rating,$F32)-INDEX(Rating,AT$2),10,1),"") -> 0.2363786434 | AU32: =IF($F32<>AU$2,1-_xlfn.NORM.DIST(0,INDEX(Rating,$F32)-INDEX(Rating,AU$2),10,1),"") -> 0.1252779903 | AV32: =IF($F32<>AV$2,1-_xlfn.NORM.DIST(0,INDEX(Rating,$F32)-INDEX(Rating,AV$2),10,1),"") -> 0.2620624218 | AW32: =IF($F32<>AW$2,1-_xlfn.NORM.DIST(0,INDEX(Rating,$F32)-INDEX(Rating,AW$2),10,1),"") -> 0.1660232461 | AX32: =IF($F32<>AX$2,1-_xlfn.NORM.DIST(0,INDEX(Rating,$F32)-INDEX(Rating,AX$2),10,1),"") -> 0.2254246109 | AY32: =IF($F32<>AY$2,1-_xlfn.NORM.DIST(0,INDEX(Rating,$F32)-INDEX(Rating,AY$2),10,1),"") -> 0.2476194754 | AZ32: =IF($F32<>AZ$2,1-_xlfn.NORM.DIST(0,INDEX(Rating,$F32)-INDEX(Rating,AZ$2),10,1),"") -> 0.1193983031 | BA32: =IF($F32<>BA$2,1-_xlfn.NORM.DIST(0,INDEX(Rating,$F32)-INDEX(Rating,BA$2),10,1),"") -> 0.5643470731 | BB32: =IF($F32<>BB$2,1-_xlfn.NORM.DIST(0,INDEX(Rating,$F32)-INDEX(Rating,BB$2),10,1),"") -> 0.1279782822 | BC32: =IF($F32<>BC$2,1-_xlfn.NORM.DIST(0,INDEX(Rating,$F32)-INDEX(Rating,BC$2),10,1),"") -> 0.1798334475 | BD32: =IF($F32<>BD$2,1-_xlfn.NORM.DIST(0,INDEX(Rating,$F32)-INDEX(Rating,BD$2),10,1),"") -> 0.05774372472 | BE32: =IF($F32<>BE$2,1-_xlfn.NORM.DIST(0,INDEX(Rating,$F32)-INDEX(Rating,BE$2),10,1),"") -> 0.4439349712 | BF32: =IF($F32<>BF$2,1-_xlfn.NORM.DIST(0,INDEX(Rating,$F32)-INDEX(Rating,BF$2),10,1),"") -> 0.06387935271 | BG32: =IF($F32<>BG$2,1-_xlfn.NORM.DIST(0,INDEX(Rating,$F32)-INDEX(Rating,BG$2),10,1),"") -> 0.7163390127 | BH32: =IF($F32<>BH$2,1-_xlfn.NORM.DIST(0,INDEX(Rating,$F32)-INDEX(Rating,BH$2),10,1),"") -> 0.1347965688 | BI32: =IF($F32<>BI$2,1-_xlfn.NORM.DIST(0,INDEX(Rating,$F32)-INDEX(Rating,BI$2),10,1),"") -> 0.1450277212 | BJ32: =IF($F32<>BJ$2,1-_xlfn.NORM.DIST(0,INDEX(Rating,$F32)-INDEX(Rating,BJ$2),10,1),"") -> 0.1207993886 | BK32: =IF($F32<>BK$2,1-_xlfn.NORM.DIST(0,INDEX(Rating,$F32)-INDEX(Rating,BK$2),10,1),"") -> 0.1913315389 | BL32: =IF($F32<>BL$2,1-_xlfn.NORM.DIST(0,INDEX(Rating,$F32)-INDEX(Rating,BL$2),10,1),"") -> 0.06239191402 | BM32: =IF($F32<>BM$2,1-_xlfn.NORM.DIST(0,INDEX(Rating,$F32)-INDEX(Rating,BM$2),10,1),"") -> 0.3095945257 | BN32: =IF($F32<>BN$2,1-_xlfn.NORM.DIST(0,INDEX(Rating,$F32)-INDEX(Rating,BN$2),10,1),"") -> 0.1307187472 | BO32: =IF($F32<>BO$2,1-_xlfn.NORM.DIST(0,INDEX(Rating,$F32)-INDEX(Rating,BO$2),10,1),"") -> 0.2653296176 | BP32: =IF($F32<>BP$2,1-_xlfn.NORM.DIST(0,INDEX(Rating,$F32)-INDEX(Rating,BP$2),10,1),"") -> 0.3267158283 | BQ32: =IF($F32<>BQ$2,1-_xlfn.NORM.DIST(0,INDEX(Rating,$F32)-INDEX(Rating,BQ$2),10,1),"") -> 0.05762822228 | BR32: =IF($F32<>BR$2,1-_xlfn.NORM.DIST(0,INDEX(Rating,$F32)-INDEX(Rating,BR$2),10,1),"") -> 0.4490744865 | BS32: =IF($F32<>BS$2,1-_xlfn.NORM.DIST(0,INDEX(Rating,$F32)-INDEX(Rating,BS$2),10,1),"") -> 0.1785252135 | BT32: =IF($F32<>BT$2,1-_xlfn.NORM.DIST(0,INDEX(Rating,$F32)-INDEX(Rating,BT$2),10,1),"") -> 0.2366870483 | BU32: =IF($F32<>BU$2,1-_xlfn.NORM.DIST(0,INDEX(Rating,$F32)-INDEX(Rating,BU$2),10,1),"") -> 0.04957381736 | BV32: =IF($F32<>BV$2,1-_xlfn.NORM.DIST(0,INDEX(Rating,$F32)-INDEX(Rating,BV$2),10,1),"") -> 0.5745616744
B33: Michigan St | C33: 31 | D33: 84.93 | F33: 31 | G33: =IF($F33<>G$2,1-_xlfn.NORM.DIST(0,INDEX(Rating,$F33)-INDEX(Rating,G$2),10,1),"") -> 0.2118553986 | H33: =IF($F33<>H$2,1-_xlfn.NORM.DIST(0,INDEX(Rating,$F33)-INDEX(Rating,H$2),10,1),"") -> 0.9290836054 | I33: =IF($F33<>I$2,1-_xlfn.NORM.DIST(0,INDEX(Rating,$F33)-INDEX(Rating,I$2),10,1),"") -> 0.965544285 | J33: =IF($F33<>J$2,1-_xlfn.NORM.DIST(0,INDEX(Rating,$F33)-INDEX(Rating,J$2),10,1),"") -> 0.4784675821 | K33: =IF($F33<>K$2,1-_xlfn.NORM.DIST(0,INDEX(Rating,$F33)-INDEX(Rating,K$2),10,1),"") -> 0.4629517806 | L33: =IF($F33<>L$2,1-_xlfn.NORM.DIST(0,INDEX(Rating,$F33)-INDEX(Rating,L$2),10,1),"") -> 0.4896286692 | M33: =IF($F33<>M$2,1-_xlfn.NORM.DIST(0,INDEX(Rating,$F33)-INDEX(Rating,M$2),10,1),"") -> 0.6642170934 | N33: =IF($F33<>N$2,1-_xlfn.NORM.DIST(0,INDEX(Rating,$F33)-INDEX(Rating,N$2),10,1),"") -> 0.4940160902 | O33: =IF($F33<>O$2,1-_xlfn.NORM.DIST(0,INDEX(Rating,$F33)-INDEX(Rating,O$2),10,1),"") -> 0.7071232412 | P33: =IF($F33<>P$2,1-_xlfn.NORM.DIST(0,INDEX(Rating,$F33)-INDEX(Rating,P$2),10,1),"") -> 0.3935801268 | Q33: =IF($F33<>Q$2,1-_xlfn.NORM.DIST(0,INDEX(Rating,$F33)-INDEX(Rating,Q$2),10,1),"") -> 0.5667083605 | R33: =IF($F33<>R$2,1-_xlfn.NORM.DIST(0,INDEX(Rating,$F33)-INDEX(Rating,R$2),10,1),"") -> 0.4040026987 | S33: =IF($F33<>S$2,1-_xlfn.NORM.DIST(0,INDEX(Rating,$F33)-INDEX(Rating,S$2),10,1),"") -> 0.802892954 | T33: =IF($F33<>T$2,1-_xlfn.NORM.DIST(0,INDEX(Rating,$F33)-INDEX(Rating,T$2),10,1),"") -> 0.6006384504 | U33: =IF($F33<>U$2,1-_xlfn.NORM.DIST(0,INDEX(Rating,$F33)-INDEX(Rating,U$2),10,1),"") -> 0.5322790237 | V33: =IF($F33<>V$2,1-_xlfn.NORM.DIST(0,INDEX(Rating,$F33)-INDEX(Rating,V$2),10,1),"") -> 0.3110062937 | W33: =IF($F33<>W$2,1-_xlfn.NORM.DIST(0,INDEX(Rating,$F33)-INDEX(Rating,W$2),10,1),"") -> 0.8056562411 | X33: =IF($F33<>X$2,1-_xlfn.NORM.DIST(0,INDEX(Rating,$F33)-INDEX(Rating,X$2),10,1),"") -> 0.3361476305 | Y33: =IF($F33<>Y$2,1-_xlfn.NORM.DIST(0,INDEX(Rating,$F33)-INDEX(Rating,Y$2),10,1),"") -> 0.9753506947 | Z33: =IF($F33<>Z$2,1-_xlfn.NORM.DIST(0,INDEX(Rating,$F33)-INDEX(Rating,Z$2),10,1),"") -> 0.9824412102 | AA33: =IF($F33<>AA$2,1-_xlfn.NORM.DIST(0,INDEX(Rating,$F33)-INDEX(Rating,AA$2),10,1),"") -> 0.4364405371 | AB33: =IF($F33<>AB$2,1-_xlfn.NORM.DIST(0,INDEX(Rating,$F33)-INDEX(Rating,AB$2),10,1),"") -> 0.5505298007 | AC33: =IF($F33<>AC$2,1-_xlfn.NORM.DIST(0,INDEX(Rating,$F33)-INDEX(Rating,AC$2),10,1),"") -> 0.4047775583 | AD33: =IF($F33<>AD$2,1-_xlfn.NORM.DIST(0,INDEX(Rating,$F33)-INDEX(Rating,AD$2),10,1),"") -> 0.671478708 | AE33: =IF($F33<>AE$2,1-_xlfn.NORM.DIST(0,INDEX(Rating,$F33)-INDEX(Rating,AE$2),10,1),"") -> 0.3317812137 | AF33: =IF($F33<>AF$2,1-_xlfn.NORM.DIST(0,INDEX(Rating,$F33)-INDEX(Rating,AF$2),10,1),"") -> 0.7736736721 | AG33: =IF($F33<>AG$2,1-_xlfn.NORM.DIST(0,INDEX(Rating,$F33)-INDEX(Rating,AG$2),10,1),"") -> 0.4593783375 | AH33: =IF($F33<>AH$2,1-_xlfn.NORM.DIST(0,INDEX(Rating,$F33)-INDEX(Rating,AH$2),10,1),"") -> 0.5322790237 | AI33: =IF($F33<>AI$2,1-_xlfn.NORM.DIST(0,INDEX(Rating,$F33)-INDEX(Rating,AI$2),10,1),"") -> 0.4836479479 | AJ33: =IF($F33<>AJ$2,1-_xlfn.NORM.DIST(0,INDEX(Rating,$F33)-INDEX(Rating,AJ$2),10,1),"") -> 0.8463727806 | AK33: =IF($F33<>AK$2,1-_xlfn.NORM.DIST(0,INDEX(Rating,$F33)-INDEX(Rating,AK$2),10,1),"") ->  | AL33: =IF($F33<>AL$2,1-_xlfn.NORM.DIST(0,INDEX(Rating,$F33)-INDEX(Rating,AL$2),10,1),"") -> 0.5322790237 | AM33: =IF($F33<>AM$2,1-_xlfn.NORM.DIST(0,INDEX(Rating,$F33)-INDEX(Rating,AM$2),10,1),"") -> 0.3982034536 | AN33: =IF($F33<>AN$2,1-_xlfn.NORM.DIST(0,INDEX(Rating,$F33)-INDEX(Rating,AN$2),10,1),"") -> 0.7936067932 | AO33: =IF($F33<>AO$2,1-_xlfn.NORM.DIST(0,INDEX(Rating,$F33)-INDEX(Rating,AO$2),10,1),"") -> 0.2444686645 | AP33: =IF($F33<>AP$2,1-_xlfn.NORM.DIST(0,INDEX(Rating,$F33)-INDEX(Rating,AP$2),10,1),"") -> 0.8908385679 | AQ33: =IF($F33<>AQ$2,1-_xlfn.NORM.DIST(0,INDEX(Rating,$F33)-INDEX(Rating,AQ$2),10,1),"") -> 0.5031915042 | AR33: =IF($F33<>AR$2,1-_xlfn.NORM.DIST(0,INDEX(Rating,$F33)-INDEX(Rating,AR$2),10,1),"") -> 0.4844451943 | AS33: =IF($F33<>AS$2,1-_xlfn.NORM.DIST(0,INDEX(Rating,$F33)-INDEX(Rating,AS$2),10,1),"") -> 0.5298926441 | AT33: =IF($F33<>AT$2,1-_xlfn.NORM.DIST(0,INDEX(Rating,$F33)-INDEX(Rating,AT$2),10,1),"") -> 0.6190550692 | AU33: =IF($F33<>AU$2,1-_xlfn.NORM.DIST(0,INDEX(Rating,$F33)-INDEX(Rating,AU$2),10,1),"") -> 0.4490744865 | AV33: =IF($F33<>AV$2,1-_xlfn.NORM.DIST(0,INDEX(Rating,$F33)-INDEX(Rating,AV$2),10,1),"") -> 0.6495107763 | AW33: =IF($F33<>AW$2,1-_xlfn.NORM.DIST(0,INDEX(Rating,$F33)-INDEX(Rating,AW$2),10,1),"") -> 0.5203372397 | AX33: =IF($F33<>AX$2,1-_xlfn.NORM.DIST(0,INDEX(Rating,$F33)-INDEX(Rating,AX$2),10,1),"") -> 0.6052654195 | AY33: =IF($F33<>AY$2,1-_xlfn.NORM.DIST(0,INDEX(Rating,$F33)-INDEX(Rating,AY$2),10,1),"") -> 0.6326951349 | AZ33: =IF($F33<>AZ$2,1-_xlfn.NORM.DIST(0,INDEX(Rating,$F33)-INDEX(Rating,AZ$2),10,1),"") -> 0.4376224241 | BA33: =IF($F33<>BA$2,1-_xlfn.NORM.DIST(0,INDEX(Rating,$F33)-INDEX(Rating,BA$2),10,1),"") -> 0.8815954263 | BB33: =IF($F33<>BB$2,1-_xlfn.NORM.DIST(0,INDEX(Rating,$F33)-INDEX(Rating,BB$2),10,1),"") -> 0.454222561 | BC33: =IF($F33<>BC$2,1-_xlfn.NORM.DIST(0,INDEX(Rating,$F33)-INDEX(Rating,BC$2),10,1),"") -> 0.5418120956 | BD33: =IF($F33<>BD$2,1-_xlfn.NORM.DIST(0,INDEX(Rating,$F33)-INDEX(Rating,BD$2),10,1),"") -> 0.2901317051 | BE33: =IF($F33<>BE$2,1-_xlfn.NORM.DIST(0,INDEX(Rating,$F33)-INDEX(Rating,BE$2),10,1),"") -> 0.8105703452 | BF33: =IF($F33<>BF$2,1-_xlfn.NORM.DIST(0,INDEX(Rating,$F33)-INDEX(Rating,BF$2),10,1),"") -> 0.3078337605 | BG33: =IF($F33<>BG$2,1-_xlfn.NORM.DIST(0,INDEX(Rating,$F33)-INDEX(Rating,BG$2),10,1),"") -> 0.9444199045 | BH33: =IF($F33<>BH$2,1-_xlfn.NORM.DIST(0,INDEX(Rating,$F33)-INDEX(Rating,BH$2),10,1),"") -> 0.4669257698 | BI33: =IF($F33<>BI$2,1-_xlfn.NORM.DIST(0,INDEX(Rating,$F33)-INDEX(Rating,BI$2),10,1),"") -> 0.4852425029 | BJ33: =IF($F33<>BJ$2,1-_xlfn.NORM.DIST(0,INDEX(Rating,$F33)-INDEX(Rating,BJ$2),10,1),"") -> 0.4403823076 | BK33: =IF($F33<>BK$2,1-_xlfn.NORM.DIST(0,INDEX(Rating,$F33)-INDEX(Rating,BK$2),10,1),"") -> 0.5588286159 | BL33: =IF($F33<>BL$2,1-_xlfn.NORM.DIST(0,INDEX(Rating,$F33)-INDEX(Rating,BL$2),10,1),"") -> 0.3036259953 | BM33: =IF($F33<>BM$2,1-_xlfn.NORM.DIST(0,INDEX(Rating,$F33)-INDEX(Rating,BM$2),10,1),"") -> 0.6998607301 | BN33: =IF($F33<>BN$2,1-_xlfn.NORM.DIST(0,INDEX(Rating,$F33)-INDEX(Rating,BN$2),10,1),"") -> 0.4593783375 | BO33: =IF($F33<>BO$2,1-_xlfn.NORM.DIST(0,INDEX(Rating,$F33)-INDEX(Rating,BO$2),10,1),"") -> 0.6532094804 | BP33: =IF($F33<>BP$2,1-_xlfn.NORM.DIST(0,INDEX(Rating,$F33)-INDEX(Rating,BP$2),10,1),"") -> 0.7163390127 | BQ33: =IF($F33<>BQ$2,1-_xlfn.NORM.DIST(0,INDEX(Rating,$F33)-INDEX(Rating,BQ$2),10,1),"") -> 0.2897894229 | BR33: =IF($F33<>BR$2,1-_xlfn.NORM.DIST(0,INDEX(Rating,$F33)-INDEX(Rating,BR$2),10,1),"") -> 0.8140714137 | BS33: =IF($F33<>BS$2,1-_xlfn.NORM.DIST(0,INDEX(Rating,$F33)-INDEX(Rating,BS$2),10,1),"") -> 0.5398278373 | BT33: =IF($F33<>BT$2,1-_xlfn.NORM.DIST(0,INDEX(Rating,$F33)-INDEX(Rating,BT$2),10,1),"") -> 0.6194360544 | BU33: =IF($F33<>BU$2,1-_xlfn.NORM.DIST(0,INDEX(Rating,$F33)-INDEX(Rating,BU$2),10,1),"") -> 0.26500197 | BV33: =IF($F33<>BV$2,1-_xlfn.NORM.DIST(0,INDEX(Rating,$F33)-INDEX(Rating,BV$2),10,1),"") -> 0.8866685773
B34: USC | C34: 32 | D34: 84.12 | F34: 32 | G34: =IF($F34<>G$2,1-_xlfn.NORM.DIST(0,INDEX(Rating,$F34)-INDEX(Rating,G$2),10,1),"") -> 0.18915891 | H34: =IF($F34<>H$2,1-_xlfn.NORM.DIST(0,INDEX(Rating,$F34)-INDEX(Rating,H$2),10,1),"") -> 0.9174314774 | I34: =IF($F34<>I$2,1-_xlfn.NORM.DIST(0,INDEX(Rating,$F34)-INDEX(Rating,I$2),10,1),"") -> 0.9588945931 | J34: =IF($F34<>J$2,1-_xlfn.NORM.DIST(0,INDEX(Rating,$F34)-INDEX(Rating,J$2),10,1),"") -> 0.4463059372 | K34: =IF($F34<>K$2,1-_xlfn.NORM.DIST(0,INDEX(Rating,$F34)-INDEX(Rating,K$2),10,1),"") -> 0.4309327311 | L34: =IF($F34<>L$2,1-_xlfn.NORM.DIST(0,INDEX(Rating,$F34)-INDEX(Rating,L$2),10,1),"") -> 0.4573944899 | M34: =IF($F34<>M$2,1-_xlfn.NORM.DIST(0,INDEX(Rating,$F34)-INDEX(Rating,M$2),10,1),"") -> 0.6342007699 | N34: =IF($F34<>N$2,1-_xlfn.NORM.DIST(0,INDEX(Rating,$F34)-INDEX(Rating,N$2),10,1),"") -> 0.4617602863 | O34: =IF($F34<>O$2,1-_xlfn.NORM.DIST(0,INDEX(Rating,$F34)-INDEX(Rating,O$2),10,1),"") -> 0.6786761272 | P34: =IF($F34<>P$2,1-_xlfn.NORM.DIST(0,INDEX(Rating,$F34)-INDEX(Rating,P$2),10,1),"") -> 0.3627941742 | Q34: =IF($F34<>Q$2,1-_xlfn.NORM.DIST(0,INDEX(Rating,$F34)-INDEX(Rating,Q$2),10,1),"") -> 0.5346642439 | R34: =IF($F34<>R$2,1-_xlfn.NORM.DIST(0,INDEX(Rating,$F34)-INDEX(Rating,R$2),10,1),"") -> 0.3729690171 | S34: =IF($F34<>S$2,1-_xlfn.NORM.DIST(0,INDEX(Rating,$F34)-INDEX(Rating,S$2),10,1),"") -> 0.7796465342 | T34: =IF($F34<>T$2,1-_xlfn.NORM.DIST(0,INDEX(Rating,$F34)-INDEX(Rating,T$2),10,1),"") -> 0.5690672689 | U34: =IF($F34<>U$2,1-_xlfn.NORM.DIST(0,INDEX(Rating,$F34)-INDEX(Rating,U$2),10,1),"") -> 0.5 | V34: =IF($F34<>V$2,1-_xlfn.NORM.DIST(0,INDEX(Rating,$F34)-INDEX(Rating,V$2),10,1),"") -> 0.2829839006 | W34: =IF($F34<>W$2,1-_xlfn.NORM.DIST(0,INDEX(Rating,$F34)-INDEX(Rating,W$2),10,1),"") -> 0.7825987526 | X34: =IF($F34<>X$2,1-_xlfn.NORM.DIST(0,INDEX(Rating,$F34)-INDEX(Rating,X$2),10,1),"") -> 0.3071306885 | Y34: =IF($F34<>Y$2,1-_xlfn.NORM.DIST(0,INDEX(Rating,$F34)-INDEX(Rating,Y$2),10,1),"") -> 0.9702850811 | Z34: =IF($F34<>Z$2,1-_xlfn.NORM.DIST(0,INDEX(Rating,$F34)-INDEX(Rating,Z$2),10,1),"") -> 0.9786176077 | AA34: =IF($F34<>AA$2,1-_xlfn.NORM.DIST(0,INDEX(Rating,$F34)-INDEX(Rating,AA$2),10,1),"") -> 0.4047775583 | AB34: =IF($F34<>AB$2,1-_xlfn.NORM.DIST(0,INDEX(Rating,$F34)-INDEX(Rating,AB$2),10,1),"") -> 0.518344875 | AC34: =IF($F34<>AC$2,1-_xlfn.NORM.DIST(0,INDEX(Rating,$F34)-INDEX(Rating,AC$2),10,1),"") -> 0.3737263473 | AD34: =IF($F34<>AD$2,1-_xlfn.NORM.DIST(0,INDEX(Rating,$F34)-INDEX(Rating,AD$2),10,1),"") -> 0.6416975578 | AE34: =IF($F34<>AE$2,1-_xlfn.NORM.DIST(0,INDEX(Rating,$F34)-INDEX(Rating,AE$2),10,1),"") -> 0.3029272046 | AF34: =IF($F34<>AF$2,1-_xlfn.NORM.DIST(0,INDEX(Rating,$F34)-INDEX(Rating,AF$2),10,1),"") -> 0.7485711049 | AG34: =IF($F34<>AG$2,1-_xlfn.NORM.DIST(0,INDEX(Rating,$F34)-INDEX(Rating,AG$2),10,1),"") -> 0.4273990093 | AH34: =IF($F34<>AH$2,1-_xlfn.NORM.DIST(0,INDEX(Rating,$F34)-INDEX(Rating,AH$2),10,1),"") -> 0.5 | AI34: =IF($F34<>AI$2,1-_xlfn.NORM.DIST(0,INDEX(Rating,$F34)-INDEX(Rating,AI$2),10,1),"") -> 0.4514495091 | AJ34: =IF($F34<>AJ$2,1-_xlfn.NORM.DIST(0,INDEX(Rating,$F34)-INDEX(Rating,AJ$2),10,1),"") -> 0.8263912197 | AK34: =IF($F34<>AK$2,1-_xlfn.NORM.DIST(0,INDEX(Rating,$F34)-INDEX(Rating,AK$2),10,1),"") -> 0.4677209763 | AL34: =IF($F34<>AL$2,1-_xlfn.NORM.DIST(0,INDEX(Rating,$F34)-INDEX(Rating,AL$2),10,1),"") ->  | AM34: =IF($F34<>AM$2,1-_xlfn.NORM.DIST(0,INDEX(Rating,$F34)-INDEX(Rating,AM$2),10,1),"") -> 0.3673048651 | AN34: =IF($F34<>AN$2,1-_xlfn.NORM.DIST(0,INDEX(Rating,$F34)-INDEX(Rating,AN$2),10,1),"") -> 0.7697427754 | AO34: =IF($F34<>AO$2,1-_xlfn.NORM.DIST(0,INDEX(Rating,$F34)-INDEX(Rating,AO$2),10,1),"") -> 0.2197611903 | AP34: =IF($F34<>AP$2,1-_xlfn.NORM.DIST(0,INDEX(Rating,$F34)-INDEX(Rating,AP$2),10,1),"") -> 0.8749280644 | AQ34: =IF($F34<>AQ$2,1-_xlfn.NORM.DIST(0,INDEX(Rating,$F34)-INDEX(Rating,AQ$2),10,1),"") -> 0.4709030588 | AR34: =IF($F34<>AR$2,1-_xlfn.NORM.DIST(0,INDEX(Rating,$F34)-INDEX(Rating,AR$2),10,1),"") -> 0.452241574 | AS34: =IF($F34<>AS$2,1-_xlfn.NORM.DIST(0,INDEX(Rating,$F34)-INDEX(Rating,AS$2),10,1),"") -> 0.4976063607 | AT34: =IF($F34<>AT$2,1-_xlfn.NORM.DIST(0,INDEX(Rating,$F34)-INDEX(Rating,AT$2),10,1),"") -> 0.5878430583 | AU34: =IF($F34<>AU$2,1-_xlfn.NORM.DIST(0,INDEX(Rating,$F34)-INDEX(Rating,AU$2),10,1),"") -> 0.4172241193 | AV34: =IF($F34<>AV$2,1-_xlfn.NORM.DIST(0,INDEX(Rating,$F34)-INDEX(Rating,AV$2),10,1),"") -> 0.6190550692 | AW34: =IF($F34<>AW$2,1-_xlfn.NORM.DIST(0,INDEX(Rating,$F34)-INDEX(Rating,AW$2),10,1),"") -> 0.4880335266 | AX34: =IF($F34<>AX$2,1-_xlfn.NORM.DIST(0,INDEX(Rating,$F34)-INDEX(Rating,AX$2),10,1),"") -> 0.5737776193 | AY34: =IF($F34<>AY$2,1-_xlfn.NORM.DIST(0,INDEX(Rating,$F34)-INDEX(Rating,AY$2),10,1),"") -> 0.6017965464 | AZ34: =IF($F34<>AZ$2,1-_xlfn.NORM.DIST(0,INDEX(Rating,$F34)-INDEX(Rating,AZ$2),10,1),"") -> 0.4059405471 | BA34: =IF($F34<>BA$2,1-_xlfn.NORM.DIST(0,INDEX(Rating,$F34)-INDEX(Rating,BA$2),10,1),"") -> 0.8647691642 | BB34: =IF($F34<>BB$2,1-_xlfn.NORM.DIST(0,INDEX(Rating,$F34)-INDEX(Rating,BB$2),10,1),"") -> 0.422305083 | BC34: =IF($F34<>BC$2,1-_xlfn.NORM.DIST(0,INDEX(Rating,$F34)-INDEX(Rating,BC$2),10,1),"") -> 0.5095736956 | BD34: =IF($F34<>BD$2,1-_xlfn.NORM.DIST(0,INDEX(Rating,$F34)-INDEX(Rating,BD$2),10,1),"") -> 0.2630404111 | BE34: =IF($F34<>BE$2,1-_xlfn.NORM.DIST(0,INDEX(Rating,$F34)-INDEX(Rating,BE$2),10,1),"") -> 0.787854794 | BF34: =IF($F34<>BF$2,1-_xlfn.NORM.DIST(0,INDEX(Rating,$F34)-INDEX(Rating,BF$2),10,1),"") -> 0.2799466501 | BG34: =IF($F34<>BG$2,1-_xlfn.NORM.DIST(0,INDEX(Rating,$F34)-INDEX(Rating,BG$2),10,1),"") -> 0.9347330687 | BH34: =IF($F34<>BH$2,1-_xlfn.NORM.DIST(0,INDEX(Rating,$F34)-INDEX(Rating,BH$2),10,1),"") -> 0.4348655719 | BI34: =IF($F34<>BI$2,1-_xlfn.NORM.DIST(0,INDEX(Rating,$F34)-INDEX(Rating,BI$2),10,1),"") -> 0.4530338289 | BJ34: =IF($F34<>BJ$2,1-_xlfn.NORM.DIST(0,INDEX(Rating,$F34)-INDEX(Rating,BJ$2),10,1),"") -> 0.408657401 | BK34: =IF($F34<>BK$2,1-_xlfn.NORM.DIST(0,INDEX(Rating,$F34)-INDEX(Rating,BK$2),10,1),"") -> 0.5267091484 | BL34: =IF($F34<>BL$2,1-_xlfn.NORM.DIST(0,INDEX(Rating,$F34)-INDEX(Rating,BL$2),10,1),"") -> 0.2759217355 | BM34: =IF($F34<>BM$2,1-_xlfn.NORM.DIST(0,INDEX(Rating,$F34)-INDEX(Rating,BM$2),10,1),"") -> 0.6711171326 | BN34: =IF($F34<>BN$2,1-_xlfn.NORM.DIST(0,INDEX(Rating,$F34)-INDEX(Rating,BN$2),10,1),"") -> 0.4273990093 | BO34: =IF($F34<>BO$2,1-_xlfn.NORM.DIST(0,INDEX(Rating,$F34)-INDEX(Rating,BO$2),10,1),"") -> 0.6228596689 | BP34: =IF($F34<>BP$2,1-_xlfn.NORM.DIST(0,INDEX(Rating,$F34)-INDEX(Rating,BP$2),10,1),"") -> 0.6882867762 | BQ34: =IF($F34<>BQ$2,1-_xlfn.NORM.DIST(0,INDEX(Rating,$F34)-INDEX(Rating,BQ$2),10,1),"") -> 0.2627142075 | BR34: =IF($F34<>BR$2,1-_xlfn.NORM.DIST(0,INDEX(Rating,$F34)-INDEX(Rating,BR$2),10,1),"") -> 0.7916041843 | BS34: =IF($F34<>BS$2,1-_xlfn.NORM.DIST(0,INDEX(Rating,$F34)-INDEX(Rating,BS$2),10,1),"") -> 0.5075794473 | BT34: =IF($F34<>BT$2,1-_xlfn.NORM.DIST(0,INDEX(Rating,$F34)-INDEX(Rating,BT$2),10,1),"") -> 0.5882322467 | BU34: =IF($F34<>BU$2,1-_xlfn.NORM.DIST(0,INDEX(Rating,$F34)-INDEX(Rating,BU$2),10,1),"") -> 0.2391622384 | BV34: =IF($F34<>BV$2,1-_xlfn.NORM.DIST(0,INDEX(Rating,$F34)-INDEX(Rating,BV$2),10,1),"") -> 0.8703400404
B35: Marquette | C35: 33 | D35: 87.51 | F35: 33 | G35: =IF($F35<>G$2,1-_xlfn.NORM.DIST(0,INDEX(Rating,$F35)-INDEX(Rating,G$2),10,1),"") -> 0.2939092529 | H35: =IF($F35<>H$2,1-_xlfn.NORM.DIST(0,INDEX(Rating,$F35)-INDEX(Rating,H$2),10,1),"") -> 0.9579161683 | I35: =IF($F35<>I$2,1-_xlfn.NORM.DIST(0,INDEX(Rating,$F35)-INDEX(Rating,I$2),10,1),"") -> 0.9810992204 | J35: =IF($F35<>J$2,1-_xlfn.NORM.DIST(0,INDEX(Rating,$F35)-INDEX(Rating,J$2),10,1),"") -> 0.5808232505 | K35: =IF($F35<>K$2,1-_xlfn.NORM.DIST(0,INDEX(Rating,$F35)-INDEX(Rating,K$2),10,1),"") -> 0.565528009 | L35: =IF($F35<>L$2,1-_xlfn.NORM.DIST(0,INDEX(Rating,$F35)-INDEX(Rating,L$2),10,1),"") -> 0.5917309931 | M35: =IF($F35<>M$2,1-_xlfn.NORM.DIST(0,INDEX(Rating,$F35)-INDEX(Rating,M$2),10,1),"") -> 0.7523805246 | N35: =IF($F35<>N$2,1-_xlfn.NORM.DIST(0,INDEX(Rating,$F35)-INDEX(Rating,N$2),10,1),"") -> 0.5959973013 | O35: =IF($F35<>O$2,1-_xlfn.NORM.DIST(0,INDEX(Rating,$F35)-INDEX(Rating,O$2),10,1),"") -> 0.7890126327 | P35: =IF($F35<>P$2,1-_xlfn.NORM.DIST(0,INDEX(Rating,$F35)-INDEX(Rating,P$2),10,1),"") -> 0.4952128075 | Q35: =IF($F35<>Q$2,1-_xlfn.NORM.DIST(0,INDEX(Rating,$F35)-INDEX(Rating,Q$2),10,1),"") -> 0.664946077 | R35: =IF($F35<>R$2,1-_xlfn.NORM.DIST(0,INDEX(Rating,$F35)-INDEX(Rating,R$2),10,1),"") -> 0.5059839098 | S35: =IF($F35<>S$2,1-_xlfn.NORM.DIST(0,INDEX(Rating,$F35)-INDEX(Rating,S$2),10,1),"") -> 0.8665004868 | T35: =IF($F35<>T$2,1-_xlfn.NORM.DIST(0,INDEX(Rating,$F35)-INDEX(Rating,T$2),10,1),"") -> 0.6960243397 | U35: =IF($F35<>U$2,1-_xlfn.NORM.DIST(0,INDEX(Rating,$F35)-INDEX(Rating,U$2),10,1),"") -> 0.6326951349 | V35: =IF($F35<>V$2,1-_xlfn.NORM.DIST(0,INDEX(Rating,$F35)-INDEX(Rating,V$2),10,1),"") -> 0.4071043666 | W35: =IF($F35<>W$2,1-_xlfn.NORM.DIST(0,INDEX(Rating,$F35)-INDEX(Rating,W$2),10,1),"") -> 0.868643119 | X35: =IF($F35<>X$2,1-_xlfn.NORM.DIST(0,INDEX(Rating,$F35)-INDEX(Rating,X$2),10,1),"") -> 0.434471991 | Y35: =IF($F35<>Y$2,1-_xlfn.NORM.DIST(0,INDEX(Rating,$F35)-INDEX(Rating,Y$2),10,1),"") -> 0.9869257779 | Z35: =IF($F35<>Z$2,1-_xlfn.NORM.DIST(0,INDEX(Rating,$F35)-INDEX(Rating,Z$2),10,1),"") -> 0.9909849645 | AA35: =IF($F35<>AA$2,1-_xlfn.NORM.DIST(0,INDEX(Rating,$F35)-INDEX(Rating,AA$2),10,1),"") -> 0.5390338533 | AB35: =IF($F35<>AB$2,1-_xlfn.NORM.DIST(0,INDEX(Rating,$F35)-INDEX(Rating,AB$2),10,1),"") -> 0.6498812922 | AC35: =IF($F35<>AC$2,1-_xlfn.NORM.DIST(0,INDEX(Rating,$F35)-INDEX(Rating,AC$2),10,1),"") -> 0.5067816921 | AD35: =IF($F35<>AD$2,1-_xlfn.NORM.DIST(0,INDEX(Rating,$F35)-INDEX(Rating,AD$2),10,1),"") -> 0.7586604183 | AE35: =IF($F35<>AE$2,1-_xlfn.NORM.DIST(0,INDEX(Rating,$F35)-INDEX(Rating,AE$2),10,1),"") -> 0.4297541948 | AF35: =IF($F35<>AF$2,1-_xlfn.NORM.DIST(0,INDEX(Rating,$F35)-INDEX(Rating,AF$2),10,1),"") -> 0.8435126829 | AG35: =IF($F35<>AG$2,1-_xlfn.NORM.DIST(0,INDEX(Rating,$F35)-INDEX(Rating,AG$2),10,1),"") -> 0.5619834894 | AH35: =IF($F35<>AH$2,1-_xlfn.NORM.DIST(0,INDEX(Rating,$F35)-INDEX(Rating,AH$2),10,1),"") -> 0.6326951349 | AI35: =IF($F35<>AI$2,1-_xlfn.NORM.DIST(0,INDEX(Rating,$F35)-INDEX(Rating,AI$2),10,1),"") -> 0.5858958275 | AJ35: =IF($F35<>AJ$2,1-_xlfn.NORM.DIST(0,INDEX(Rating,$F35)-INDEX(Rating,AJ$2),10,1),"") -> 0.8995514721 | AK35: =IF($F35<>AK$2,1-_xlfn.NORM.DIST(0,INDEX(Rating,$F35)-INDEX(Rating,AK$2),10,1),"") -> 0.6017965464 | AL35: =IF($F35<>AL$2,1-_xlfn.NORM.DIST(0,INDEX(Rating,$F35)-INDEX(Rating,AL$2),10,1),"") -> 0.6326951349 | AM35: =IF($F35<>AM$2,1-_xlfn.NORM.DIST(0,INDEX(Rating,$F35)-INDEX(Rating,AM$2),10,1),"") ->  | AN35: =IF($F35<>AN$2,1-_xlfn.NORM.DIST(0,INDEX(Rating,$F35)-INDEX(Rating,AN$2),10,1),"") -> 0.8592598672 | AO35: =IF($F35<>AO$2,1-_xlfn.NORM.DIST(0,INDEX(Rating,$F35)-INDEX(Rating,AO$2),10,1),"") -> 0.3321442205 | AP35: =IF($F35<>AP$2,1-_xlfn.NORM.DIST(0,INDEX(Rating,$F35)-INDEX(Rating,AP$2),10,1),"") -> 0.9317563156 | AQ35: =IF($F35<>AQ$2,1-_xlfn.NORM.DIST(0,INDEX(Rating,$F35)-INDEX(Rating,AQ$2),10,1),"") -> 0.6048803955 | AR35: =IF($F35<>AR$2,1-_xlfn.NORM.DIST(0,INDEX(Rating,$F35)-INDEX(Rating,AR$2),10,1),"") -> 0.5866749761 | AS35: =IF($F35<>AS$2,1-_xlfn.NORM.DIST(0,INDEX(Rating,$F35)-INDEX(Rating,AS$2),10,1),"") -> 0.6304328584 | AT35: =IF($F35<>AT$2,1-_xlfn.NORM.DIST(0,INDEX(Rating,$F35)-INDEX(Rating,AT$2),10,1),"") -> 0.7126012314 | AU35: =IF($F35<>AU$2,1-_xlfn.NORM.DIST(0,INDEX(Rating,$F35)-INDEX(Rating,AU$2),10,1),"") -> 0.5517167867 | AV35: =IF($F35<>AV$2,1-_xlfn.NORM.DIST(0,INDEX(Rating,$F35)-INDEX(Rating,AV$2),10,1),"") -> 0.7395634085 | AW35: =IF($F35<>AW$2,1-_xlfn.NORM.DIST(0,INDEX(Rating,$F35)-INDEX(Rating,AW$2),10,1),"") -> 0.6213392366 | AX35: =IF($F35<>AX$2,1-_xlfn.NORM.DIST(0,INDEX(Rating,$F35)-INDEX(Rating,AX$2),10,1),"") -> 0.7002084045 | AY35: =IF($F35<>AY$2,1-_xlfn.NORM.DIST(0,INDEX(Rating,$F35)-INDEX(Rating,AY$2),10,1),"") -> 0.7247463097 | AZ35: =IF($F35<>AZ$2,1-_xlfn.NORM.DIST(0,INDEX(Rating,$F35)-INDEX(Rating,AZ$2),10,1),"") -> 0.5402247699 | BA35: =IF($F35<>BA$2,1-_xlfn.NORM.DIST(0,INDEX(Rating,$F35)-INDEX(Rating,BA$2),10,1),"") -> 0.9252076586 | BB35: =IF($F35<>BB$2,1-_xlfn.NORM.DIST(0,INDEX(Rating,$F35)-INDEX(Rating,BB$2),10,1),"") -> 0.5568549094 | BC35: =IF($F35<>BC$2,1-_xlfn.NORM.DIST(0,INDEX(Rating,$F35)-INDEX(Rating,BC$2),10,1),"") -> 0.6416975578 | BD35: =IF($F35<>BD$2,1-_xlfn.NORM.DIST(0,INDEX(Rating,$F35)-INDEX(Rating,BD$2),10,1),"") -> 0.3839969399 | BE35: =IF($F35<>BE$2,1-_xlfn.NORM.DIST(0,INDEX(Rating,$F35)-INDEX(Rating,BE$2),10,1),"") -> 0.8724397588 | BF35: =IF($F35<>BF$2,1-_xlfn.NORM.DIST(0,INDEX(Rating,$F35)-INDEX(Rating,BF$2),10,1),"") -> 0.40361541 | BG35: =IF($F35<>BG$2,1-_xlfn.NORM.DIST(0,INDEX(Rating,$F35)-INDEX(Rating,BG$2),10,1),"") -> 0.9679152234 | BH35: =IF($F35<>BH$2,1-_xlfn.NORM.DIST(0,INDEX(Rating,$F35)-INDEX(Rating,BH$2),10,1),"") -> 0.5694601832 | BI35: =IF($F35<>BI$2,1-_xlfn.NORM.DIST(0,INDEX(Rating,$F35)-INDEX(Rating,BI$2),10,1),"") -> 0.5874537835 | BJ35: =IF($F35<>BJ$2,1-_xlfn.NORM.DIST(0,INDEX(Rating,$F35)-INDEX(Rating,BJ$2),10,1),"") -> 0.5430021539 | BK35: =IF($F35<>BK$2,1-_xlfn.NORM.DIST(0,INDEX(Rating,$F35)-INDEX(Rating,BK$2),10,1),"") -> 0.6576286998 | BL35: =IF($F35<>BL$2,1-_xlfn.NORM.DIST(0,INDEX(Rating,$F35)-INDEX(Rating,BL$2),10,1),"") -> 0.3989754187 | BM35: =IF($F35<>BM$2,1-_xlfn.NORM.DIST(0,INDEX(Rating,$F35)-INDEX(Rating,BM$2),10,1),"") -> 0.7828927132 | BN35: =IF($F35<>BN$2,1-_xlfn.NORM.DIST(0,INDEX(Rating,$F35)-INDEX(Rating,BN$2),10,1),"") -> 0.5619834894 | BO35: =IF($F35<>BO$2,1-_xlfn.NORM.DIST(0,INDEX(Rating,$F35)-INDEX(Rating,BO$2),10,1),"") -> 0.7427994138 | BP35: =IF($F35<>BP$2,1-_xlfn.NORM.DIST(0,INDEX(Rating,$F35)-INDEX(Rating,BP$2),10,1),"") -> 0.7967306082 | BQ35: =IF($F35<>BQ$2,1-_xlfn.NORM.DIST(0,INDEX(Rating,$F35)-INDEX(Rating,BQ$2),10,1),"") -> 0.3836150407 | BR35: =IF($F35<>BR$2,1-_xlfn.NORM.DIST(0,INDEX(Rating,$F35)-INDEX(Rating,BR$2),10,1),"") -> 0.8751338822 | BS35: =IF($F35<>BS$2,1-_xlfn.NORM.DIST(0,INDEX(Rating,$F35)-INDEX(Rating,BS$2),10,1),"") -> 0.6398283432 | BT35: =IF($F35<>BT$2,1-_xlfn.NORM.DIST(0,INDEX(Rating,$F35)-INDEX(Rating,BT$2),10,1),"") -> 0.7129419904 | BU35: =IF($F35<>BU$2,1-_xlfn.NORM.DIST(0,INDEX(Rating,$F35)-INDEX(Rating,BU$2),10,1),"") -> 0.3556912452 | BV35: =IF($F35<>BV$2,1-_xlfn.NORM.DIST(0,INDEX(Rating,$F35)-INDEX(Rating,BV$2),10,1),"") -> 0.9288119723
B36: Vermont | C36: 34 | D36: 76.74 | F36: 34 | G36: =IF($F36<>G$2,1-_xlfn.NORM.DIST(0,INDEX(Rating,$F36)-INDEX(Rating,G$2),10,1),"") -> 0.05272363156 | H36: =IF($F36<>H$2,1-_xlfn.NORM.DIST(0,INDEX(Rating,$F36)-INDEX(Rating,H$2),10,1),"") -> 0.7421538892 | I36: =IF($F36<>I$2,1-_xlfn.NORM.DIST(0,INDEX(Rating,$F36)-INDEX(Rating,I$2),10,1),"") -> 0.8413447461 | J36: =IF($F36<>J$2,1-_xlfn.NORM.DIST(0,INDEX(Rating,$F36)-INDEX(Rating,J$2),10,1),"") -> 0.1913315389 | K36: =IF($F36<>K$2,1-_xlfn.NORM.DIST(0,INDEX(Rating,$F36)-INDEX(Rating,K$2),10,1),"") -> 0.1808843588 | L36: =IF($F36<>L$2,1-_xlfn.NORM.DIST(0,INDEX(Rating,$F36)-INDEX(Rating,L$2),10,1),"") -> 0.1990554195 | M36: =IF($F36<>M$2,1-_xlfn.NORM.DIST(0,INDEX(Rating,$F36)-INDEX(Rating,M$2),10,1),"") -> 0.346421444 | N36: =IF($F36<>N$2,1-_xlfn.NORM.DIST(0,INDEX(Rating,$F36)-INDEX(Rating,N$2),10,1),"") -> 0.2021404919 | O36: =IF($F36<>O$2,1-_xlfn.NORM.DIST(0,INDEX(Rating,$F36)-INDEX(Rating,O$2),10,1),"") -> 0.3920423108 | P36: =IF($F36<>P$2,1-_xlfn.NORM.DIST(0,INDEX(Rating,$F36)-INDEX(Rating,P$2),10,1),"") -> 0.1380769428 | Q36: =IF($F36<>Q$2,1-_xlfn.NORM.DIST(0,INDEX(Rating,$F36)-INDEX(Rating,Q$2),10,1),"") -> 0.2575232434 | R36: =IF($F36<>R$2,1-_xlfn.NORM.DIST(0,INDEX(Rating,$F36)-INDEX(Rating,R$2),10,1),"") -> 0.1441178426 | S36: =IF($F36<>S$2,1-_xlfn.NORM.DIST(0,INDEX(Rating,$F36)-INDEX(Rating,S$2),10,1),"") -> 0.5131627062 | T36: =IF($F36<>T$2,1-_xlfn.NORM.DIST(0,INDEX(Rating,$F36)-INDEX(Rating,T$2),10,1),"") -> 0.2863770661 | U36: =IF($F36<>U$2,1-_xlfn.NORM.DIST(0,INDEX(Rating,$F36)-INDEX(Rating,U$2),10,1),"") -> 0.2302572246 | V36: =IF($F36<>V$2,1-_xlfn.NORM.DIST(0,INDEX(Rating,$F36)-INDEX(Rating,V$2),10,1),"") -> 0.09476006728 | W36: =IF($F36<>W$2,1-_xlfn.NORM.DIST(0,INDEX(Rating,$F36)-INDEX(Rating,W$2),10,1),"") -> 0.5171492331 | X36: =IF($F36<>X$2,1-_xlfn.NORM.DIST(0,INDEX(Rating,$F36)-INDEX(Rating,X$2),10,1),"") -> 0.107118281 | Y36: =IF($F36<>Y$2,1-_xlfn.NORM.DIST(0,INDEX(Rating,$F36)-INDEX(Rating,Y$2),10,1),"") -> 0.8743091895 | Z36: =IF($F36<>Z$2,1-_xlfn.NORM.DIST(0,INDEX(Rating,$F36)-INDEX(Rating,Z$2),10,1),"") -> 0.9011270184 | AA36: =IF($F36<>AA$2,1-_xlfn.NORM.DIST(0,INDEX(Rating,$F36)-INDEX(Rating,AA$2),10,1),"") -> 0.1637899898 | AB36: =IF($F36<>AB$2,1-_xlfn.NORM.DIST(0,INDEX(Rating,$F36)-INDEX(Rating,AB$2),10,1),"") -> 0.2444686645 | AC36: =IF($F36<>AC$2,1-_xlfn.NORM.DIST(0,INDEX(Rating,$F36)-INDEX(Rating,AC$2),10,1),"") -> 0.1445722997 | AD36: =IF($F36<>AD$2,1-_xlfn.NORM.DIST(0,INDEX(Rating,$F36)-INDEX(Rating,AD$2),10,1),"") -> 0.3538302333 | AE36: =IF($F36<>AE$2,1-_xlfn.NORM.DIST(0,INDEX(Rating,$F36)-INDEX(Rating,AE$2),10,1),"") -> 0.1049210027 | AF36: =IF($F36<>AF$2,1-_xlfn.NORM.DIST(0,INDEX(Rating,$F36)-INDEX(Rating,AF$2),10,1),"") -> 0.4728928171 | AG36: =IF($F36<>AG$2,1-_xlfn.NORM.DIST(0,INDEX(Rating,$F36)-INDEX(Rating,AG$2),10,1),"") -> 0.1785252135 | AH36: =IF($F36<>AH$2,1-_xlfn.NORM.DIST(0,INDEX(Rating,$F36)-INDEX(Rating,AH$2),10,1),"") -> 0.2302572246 | AI36: =IF($F36<>AI$2,1-_xlfn.NORM.DIST(0,INDEX(Rating,$F36)-INDEX(Rating,AI$2),10,1),"") -> 0.1948945213 | AJ36: =IF($F36<>AJ$2,1-_xlfn.NORM.DIST(0,INDEX(Rating,$F36)-INDEX(Rating,AJ$2),10,1),"") -> 0.5800416379 | AK36: =IF($F36<>AK$2,1-_xlfn.NORM.DIST(0,INDEX(Rating,$F36)-INDEX(Rating,AK$2),10,1),"") -> 0.2063932068 | AL36: =IF($F36<>AL$2,1-_xlfn.NORM.DIST(0,INDEX(Rating,$F36)-INDEX(Rating,AL$2),10,1),"") -> 0.2302572246 | AM36: =IF($F36<>AM$2,1-_xlfn.NORM.DIST(0,INDEX(Rating,$F36)-INDEX(Rating,AM$2),10,1),"") -> 0.1407401328 | AN36: =IF($F36<>AN$2,1-_xlfn.NORM.DIST(0,INDEX(Rating,$F36)-INDEX(Rating,AN$2),10,1),"") ->  | AO36: =IF($F36<>AO$2,1-_xlfn.NORM.DIST(0,INDEX(Rating,$F36)-INDEX(Rating,AO$2),10,1),"") -> 0.06539422544 | AP36: =IF($F36<>AP$2,1-_xlfn.NORM.DIST(0,INDEX(Rating,$F36)-INDEX(Rating,AP$2),10,1),"") -> 0.6598302884 | AQ36: =IF($F36<>AQ$2,1-_xlfn.NORM.DIST(0,INDEX(Rating,$F36)-INDEX(Rating,AQ$2),10,1),"") -> 0.2086828354 | AR36: =IF($F36<>AR$2,1-_xlfn.NORM.DIST(0,INDEX(Rating,$F36)-INDEX(Rating,AR$2),10,1),"") -> 0.1954462317 | AS36: =IF($F36<>AS$2,1-_xlfn.NORM.DIST(0,INDEX(Rating,$F36)-INDEX(Rating,AS$2),10,1),"") -> 0.2284382376 | AT36: =IF($F36<>AT$2,1-_xlfn.NORM.DIST(0,INDEX(Rating,$F36)-INDEX(Rating,AT$2),10,1),"") -> 0.3029272046 | AU36: =IF($F36<>AU$2,1-_xlfn.NORM.DIST(0,INDEX(Rating,$F36)-INDEX(Rating,AU$2),10,1),"") -> 0.1718193895 | AV36: =IF($F36<>AV$2,1-_xlfn.NORM.DIST(0,INDEX(Rating,$F36)-INDEX(Rating,AV$2),10,1),"") -> 0.3317812137 | AW36: =IF($F36<>AW$2,1-_xlfn.NORM.DIST(0,INDEX(Rating,$F36)-INDEX(Rating,AW$2),10,1),"") -> 0.2212435924 | AX36: =IF($F36<>AX$2,1-_xlfn.NORM.DIST(0,INDEX(Rating,$F36)-INDEX(Rating,AX$2),10,1),"") -> 0.2904741766 | AY36: =IF($F36<>AY$2,1-_xlfn.NORM.DIST(0,INDEX(Rating,$F36)-INDEX(Rating,AY$2),10,1),"") -> 0.3156136965 | AZ36: =IF($F36<>AZ$2,1-_xlfn.NORM.DIST(0,INDEX(Rating,$F36)-INDEX(Rating,AZ$2),10,1),"") -> 0.1645322322 | BA36: =IF($F36<>BA$2,1-_xlfn.NORM.DIST(0,INDEX(Rating,$F36)-INDEX(Rating,BA$2),10,1),"") -> 0.6420709953 | BB36: =IF($F36<>BB$2,1-_xlfn.NORM.DIST(0,INDEX(Rating,$F36)-INDEX(Rating,BB$2),10,1),"") -> 0.1751519465 | BC36: =IF($F36<>BC$2,1-_xlfn.NORM.DIST(0,INDEX(Rating,$F36)-INDEX(Rating,BC$2),10,1),"") -> 0.2376135897 | BD36: =IF($F36<>BD$2,1-_xlfn.NORM.DIST(0,INDEX(Rating,$F36)-INDEX(Rating,BD$2),10,1),"") -> 0.08503171891 | BE36: =IF($F36<>BE$2,1-_xlfn.NORM.DIST(0,INDEX(Rating,$F36)-INDEX(Rating,BE$2),10,1),"") -> 0.5243203955 | BF36: =IF($F36<>BF$2,1-_xlfn.NORM.DIST(0,INDEX(Rating,$F36)-INDEX(Rating,BF$2),10,1),"") -> 0.09325068211 | BG36: =IF($F36<>BG$2,1-_xlfn.NORM.DIST(0,INDEX(Rating,$F36)-INDEX(Rating,BG$2),10,1),"") -> 0.7805346044 | BH36: =IF($F36<>BH$2,1-_xlfn.NORM.DIST(0,INDEX(Rating,$F36)-INDEX(Rating,BH$2),10,1),"") -> 0.1835284339 | BI36: =IF($F36<>BI$2,1-_xlfn.NORM.DIST(0,INDEX(Rating,$F36)-INDEX(Rating,BI$2),10,1),"") -> 0.1959988897 | BJ36: =IF($F36<>BJ$2,1-_xlfn.NORM.DIST(0,INDEX(Rating,$F36)-INDEX(Rating,BJ$2),10,1),"") -> 0.1662725946 | BK36: =IF($F36<>BK$2,1-_xlfn.NORM.DIST(0,INDEX(Rating,$F36)-INDEX(Rating,BK$2),10,1),"") -> 0.2511102648 | BL36: =IF($F36<>BL$2,1-_xlfn.NORM.DIST(0,INDEX(Rating,$F36)-INDEX(Rating,BL$2),10,1),"") -> 0.0912659019 | BM36: =IF($F36<>BM$2,1-_xlfn.NORM.DIST(0,INDEX(Rating,$F36)-INDEX(Rating,BM$2),10,1),"") -> 0.3839969399 | BN36: =IF($F36<>BN$2,1-_xlfn.NORM.DIST(0,INDEX(Rating,$F36)-INDEX(Rating,BN$2),10,1),"") -> 0.1785252135 | BO36: =IF($F36<>BO$2,1-_xlfn.NORM.DIST(0,INDEX(Rating,$F36)-INDEX(Rating,BO$2),10,1),"") -> 0.3354183374 | BP36: =IF($F36<>BP$2,1-_xlfn.NORM.DIST(0,INDEX(Rating,$F36)-INDEX(Rating,BP$2),10,1),"") -> 0.402454112 | BQ36: =IF($F36<>BQ$2,1-_xlfn.NORM.DIST(0,INDEX(Rating,$F36)-INDEX(Rating,BQ$2),10,1),"") -> 0.08487617335 | BR36: =IF($F36<>BR$2,1-_xlfn.NORM.DIST(0,INDEX(Rating,$F36)-INDEX(Rating,BR$2),10,1),"") -> 0.5294948074 | BS36: =IF($F36<>BS$2,1-_xlfn.NORM.DIST(0,INDEX(Rating,$F36)-INDEX(Rating,BS$2),10,1),"") -> 0.2360704598 | BT36: =IF($F36<>BT$2,1-_xlfn.NORM.DIST(0,INDEX(Rating,$F36)-INDEX(Rating,BT$2),10,1),"") -> 0.30327651 | BU36: =IF($F36<>BU$2,1-_xlfn.NORM.DIST(0,INDEX(Rating,$F36)-INDEX(Rating,BU$2),10,1),"") -> 0.07394846178 | BV36: =IF($F36<>BV$2,1-_xlfn.NORM.DIST(0,INDEX(Rating,$F36)-INDEX(Rating,BV$2),10,1),"") -> 0.6517317265
B37: Houston | C37: 35 | D37: 91.85 | F37: 35 | G37: =IF($F37<>G$2,1-_xlfn.NORM.DIST(0,INDEX(Rating,$F37)-INDEX(Rating,G$2),10,1),"") -> 0.4569978461 | H37: =IF($F37<>H$2,1-_xlfn.NORM.DIST(0,INDEX(Rating,$F37)-INDEX(Rating,H$2),10,1),"") -> 0.9846523303 | I37: =IF($F37<>I$2,1-_xlfn.NORM.DIST(0,INDEX(Rating,$F37)-INDEX(Rating,I$2),10,1),"") -> 0.9939805152 | J37: =IF($F37<>J$2,1-_xlfn.NORM.DIST(0,INDEX(Rating,$F37)-INDEX(Rating,J$2),10,1),"") -> 0.73826316 | K37: =IF($F37<>K$2,1-_xlfn.NORM.DIST(0,INDEX(Rating,$F37)-INDEX(Rating,K$2),10,1),"") -> 0.7254135577 | L37: =IF($F37<>L$2,1-_xlfn.NORM.DIST(0,INDEX(Rating,$F37)-INDEX(Rating,L$2),10,1),"") -> 0.7472944498 | M37: =IF($F37<>M$2,1-_xlfn.NORM.DIST(0,INDEX(Rating,$F37)-INDEX(Rating,M$2),10,1),"") -> 0.8677889327 | N37: =IF($F37<>N$2,1-_xlfn.NORM.DIST(0,INDEX(Rating,$F37)-INDEX(Rating,N$2),10,1),"") -> 0.7507970228 | O37: =IF($F37<>O$2,1-_xlfn.NORM.DIST(0,INDEX(Rating,$F37)-INDEX(Rating,O$2),10,1),"") -> 0.8919564587 | P37: =IF($F37<>P$2,1-_xlfn.NORM.DIST(0,INDEX(Rating,$F37)-INDEX(Rating,P$2),10,1),"") -> 0.6634874913 | Q37: =IF($F37<>Q$2,1-_xlfn.NORM.DIST(0,INDEX(Rating,$F37)-INDEX(Rating,Q$2),10,1),"") -> 0.8051054787 | R37: =IF($F37<>R$2,1-_xlfn.NORM.DIST(0,INDEX(Rating,$F37)-INDEX(Rating,R$2),10,1),"") -> 0.6732841717 | S37: =IF($F37<>S$2,1-_xlfn.NORM.DIST(0,INDEX(Rating,$F37)-INDEX(Rating,S$2),10,1),"") -> 0.9387058337 | T37: =IF($F37<>T$2,1-_xlfn.NORM.DIST(0,INDEX(Rating,$F37)-INDEX(Rating,T$2),10,1),"") -> 0.8281806105 | U37: =IF($F37<>U$2,1-_xlfn.NORM.DIST(0,INDEX(Rating,$F37)-INDEX(Rating,U$2),10,1),"") -> 0.7802388097 | V37: =IF($F37<>V$2,1-_xlfn.NORM.DIST(0,INDEX(Rating,$F37)-INDEX(Rating,V$2),10,1),"") -> 0.5788686277 | W37: =IF($F37<>W$2,1-_xlfn.NORM.DIST(0,INDEX(Rating,$F37)-INDEX(Rating,W$2),10,1),"") -> 0.9399077917 | X37: =IF($F37<>X$2,1-_xlfn.NORM.DIST(0,INDEX(Rating,$F37)-INDEX(Rating,X$2),10,1),"") -> 0.6060351587 | Y37: =IF($F37<>Y$2,1-_xlfn.NORM.DIST(0,INDEX(Rating,$F37)-INDEX(Rating,Y$2),10,1),"") -> 0.9960697053 | Z37: =IF($F37<>Z$2,1-_xlfn.NORM.DIST(0,INDEX(Rating,$F37)-INDEX(Rating,Z$2),10,1),"") -> 0.9974369431 | AA37: =IF($F37<>AA$2,1-_xlfn.NORM.DIST(0,INDEX(Rating,$F37)-INDEX(Rating,AA$2),10,1),"") -> 0.7026370022 | AB37: =IF($F37<>AB$2,1-_xlfn.NORM.DIST(0,INDEX(Rating,$F37)-INDEX(Rating,AB$2),10,1),"") -> 0.7936067932 | AC37: =IF($F37<>AC$2,1-_xlfn.NORM.DIST(0,INDEX(Rating,$F37)-INDEX(Rating,AC$2),10,1),"") -> 0.6740052255 | AD37: =IF($F37<>AD$2,1-_xlfn.NORM.DIST(0,INDEX(Rating,$F37)-INDEX(Rating,AD$2),10,1),"") -> 0.8720217178 | AE37: =IF($F37<>AE$2,1-_xlfn.NORM.DIST(0,INDEX(Rating,$F37)-INDEX(Rating,AE$2),10,1),"") -> 0.6014106135 | AF37: =IF($F37<>AF$2,1-_xlfn.NORM.DIST(0,INDEX(Rating,$F37)-INDEX(Rating,AF$2),10,1),"") -> 0.9254897644 | AG37: =IF($F37<>AG$2,1-_xlfn.NORM.DIST(0,INDEX(Rating,$F37)-INDEX(Rating,AG$2),10,1),"") -> 0.7224046752 | AH37: =IF($F37<>AH$2,1-_xlfn.NORM.DIST(0,INDEX(Rating,$F37)-INDEX(Rating,AH$2),10,1),"") -> 0.7802388097 | AI37: =IF($F37<>AI$2,1-_xlfn.NORM.DIST(0,INDEX(Rating,$F37)-INDEX(Rating,AI$2),10,1),"") -> 0.7424767566 | AJ37: =IF($F37<>AJ$2,1-_xlfn.NORM.DIST(0,INDEX(Rating,$F37)-INDEX(Rating,AJ$2),10,1),"") -> 0.9566437302 | AK37: =IF($F37<>AK$2,1-_xlfn.NORM.DIST(0,INDEX(Rating,$F37)-INDEX(Rating,AK$2),10,1),"") -> 0.7555313355 | AL37: =IF($F37<>AL$2,1-_xlfn.NORM.DIST(0,INDEX(Rating,$F37)-INDEX(Rating,AL$2),10,1),"") -> 0.7802388097 | AM37: =IF($F37<>AM$2,1-_xlfn.NORM.DIST(0,INDEX(Rating,$F37)-INDEX(Rating,AM$2),10,1),"") -> 0.6678557795 | AN37: =IF($F37<>AN$2,1-_xlfn.NORM.DIST(0,INDEX(Rating,$F37)-INDEX(Rating,AN$2),10,1),"") -> 0.9346057746 | AO37: =IF($F37<>AO$2,1-_xlfn.NORM.DIST(0,INDEX(Rating,$F37)-INDEX(Rating,AO$2),10,1),"") ->  | AP37: =IF($F37<>AP$2,1-_xlfn.NORM.DIST(0,INDEX(Rating,$F37)-INDEX(Rating,AP$2),10,1),"") -> 0.9727599751 | AQ37: =IF($F37<>AQ$2,1-_xlfn.NORM.DIST(0,INDEX(Rating,$F37)-INDEX(Rating,AQ$2),10,1),"") -> 0.7580363478 | AR37: =IF($F37<>AR$2,1-_xlfn.NORM.DIST(0,INDEX(Rating,$F37)-INDEX(Rating,AR$2),10,1),"") -> 0.7431218607 | AS37: =IF($F37<>AS$2,1-_xlfn.NORM.DIST(0,INDEX(Rating,$F37)-INDEX(Rating,AS$2),10,1),"") -> 0.7784592422 | AT37: =IF($F37<>AT$2,1-_xlfn.NORM.DIST(0,INDEX(Rating,$F37)-INDEX(Rating,AT$2),10,1),"") -> 0.8401318678 | AU37: =IF($F37<>AU$2,1-_xlfn.NORM.DIST(0,INDEX(Rating,$F37)-INDEX(Rating,AU$2),10,1),"") -> 0.7136229339 | AV37: =IF($F37<>AV$2,1-_xlfn.NORM.DIST(0,INDEX(Rating,$F37)-INDEX(Rating,AV$2),10,1),"") -> 0.8590363718 | AW37: =IF($F37<>AW$2,1-_xlfn.NORM.DIST(0,INDEX(Rating,$F37)-INDEX(Rating,AW$2),10,1),"") -> 0.7712591598 | AX37: =IF($F37<>AX$2,1-_xlfn.NORM.DIST(0,INDEX(Rating,$F37)-INDEX(Rating,AX$2),10,1),"") -> 0.8312206274 | AY37: =IF($F37<>AY$2,1-_xlfn.NORM.DIST(0,INDEX(Rating,$F37)-INDEX(Rating,AY$2),10,1),"") -> 0.8487295901 | AZ37: =IF($F37<>AZ$2,1-_xlfn.NORM.DIST(0,INDEX(Rating,$F37)-INDEX(Rating,AZ$2),10,1),"") -> 0.7036750714 | BA37: =IF($F37<>BA$2,1-_xlfn.NORM.DIST(0,INDEX(Rating,$F37)-INDEX(Rating,BA$2),10,1),"") -> 0.9696036382 | BB37: =IF($F37<>BB$2,1-_xlfn.NORM.DIST(0,INDEX(Rating,$F37)-INDEX(Rating,BB$2),10,1),"") -> 0.7180302722 | BC37: =IF($F37<>BC$2,1-_xlfn.NORM.DIST(0,INDEX(Rating,$F37)-INDEX(Rating,BC$2),10,1),"") -> 0.7872744843 | BD37: =IF($F37<>BD$2,1-_xlfn.NORM.DIST(0,INDEX(Rating,$F37)-INDEX(Rating,BD$2),10,1),"") -> 0.5552749255 | BE37: =IF($F37<>BE$2,1-_xlfn.NORM.DIST(0,INDEX(Rating,$F37)-INDEX(Rating,BE$2),10,1),"") -> 0.9420247244 | BF37: =IF($F37<>BF$2,1-_xlfn.NORM.DIST(0,INDEX(Rating,$F37)-INDEX(Rating,BF$2),10,1),"") -> 0.5753454347 | BG37: =IF($F37<>BG$2,1-_xlfn.NORM.DIST(0,INDEX(Rating,$F37)-INDEX(Rating,BG$2),10,1),"") -> 0.9888435861 | BH37: =IF($F37<>BH$2,1-_xlfn.NORM.DIST(0,INDEX(Rating,$F37)-INDEX(Rating,BH$2),10,1),"") -> 0.7287377806 | BI37: =IF($F37<>BI$2,1-_xlfn.NORM.DIST(0,INDEX(Rating,$F37)-INDEX(Rating,BI$2),10,1),"") -> 0.743766123 | BJ37: =IF($F37<>BJ$2,1-_xlfn.NORM.DIST(0,INDEX(Rating,$F37)-INDEX(Rating,BJ$2),10,1),"") -> 0.7060907471 | BK37: =IF($F37<>BK$2,1-_xlfn.NORM.DIST(0,INDEX(Rating,$F37)-INDEX(Rating,BK$2),10,1),"") -> 0.7995458067 | BL37: =IF($F37<>BL$2,1-_xlfn.NORM.DIST(0,INDEX(Rating,$F37)-INDEX(Rating,BL$2),10,1),"") -> 0.5706385121 | BM37: =IF($F37<>BM$2,1-_xlfn.NORM.DIST(0,INDEX(Rating,$F37)-INDEX(Rating,BM$2),10,1),"") -> 0.888007539 | BN37: =IF($F37<>BN$2,1-_xlfn.NORM.DIST(0,INDEX(Rating,$F37)-INDEX(Rating,BN$2),10,1),"") -> 0.7224046752 | BO37: =IF($F37<>BO$2,1-_xlfn.NORM.DIST(0,INDEX(Rating,$F37)-INDEX(Rating,BO$2),10,1),"") -> 0.8612605039 | BP37: =IF($F37<>BP$2,1-_xlfn.NORM.DIST(0,INDEX(Rating,$F37)-INDEX(Rating,BP$2),10,1),"") -> 0.8968849865 | BQ37: =IF($F37<>BQ$2,1-_xlfn.NORM.DIST(0,INDEX(Rating,$F37)-INDEX(Rating,BQ$2),10,1),"") -> 0.5548797912 | BR37: =IF($F37<>BR$2,1-_xlfn.NORM.DIST(0,INDEX(Rating,$F37)-INDEX(Rating,BR$2),10,1),"") -> 0.9435168329 | BS37: =IF($F37<>BS$2,1-_xlfn.NORM.DIST(0,INDEX(Rating,$F37)-INDEX(Rating,BS$2),10,1),"") -> 0.7858196619 | BT37: =IF($F37<>BT$2,1-_xlfn.NORM.DIST(0,INDEX(Rating,$F37)-INDEX(Rating,BT$2),10,1),"") -> 0.8403749274 | BU37: =IF($F37<>BU$2,1-_xlfn.NORM.DIST(0,INDEX(Rating,$F37)-INDEX(Rating,BU$2),10,1),"") -> 0.5255148866 | BV37: =IF($F37<>BV$2,1-_xlfn.NORM.DIST(0,INDEX(Rating,$F37)-INDEX(Rating,BV$2),10,1),"") -> 0.9713489937
B38: Northern Kentucky | C38: 36 | D38: 72.62 | F38: 36 | G38: =IF($F38<>G$2,1-_xlfn.NORM.DIST(0,INDEX(Rating,$F38)-INDEX(Rating,G$2),10,1),"") -> 0.0211274973 | H38: =IF($F38<>H$2,1-_xlfn.NORM.DIST(0,INDEX(Rating,$F38)-INDEX(Rating,H$2),10,1),"") -> 0.5940594529 | I38: =IF($F38<>I$2,1-_xlfn.NORM.DIST(0,INDEX(Rating,$F38)-INDEX(Rating,I$2),10,1),"") -> 0.7217338536 | J38: =IF($F38<>J$2,1-_xlfn.NORM.DIST(0,INDEX(Rating,$F38)-INDEX(Rating,J$2),10,1),"") -> 0.09939614202 | K38: =IF($F38<>K$2,1-_xlfn.NORM.DIST(0,INDEX(Rating,$F38)-INDEX(Rating,K$2),10,1),"") -> 0.09275152236 | L38: =IF($F38<>L$2,1-_xlfn.NORM.DIST(0,INDEX(Rating,$F38)-INDEX(Rating,L$2),10,1),"") -> 0.1043768178 | M38: =IF($F38<>M$2,1-_xlfn.NORM.DIST(0,INDEX(Rating,$F38)-INDEX(Rating,M$2),10,1),"") -> 0.2098332416 | N38: =IF($F38<>N$2,1-_xlfn.NORM.DIST(0,INDEX(Rating,$F38)-INDEX(Rating,N$2),10,1),"") -> 0.1063821976 | O38: =IF($F38<>O$2,1-_xlfn.NORM.DIST(0,INDEX(Rating,$F38)-INDEX(Rating,O$2),10,1),"") -> 0.2463565542 | P38: =IF($F38<>P$2,1-_xlfn.NORM.DIST(0,INDEX(Rating,$F38)-INDEX(Rating,P$2),10,1),"") -> 0.06667778078 | Q38: =IF($F38<>Q$2,1-_xlfn.NORM.DIST(0,INDEX(Rating,$F38)-INDEX(Rating,Q$2),10,1),"") -> 0.1438909757 | R38: =IF($F38<>R$2,1-_xlfn.NORM.DIST(0,INDEX(Rating,$F38)-INDEX(Rating,R$2),10,1),"") -> 0.07024079558 | S38: =IF($F38<>S$2,1-_xlfn.NORM.DIST(0,INDEX(Rating,$F38)-INDEX(Rating,S$2),10,1),"") -> 0.3523439319 | T38: =IF($F38<>T$2,1-_xlfn.NORM.DIST(0,INDEX(Rating,$F38)-INDEX(Rating,T$2),10,1),"") -> 0.1645322322 | U38: =IF($F38<>U$2,1-_xlfn.NORM.DIST(0,INDEX(Rating,$F38)-INDEX(Rating,U$2),10,1),"") -> 0.1250719356 | V38: =IF($F38<>V$2,1-_xlfn.NORM.DIST(0,INDEX(Rating,$F38)-INDEX(Rating,V$2),10,1),"") -> 0.04235392158 | W38: =IF($F38<>W$2,1-_xlfn.NORM.DIST(0,INDEX(Rating,$F38)-INDEX(Rating,W$2),10,1),"") -> 0.3560638624 | X38: =IF($F38<>X$2,1-_xlfn.NORM.DIST(0,INDEX(Rating,$F38)-INDEX(Rating,X$2),10,1),"") -> 0.04906375635 | Y38: =IF($F38<>Y$2,1-_xlfn.NORM.DIST(0,INDEX(Rating,$F38)-INDEX(Rating,Y$2),10,1),"") -> 0.7688302529 | Z38: =IF($F38<>Z$2,1-_xlfn.NORM.DIST(0,INDEX(Rating,$F38)-INDEX(Rating,Z$2),10,1),"") -> 0.8094849831 | AA38: =IF($F38<>AA$2,1-_xlfn.NORM.DIST(0,INDEX(Rating,$F38)-INDEX(Rating,AA$2),10,1),"") -> 0.08211271338 | AB38: =IF($F38<>AB$2,1-_xlfn.NORM.DIST(0,INDEX(Rating,$F38)-INDEX(Rating,AB$2),10,1),"") -> 0.1347965688 | AC38: =IF($F38<>AC$2,1-_xlfn.NORM.DIST(0,INDEX(Rating,$F38)-INDEX(Rating,AC$2),10,1),"") -> 0.07051043879 | AD38: =IF($F38<>AD$2,1-_xlfn.NORM.DIST(0,INDEX(Rating,$F38)-INDEX(Rating,AD$2),10,1),"") -> 0.2156409331 | AE38: =IF($F38<>AE$2,1-_xlfn.NORM.DIST(0,INDEX(Rating,$F38)-INDEX(Rating,AE$2),10,1),"") -> 0.04785670722 | AF38: =IF($F38<>AF$2,1-_xlfn.NORM.DIST(0,INDEX(Rating,$F38)-INDEX(Rating,AF$2),10,1),"") -> 0.3156136965 | AG38: =IF($F38<>AG$2,1-_xlfn.NORM.DIST(0,INDEX(Rating,$F38)-INDEX(Rating,AG$2),10,1),"") -> 0.0912659019 | AH38: =IF($F38<>AH$2,1-_xlfn.NORM.DIST(0,INDEX(Rating,$F38)-INDEX(Rating,AH$2),10,1),"") -> 0.1250719356 | AI38: =IF($F38<>AI$2,1-_xlfn.NORM.DIST(0,INDEX(Rating,$F38)-INDEX(Rating,AI$2),10,1),"") -> 0.1016865596 | AJ38: =IF($F38<>AJ$2,1-_xlfn.NORM.DIST(0,INDEX(Rating,$F38)-INDEX(Rating,AJ$2),10,1),"") -> 0.4168338365 | AK38: =IF($F38<>AK$2,1-_xlfn.NORM.DIST(0,INDEX(Rating,$F38)-INDEX(Rating,AK$2),10,1),"") -> 0.1091614321 | AL38: =IF($F38<>AL$2,1-_xlfn.NORM.DIST(0,INDEX(Rating,$F38)-INDEX(Rating,AL$2),10,1),"") -> 0.1250719356 | AM38: =IF($F38<>AM$2,1-_xlfn.NORM.DIST(0,INDEX(Rating,$F38)-INDEX(Rating,AM$2),10,1),"") -> 0.06824368437 | AN38: =IF($F38<>AN$2,1-_xlfn.NORM.DIST(0,INDEX(Rating,$F38)-INDEX(Rating,AN$2),10,1),"") -> 0.3401697116 | AO38: =IF($F38<>AO$2,1-_xlfn.NORM.DIST(0,INDEX(Rating,$F38)-INDEX(Rating,AO$2),10,1),"") -> 0.02724002493 | AP38: =IF($F38<>AP$2,1-_xlfn.NORM.DIST(0,INDEX(Rating,$F38)-INDEX(Rating,AP$2),10,1),"") ->  | AQ38: =IF($F38<>AQ$2,1-_xlfn.NORM.DIST(0,INDEX(Rating,$F38)-INDEX(Rating,AQ$2),10,1),"") -> 0.1106648481 | AR38: =IF($F38<>AR$2,1-_xlfn.NORM.DIST(0,INDEX(Rating,$F38)-INDEX(Rating,AR$2),10,1),"") -> 0.1020423151 | AS38: =IF($F38<>AS$2,1-_xlfn.NORM.DIST(0,INDEX(Rating,$F38)-INDEX(Rating,AS$2),10,1),"") -> 0.1238405785 | AT38: =IF($F38<>AT$2,1-_xlfn.NORM.DIST(0,INDEX(Rating,$F38)-INDEX(Rating,AT$2),10,1),"") -> 0.1767037848 | AU38: =IF($F38<>AU$2,1-_xlfn.NORM.DIST(0,INDEX(Rating,$F38)-INDEX(Rating,AU$2),10,1),"") -> 0.08707329435 | AV38: =IF($F38<>AV$2,1-_xlfn.NORM.DIST(0,INDEX(Rating,$F38)-INDEX(Rating,AV$2),10,1),"") -> 0.1984975607 | AW38: =IF($F38<>AW$2,1-_xlfn.NORM.DIST(0,INDEX(Rating,$F38)-INDEX(Rating,AW$2),10,1),"") -> 0.1190001075 | AX38: =IF($F38<>AX$2,1-_xlfn.NORM.DIST(0,INDEX(Rating,$F38)-INDEX(Rating,AX$2),10,1),"") -> 0.1675229629 | AY38: =IF($F38<>AY$2,1-_xlfn.NORM.DIST(0,INDEX(Rating,$F38)-INDEX(Rating,AY$2),10,1),"") -> 0.1861964662 | AZ38: =IF($F38<>AZ$2,1-_xlfn.NORM.DIST(0,INDEX(Rating,$F38)-INDEX(Rating,AZ$2),10,1),"") -> 0.08256852256 | BA38: =IF($F38<>BA$2,1-_xlfn.NORM.DIST(0,INDEX(Rating,$F38)-INDEX(Rating,BA$2),10,1),"") -> 0.4808581213 | BB38: =IF($F38<>BB$2,1-_xlfn.NORM.DIST(0,INDEX(Rating,$F38)-INDEX(Rating,BB$2),10,1),"") -> 0.08915125829 | BC38: =IF($F38<>BC$2,1-_xlfn.NORM.DIST(0,INDEX(Rating,$F38)-INDEX(Rating,BC$2),10,1),"") -> 0.1300827597 | BD38: =IF($F38<>BD$2,1-_xlfn.NORM.DIST(0,INDEX(Rating,$F38)-INDEX(Rating,BD$2),10,1),"") -> 0.03721183258 | BE38: =IF($F38<>BE$2,1-_xlfn.NORM.DIST(0,INDEX(Rating,$F38)-INDEX(Rating,BE$2),10,1),"") -> 0.3627941742 | BF38: =IF($F38<>BF$2,1-_xlfn.NORM.DIST(0,INDEX(Rating,$F38)-INDEX(Rating,BF$2),10,1),"") -> 0.0415478344 | BG38: =IF($F38<>BG$2,1-_xlfn.NORM.DIST(0,INDEX(Rating,$F38)-INDEX(Rating,BG$2),10,1),"") -> 0.6413239848 | BH38: =IF($F38<>BH$2,1-_xlfn.NORM.DIST(0,INDEX(Rating,$F38)-INDEX(Rating,BH$2),10,1),"") -> 0.09442310211 | BI38: =IF($F38<>BI$2,1-_xlfn.NORM.DIST(0,INDEX(Rating,$F38)-INDEX(Rating,BI$2),10,1),"") -> 0.1023989753 | BJ38: =IF($F38<>BJ$2,1-_xlfn.NORM.DIST(0,INDEX(Rating,$F38)-INDEX(Rating,BJ$2),10,1),"") -> 0.08363948033 | BK38: =IF($F38<>BK$2,1-_xlfn.NORM.DIST(0,INDEX(Rating,$F38)-INDEX(Rating,BK$2),10,1),"") -> 0.1394042115 | BL38: =IF($F38<>BL$2,1-_xlfn.NORM.DIST(0,INDEX(Rating,$F38)-INDEX(Rating,BL$2),10,1),"") -> 0.04049243448 | BM38: =IF($F38<>BM$2,1-_xlfn.NORM.DIST(0,INDEX(Rating,$F38)-INDEX(Rating,BM$2),10,1),"") -> 0.2397832389 | BN38: =IF($F38<>BN$2,1-_xlfn.NORM.DIST(0,INDEX(Rating,$F38)-INDEX(Rating,BN$2),10,1),"") -> 0.0912659019 | BO38: =IF($F38<>BO$2,1-_xlfn.NORM.DIST(0,INDEX(Rating,$F38)-INDEX(Rating,BO$2),10,1),"") -> 0.201296284 | BP38: =IF($F38<>BP$2,1-_xlfn.NORM.DIST(0,INDEX(Rating,$F38)-INDEX(Rating,BP$2),10,1),"") -> 0.2549478843 | BQ38: =IF($F38<>BQ$2,1-_xlfn.NORM.DIST(0,INDEX(Rating,$F38)-INDEX(Rating,BQ$2),10,1),"") -> 0.03713065844 | BR38: =IF($F38<>BR$2,1-_xlfn.NORM.DIST(0,INDEX(Rating,$F38)-INDEX(Rating,BR$2),10,1),"") -> 0.3676815939 | BS38: =IF($F38<>BS$2,1-_xlfn.NORM.DIST(0,INDEX(Rating,$F38)-INDEX(Rating,BS$2),10,1),"") -> 0.1290275457 | BT38: =IF($F38<>BT$2,1-_xlfn.NORM.DIST(0,INDEX(Rating,$F38)-INDEX(Rating,BT$2),10,1),"") -> 0.1769632671 | BU38: =IF($F38<>BU$2,1-_xlfn.NORM.DIST(0,INDEX(Rating,$F38)-INDEX(Rating,BU$2),10,1),"") -> 0.03151356919 | BV38: =IF($F38<>BV$2,1-_xlfn.NORM.DIST(0,INDEX(Rating,$F38)-INDEX(Rating,BV$2),10,1),"") -> 0.4912239778
B39: Iowa | C39: 37 | D39: 84.85 | F39: 37 | G39: =IF($F39<>G$2,1-_xlfn.NORM.DIST(0,INDEX(Rating,$F39)-INDEX(Rating,G$2),10,1),"") -> 0.2095452911 | H39: =IF($F39<>H$2,1-_xlfn.NORM.DIST(0,INDEX(Rating,$F39)-INDEX(Rating,H$2),10,1),"") -> 0.9279922793 | I39: =IF($F39<>I$2,1-_xlfn.NORM.DIST(0,INDEX(Rating,$F39)-INDEX(Rating,I$2),10,1),"") -> 0.9649295742 | J39: =IF($F39<>J$2,1-_xlfn.NORM.DIST(0,INDEX(Rating,$F39)-INDEX(Rating,J$2),10,1),"") -> 0.475281416 | K39: =IF($F39<>K$2,1-_xlfn.NORM.DIST(0,INDEX(Rating,$F39)-INDEX(Rating,K$2),10,1),"") -> 0.4597752301 | L39: =IF($F39<>L$2,1-_xlfn.NORM.DIST(0,INDEX(Rating,$F39)-INDEX(Rating,L$2),10,1),"") -> 0.4864385754 | M39: =IF($F39<>M$2,1-_xlfn.NORM.DIST(0,INDEX(Rating,$F39)-INDEX(Rating,M$2),10,1),"") -> 0.6612949984 | N39: =IF($F39<>N$2,1-_xlfn.NORM.DIST(0,INDEX(Rating,$F39)-INDEX(Rating,N$2),10,1),"") -> 0.4908251365 | O39: =IF($F39<>O$2,1-_xlfn.NORM.DIST(0,INDEX(Rating,$F39)-INDEX(Rating,O$2),10,1),"") -> 0.704366193 | P39: =IF($F39<>P$2,1-_xlfn.NORM.DIST(0,INDEX(Rating,$F39)-INDEX(Rating,P$2),10,1),"") -> 0.3905061794 | Q39: =IF($F39<>Q$2,1-_xlfn.NORM.DIST(0,INDEX(Rating,$F39)-INDEX(Rating,Q$2),10,1),"") -> 0.5635594629 | R39: =IF($F39<>R$2,1-_xlfn.NORM.DIST(0,INDEX(Rating,$F39)-INDEX(Rating,R$2),10,1),"") -> 0.4009070546 | S39: =IF($F39<>S$2,1-_xlfn.NORM.DIST(0,INDEX(Rating,$F39)-INDEX(Rating,S$2),10,1),"") -> 0.8006652972 | T39: =IF($F39<>T$2,1-_xlfn.NORM.DIST(0,INDEX(Rating,$F39)-INDEX(Rating,T$2),10,1),"") -> 0.597545888 | U39: =IF($F39<>U$2,1-_xlfn.NORM.DIST(0,INDEX(Rating,$F39)-INDEX(Rating,U$2),10,1),"") -> 0.5290969412 | V39: =IF($F39<>V$2,1-_xlfn.NORM.DIST(0,INDEX(Rating,$F39)-INDEX(Rating,V$2),10,1),"") -> 0.3081855615 | W39: =IF($F39<>W$2,1-_xlfn.NORM.DIST(0,INDEX(Rating,$F39)-INDEX(Rating,W$2),10,1),"") -> 0.8034475053 | X39: =IF($F39<>X$2,1-_xlfn.NORM.DIST(0,INDEX(Rating,$F39)-INDEX(Rating,X$2),10,1),"") -> 0.3332341852 | Y39: =IF($F39<>Y$2,1-_xlfn.NORM.DIST(0,INDEX(Rating,$F39)-INDEX(Rating,Y$2),10,1),"") -> 0.9748849937 | Z39: =IF($F39<>Z$2,1-_xlfn.NORM.DIST(0,INDEX(Rating,$F39)-INDEX(Rating,Z$2),10,1),"") -> 0.9820915496 | AA39: =IF($F39<>AA$2,1-_xlfn.NORM.DIST(0,INDEX(Rating,$F39)-INDEX(Rating,AA$2),10,1),"") -> 0.4332916395 | AB39: =IF($F39<>AB$2,1-_xlfn.NORM.DIST(0,INDEX(Rating,$F39)-INDEX(Rating,AB$2),10,1),"") -> 0.5473623221 | AC39: =IF($F39<>AC$2,1-_xlfn.NORM.DIST(0,INDEX(Rating,$F39)-INDEX(Rating,AC$2),10,1),"") -> 0.4016803907 | AD39: =IF($F39<>AD$2,1-_xlfn.NORM.DIST(0,INDEX(Rating,$F39)-INDEX(Rating,AD$2),10,1),"") -> 0.6685816352 | AE39: =IF($F39<>AE$2,1-_xlfn.NORM.DIST(0,INDEX(Rating,$F39)-INDEX(Rating,AE$2),10,1),"") -> 0.3288828674 | AF39: =IF($F39<>AF$2,1-_xlfn.NORM.DIST(0,INDEX(Rating,$F39)-INDEX(Rating,AF$2),10,1),"") -> 0.7712591598 | AG39: =IF($F39<>AG$2,1-_xlfn.NORM.DIST(0,INDEX(Rating,$F39)-INDEX(Rating,AG$2),10,1),"") -> 0.4562046875 | AH39: =IF($F39<>AH$2,1-_xlfn.NORM.DIST(0,INDEX(Rating,$F39)-INDEX(Rating,AH$2),10,1),"") -> 0.5290969412 | AI39: =IF($F39<>AI$2,1-_xlfn.NORM.DIST(0,INDEX(Rating,$F39)-INDEX(Rating,AI$2),10,1),"") -> 0.480459648 | AJ39: =IF($F39<>AJ$2,1-_xlfn.NORM.DIST(0,INDEX(Rating,$F39)-INDEX(Rating,AJ$2),10,1),"") -> 0.8444699195 | AK39: =IF($F39<>AK$2,1-_xlfn.NORM.DIST(0,INDEX(Rating,$F39)-INDEX(Rating,AK$2),10,1),"") -> 0.4968084958 | AL39: =IF($F39<>AL$2,1-_xlfn.NORM.DIST(0,INDEX(Rating,$F39)-INDEX(Rating,AL$2),10,1),"") -> 0.5290969412 | AM39: =IF($F39<>AM$2,1-_xlfn.NORM.DIST(0,INDEX(Rating,$F39)-INDEX(Rating,AM$2),10,1),"") -> 0.3951196045 | AN39: =IF($F39<>AN$2,1-_xlfn.NORM.DIST(0,INDEX(Rating,$F39)-INDEX(Rating,AN$2),10,1),"") -> 0.7913171646 | AO39: =IF($F39<>AO$2,1-_xlfn.NORM.DIST(0,INDEX(Rating,$F39)-INDEX(Rating,AO$2),10,1),"") -> 0.2419636522 | AP39: =IF($F39<>AP$2,1-_xlfn.NORM.DIST(0,INDEX(Rating,$F39)-INDEX(Rating,AP$2),10,1),"") -> 0.8893351519 | AQ39: =IF($F39<>AQ$2,1-_xlfn.NORM.DIST(0,INDEX(Rating,$F39)-INDEX(Rating,AQ$2),10,1),"") ->  | AR39: =IF($F39<>AR$2,1-_xlfn.NORM.DIST(0,INDEX(Rating,$F39)-INDEX(Rating,AR$2),10,1),"") -> 0.4812566138 | AS39: =IF($F39<>AS$2,1-_xlfn.NORM.DIST(0,INDEX(Rating,$F39)-INDEX(Rating,AS$2),10,1),"") -> 0.5267091484 | AT39: =IF($F39<>AT$2,1-_xlfn.NORM.DIST(0,INDEX(Rating,$F39)-INDEX(Rating,AT$2),10,1),"") -> 0.6160030601 | AU39: =IF($F39<>AU$2,1-_xlfn.NORM.DIST(0,INDEX(Rating,$F39)-INDEX(Rating,AU$2),10,1),"") -> 0.4459106405 | AV39: =IF($F39<>AV$2,1-_xlfn.NORM.DIST(0,INDEX(Rating,$F39)-INDEX(Rating,AV$2),10,1),"") -> 0.646541552 | AW39: =IF($F39<>AW$2,1-_xlfn.NORM.DIST(0,INDEX(Rating,$F39)-INDEX(Rating,AW$2),10,1),"") -> 0.5171492331 | AX39: =IF($F39<>AX$2,1-_xlfn.NORM.DIST(0,INDEX(Rating,$F39)-INDEX(Rating,AX$2),10,1),"") -> 0.6021823798 | AY39: =IF($F39<>AY$2,1-_xlfn.NORM.DIST(0,INDEX(Rating,$F39)-INDEX(Rating,AY$2),10,1),"") -> 0.6296777572 | AZ39: =IF($F39<>AZ$2,1-_xlfn.NORM.DIST(0,INDEX(Rating,$F39)-INDEX(Rating,AZ$2),10,1),"") -> 0.434471991 | BA39: =IF($F39<>BA$2,1-_xlfn.NORM.DIST(0,INDEX(Rating,$F39)-INDEX(Rating,BA$2),10,1),"") -> 0.8800026421 | BB39: =IF($F39<>BB$2,1-_xlfn.NORM.DIST(0,INDEX(Rating,$F39)-INDEX(Rating,BB$2),10,1),"") -> 0.451053549 | BC39: =IF($F39<>BC$2,1-_xlfn.NORM.DIST(0,INDEX(Rating,$F39)-INDEX(Rating,BC$2),10,1),"") -> 0.5386368028 | BD39: =IF($F39<>BD$2,1-_xlfn.NORM.DIST(0,INDEX(Rating,$F39)-INDEX(Rating,BD$2),10,1),"") -> 0.2873987686 | BE39: =IF($F39<>BE$2,1-_xlfn.NORM.DIST(0,INDEX(Rating,$F39)-INDEX(Rating,BE$2),10,1),"") -> 0.8083958112 | BF39: =IF($F39<>BF$2,1-_xlfn.NORM.DIST(0,INDEX(Rating,$F39)-INDEX(Rating,BF$2),10,1),"") -> 0.3050257309 | BG39: =IF($F39<>BG$2,1-_xlfn.NORM.DIST(0,INDEX(Rating,$F39)-INDEX(Rating,BG$2),10,1),"") -> 0.9435168329 | BH39: =IF($F39<>BH$2,1-_xlfn.NORM.DIST(0,INDEX(Rating,$F39)-INDEX(Rating,BH$2),10,1),"") -> 0.4637462955 | BI39: =IF($F39<>BI$2,1-_xlfn.NORM.DIST(0,INDEX(Rating,$F39)-INDEX(Rating,BI$2),10,1),"") -> 0.4820536545 | BJ39: =IF($F39<>BJ$2,1-_xlfn.NORM.DIST(0,INDEX(Rating,$F39)-INDEX(Rating,BJ$2),10,1),"") -> 0.4372283994 | BK39: =IF($F39<>BK$2,1-_xlfn.NORM.DIST(0,INDEX(Rating,$F39)-INDEX(Rating,BK$2),10,1),"") -> 0.5556700048 | BL39: =IF($F39<>BL$2,1-_xlfn.NORM.DIST(0,INDEX(Rating,$F39)-INDEX(Rating,BL$2),10,1),"") -> 0.3008351653 | BM39: =IF($F39<>BM$2,1-_xlfn.NORM.DIST(0,INDEX(Rating,$F39)-INDEX(Rating,BM$2),10,1),"") -> 0.6970727954 | BN39: =IF($F39<>BN$2,1-_xlfn.NORM.DIST(0,INDEX(Rating,$F39)-INDEX(Rating,BN$2),10,1),"") -> 0.4562046875 | BO39: =IF($F39<>BO$2,1-_xlfn.NORM.DIST(0,INDEX(Rating,$F39)-INDEX(Rating,BO$2),10,1),"") -> 0.6502516656 | BP39: =IF($F39<>BP$2,1-_xlfn.NORM.DIST(0,INDEX(Rating,$F39)-INDEX(Rating,BP$2),10,1),"") -> 0.7136229339 | BQ39: =IF($F39<>BQ$2,1-_xlfn.NORM.DIST(0,INDEX(Rating,$F39)-INDEX(Rating,BQ$2),10,1),"") -> 0.2870580096 | BR39: =IF($F39<>BR$2,1-_xlfn.NORM.DIST(0,INDEX(Rating,$F39)-INDEX(Rating,BR$2),10,1),"") -> 0.8119216843 | BS39: =IF($F39<>BS$2,1-_xlfn.NORM.DIST(0,INDEX(Rating,$F39)-INDEX(Rating,BS$2),10,1),"") -> 0.5366509802 | BT39: =IF($F39<>BT$2,1-_xlfn.NORM.DIST(0,INDEX(Rating,$F39)-INDEX(Rating,BT$2),10,1),"") -> 0.6163849593 | BU39: =IF($F39<>BU$2,1-_xlfn.NORM.DIST(0,INDEX(Rating,$F39)-INDEX(Rating,BU$2),10,1),"") -> 0.262388211 | BV39: =IF($F39<>BV$2,1-_xlfn.NORM.DIST(0,INDEX(Rating,$F39)-INDEX(Rating,BV$2),10,1),"") -> 0.8851243993
B40: Auburn | C40: 38 | D40: 85.32 | F40: 38 | G40: =IF($F40<>G$2,1-_xlfn.NORM.DIST(0,INDEX(Rating,$F40)-INDEX(Rating,G$2),10,1),"") -> 0.2233285336 | H40: =IF($F40<>H$2,1-_xlfn.NORM.DIST(0,INDEX(Rating,$F40)-INDEX(Rating,H$2),10,1),"") -> 0.9342227365 | I40: =IF($F40<>I$2,1-_xlfn.NORM.DIST(0,INDEX(Rating,$F40)-INDEX(Rating,I$2),10,1),"") -> 0.9684154928 | J40: =IF($F40<>J$2,1-_xlfn.NORM.DIST(0,INDEX(Rating,$F40)-INDEX(Rating,J$2),10,1),"") -> 0.4940160902 | K40: =IF($F40<>K$2,1-_xlfn.NORM.DIST(0,INDEX(Rating,$F40)-INDEX(Rating,K$2),10,1),"") -> 0.4784675821 | L40: =IF($F40<>L$2,1-_xlfn.NORM.DIST(0,INDEX(Rating,$F40)-INDEX(Rating,L$2),10,1),"") -> 0.5051861036 | M40: =IF($F40<>M$2,1-_xlfn.NORM.DIST(0,INDEX(Rating,$F40)-INDEX(Rating,M$2),10,1),"") -> 0.6783178164 | N40: =IF($F40<>N$2,1-_xlfn.NORM.DIST(0,INDEX(Rating,$F40)-INDEX(Rating,N$2),10,1),"") -> 0.5095736956 | O40: =IF($F40<>O$2,1-_xlfn.NORM.DIST(0,INDEX(Rating,$F40)-INDEX(Rating,O$2),10,1),"") -> 0.720389844 | P40: =IF($F40<>P$2,1-_xlfn.NORM.DIST(0,INDEX(Rating,$F40)-INDEX(Rating,P$2),10,1),"") -> 0.408657401 | Q40: =IF($F40<>Q$2,1-_xlfn.NORM.DIST(0,INDEX(Rating,$F40)-INDEX(Rating,Q$2),10,1),"") -> 0.5819950708 | R40: =IF($F40<>R$2,1-_xlfn.NORM.DIST(0,INDEX(Rating,$F40)-INDEX(Rating,R$2),10,1),"") -> 0.4191767495 | S40: =IF($F40<>S$2,1-_xlfn.NORM.DIST(0,INDEX(Rating,$F40)-INDEX(Rating,S$2),10,1),"") -> 0.8135354149 | T40: =IF($F40<>T$2,1-_xlfn.NORM.DIST(0,INDEX(Rating,$F40)-INDEX(Rating,T$2),10,1),"") -> 0.6156210483 | U40: =IF($F40<>U$2,1-_xlfn.NORM.DIST(0,INDEX(Rating,$F40)-INDEX(Rating,U$2),10,1),"") -> 0.547758426 | V40: =IF($F40<>V$2,1-_xlfn.NORM.DIST(0,INDEX(Rating,$F40)-INDEX(Rating,V$2),10,1),"") -> 0.3249144134 | W40: =IF($F40<>W$2,1-_xlfn.NORM.DIST(0,INDEX(Rating,$F40)-INDEX(Rating,W$2),10,1),"") -> 0.8162058402 | X40: =IF($F40<>X$2,1-_xlfn.NORM.DIST(0,INDEX(Rating,$F40)-INDEX(Rating,X$2),10,1),"") -> 0.3504892237 | Y40: =IF($F40<>Y$2,1-_xlfn.NORM.DIST(0,INDEX(Rating,$F40)-INDEX(Rating,Y$2),10,1),"") -> 0.9775184765 | Z40: =IF($F40<>Z$2,1-_xlfn.NORM.DIST(0,INDEX(Rating,$F40)-INDEX(Rating,Z$2),10,1),"") -> 0.9840635107 | AA40: =IF($F40<>AA$2,1-_xlfn.NORM.DIST(0,INDEX(Rating,$F40)-INDEX(Rating,AA$2),10,1),"") -> 0.4518455176 | AB40: =IF($F40<>AB$2,1-_xlfn.NORM.DIST(0,INDEX(Rating,$F40)-INDEX(Rating,AB$2),10,1),"") -> 0.5659215249 | AC40: =IF($F40<>AC$2,1-_xlfn.NORM.DIST(0,INDEX(Rating,$F40)-INDEX(Rating,AC$2),10,1),"") -> 0.4199583621 | AD40: =IF($F40<>AD$2,1-_xlfn.NORM.DIST(0,INDEX(Rating,$F40)-INDEX(Rating,AD$2),10,1),"") -> 0.6854521319 | AE40: =IF($F40<>AE$2,1-_xlfn.NORM.DIST(0,INDEX(Rating,$F40)-INDEX(Rating,AE$2),10,1),"") -> 0.3460525141 | AF40: =IF($F40<>AF$2,1-_xlfn.NORM.DIST(0,INDEX(Rating,$F40)-INDEX(Rating,AF$2),10,1),"") -> 0.7852361158 | AG40: =IF($F40<>AG$2,1-_xlfn.NORM.DIST(0,INDEX(Rating,$F40)-INDEX(Rating,AG$2),10,1),"") -> 0.4748832522 | AH40: =IF($F40<>AH$2,1-_xlfn.NORM.DIST(0,INDEX(Rating,$F40)-INDEX(Rating,AH$2),10,1),"") -> 0.547758426 | AI40: =IF($F40<>AI$2,1-_xlfn.NORM.DIST(0,INDEX(Rating,$F40)-INDEX(Rating,AI$2),10,1),"") -> 0.499202116 | AJ40: =IF($F40<>AJ$2,1-_xlfn.NORM.DIST(0,INDEX(Rating,$F40)-INDEX(Rating,AJ$2),10,1),"") -> 0.8554277003 | AK40: =IF($F40<>AK$2,1-_xlfn.NORM.DIST(0,INDEX(Rating,$F40)-INDEX(Rating,AK$2),10,1),"") -> 0.5155548057 | AL40: =IF($F40<>AL$2,1-_xlfn.NORM.DIST(0,INDEX(Rating,$F40)-INDEX(Rating,AL$2),10,1),"") -> 0.547758426 | AM40: =IF($F40<>AM$2,1-_xlfn.NORM.DIST(0,INDEX(Rating,$F40)-INDEX(Rating,AM$2),10,1),"") -> 0.4133250239 | AN40: =IF($F40<>AN$2,1-_xlfn.NORM.DIST(0,INDEX(Rating,$F40)-INDEX(Rating,AN$2),10,1),"") -> 0.8045537683 | AO40: =IF($F40<>AO$2,1-_xlfn.NORM.DIST(0,INDEX(Rating,$F40)-INDEX(Rating,AO$2),10,1),"") -> 0.2568781393 | AP40: =IF($F40<>AP$2,1-_xlfn.NORM.DIST(0,INDEX(Rating,$F40)-INDEX(Rating,AP$2),10,1),"") -> 0.8979576849 | AQ40: =IF($F40<>AQ$2,1-_xlfn.NORM.DIST(0,INDEX(Rating,$F40)-INDEX(Rating,AQ$2),10,1),"") -> 0.5187433862 | AR40: =IF($F40<>AR$2,1-_xlfn.NORM.DIST(0,INDEX(Rating,$F40)-INDEX(Rating,AR$2),10,1),"") ->  | AS40: =IF($F40<>AS$2,1-_xlfn.NORM.DIST(0,INDEX(Rating,$F40)-INDEX(Rating,AS$2),10,1),"") -> 0.5453811033 | AT40: =IF($F40<>AT$2,1-_xlfn.NORM.DIST(0,INDEX(Rating,$F40)-INDEX(Rating,AT$2),10,1),"") -> 0.6338245539 | AU40: =IF($F40<>AU$2,1-_xlfn.NORM.DIST(0,INDEX(Rating,$F40)-INDEX(Rating,AU$2),10,1),"") -> 0.4645409551 | AV40: =IF($F40<>AV$2,1-_xlfn.NORM.DIST(0,INDEX(Rating,$F40)-INDEX(Rating,AV$2),10,1),"") -> 0.6638523695 | AW40: =IF($F40<>AW$2,1-_xlfn.NORM.DIST(0,INDEX(Rating,$F40)-INDEX(Rating,AW$2),10,1),"") -> 0.5358563926 | AX40: =IF($F40<>AX$2,1-_xlfn.NORM.DIST(0,INDEX(Rating,$F40)-INDEX(Rating,AX$2),10,1),"") -> 0.6201976771 | AY40: =IF($F40<>AY$2,1-_xlfn.NORM.DIST(0,INDEX(Rating,$F40)-INDEX(Rating,AY$2),10,1),"") -> 0.647284703 | AZ40: =IF($F40<>AZ$2,1-_xlfn.NORM.DIST(0,INDEX(Rating,$F40)-INDEX(Rating,AZ$2),10,1),"") -> 0.4530338289 | BA40: =IF($F40<>BA$2,1-_xlfn.NORM.DIST(0,INDEX(Rating,$F40)-INDEX(Rating,BA$2),10,1),"") -> 0.8891461865 | BB40: =IF($F40<>BB$2,1-_xlfn.NORM.DIST(0,INDEX(Rating,$F40)-INDEX(Rating,BB$2),10,1),"") -> 0.4697095491 | BC40: =IF($F40<>BC$2,1-_xlfn.NORM.DIST(0,INDEX(Rating,$F40)-INDEX(Rating,BC$2),10,1),"") -> 0.5572497652 | BD40: =IF($F40<>BD$2,1-_xlfn.NORM.DIST(0,INDEX(Rating,$F40)-INDEX(Rating,BD$2),10,1),"") -> 0.3036259953 | BE40: =IF($F40<>BE$2,1-_xlfn.NORM.DIST(0,INDEX(Rating,$F40)-INDEX(Rating,BE$2),10,1),"") -> 0.8209522139 | BF40: =IF($F40<>BF$2,1-_xlfn.NORM.DIST(0,INDEX(Rating,$F40)-INDEX(Rating,BF$2),10,1),"") -> 0.3216821836 | BG40: =IF($F40<>BG$2,1-_xlfn.NORM.DIST(0,INDEX(Rating,$F40)-INDEX(Rating,BG$2),10,1),"") -> 0.9486602569 | BH40: =IF($F40<>BH$2,1-_xlfn.NORM.DIST(0,INDEX(Rating,$F40)-INDEX(Rating,BH$2),10,1),"") -> 0.4824522019 | BI40: =IF($F40<>BI$2,1-_xlfn.NORM.DIST(0,INDEX(Rating,$F40)-INDEX(Rating,BI$2),10,1),"") -> 0.500797884 | BJ40: =IF($F40<>BJ$2,1-_xlfn.NORM.DIST(0,INDEX(Rating,$F40)-INDEX(Rating,BJ$2),10,1),"") -> 0.4558081734 | BK40: =IF($F40<>BK$2,1-_xlfn.NORM.DIST(0,INDEX(Rating,$F40)-INDEX(Rating,BK$2),10,1),"") -> 0.5741696835 | BL40: =IF($F40<>BL$2,1-_xlfn.NORM.DIST(0,INDEX(Rating,$F40)-INDEX(Rating,BL$2),10,1),"") -> 0.3173934866 | BM40: =IF($F40<>BM$2,1-_xlfn.NORM.DIST(0,INDEX(Rating,$F40)-INDEX(Rating,BM$2),10,1),"") -> 0.713282558 | BN40: =IF($F40<>BN$2,1-_xlfn.NORM.DIST(0,INDEX(Rating,$F40)-INDEX(Rating,BN$2),10,1),"") -> 0.4748832522 | BO40: =IF($F40<>BO$2,1-_xlfn.NORM.DIST(0,INDEX(Rating,$F40)-INDEX(Rating,BO$2),10,1),"") -> 0.6674926151 | BP40: =IF($F40<>BP$2,1-_xlfn.NORM.DIST(0,INDEX(Rating,$F40)-INDEX(Rating,BP$2),10,1),"") -> 0.7294002098 | BQ40: =IF($F40<>BQ$2,1-_xlfn.NORM.DIST(0,INDEX(Rating,$F40)-INDEX(Rating,BQ$2),10,1),"") -> 0.30327651 | BR40: =IF($F40<>BR$2,1-_xlfn.NORM.DIST(0,INDEX(Rating,$F40)-INDEX(Rating,BR$2),10,1),"") -> 0.8243317373 | BS40: =IF($F40<>BS$2,1-_xlfn.NORM.DIST(0,INDEX(Rating,$F40)-INDEX(Rating,BS$2),10,1),"") -> 0.5552749255 | BT40: =IF($F40<>BT$2,1-_xlfn.NORM.DIST(0,INDEX(Rating,$F40)-INDEX(Rating,BT$2),10,1),"") -> 0.6342007699 | BU40: =IF($F40<>BU$2,1-_xlfn.NORM.DIST(0,INDEX(Rating,$F40)-INDEX(Rating,BU$2),10,1),"") -> 0.2779306368 | BV40: =IF($F40<>BV$2,1-_xlfn.NORM.DIST(0,INDEX(Rating,$F40)-INDEX(Rating,BV$2),10,1),"") -> 0.8939844714
B41: Miami (FL) | C41: 39 | D41: 84.18 | F41: 39 | G41: =IF($F41<>G$2,1-_xlfn.NORM.DIST(0,INDEX(Rating,$F41)-INDEX(Rating,G$2),10,1),"") -> 0.1907869529 | H41: =IF($F41<>H$2,1-_xlfn.NORM.DIST(0,INDEX(Rating,$F41)-INDEX(Rating,H$2),10,1),"") -> 0.9183411977 | I41: =IF($F41<>I$2,1-_xlfn.NORM.DIST(0,INDEX(Rating,$F41)-INDEX(Rating,I$2),10,1),"") -> 0.9594204551 | J41: =IF($F41<>J$2,1-_xlfn.NORM.DIST(0,INDEX(Rating,$F41)-INDEX(Rating,J$2),10,1),"") -> 0.4486788244 | K41: =IF($F41<>K$2,1-_xlfn.NORM.DIST(0,INDEX(Rating,$F41)-INDEX(Rating,K$2),10,1),"") -> 0.4332916395 | L41: =IF($F41<>L$2,1-_xlfn.NORM.DIST(0,INDEX(Rating,$F41)-INDEX(Rating,L$2),10,1),"") -> 0.4597752301 | M41: =IF($F41<>M$2,1-_xlfn.NORM.DIST(0,INDEX(Rating,$F41)-INDEX(Rating,M$2),10,1),"") -> 0.6364553452 | N41: =IF($F41<>N$2,1-_xlfn.NORM.DIST(0,INDEX(Rating,$F41)-INDEX(Rating,N$2),10,1),"") -> 0.4641436074 | O41: =IF($F41<>O$2,1-_xlfn.NORM.DIST(0,INDEX(Rating,$F41)-INDEX(Rating,O$2),10,1),"") -> 0.6808224912 | P41: =IF($F41<>P$2,1-_xlfn.NORM.DIST(0,INDEX(Rating,$F41)-INDEX(Rating,P$2),10,1),"") -> 0.3650471854 | Q41: =IF($F41<>Q$2,1-_xlfn.NORM.DIST(0,INDEX(Rating,$F41)-INDEX(Rating,Q$2),10,1),"") -> 0.5370482194 | R41: =IF($F41<>R$2,1-_xlfn.NORM.DIST(0,INDEX(Rating,$F41)-INDEX(Rating,R$2),10,1),"") -> 0.3752424685 | S41: =IF($F41<>S$2,1-_xlfn.NORM.DIST(0,INDEX(Rating,$F41)-INDEX(Rating,S$2),10,1),"") -> 0.7814206148 | T41: =IF($F41<>T$2,1-_xlfn.NORM.DIST(0,INDEX(Rating,$F41)-INDEX(Rating,T$2),10,1),"") -> 0.5714237159 | U41: =IF($F41<>U$2,1-_xlfn.NORM.DIST(0,INDEX(Rating,$F41)-INDEX(Rating,U$2),10,1),"") -> 0.5023936393 | V41: =IF($F41<>V$2,1-_xlfn.NORM.DIST(0,INDEX(Rating,$F41)-INDEX(Rating,V$2),10,1),"") -> 0.285017484 | W41: =IF($F41<>W$2,1-_xlfn.NORM.DIST(0,INDEX(Rating,$F41)-INDEX(Rating,W$2),10,1),"") -> 0.7843590669 | X41: =IF($F41<>X$2,1-_xlfn.NORM.DIST(0,INDEX(Rating,$F41)-INDEX(Rating,X$2),10,1),"") -> 0.3092420211 | Y41: =IF($F41<>Y$2,1-_xlfn.NORM.DIST(0,INDEX(Rating,$F41)-INDEX(Rating,Y$2),10,1),"") -> 0.9706878279 | Z41: =IF($F41<>Z$2,1-_xlfn.NORM.DIST(0,INDEX(Rating,$F41)-INDEX(Rating,Z$2),10,1),"") -> 0.978923172 | AA41: =IF($F41<>AA$2,1-_xlfn.NORM.DIST(0,INDEX(Rating,$F41)-INDEX(Rating,AA$2),10,1),"") -> 0.4071043666 | AB41: =IF($F41<>AB$2,1-_xlfn.NORM.DIST(0,INDEX(Rating,$F41)-INDEX(Rating,AB$2),10,1),"") -> 0.5207356533 | AC41: =IF($F41<>AC$2,1-_xlfn.NORM.DIST(0,INDEX(Rating,$F41)-INDEX(Rating,AC$2),10,1),"") -> 0.3760012541 | AD41: =IF($F41<>AD$2,1-_xlfn.NORM.DIST(0,INDEX(Rating,$F41)-INDEX(Rating,AD$2),10,1),"") -> 0.6439361376 | AE41: =IF($F41<>AE$2,1-_xlfn.NORM.DIST(0,INDEX(Rating,$F41)-INDEX(Rating,AE$2),10,1),"") -> 0.3050257309 | AF41: =IF($F41<>AF$2,1-_xlfn.NORM.DIST(0,INDEX(Rating,$F41)-INDEX(Rating,AF$2),10,1),"") -> 0.7504796775 | AG41: =IF($F41<>AG$2,1-_xlfn.NORM.DIST(0,INDEX(Rating,$F41)-INDEX(Rating,AG$2),10,1),"") -> 0.4297541948 | AH41: =IF($F41<>AH$2,1-_xlfn.NORM.DIST(0,INDEX(Rating,$F41)-INDEX(Rating,AH$2),10,1),"") -> 0.5023936393 | AI41: =IF($F41<>AI$2,1-_xlfn.NORM.DIST(0,INDEX(Rating,$F41)-INDEX(Rating,AI$2),10,1),"") -> 0.4538262709 | AJ41: =IF($F41<>AJ$2,1-_xlfn.NORM.DIST(0,INDEX(Rating,$F41)-INDEX(Rating,AJ$2),10,1),"") -> 0.8279257069 | AK41: =IF($F41<>AK$2,1-_xlfn.NORM.DIST(0,INDEX(Rating,$F41)-INDEX(Rating,AK$2),10,1),"") -> 0.4701073559 | AL41: =IF($F41<>AL$2,1-_xlfn.NORM.DIST(0,INDEX(Rating,$F41)-INDEX(Rating,AL$2),10,1),"") -> 0.5023936393 | AM41: =IF($F41<>AM$2,1-_xlfn.NORM.DIST(0,INDEX(Rating,$F41)-INDEX(Rating,AM$2),10,1),"") -> 0.3695671416 | AN41: =IF($F41<>AN$2,1-_xlfn.NORM.DIST(0,INDEX(Rating,$F41)-INDEX(Rating,AN$2),10,1),"") -> 0.7715617624 | AO41: =IF($F41<>AO$2,1-_xlfn.NORM.DIST(0,INDEX(Rating,$F41)-INDEX(Rating,AO$2),10,1),"") -> 0.2215407578 | AP41: =IF($F41<>AP$2,1-_xlfn.NORM.DIST(0,INDEX(Rating,$F41)-INDEX(Rating,AP$2),10,1),"") -> 0.8761594215 | AQ41: =IF($F41<>AQ$2,1-_xlfn.NORM.DIST(0,INDEX(Rating,$F41)-INDEX(Rating,AQ$2),10,1),"") -> 0.4732908516 | AR41: =IF($F41<>AR$2,1-_xlfn.NORM.DIST(0,INDEX(Rating,$F41)-INDEX(Rating,AR$2),10,1),"") -> 0.4546188967 | AS41: =IF($F41<>AS$2,1-_xlfn.NORM.DIST(0,INDEX(Rating,$F41)-INDEX(Rating,AS$2),10,1),"") ->  | AT41: =IF($F41<>AT$2,1-_xlfn.NORM.DIST(0,INDEX(Rating,$F41)-INDEX(Rating,AT$2),10,1),"") -> 0.5901768797 | AU41: =IF($F41<>AU$2,1-_xlfn.NORM.DIST(0,INDEX(Rating,$F41)-INDEX(Rating,AU$2),10,1),"") -> 0.4195675161 | AV41: =IF($F41<>AV$2,1-_xlfn.NORM.DIST(0,INDEX(Rating,$F41)-INDEX(Rating,AV$2),10,1),"") -> 0.6213392366 | AW41: =IF($F41<>AW$2,1-_xlfn.NORM.DIST(0,INDEX(Rating,$F41)-INDEX(Rating,AW$2),10,1),"") -> 0.4904263044 | AX41: =IF($F41<>AX$2,1-_xlfn.NORM.DIST(0,INDEX(Rating,$F41)-INDEX(Rating,AX$2),10,1),"") -> 0.5761288973 | AY41: =IF($F41<>AY$2,1-_xlfn.NORM.DIST(0,INDEX(Rating,$F41)-INDEX(Rating,AY$2),10,1),"") -> 0.6041100406 | AZ41: =IF($F41<>AZ$2,1-_xlfn.NORM.DIST(0,INDEX(Rating,$F41)-INDEX(Rating,AZ$2),10,1),"") -> 0.4082690069 | BA41: =IF($F41<>BA$2,1-_xlfn.NORM.DIST(0,INDEX(Rating,$F41)-INDEX(Rating,BA$2),10,1),"") -> 0.8660690921 | BB41: =IF($F41<>BB$2,1-_xlfn.NORM.DIST(0,INDEX(Rating,$F41)-INDEX(Rating,BB$2),10,1),"") -> 0.4246545653 | BC41: =IF($F41<>BC$2,1-_xlfn.NORM.DIST(0,INDEX(Rating,$F41)-INDEX(Rating,BC$2),10,1),"") -> 0.5119664734 | BD41: =IF($F41<>BD$2,1-_xlfn.NORM.DIST(0,INDEX(Rating,$F41)-INDEX(Rating,BD$2),10,1),"") -> 0.26500197 | BE41: =IF($F41<>BE$2,1-_xlfn.NORM.DIST(0,INDEX(Rating,$F41)-INDEX(Rating,BE$2),10,1),"") -> 0.7895901601 | BF41: =IF($F41<>BF$2,1-_xlfn.NORM.DIST(0,INDEX(Rating,$F41)-INDEX(Rating,BF$2),10,1),"") -> 0.2819697278 | BG41: =IF($F41<>BG$2,1-_xlfn.NORM.DIST(0,INDEX(Rating,$F41)-INDEX(Rating,BG$2),10,1),"") -> 0.9354928007 | BH41: =IF($F41<>BH$2,1-_xlfn.NORM.DIST(0,INDEX(Rating,$F41)-INDEX(Rating,BH$2),10,1),"") -> 0.4372283994 | BI41: =IF($F41<>BI$2,1-_xlfn.NORM.DIST(0,INDEX(Rating,$F41)-INDEX(Rating,BI$2),10,1),"") -> 0.4554117033 | BJ41: =IF($F41<>BJ$2,1-_xlfn.NORM.DIST(0,INDEX(Rating,$F41)-INDEX(Rating,BJ$2),10,1),"") -> 0.4109896371 | BK41: =IF($F41<>BK$2,1-_xlfn.NORM.DIST(0,INDEX(Rating,$F41)-INDEX(Rating,BK$2),10,1),"") -> 0.5290969412 | BL41: =IF($F41<>BL$2,1-_xlfn.NORM.DIST(0,INDEX(Rating,$F41)-INDEX(Rating,BL$2),10,1),"") -> 0.2779306368 | BM41: =IF($F41<>BM$2,1-_xlfn.NORM.DIST(0,INDEX(Rating,$F41)-INDEX(Rating,BM$2),10,1),"") -> 0.6732841717 | BN41: =IF($F41<>BN$2,1-_xlfn.NORM.DIST(0,INDEX(Rating,$F41)-INDEX(Rating,BN$2),10,1),"") -> 0.4297541948 | BO41: =IF($F41<>BO$2,1-_xlfn.NORM.DIST(0,INDEX(Rating,$F41)-INDEX(Rating,BO$2),10,1),"") -> 0.6251367436 | BP41: =IF($F41<>BP$2,1-_xlfn.NORM.DIST(0,INDEX(Rating,$F41)-INDEX(Rating,BP$2),10,1),"") -> 0.6904054743 | BQ41: =IF($F41<>BQ$2,1-_xlfn.NORM.DIST(0,INDEX(Rating,$F41)-INDEX(Rating,BQ$2),10,1),"") -> 0.2646745281 | BR41: =IF($F41<>BR$2,1-_xlfn.NORM.DIST(0,INDEX(Rating,$F41)-INDEX(Rating,BR$2),10,1),"") -> 0.7933214064 | BS41: =IF($F41<>BS$2,1-_xlfn.NORM.DIST(0,INDEX(Rating,$F41)-INDEX(Rating,BS$2),10,1),"") -> 0.5099725182 | BT41: =IF($F41<>BT$2,1-_xlfn.NORM.DIST(0,INDEX(Rating,$F41)-INDEX(Rating,BT$2),10,1),"") -> 0.5905655419 | BU41: =IF($F41<>BU$2,1-_xlfn.NORM.DIST(0,INDEX(Rating,$F41)-INDEX(Rating,BU$2),10,1),"") -> 0.2410278747 | BV41: =IF($F41<>BV$2,1-_xlfn.NORM.DIST(0,INDEX(Rating,$F41)-INDEX(Rating,BV$2),10,1),"") -> 0.871602726
B42: Drake | C42: 40 | D42: 81.9 | F42: 40 | G42: =IF($F42<>G$2,1-_xlfn.NORM.DIST(0,INDEX(Rating,$F42)-INDEX(Rating,G$2),10,1),"") -> 0.1350135826 | H42: =IF($F42<>H$2,1-_xlfn.NORM.DIST(0,INDEX(Rating,$F42)-INDEX(Rating,H$2),10,1),"") -> 0.8781927773 | I42: =IF($F42<>I$2,1-_xlfn.NORM.DIST(0,INDEX(Rating,$F42)-INDEX(Rating,I$2),10,1),"") -> 0.9352403238 | J42: =IF($F42<>J$2,1-_xlfn.NORM.DIST(0,INDEX(Rating,$F42)-INDEX(Rating,J$2),10,1),"") -> 0.3605459029 | K42: =IF($F42<>K$2,1-_xlfn.NORM.DIST(0,INDEX(Rating,$F42)-INDEX(Rating,K$2),10,1),"") -> 0.3460525141 | L42: =IF($F42<>L$2,1-_xlfn.NORM.DIST(0,INDEX(Rating,$F42)-INDEX(Rating,L$2),10,1),"") -> 0.371077844 | M42: =IF($F42<>M$2,1-_xlfn.NORM.DIST(0,INDEX(Rating,$F42)-INDEX(Rating,M$2),10,1),"") -> 0.5481544824 | N42: =IF($F42<>N$2,1-_xlfn.NORM.DIST(0,INDEX(Rating,$F42)-INDEX(Rating,N$2),10,1),"") -> 0.3752424685 | O42: =IF($F42<>O$2,1-_xlfn.NORM.DIST(0,INDEX(Rating,$F42)-INDEX(Rating,O$2),10,1),"") -> 0.5956099184 | P42: =IF($F42<>P$2,1-_xlfn.NORM.DIST(0,INDEX(Rating,$F42)-INDEX(Rating,P$2),10,1),"") -> 0.283322347 | Q42: =IF($F42<>Q$2,1-_xlfn.NORM.DIST(0,INDEX(Rating,$F42)-INDEX(Rating,Q$2),10,1),"") -> 0.4463059372 | R42: =IF($F42<>R$2,1-_xlfn.NORM.DIST(0,INDEX(Rating,$F42)-INDEX(Rating,R$2),10,1),"") -> 0.2925329686 | S42: =IF($F42<>S$2,1-_xlfn.NORM.DIST(0,INDEX(Rating,$F42)-INDEX(Rating,S$2),10,1),"") -> 0.7084972751 | T42: =IF($F42<>T$2,1-_xlfn.NORM.DIST(0,INDEX(Rating,$F42)-INDEX(Rating,T$2),10,1),"") -> 0.4808581213 | U42: =IF($F42<>U$2,1-_xlfn.NORM.DIST(0,INDEX(Rating,$F42)-INDEX(Rating,U$2),10,1),"") -> 0.4121569417 | V42: =IF($F42<>V$2,1-_xlfn.NORM.DIST(0,INDEX(Rating,$F42)-INDEX(Rating,V$2),10,1),"") -> 0.2130160177 | W42: =IF($F42<>W$2,1-_xlfn.NORM.DIST(0,INDEX(Rating,$F42)-INDEX(Rating,W$2),10,1),"") -> 0.7119191399 | X42: =IF($F42<>X$2,1-_xlfn.NORM.DIST(0,INDEX(Rating,$F42)-INDEX(Rating,X$2),10,1),"") -> 0.2339193853 | Y42: =IF($F42<>Y$2,1-_xlfn.NORM.DIST(0,INDEX(Rating,$F42)-INDEX(Rating,Y$2),10,1),"") -> 0.9518437823 | Z42: =IF($F42<>Z$2,1-_xlfn.NORM.DIST(0,INDEX(Rating,$F42)-INDEX(Rating,Z$2),10,1),"") -> 0.9643843465 | AA42: =IF($F42<>AA$2,1-_xlfn.NORM.DIST(0,INDEX(Rating,$F42)-INDEX(Rating,AA$2),10,1),"") -> 0.3216821836 | AB42: =IF($F42<>AB$2,1-_xlfn.NORM.DIST(0,INDEX(Rating,$F42)-INDEX(Rating,AB$2),10,1),"") -> 0.4301469712 | AC42: =IF($F42<>AC$2,1-_xlfn.NORM.DIST(0,INDEX(Rating,$F42)-INDEX(Rating,AC$2),10,1),"") -> 0.2932207364 | AD42: =IF($F42<>AD$2,1-_xlfn.NORM.DIST(0,INDEX(Rating,$F42)-INDEX(Rating,AD$2),10,1),"") -> 0.5560650288 | AE42: =IF($F42<>AE$2,1-_xlfn.NORM.DIST(0,INDEX(Rating,$F42)-INDEX(Rating,AE$2),10,1),"") -> 0.2302572246 | AF42: =IF($F42<>AF$2,1-_xlfn.NORM.DIST(0,INDEX(Rating,$F42)-INDEX(Rating,AF$2),10,1),"") -> 0.6729234017 | AG42: =IF($F42<>AG$2,1-_xlfn.NORM.DIST(0,INDEX(Rating,$F42)-INDEX(Rating,AG$2),10,1),"") -> 0.3427387555 | AH42: =IF($F42<>AH$2,1-_xlfn.NORM.DIST(0,INDEX(Rating,$F42)-INDEX(Rating,AH$2),10,1),"") -> 0.4121569417 | AI42: =IF($F42<>AI$2,1-_xlfn.NORM.DIST(0,INDEX(Rating,$F42)-INDEX(Rating,AI$2),10,1),"") -> 0.365423143 | AJ42: =IF($F42<>AJ$2,1-_xlfn.NORM.DIST(0,INDEX(Rating,$F42)-INDEX(Rating,AJ$2),10,1),"") -> 0.7636213566 | AK42: =IF($F42<>AK$2,1-_xlfn.NORM.DIST(0,INDEX(Rating,$F42)-INDEX(Rating,AK$2),10,1),"") -> 0.3809449308 | AL42: =IF($F42<>AL$2,1-_xlfn.NORM.DIST(0,INDEX(Rating,$F42)-INDEX(Rating,AL$2),10,1),"") -> 0.4121569417 | AM42: =IF($F42<>AM$2,1-_xlfn.NORM.DIST(0,INDEX(Rating,$F42)-INDEX(Rating,AM$2),10,1),"") -> 0.2873987686 | AN42: =IF($F42<>AN$2,1-_xlfn.NORM.DIST(0,INDEX(Rating,$F42)-INDEX(Rating,AN$2),10,1),"") -> 0.6970727954 | AO42: =IF($F42<>AO$2,1-_xlfn.NORM.DIST(0,INDEX(Rating,$F42)-INDEX(Rating,AO$2),10,1),"") -> 0.1598681322 | AP42: =IF($F42<>AP$2,1-_xlfn.NORM.DIST(0,INDEX(Rating,$F42)-INDEX(Rating,AP$2),10,1),"") -> 0.8232962152 | AQ42: =IF($F42<>AQ$2,1-_xlfn.NORM.DIST(0,INDEX(Rating,$F42)-INDEX(Rating,AQ$2),10,1),"") -> 0.3839969399 | AR42: =IF($F42<>AR$2,1-_xlfn.NORM.DIST(0,INDEX(Rating,$F42)-INDEX(Rating,AR$2),10,1),"") -> 0.3661754461 | AS42: =IF($F42<>AS$2,1-_xlfn.NORM.DIST(0,INDEX(Rating,$F42)-INDEX(Rating,AS$2),10,1),"") -> 0.4098231203 | AT42: =IF($F42<>AT$2,1-_xlfn.NORM.DIST(0,INDEX(Rating,$F42)-INDEX(Rating,AT$2),10,1),"") ->  | AU42: =IF($F42<>AU$2,1-_xlfn.NORM.DIST(0,INDEX(Rating,$F42)-INDEX(Rating,AU$2),10,1),"") -> 0.3332341852 | AV42: =IF($F42<>AV$2,1-_xlfn.NORM.DIST(0,INDEX(Rating,$F42)-INDEX(Rating,AV$2),10,1),"") -> 0.5322790237 | AW42: =IF($F42<>AW$2,1-_xlfn.NORM.DIST(0,INDEX(Rating,$F42)-INDEX(Rating,AW$2),10,1),"") -> 0.4005205319 | AX42: =IF($F42<>AX$2,1-_xlfn.NORM.DIST(0,INDEX(Rating,$F42)-INDEX(Rating,AX$2),10,1),"") -> 0.4856411795 | AY42: =IF($F42<>AY$2,1-_xlfn.NORM.DIST(0,INDEX(Rating,$F42)-INDEX(Rating,AY$2),10,1),"") -> 0.5143588205 | AZ42: =IF($F42<>AZ$2,1-_xlfn.NORM.DIST(0,INDEX(Rating,$F42)-INDEX(Rating,AZ$2),10,1),"") -> 0.3227581103 | BA42: =IF($F42<>BA$2,1-_xlfn.NORM.DIST(0,INDEX(Rating,$F42)-INDEX(Rating,BA$2),10,1),"") -> 0.8105703452 | BB42: =IF($F42<>BB$2,1-_xlfn.NORM.DIST(0,INDEX(Rating,$F42)-INDEX(Rating,BB$2),10,1),"") -> 0.3379735586 | BC42: =IF($F42<>BC$2,1-_xlfn.NORM.DIST(0,INDEX(Rating,$F42)-INDEX(Rating,BC$2),10,1),"") -> 0.4215225319 | BD42: =IF($F42<>BD$2,1-_xlfn.NORM.DIST(0,INDEX(Rating,$F42)-INDEX(Rating,BD$2),10,1),"") -> 0.1959988897 | BE42: =IF($F42<>BE$2,1-_xlfn.NORM.DIST(0,INDEX(Rating,$F42)-INDEX(Rating,BE$2),10,1),"") -> 0.7180302722 | BF42: =IF($F42<>BF$2,1-_xlfn.NORM.DIST(0,INDEX(Rating,$F42)-INDEX(Rating,BF$2),10,1),"") -> 0.2104098399 | BG42: =IF($F42<>BG$2,1-_xlfn.NORM.DIST(0,INDEX(Rating,$F42)-INDEX(Rating,BG$2),10,1),"") -> 0.901474671 | BH42: =IF($F42<>BH$2,1-_xlfn.NORM.DIST(0,INDEX(Rating,$F42)-INDEX(Rating,BH$2),10,1),"") -> 0.3497483344 | BI42: =IF($F42<>BI$2,1-_xlfn.NORM.DIST(0,INDEX(Rating,$F42)-INDEX(Rating,BI$2),10,1),"") -> 0.366928264 | BJ42: =IF($F42<>BJ$2,1-_xlfn.NORM.DIST(0,INDEX(Rating,$F42)-INDEX(Rating,BJ$2),10,1),"") -> 0.3252743708 | BK42: =IF($F42<>BK$2,1-_xlfn.NORM.DIST(0,INDEX(Rating,$F42)-INDEX(Rating,BK$2),10,1),"") -> 0.4384106587 | BL42: =IF($F42<>BL$2,1-_xlfn.NORM.DIST(0,INDEX(Rating,$F42)-INDEX(Rating,BL$2),10,1),"") -> 0.206964214 | BM42: =IF($F42<>BM$2,1-_xlfn.NORM.DIST(0,INDEX(Rating,$F42)-INDEX(Rating,BM$2),10,1),"") -> 0.5874537835 | BN42: =IF($F42<>BN$2,1-_xlfn.NORM.DIST(0,INDEX(Rating,$F42)-INDEX(Rating,BN$2),10,1),"") -> 0.3427387555 | BO42: =IF($F42<>BO$2,1-_xlfn.NORM.DIST(0,INDEX(Rating,$F42)-INDEX(Rating,BO$2),10,1),"") -> 0.5362537045 | BP42: =IF($F42<>BP$2,1-_xlfn.NORM.DIST(0,INDEX(Rating,$F42)-INDEX(Rating,BP$2),10,1),"") -> 0.6060351587 | BQ42: =IF($F42<>BQ$2,1-_xlfn.NORM.DIST(0,INDEX(Rating,$F42)-INDEX(Rating,BQ$2),10,1),"") -> 0.1957224423 | BR42: =IF($F42<>BR$2,1-_xlfn.NORM.DIST(0,INDEX(Rating,$F42)-INDEX(Rating,BR$2),10,1),"") -> 0.7224046752 | BS42: =IF($F42<>BS$2,1-_xlfn.NORM.DIST(0,INDEX(Rating,$F42)-INDEX(Rating,BS$2),10,1),"") -> 0.4195675161 | BT42: =IF($F42<>BT$2,1-_xlfn.NORM.DIST(0,INDEX(Rating,$F42)-INDEX(Rating,BT$2),10,1),"") -> 0.5003989422 | BU42: =IF($F42<>BU$2,1-_xlfn.NORM.DIST(0,INDEX(Rating,$F42)-INDEX(Rating,BU$2),10,1),"") -> 0.1759267821 | BV42: =IF($F42<>BV$2,1-_xlfn.NORM.DIST(0,INDEX(Rating,$F42)-INDEX(Rating,BV$2),10,1),"") -> 0.8175320738
B43: Indiana | C43: 41 | D43: 86.21 | F43: 41 | G43: =IF($F43<>G$2,1-_xlfn.NORM.DIST(0,INDEX(Rating,$F43)-INDEX(Rating,G$2),10,1),"") -> 0.2507918482 | H43: =IF($F43<>H$2,1-_xlfn.NORM.DIST(0,INDEX(Rating,$F43)-INDEX(Rating,H$2),10,1),"") -> 0.9448671464 | I43: =IF($F43<>I$2,1-_xlfn.NORM.DIST(0,INDEX(Rating,$F43)-INDEX(Rating,I$2),10,1),"") -> 0.9742326327 | J43: =IF($F43<>J$2,1-_xlfn.NORM.DIST(0,INDEX(Rating,$F43)-INDEX(Rating,J$2),10,1),"") -> 0.5294948074 | K43: =IF($F43<>K$2,1-_xlfn.NORM.DIST(0,INDEX(Rating,$F43)-INDEX(Rating,K$2),10,1),"") -> 0.5139601296 | L43: =IF($F43<>L$2,1-_xlfn.NORM.DIST(0,INDEX(Rating,$F43)-INDEX(Rating,L$2),10,1),"") -> 0.5406216625 | M43: =IF($F43<>M$2,1-_xlfn.NORM.DIST(0,INDEX(Rating,$F43)-INDEX(Rating,M$2),10,1),"") -> 0.7095258234 | N43: =IF($F43<>N$2,1-_xlfn.NORM.DIST(0,INDEX(Rating,$F43)-INDEX(Rating,N$2),10,1),"") -> 0.5449847224 | O43: =IF($F43<>O$2,1-_xlfn.NORM.DIST(0,INDEX(Rating,$F43)-INDEX(Rating,O$2),10,1),"") -> 0.7495263545 | P43: =IF($F43<>P$2,1-_xlfn.NORM.DIST(0,INDEX(Rating,$F43)-INDEX(Rating,P$2),10,1),"") -> 0.4435400028 | Q43: =IF($F43<>Q$2,1-_xlfn.NORM.DIST(0,INDEX(Rating,$F43)-INDEX(Rating,Q$2),10,1),"") -> 0.6163849593 | R43: =IF($F43<>R$2,1-_xlfn.NORM.DIST(0,INDEX(Rating,$F43)-INDEX(Rating,R$2),10,1),"") -> 0.454222561 | S43: =IF($F43<>S$2,1-_xlfn.NORM.DIST(0,INDEX(Rating,$F43)-INDEX(Rating,S$2),10,1),"") -> 0.8364569407 | T43: =IF($F43<>T$2,1-_xlfn.NORM.DIST(0,INDEX(Rating,$F43)-INDEX(Rating,T$2),10,1),"") -> 0.649140118 | U43: =IF($F43<>U$2,1-_xlfn.NORM.DIST(0,INDEX(Rating,$F43)-INDEX(Rating,U$2),10,1),"") -> 0.5827758807 | V43: =IF($F43<>V$2,1-_xlfn.NORM.DIST(0,INDEX(Rating,$F43)-INDEX(Rating,V$2),10,1),"") -> 0.3575557031 | W43: =IF($F43<>W$2,1-_xlfn.NORM.DIST(0,INDEX(Rating,$F43)-INDEX(Rating,W$2),10,1),"") -> 0.8389129405 | X43: =IF($F43<>X$2,1-_xlfn.NORM.DIST(0,INDEX(Rating,$F43)-INDEX(Rating,X$2),10,1),"") -> 0.3839969399 | Y43: =IF($F43<>Y$2,1-_xlfn.NORM.DIST(0,INDEX(Rating,$F43)-INDEX(Rating,Y$2),10,1),"") -> 0.9818700099 | Z43: =IF($F43<>Z$2,1-_xlfn.NORM.DIST(0,INDEX(Rating,$F43)-INDEX(Rating,Z$2),10,1),"") -> 0.9872913256 | AA43: =IF($F43<>AA$2,1-_xlfn.NORM.DIST(0,INDEX(Rating,$F43)-INDEX(Rating,AA$2),10,1),"") -> 0.4872360254 | AB43: =IF($F43<>AB$2,1-_xlfn.NORM.DIST(0,INDEX(Rating,$F43)-INDEX(Rating,AB$2),10,1),"") -> 0.6006384504 | AC43: =IF($F43<>AC$2,1-_xlfn.NORM.DIST(0,INDEX(Rating,$F43)-INDEX(Rating,AC$2),10,1),"") -> 0.4550152776 | AD43: =IF($F43<>AD$2,1-_xlfn.NORM.DIST(0,INDEX(Rating,$F43)-INDEX(Rating,AD$2),10,1),"") -> 0.7163390127 | AE43: =IF($F43<>AE$2,1-_xlfn.NORM.DIST(0,INDEX(Rating,$F43)-INDEX(Rating,AE$2),10,1),"") -> 0.3794216861 | AF43: =IF($F43<>AF$2,1-_xlfn.NORM.DIST(0,INDEX(Rating,$F43)-INDEX(Rating,AF$2),10,1),"") -> 0.8102993621 | AG43: =IF($F43<>AG$2,1-_xlfn.NORM.DIST(0,INDEX(Rating,$F43)-INDEX(Rating,AG$2),10,1),"") -> 0.5103713308 | AH43: =IF($F43<>AH$2,1-_xlfn.NORM.DIST(0,INDEX(Rating,$F43)-INDEX(Rating,AH$2),10,1),"") -> 0.5827758807 | AI43: =IF($F43<>AI$2,1-_xlfn.NORM.DIST(0,INDEX(Rating,$F43)-INDEX(Rating,AI$2),10,1),"") -> 0.5346642439 | AJ43: =IF($F43<>AJ$2,1-_xlfn.NORM.DIST(0,INDEX(Rating,$F43)-INDEX(Rating,AJ$2),10,1),"") -> 0.8747220097 | AK43: =IF($F43<>AK$2,1-_xlfn.NORM.DIST(0,INDEX(Rating,$F43)-INDEX(Rating,AK$2),10,1),"") -> 0.5509255135 | AL43: =IF($F43<>AL$2,1-_xlfn.NORM.DIST(0,INDEX(Rating,$F43)-INDEX(Rating,AL$2),10,1),"") -> 0.5827758807 | AM43: =IF($F43<>AM$2,1-_xlfn.NORM.DIST(0,INDEX(Rating,$F43)-INDEX(Rating,AM$2),10,1),"") -> 0.4482832133 | AN43: =IF($F43<>AN$2,1-_xlfn.NORM.DIST(0,INDEX(Rating,$F43)-INDEX(Rating,AN$2),10,1),"") -> 0.8281806105 | AO43: =IF($F43<>AO$2,1-_xlfn.NORM.DIST(0,INDEX(Rating,$F43)-INDEX(Rating,AO$2),10,1),"") -> 0.2863770661 | AP43: =IF($F43<>AP$2,1-_xlfn.NORM.DIST(0,INDEX(Rating,$F43)-INDEX(Rating,AP$2),10,1),"") -> 0.9129267056 | AQ43: =IF($F43<>AQ$2,1-_xlfn.NORM.DIST(0,INDEX(Rating,$F43)-INDEX(Rating,AQ$2),10,1),"") -> 0.5540893595 | AR43: =IF($F43<>AR$2,1-_xlfn.NORM.DIST(0,INDEX(Rating,$F43)-INDEX(Rating,AR$2),10,1),"") -> 0.5354590449 | AS43: =IF($F43<>AS$2,1-_xlfn.NORM.DIST(0,INDEX(Rating,$F43)-INDEX(Rating,AS$2),10,1),"") -> 0.5804324839 | AT43: =IF($F43<>AT$2,1-_xlfn.NORM.DIST(0,INDEX(Rating,$F43)-INDEX(Rating,AT$2),10,1),"") -> 0.6667658148 | AU43: =IF($F43<>AU$2,1-_xlfn.NORM.DIST(0,INDEX(Rating,$F43)-INDEX(Rating,AU$2),10,1),"") ->  | AV43: =IF($F43<>AV$2,1-_xlfn.NORM.DIST(0,INDEX(Rating,$F43)-INDEX(Rating,AV$2),10,1),"") -> 0.6956744952 | AW43: =IF($F43<>AW$2,1-_xlfn.NORM.DIST(0,INDEX(Rating,$F43)-INDEX(Rating,AW$2),10,1),"") -> 0.5710311492 | AX43: =IF($F43<>AX$2,1-_xlfn.NORM.DIST(0,INDEX(Rating,$F43)-INDEX(Rating,AX$2),10,1),"") -> 0.653578556 | AY43: =IF($F43<>AY$2,1-_xlfn.NORM.DIST(0,INDEX(Rating,$F43)-INDEX(Rating,AY$2),10,1),"") -> 0.679750061 | AZ43: =IF($F43<>AZ$2,1-_xlfn.NORM.DIST(0,INDEX(Rating,$F43)-INDEX(Rating,AZ$2),10,1),"") -> 0.4884322953 | BA43: =IF($F43<>BA$2,1-_xlfn.NORM.DIST(0,INDEX(Rating,$F43)-INDEX(Rating,BA$2),10,1),"") -> 0.9050711182 | BB43: =IF($F43<>BB$2,1-_xlfn.NORM.DIST(0,INDEX(Rating,$F43)-INDEX(Rating,BB$2),10,1),"") -> 0.5051861036 | BC43: =IF($F43<>BC$2,1-_xlfn.NORM.DIST(0,INDEX(Rating,$F43)-INDEX(Rating,BC$2),10,1),"") -> 0.5921192971 | BD43: =IF($F43<>BD$2,1-_xlfn.NORM.DIST(0,INDEX(Rating,$F43)-INDEX(Rating,BD$2),10,1),"") -> 0.3354183374 | BE43: =IF($F43<>BE$2,1-_xlfn.NORM.DIST(0,INDEX(Rating,$F43)-INDEX(Rating,BE$2),10,1),"") -> 0.8432727689 | BF43: =IF($F43<>BF$2,1-_xlfn.NORM.DIST(0,INDEX(Rating,$F43)-INDEX(Rating,BF$2),10,1),"") -> 0.3542021581 | BG43: =IF($F43<>BG$2,1-_xlfn.NORM.DIST(0,INDEX(Rating,$F43)-INDEX(Rating,BG$2),10,1),"") -> 0.9573745881 | BH43: =IF($F43<>BH$2,1-_xlfn.NORM.DIST(0,INDEX(Rating,$F43)-INDEX(Rating,BH$2),10,1),"") -> 0.5179463455 | BI43: =IF($F43<>BI$2,1-_xlfn.NORM.DIST(0,INDEX(Rating,$F43)-INDEX(Rating,BI$2),10,1),"") -> 0.5362537045 | BJ43: =IF($F43<>BJ$2,1-_xlfn.NORM.DIST(0,INDEX(Rating,$F43)-INDEX(Rating,BJ$2),10,1),"") -> 0.4912239778 | BK43: =IF($F43<>BK$2,1-_xlfn.NORM.DIST(0,INDEX(Rating,$F43)-INDEX(Rating,BK$2),10,1),"") -> 0.6087259669 | BL43: =IF($F43<>BL$2,1-_xlfn.NORM.DIST(0,INDEX(Rating,$F43)-INDEX(Rating,BL$2),10,1),"") -> 0.3497483344 | BM43: =IF($F43<>BM$2,1-_xlfn.NORM.DIST(0,INDEX(Rating,$F43)-INDEX(Rating,BM$2),10,1),"") -> 0.7427994138 | BN43: =IF($F43<>BN$2,1-_xlfn.NORM.DIST(0,INDEX(Rating,$F43)-INDEX(Rating,BN$2),10,1),"") -> 0.5103713308 | BO43: =IF($F43<>BO$2,1-_xlfn.NORM.DIST(0,INDEX(Rating,$F43)-INDEX(Rating,BO$2),10,1),"") -> 0.6991648347 | BP43: =IF($F43<>BP$2,1-_xlfn.NORM.DIST(0,INDEX(Rating,$F43)-INDEX(Rating,BP$2),10,1),"") -> 0.7580363478 | BQ43: =IF($F43<>BQ$2,1-_xlfn.NORM.DIST(0,INDEX(Rating,$F43)-INDEX(Rating,BQ$2),10,1),"") -> 0.335053923 | BR43: =IF($F43<>BR$2,1-_xlfn.NORM.DIST(0,INDEX(Rating,$F43)-INDEX(Rating,BR$2),10,1),"") -> 0.8463727806 | BS43: =IF($F43<>BS$2,1-_xlfn.NORM.DIST(0,INDEX(Rating,$F43)-INDEX(Rating,BS$2),10,1),"") -> 0.5901768797 | BT43: =IF($F43<>BT$2,1-_xlfn.NORM.DIST(0,INDEX(Rating,$F43)-INDEX(Rating,BT$2),10,1),"") -> 0.6671292934 | BU43: =IF($F43<>BU$2,1-_xlfn.NORM.DIST(0,INDEX(Rating,$F43)-INDEX(Rating,BU$2),10,1),"") -> 0.3085375387 | BV43: =IF($F43<>BV$2,1-_xlfn.NORM.DIST(0,INDEX(Rating,$F43)-INDEX(Rating,BV$2),10,1),"") -> 0.9093886816
